Workbook

Sheet Blocked Macro Error Fix

Sheet Input
AA1: =PLANNING_SCHEME -> City of Mount Isa Planning Scheme (2020)
B2: Mount Isa City Council | AA2: =AICR -> Adopted Infrastructure Charges Resolution No.3 (2020)
B3: Infrastructure Charges Calculator | AA3: =APP_NO -> 0
AA4: =APP_NAME -> 0
B5: City of Mount Isa Planning Scheme (2020) | AA5: =FILEREF -> 0
B6: Adopted Infrastructure Charges Resolution No.3 (2020)
A9: Development Application Number
A11: Applicant Name
A13: Real Property Description
A15: Site Address
A17: Date of Notice
A19: Notice Number
A21: File Reference

Sheet Development Details
AA1: =PLANNING_SCHEME -> City of Mount Isa Planning Scheme (2020)
A2: Development Details | AA2: =AICR -> Adopted Infrastructure Charges Resolution No.3 (2020)
AA3: =APP_NO -> 0
B4: Charge Area/Region | C4: Mt Isa - Fully Serviced | AA4: =APP_NAME -> 0
B5: Number of existing lots | C5: 1 | D5: Component 1 | AA5: =FILEREF -> 0
B6: ="Lot credits - "&D6 -> Lot credits - Component 2 | D6: Component 2
B7: ="Lot credits - "&D7 -> Lot credits - Component 3 | D7: Component 3
B8: Lot credits - Component 4 | D8: Component 4
B9: Lot credits - Component 5 | D9: Component 5
B11: Application components | C11: 1
B12: (Number of chargeable uses)
B13: Existing Use components | C13: 0
B14: (Number of chargeable uses)
A16: Defined Use - Component 1 | C16: Dwelling house
B18: Charge Type | C18: Quantity
B20: 3 or more bedrooms | C20: 4
A24: Defined Use - Component 2
B26: Charge Type | C26: Quantity
A32: Defined Use - Component 3
B34: Charge Type | C34: Quantity
A40: Defined Use - Component 4
B42: ChargeType | C42: Quantity
A48: Defined Use - Component 5
B50: Charge Type | C50: Quantity
A57: Existing/Previous Use - Component 1
B59: Charge Type | C59: Quantity
A65: Existing/Previous Use - Component 2
B67: Charge Type | C67: Quantity
A73: Existing/Previous Use - Component 3
B75: Charge Type | C75: Quantity
A81: Existing/Previous Use - Component 4
B83: Charge Type | C83: Quantity
A89: Existing/Previous Use - Component 5
B91: Charge Type | C91: Quantity
B98: Previous Financial Contributions | C98: 0

Sheet Calculations
AA1: =PLANNING_SCHEME -> City of Mount Isa Planning Scheme (2020)
C2: Summary | AA2: =AICR -> Adopted Infrastructure Charges Resolution No.3 (2020)
C3: Levied Charges | AA3: =APP_NO -> 0
C4: Infrastructure Network | D4: Development Demand | E4: =IF(SUMIFS($H$18:$H$193,$A$18:$A$193,"ED")<SUMIFS($H$18:$H$193,$A$18:$A$193,"EL"),"Previous Lawful Use", "Existing Lot Credit") -> Existing Lot Credit | F4: Levied Charge | AA4: =APP_NAME -> 0
C5: Water Supply | D5: =SUMIFS($H$18:$H$192,$B$18:$B$192,$C5&"DD") -> 16432 | E5: =IF(SUMIFS($H$18:$H$193,$A$18:$A$193,"ED")<SUMIFS($H$18:$H$193,$A$18:$A$193,"EL"),SUMIFS($H$18:$H$193,$B$18:$B$193,$C5&"ED"), SUMIFS($H$18:$H$193,$B$18:$B$193,$C5&"EL")) -> -4108 | F5: =IF(-PFC<SUM($E$5:$E$9),D5,D5+E5) -> 12324 | AA5: =FILEREF -> 0
C6: Wastewater | D6: =SUMIFS($H$18:$H$192,$B$18:$B$192,$C6&"DD") -> 10564 | E6: =IF(SUMIFS($H$18:$H$193,$A$18:$A$193,"ED")<SUMIFS($H$18:$H$193,$A$18:$A$193,"EL"),SUMIFS($H$18:$H$193,$B$18:$B$193,$C6&"ED"), SUMIFS($H$18:$H$193,$B$18:$B$193,$C6&"EL")) -> -2641 | F6: =IF(-PFC<SUM($E$5:$E$9),D6,D6+E6) -> 7923
C7: Stormwater | D7: =SUMIFS($H$18:$H$192,$B$18:$B$192,$C7&"DD") -> 1172 | E7: =IF(SUMIFS($H$18:$H$193,$A$18:$A$193,"ED")<SUMIFS($H$18:$H$193,$A$18:$A$193,"EL"),SUMIFS($H$18:$H$193,$B$18:$B$193,$C7&"ED"), SUMIFS($H$18:$H$193,$B$18:$B$193,$C7&"EL")) -> -293 | F7: =IF(-PFC<SUM($E$5:$E$9),D7,D7+E7) -> 879
C8: Transport | D8: =SUMIFS($H$18:$H$192,$B$18:$B$192,$C8&"DD") -> 29340 | E8: =IF(SUMIFS($H$18:$H$193,$A$18:$A$193,"ED")<SUMIFS($H$18:$H$193,$A$18:$A$193,"EL"),SUMIFS($H$18:$H$193,$B$18:$B$193,$C8&"ED"), SUMIFS($H$18:$H$193,$B$18:$B$193,$C8&"EL")) -> -7335 | F8: =IF(-PFC<SUM($E$5:$E$9),D8,D8+E8) -> 22005
C9: Parks | D9: =SUMIFS($H$18:$H$192,$B$18:$B$192,$C9&"DD") -> 1172 | E9: =IF(SUMIFS($H$18:$H$193,$A$18:$A$193,"ED")<SUMIFS($H$18:$H$193,$A$18:$A$193,"EL"),SUMIFS($H$18:$H$193,$B$18:$B$193,$C9&"ED"), SUMIFS($H$18:$H$193,$B$18:$B$193,$C9&"EL")) -> -293 | F9: =IF(-PFC<SUM($E$5:$E$9),D9,D9+E9) -> 879
E10: Previous Financial Contribution | F10: =-PFC -> 0
E11: Total Adopted Charge | F11: =IF(F10<SUM(E5:E9),IF(SUM(D5:D9)+F10<0,0,SUM(D5:D9)+F10),IF(SUM(F5:F9)<0,0,SUM(F5:F9))) -> 44010
C13: Detailed Calculations
C15: Water Supply
C16: Adopted Charges
C17: Development Description | D17: Units of Measure | E17: Number of Units | F17: Charge Rate | G17: Reference | H17: Amount
A18: DD | B18: =C15&"DD" -> Water SupplyDD | C18: ="Component 1 - "&'Development Details'!$C$16 -> Component 1 - Dwelling house | D18: =IF('Development Details'!B$20="","",'Development Details'!B$20) -> 3 or more bedrooms | E18: =IF('Development Details'!C$20="","",'Development Details'!C$20) -> 4 | F18: =IFERROR(INDEX(AICR_RATES,MATCH(CHARGE_AREA&COMP_1&$D18,AICR_REG&AICR_USE&AICR_CH_CAT,0),MATCH($C15,AICR_COL,0)),"") -> 4108 | H18: =IFERROR(F18*E18,"") -> 16432 | N18: Component 1 - UOM 1
A19: DD | B19: =C15&"DD" -> Water SupplyDD | C19: =C18 -> Component 1 - Dwelling house | D19: =IF('Development Details'!B$21="","",'Development Details'!B$21) ->  | E19: =IF('Development Details'!C$21="","",'Development Details'!C$21) ->  | F19: =IFERROR(INDEX(AICR_RATES,MATCH(CHARGE_AREA&COMP_1&$D19,AICR_REG&AICR_USE&AICR_CH_CAT,0),MATCH($C15,AICR_COL,0)),"") ->  | I19: =IF(H19="","Y","") -> Y | N19: Component 1 - UOM 2
A20: DD | B20: =C15&"DD" -> Water SupplyDD | C20: =C18 -> Component 1 - Dwelling house | D20: =IF('Development Details'!B$22="","",'Development Details'!B$22) ->  | E20: =IF('Development Details'!C$22="","",'Development Details'!C$22) ->  | F20: =IFERROR(INDEX(AICR_RATES,MATCH(CHARGE_AREA&COMP_1&$D20,AICR_REG&AICR_USE&AICR_CH_CAT,0),MATCH($C15,AICR_COL,0)),"") ->  | I20: =IF(H20="","Y","") -> Y | N20: Component 1 - UOM 3
A21: DD | B21: =C15&"DD" -> Water SupplyDD | C21: ="Component 2 - "&'Development Details'!$C$24 -> Component 2 - | D21: =IF('Development Details'!B$28="","",'Development Details'!B$28) ->  | E21: =IF('Development Details'!C$28="","",'Development Details'!C$28) ->  | F21: =IFERROR(INDEX(AICR_RATES,MATCH(CHARGE_AREA&COMP_2&$D21,AICR_REG&AICR_USE&AICR_CH_CAT,0),MATCH($C15,AICR_COL,0)),"") ->  | I21: =IF('Development Details'!$C$11=1,"Y",IF(H21="","Y","")) -> Y | N21: Component 2 - UOM 1
A22: DD | B22: =C15&"DD" -> Water SupplyDD | C22: =C21 -> Component 2 - | D22: =IF('Development Details'!B$29="","",'Development Details'!B$29) ->  | E22: =IF('Development Details'!C$29="","",'Development Details'!C$29) ->  | F22: =IFERROR(INDEX(AICR_RATES,MATCH(CHARGE_AREA&COMP_2&$D22,AICR_REG&AICR_USE&AICR_CH_CAT,0),MATCH($C15,AICR_COL,0)),"") ->  | I22: =IF('Development Details'!$C$11=1,"Y",IF(H22="","Y","")) -> Y | N22: Component 2 - UOM 2
A23: DD | B23: =C15&"DD" -> Water SupplyDD | C23: =C21 -> Component 2 - | D23: =IF('Development Details'!B$30="","",'Development Details'!B$30) ->  | E23: =IF('Development Details'!C$30="","",'Development Details'!C$30) ->  | F23: =IFERROR(INDEX(AICR_RATES,MATCH(CHARGE_AREA&COMP_2&$D23,AICR_REG&AICR_USE&AICR_CH_CAT,0),MATCH($C15,AICR_COL,0)),"") ->  | I23: =IF('Development Details'!$C$11=1,"Y",IF(H23="","Y","")) -> Y | N23: Component 2 - UOM 3
A24: DD | B24: =C15&"DD" -> Water SupplyDD | C24: ="Component 3 - "&'Development Details'!$C$32 -> Component 3 - | D24: =IF('Development Details'!B$36="","",'Development Details'!B$36) ->  | E24: =IF('Development Details'!C$36="","",'Development Details'!C$36) ->  | F24: =IFERROR(INDEX(AICR_RATES,MATCH(CHARGE_AREA&COMP_3&$D24,AICR_REG&AICR_USE&AICR_CH_CAT,0),MATCH($C15,AICR_COL,0)),"") ->  | I24: =IF('Development Details'!$C$11<3,"Y",IF(H24="","Y","")) -> Y | N24: Component 3 - UOM 1
A25: DD | B25: =C15&"DD" -> Water SupplyDD | C25: =C24 -> Component 3 - | D25: =IF('Development Details'!B$37="","",'Development Details'!B$37) ->  | E25: =IF('Development Details'!C$37="","",'Development Details'!C$37) ->  | F25: =IFERROR(INDEX(AICR_RATES,MATCH(CHARGE_AREA&COMP_3&$D25,AICR_REG&AICR_USE&AICR_CH_CAT,0),MATCH($C15,AICR_COL,0)),"") ->  | I25: =IF('Development Details'!$C$11<3,"Y",IF(H25="","Y","")) -> Y | N25: Component 3 - UOM 2
A26: DD | B26: =C15&"DD" -> Water SupplyDD | C26: =C24 -> Component 3 - | D26: =IF('Development Details'!B$38="","",'Development Details'!B$38) ->  | E26: =IF('Development Details'!C$38="","",'Development Details'!C$38) ->  | F26: =IFERROR(INDEX(AICR_RATES,MATCH(CHARGE_AREA&COMP_3&$D26,AICR_REG&AICR_USE&AICR_CH_CAT,0),MATCH($C15,AICR_COL,0)),"") ->  | I26: =IF('Development Details'!$C$11<3,"Y",IF(H26="","Y","")) -> Y | N26: Component 3 - UOM 3
A27: DD | B27: =C15&"DD" -> Water SupplyDD | C27: ="Component 4 - "&'Development Details'!$C$40 -> Component 4 - | D27: =IF('Development Details'!B$44="","",'Development Details'!B$44) ->  | E27: =IF('Development Details'!C$44="","",'Development Details'!C$44) ->  | F27: =IFERROR(INDEX(AICR_RATES,MATCH(CHARGE_AREA&COMP_4&$D27,AICR_REG&AICR_USE&AICR_CH_CAT,0),MATCH($C15,AICR_COL,0)),"") ->  | I27: =IF('Development Details'!$C$11<4,"Y",IF(H27="","Y","")) -> Y | N27: Component 4 - UOM 1
A28: DD | B28: =C15&"DD" -> Water SupplyDD | C28: =C27 -> Component 4 - | D28: =IF('Development Details'!B$45="","",'Development Details'!B$45) ->  | E28: =IF('Development Details'!C$45="","",'Development Details'!C$45) ->  | F28: =IFERROR(INDEX(AICR_RATES,MATCH(CHARGE_AREA&COMP_4&$D28,AICR_REG&AICR_USE&AICR_CH_CAT,0),MATCH($C15,AICR_COL,0)),"") ->  | I28: =IF('Development Details'!$C$11<4,"Y",IF(H28="","Y","")) -> Y | N28: Component 4 - UOM 2
A29: DD | B29: =C15&"DD" -> Water SupplyDD | C29: =C27 -> Component 4 - | D29: =IF('Development Details'!B$46="","",'Development Details'!B$46) ->  | E29: =IF('Development Details'!C$46="","",'Development Details'!C$46) ->  | F29: =IFERROR(INDEX(AICR_RATES,MATCH(CHARGE_AREA&COMP_4&$D29,AICR_REG&AICR_USE&AICR_CH_CAT,0),MATCH($C15,AICR_COL,0)),"") ->  | I29: =IF('Development Details'!$C$11<4,"Y",IF(H29="","Y","")) -> Y | N29: Component 4 - UOM 3
A30: DD | B30: =C15&"DD" -> Water SupplyDD | C30: ="Component 5 - "&'Development Details'!$C$48 -> Component 5 - | D30: =IF('Development Details'!B$52="","",'Development Details'!B$52) ->  | E30: =IF('Development Details'!C$52="","",'Development Details'!C$52) ->  | F30: =IFERROR(INDEX(AICR_RATES,MATCH(CHARGE_AREA&COMP_5&$D30,AICR_REG&AICR_USE&AICR_CH_CAT,0),MATCH($C15,AICR_COL,0)),"") ->  | I30: =IF('Development Details'!$C$11<5,"Y",IF(H30="","Y","")) -> Y | N30: Component 5 - UOM 1
A31: DD | B31: =C15&"DD" -> Water SupplyDD | C31: =C30 -> Component 5 - | D31: =IF('Development Details'!B$53="","",'Development Details'!B$53) ->  | E31: =IF('Development Details'!C$53="","",'Development Details'!C$53) ->  | F31: =IFERROR(INDEX(AICR_RATES,MATCH(CHARGE_AREA&COMP_5&$D31,AICR_REG&AICR_USE&AICR_CH_CAT,0),MATCH($C15,AICR_COL,0)),"") ->  | I31: =IF('Development Details'!$C$11<5,"Y",IF(H31="","Y","")) -> Y | N31: Component 5 - UOM 2
A32: DD | B32: =C15&"DD" -> Water SupplyDD | C32: =C30 -> Component 5 - | D32: =IF('Development Details'!B$54="","",'Development Details'!B$54) ->  | E32: =IF('Development Details'!C$54="","",'Development Details'!C$54) ->  | F32: =IFERROR(INDEX(AICR_RATES,MATCH(CHARGE_AREA&COMP_5&$D32,AICR_REG&AICR_USE&AICR_CH_CAT,0),MATCH($C15,AICR_COL,0)),"") ->  | I32: =IF('Development Details'!$C$11<5,"Y",IF(H32="","Y","")) -> Y | N32: Component 5 - UOM 3
C33: Existing Demand
A34: ED | B34: =C15&"ED" -> Water SupplyED | C34: ="Existing Demand 1 - "&'Development Details'!$C$57 -> Existing Demand 1 - | D34: =IF('Development Details'!B$61="","",'Development Details'!B$61) ->  | E34: =IF('Development Details'!C$61="","",'Development Details'!C$61) ->  | F34: =IFERROR(INDEX(AICR_RATES,MATCH(CHARGE_AREA&EXU_1&$D34,AICR_REG&AICR_USE&AICR_CH_CAT,0),MATCH($C15,AICR_COL,0))*-1,"") ->  | H34: =IFERROR(F34*E34,"") ->  | O34: Component 1 - UOM 1
A35: ED | B35: =C15&"ED" -> Water SupplyED | C35: =C34 -> Existing Demand 1 - | D35: =IF('Development Details'!B$62="","",'Development Details'!B$62) ->  | E35: =IF('Development Details'!C$62="","",'Development Details'!C$62) ->  | F35: =IFERROR(INDEX(AICR_RATES,MATCH(CHARGE_AREA&EXU_1&$D35,AICR_REG&AICR_USE&AICR_CH_CAT,0),MATCH($C15,AICR_COL,0))*-1,"") ->  | I35: =IF(H35="","Y","") -> Y | O35: Component 1 - UOM 2
A36: ED | B36: =C15&"ED" -> Water SupplyED | C36: =C34 -> Existing Demand 1 - | D36: =IF('Development Details'!B$63="","",'Development Details'!B$63) ->  | E36: =IF('Development Details'!C$63="","",'Development Details'!C$63) ->  | F36: =IFERROR(INDEX(AICR_RATES,MATCH(CHARGE_AREA&EXU_1&$D36,AICR_REG&AICR_USE&AICR_CH_CAT,0),MATCH($C15,AICR_COL,0))*-1,"") ->  | I36: =IF(H36="","Y","") -> Y | O36: Component 1 - UOM 3
A37: ED | B37: =C15&"ED" -> Water SupplyED | C37: ="Existing Demand 2 - "&'Development Details'!$C$65 -> Existing Demand 2 - | D37: =IF('Development Details'!B$69="","",'Development Details'!B$69) ->  | E37: =IF('Development Details'!C$69="","",'Development Details'!C$69) ->  | F37: =IFERROR(INDEX(AICR_RATES,MATCH(CHARGE_AREA&EXU_2&$D37,AICR_REG&AICR_USE&AICR_CH_CAT,0),MATCH($C15,AICR_COL,0))*-1,"") ->  | I37: =IF('Development Details'!$C$13=1,"Y",IF(H37="","Y","")) -> Y | O37: Component 2 - UOM 1
A38: ED | B38: =C15&"ED" -> Water SupplyED | C38: =C37 -> Existing Demand 2 - | D38: =IF('Development Details'!B$70="","",'Development Details'!B$70) ->  | E38: =IF('Development Details'!C$70="","",'Development Details'!C$70) ->  | F38: =IFERROR(INDEX(AICR_RATES,MATCH(CHARGE_AREA&EXU_2&$D38,AICR_REG&AICR_USE&AICR_CH_CAT,0),MATCH($C15,AICR_COL,0))*-1,"") ->  | I38: =IF('Development Details'!$C$13=1,"Y",IF(H38="","Y","")) -> Y | O38: Component 2 - UOM 2
A39: ED | B39: =C15&"ED" -> Water SupplyED | C39: =C37 -> Existing Demand 2 - | D39: =IF('Development Details'!B$71="","",'Development Details'!B$71) ->  | E39: =IF('Development Details'!C$71="","",'Development Details'!C$71) ->  | F39: =IFERROR(INDEX(AICR_RATES,MATCH(CHARGE_AREA&EXU_2&$D39,AICR_REG&AICR_USE&AICR_CH_CAT,0),MATCH($C15,AICR_COL,0))*-1,"") ->  | I39: =IF('Development Details'!$C$13=1,"Y",IF(H39="","Y","")) -> Y | O39: Component 2 - UOM 3
A40: ED | B40: =C15&"ED" -> Water SupplyED | C40: ="Existing Demand 3 - "&'Development Details'!$C$73 -> Existing Demand 3 - | D40: =IF('Development Details'!B$77="","",'Development Details'!B$77) ->  | E40: =IF('Development Details'!C$77="","",'Development Details'!C$77) ->  | F40: =IFERROR(INDEX(AICR_RATES,MATCH(CHARGE_AREA&EXU_3&$D40,AICR_REG&AICR_USE&AICR_CH_CAT,0),MATCH($C15,AICR_COL,0))*-1,"") ->  | I40: =IF('Development Details'!$C$13<3,"Y",IF(H40="","Y","")) -> Y | O40: Component 3 - UOM 1
A41: ED | B41: =C15&"ED" -> Water SupplyED | C41: =C40 -> Existing Demand 3 - | D41: =IF('Development Details'!B$78="","",'Development Details'!B$78) ->  | E41: =IF('Development Details'!C$78="","",'Development Details'!C$78) ->  | F41: =IFERROR(INDEX(AICR_RATES,MATCH(CHARGE_AREA&EXU_3&$D41,AICR_REG&AICR_USE&AICR_CH_CAT,0),MATCH($C15,AICR_COL,0))*-1,"") ->  | I41: =IF('Development Details'!$C$13<3,"Y",IF(H41="","Y","")) -> Y | O41: Component 3 - UOM 2
A42: ED | B42: =C15&"ED" -> Water SupplyED | C42: =C40 -> Existing Demand 3 - | D42: =IF('Development Details'!B$79="","",'Development Details'!B$79) ->  | E42: =IF('Development Details'!C$79="","",'Development Details'!C$79) ->  | F42: =IFERROR(INDEX(AICR_RATES,MATCH(CHARGE_AREA&EXU_3&$D42,AICR_REG&AICR_USE&AICR_CH_CAT,0),MATCH($C15,AICR_COL,0))*-1,"") ->  | I42: =IF('Development Details'!$C$13<3,"Y",IF(H42="","Y","")) -> Y | O42: Component 3 - UOM 3
A43: ED | B43: =C15&"ED" -> Water SupplyED | C43: ="Existing Demand 4 - "&'Development Details'!$C$81 -> Existing Demand 4 - | D43: =IF('Development Details'!B$85="","",'Development Details'!B$85) ->  | E43: =IF('Development Details'!C$85="","",'Development Details'!C$85) ->  | F43: =IFERROR(INDEX(AICR_RATES,MATCH(CHARGE_AREA&EXU_4&$D43,AICR_REG&AICR_USE&AICR_CH_CAT,0),MATCH($C15,AICR_COL,0))*-1,"") ->  | I43: =IF('Development Details'!$C$13<4,"Y",IF(H43="","Y","")) -> Y | O43: Component 4 - UOM 1
A44: ED | B44: =C15&"ED" -> Water SupplyED | C44: =C43 -> Existing Demand 4 - | D44: =IF('Development Details'!B$86="","",'Development Details'!B$86) ->  | E44: =IF('Development Details'!C$86="","",'Development Details'!C$86) ->  | F44: =IFERROR(INDEX(AICR_RATES,MATCH(CHARGE_AREA&EXU_4&$D44,AICR_REG&AICR_USE&AICR_CH_CAT,0),MATCH($C15,AICR_COL,0))*-1,"") ->  | I44: =IF('Development Details'!$C$13<4,"Y",IF(H44="","Y","")) -> Y | O44: Component 4 - UOM 2
A45: ED | B45: =C15&"ED" -> Water SupplyED | C45: =C43 -> Existing Demand 4 - | D45: =IF('Development Details'!B$87="","",'Development Details'!B$87) ->  | E45: =IF('Development Details'!C$87="","",'Development Details'!C$87) ->  | F45: =IFERROR(INDEX(AICR_RATES,MATCH(CHARGE_AREA&EXU_4&$D45,AICR_REG&AICR_USE&AICR_CH_CAT,0),MATCH($C15,AICR_COL,0))*-1,"") ->  | I45: =IF('Development Details'!$C$13<4,"Y",IF(H45="","Y","")) -> Y | O45: Component 4 - UOM 3
A46: ED | B46: =C15&"ED" -> Water SupplyED | C46: ="Existing Demand 5 - "&'Development Details'!$C$89 -> Existing Demand 5 - | D46: =IF('Development Details'!B$93="","",'Development Details'!B$93) ->  | E46: =IF('Development Details'!C$93="","",'Development Details'!C$93) ->  | F46: =IFERROR(INDEX(AICR_RATES,MATCH(CHARGE_AREA&EXU_5&$D46,AICR_REG&AICR_USE&AICR_CH_CAT,0),MATCH($C15,AICR_COL,0))*-1,"") ->  | I46: =IF('Development Details'!$C$13<5,"Y",IF(H46="","Y","")) -> Y | O46: Component 5 - UOM 1
A47: ED | B47: =C15&"ED" -> Water SupplyED | C47: =C46 -> Existing Demand 5 - | D47: =IF('Development Details'!B$94="","",'Development Details'!B$94) ->  | E47: =IF('Development Details'!C$94="","",'Development Details'!C$94) ->  | F47: =IFERROR(INDEX(AICR_RATES,MATCH(CHARGE_AREA&EXU_5&$D47,AICR_REG&AICR_USE&AICR_CH_CAT,0),MATCH($C15,AICR_COL,0))*-1,"") ->  | I47: =IF('Development Details'!$C$13<5,"Y",IF(H47="","Y","")) -> Y | O47: Component 5 - UOM 2
A48: ED | B48: =C15&"ED" -> Water SupplyED | C48: =C46 -> Existing Demand 5 - | D48: =IF('Development Details'!B$95="","",'Development Details'!B$95) ->  | E48: =IF('Development Details'!C$95="","",'Development Details'!C$95) ->  | F48: =IFERROR(INDEX(AICR_RATES,MATCH(CHARGE_AREA&EXU_5&$D48,AICR_REG&AICR_USE&AICR_CH_CAT,0),MATCH($C15,AICR_COL,0))*-1,"") ->  | I48: =IF('Development Details'!$C$13<5,"Y",IF(H48="","Y","")) -> Y | O48: Component 5 - UOM 3
A49: EL | B49: =C15&"EL" -> Water SupplyEL | C49: Existing Lot Credit | D49: Lots | E49: =SUM('Development Details'!$C$5:$C$9) -> 1 | F49: =IFERROR(INDEX(AICR_RATES,MATCH(CHARGE_AREA&"Reconfiguring a Lot - Residential"&$D49,AICR_REG&AICR_USE&AICR_CH_CAT,0),MATCH($C15,AICR_COL,0))*-1,"") -> -4108 | H49: -4108
C51: Wastewater
C52: Adopted Charges
C53: Development Description | D53: Units of Measure | E53: Number of Units | F53: Charge Rate | G53: Reference | H53: Amount
A54: DD | B54: =C51&"DD" -> WastewaterDD | C54: ="Component 1 - "&'Development Details'!$C$16 -> Component 1 - Dwelling house | D54: =IF('Development Details'!B$20="","",'Development Details'!B$20) -> 3 or more bedrooms | E54: =IF('Development Details'!C$20="","",'Development Details'!C$20) -> 4 | F54: =IFERROR(INDEX(AICR_RATES,MATCH(CHARGE_AREA&COMP_1&$D54,AICR_REG&AICR_USE&AICR_CH_CAT,0),MATCH($C51,AICR_COL,0)),"") -> 2641 | H54: =IFERROR(F54*E54,"") -> 10564 | N54: Component 1 - UOM 1
A55: DD | B55: =C51&"DD" -> WastewaterDD | C55: =C54 -> Component 1 - Dwelling house | D55: =IF('Development Details'!B$21="","",'Development Details'!B$21) ->  | E55: =IF('Development Details'!C$21="","",'Development Details'!C$21) ->  | F55: =IFERROR(INDEX(AICR_RATES,MATCH(CHARGE_AREA&COMP_1&$D55,AICR_REG&AICR_USE&AICR_CH_CAT,0),MATCH($C51,AICR_COL,0)),"") ->  | I55: =IF(H55="","Y","") -> Y | N55: Component 1 - UOM 2
A56: DD | B56: =C51&"DD" -> WastewaterDD | C56: =C54 -> Component 1 - Dwelling house | D56: =IF('Development Details'!B$22="","",'Development Details'!B$22) ->  | E56: =IF('Development Details'!C$22="","",'Development Details'!C$22) ->  | F56: =IFERROR(INDEX(AICR_RATES,MATCH(CHARGE_AREA&COMP_1&$D56,AICR_REG&AICR_USE&AICR_CH_CAT,0),MATCH($C51,AICR_COL,0)),"") ->  | I56: =IF(H56="","Y","") -> Y | N56: Component 1 - UOM 3
A57: DD | B57: =C51&"DD" -> WastewaterDD | C57: ="Component 2 - "&'Development Details'!$C$24 -> Component 2 - | D57: =IF('Development Details'!B$28="","",'Development Details'!B$28) ->  | E57: =IF('Development Details'!C$28="","",'Development Details'!C$28) ->  | F57: =IFERROR(INDEX(AICR_RATES,MATCH(CHARGE_AREA&COMP_2&$D57,AICR_REG&AICR_USE&AICR_CH_CAT,0),MATCH($C51,AICR_COL,0)),"") ->  | I57: =IF('Development Details'!$C$11=1,"Y",IF(H57="","Y","")) -> Y | N57: Component 2 - UOM 1
A58: DD | B58: =C51&"DD" -> WastewaterDD | C58: =C57 -> Component 2 - | D58: =IF('Development Details'!B$29="","",'Development Details'!B$29) ->  | E58: =IF('Development Details'!C$29="","",'Development Details'!C$29) ->  | F58: =IFERROR(INDEX(AICR_RATES,MATCH(CHARGE_AREA&COMP_2&$D58,AICR_REG&AICR_USE&AICR_CH_CAT,0),MATCH($C51,AICR_COL,0)),"") ->  | I58: =IF('Development Details'!$C$11=1,"Y",IF(H58="","Y","")) -> Y | N58: Component 2 - UOM 2
A59: DD | B59: =C51&"DD" -> WastewaterDD | C59: =C57 -> Component 2 - | D59: =IF('Development Details'!B$30="","",'Development Details'!B$30) ->  | E59: =IF('Development Details'!C$30="","",'Development Details'!C$30) ->  | F59: =IFERROR(INDEX(AICR_RATES,MATCH(CHARGE_AREA&COMP_2&$D59,AICR_REG&AICR_USE&AICR_CH_CAT,0),MATCH($C51,AICR_COL,0)),"") ->  | I59: =IF('Development Details'!$C$11=1,"Y",IF(H59="","Y","")) -> Y | N59: Component 2 - UOM 3
A60: DD | B60: =C51&"DD" -> WastewaterDD | C60: ="Component 3 - "&'Development Details'!$C$32 -> Component 3 - | D60: =IF('Development Details'!B$36="","",'Development Details'!B$36) ->  | E60: =IF('Development Details'!C$36="","",'Development Details'!C$36) ->  | F60: =IFERROR(INDEX(AICR_RATES,MATCH(CHARGE_AREA&COMP_3&$D60,AICR_REG&AICR_USE&AICR_CH_CAT,0),MATCH($C51,AICR_COL,0)),"") ->  | I60: =IF('Development Details'!$C$11<3,"Y",IF(H60="","Y","")) -> Y | N60: Component 3 - UOM 1
A61: DD | B61: =C51&"DD" -> WastewaterDD | C61: =C60 -> Component 3 - | D61: =IF('Development Details'!B$37="","",'Development Details'!B$37) ->  | E61: =IF('Development Details'!C$37="","",'Development Details'!C$37) ->  | F61: =IFERROR(INDEX(AICR_RATES,MATCH(CHARGE_AREA&COMP_3&$D61,AICR_REG&AICR_USE&AICR_CH_CAT,0),MATCH($C51,AICR_COL,0)),"") ->  | I61: =IF('Development Details'!$C$11<3,"Y",IF(H61="","Y","")) -> Y | N61: Component 3 - UOM 2
A62: DD | B62: =C51&"DD" -> WastewaterDD | C62: =C60 -> Component 3 - | D62: =IF('Development Details'!B$38="","",'Development Details'!B$38) ->  | E62: =IF('Development Details'!C$38="","",'Development Details'!C$38) ->  | F62: =IFERROR(INDEX(AICR_RATES,MATCH(CHARGE_AREA&COMP_3&$D62,AICR_REG&AICR_USE&AICR_CH_CAT,0),MATCH($C51,AICR_COL,0)),"") ->  | I62: =IF('Development Details'!$C$11<3,"Y",IF(H62="","Y","")) -> Y | N62: Component 3 - UOM 3
A63: DD | B63: =C51&"DD" -> WastewaterDD | C63: ="Component 4 - "&'Development Details'!$C$40 -> Component 4 - | D63: =IF('Development Details'!B$44="","",'Development Details'!B$44) ->  | E63: =IF('Development Details'!C$44="","",'Development Details'!C$44) ->  | F63: =IFERROR(INDEX(AICR_RATES,MATCH(CHARGE_AREA&COMP_4&$D63,AICR_REG&AICR_USE&AICR_CH_CAT,0),MATCH($C51,AICR_COL,0)),"") ->  | I63: =IF('Development Details'!$C$11<4,"Y",IF(H63="","Y","")) -> Y | N63: Component 4 - UOM 1
A64: DD | B64: =C51&"DD" -> WastewaterDD | C64: =C63 -> Component 4 - | D64: =IF('Development Details'!B$45="","",'Development Details'!B$45) ->  | E64: =IF('Development Details'!C$45="","",'Development Details'!C$45) ->  | F64: =IFERROR(INDEX(AICR_RATES,MATCH(CHARGE_AREA&COMP_4&$D64,AICR_REG&AICR_USE&AICR_CH_CAT,0),MATCH($C51,AICR_COL,0)),"") ->  | I64: =IF('Development Details'!$C$11<4,"Y",IF(H64="","Y","")) -> Y | N64: Component 4 - UOM 2
A65: DD | B65: =C51&"DD" -> WastewaterDD | C65: =C63 -> Component 4 - | D65: =IF('Development Details'!B$46="","",'Development Details'!B$46) ->  | E65: =IF('Development Details'!C$46="","",'Development Details'!C$46) ->  | F65: =IFERROR(INDEX(AICR_RATES,MATCH(CHARGE_AREA&COMP_4&$D65,AICR_REG&AICR_USE&AICR_CH_CAT,0),MATCH($C51,AICR_COL,0)),"") ->  | I65: =IF('Development Details'!$C$11<4,"Y",IF(H65="","Y","")) -> Y | N65: Component 4 - UOM 3
A66: DD | B66: =C51&"DD" -> WastewaterDD | C66: ="Component 5 - "&'Development Details'!$C$48 -> Component 5 - | D66: =IF('Development Details'!B$52="","",'Development Details'!B$52) ->  | E66: =IF('Development Details'!C$52="","",'Development Details'!C$52) ->  | F66: =IFERROR(INDEX(AICR_RATES,MATCH(CHARGE_AREA&COMP_5&$D66,AICR_REG&AICR_USE&AICR_CH_CAT,0),MATCH($C51,AICR_COL,0)),"") ->  | I66: =IF('Development Details'!$C$11<5,"Y",IF(H66="","Y","")) -> Y | N66: Component 5 - UOM 1
A67: DD | B67: =C51&"DD" -> WastewaterDD | C67: =C66 -> Component 5 - | D67: =IF('Development Details'!B$53="","",'Development Details'!B$53) ->  | E67: =IF('Development Details'!C$53="","",'Development Details'!C$53) ->  | F67: =IFERROR(INDEX(AICR_RATES,MATCH(CHARGE_AREA&COMP_5&$D67,AICR_REG&AICR_USE&AICR_CH_CAT,0),MATCH($C51,AICR_COL,0)),"") ->  | I67: =IF('Development Details'!$C$11<5,"Y",IF(H67="","Y","")) -> Y | N67: Component 5 - UOM 2
A68: DD | B68: =C51&"DD" -> WastewaterDD | C68: =C66 -> Component 5 - | D68: =IF('Development Details'!B$54="","",'Development Details'!B$54) ->  | E68: =IF('Development Details'!C$54="","",'Development Details'!C$54) ->  | F68: =IFERROR(INDEX(AICR_RATES,MATCH(CHARGE_AREA&COMP_5&$D68,AICR_REG&AICR_USE&AICR_CH_CAT,0),MATCH($C51,AICR_COL,0)),"") ->  | I68: =IF('Development Details'!$C$11<5,"Y",IF(H68="","Y","")) -> Y | N68: Component 5 - UOM 3
C69: Existing Demand
A70: ED | B70: =C51&"ED" -> WastewaterED | C70: ="Existing Demand 1 - "&'Development Details'!$C$57 -> Existing Demand 1 - | D70: =IF('Development Details'!B$61="","",'Development Details'!B$61) ->  | E70: =IF('Development Details'!C$61="","",'Development Details'!C$61) ->  | F70: =IFERROR(INDEX(AICR_RATES,MATCH(CHARGE_AREA&EXU_1&$D70,AICR_REG&AICR_USE&AICR_CH_CAT,0),MATCH($C51,AICR_COL,0))*-1,"") ->  | H70: =IFERROR(F70*E70,"") ->  | O70: Component 1 - UOM 1
A71: ED | B71: =C51&"ED" -> WastewaterED | C71: =C70 -> Existing Demand 1 - | D71: =IF('Development Details'!B$62="","",'Development Details'!B$62) ->  | E71: =IF('Development Details'!C$62="","",'Development Details'!C$62) ->  | F71: =IFERROR(INDEX(AICR_RATES,MATCH(CHARGE_AREA&EXU_1&$D71,AICR_REG&AICR_USE&AICR_CH_CAT,0),MATCH($C51,AICR_COL,0))*-1,"") ->  | I71: =IF(H71="","Y","") -> Y | O71: Component 1 - UOM 2
A72: ED | B72: =C51&"ED" -> WastewaterED | C72: =C70 -> Existing Demand 1 - | D72: =IF('Development Details'!B$63="","",'Development Details'!B$63) ->  | E72: =IF('Development Details'!C$63="","",'Development Details'!C$63) ->  | F72: =IFERROR(INDEX(AICR_RATES,MATCH(CHARGE_AREA&EXU_1&$D72,AICR_REG&AICR_USE&AICR_CH_CAT,0),MATCH($C51,AICR_COL,0))*-1,"") ->  | I72: =IF(H72="","Y","") -> Y | O72: Component 1 - UOM 3
A73: ED | B73: =C51&"ED" -> WastewaterED | C73: ="Existing Demand 2 - "&'Development Details'!$C$65 -> Existing Demand 2 - | D73: =IF('Development Details'!B$69="","",'Development Details'!B$69) ->  | E73: =IF('Development Details'!C$69="","",'Development Details'!C$69) ->  | F73: =IFERROR(INDEX(AICR_RATES,MATCH(CHARGE_AREA&EXU_2&$D73,AICR_REG&AICR_USE&AICR_CH_CAT,0),MATCH($C51,AICR_COL,0))*-1,"") ->  | I73: =IF('Development Details'!$C$13=1,"Y",IF(H73="","Y","")) -> Y | O73: Component 2 - UOM 1
A74: ED | B74: =C51&"ED" -> WastewaterED | C74: =C73 -> Existing Demand 2 - | D74: =IF('Development Details'!B$70="","",'Development Details'!B$70) ->  | E74: =IF('Development Details'!C$70="","",'Development Details'!C$70) ->  | F74: =IFERROR(INDEX(AICR_RATES,MATCH(CHARGE_AREA&EXU_2&$D74,AICR_REG&AICR_USE&AICR_CH_CAT,0),MATCH($C51,AICR_COL,0))*-1,"") ->  | I74: =IF('Development Details'!$C$13=1,"Y",IF(H74="","Y","")) -> Y | O74: Component 2 - UOM 2
A75: ED | B75: =C51&"ED" -> WastewaterED | C75: =C73 -> Existing Demand 2 - | D75: =IF('Development Details'!B$71="","",'Development Details'!B$71) ->  | E75: =IF('Development Details'!C$71="","",'Development Details'!C$71) ->  | F75: =IFERROR(INDEX(AICR_RATES,MATCH(CHARGE_AREA&EXU_2&$D75,AICR_REG&AICR_USE&AICR_CH_CAT,0),MATCH($C51,AICR_COL,0))*-1,"") ->  | I75: =IF('Development Details'!$C$13=1,"Y",IF(H75="","Y","")) -> Y | O75: Component 2 - UOM 3
A76: ED | B76: =C51&"ED" -> WastewaterED | C76: ="Existing Demand 3 - "&'Development Details'!$C$73 -> Existing Demand 3 - | D76: =IF('Development Details'!B$77="","",'Development Details'!B$77) ->  | E76: =IF('Development Details'!C$77="","",'Development Details'!C$77) ->  | F76: =IFERROR(INDEX(AICR_RATES,MATCH(CHARGE_AREA&EXU_3&$D76,AICR_REG&AICR_USE&AICR_CH_CAT,0),MATCH($C51,AICR_COL,0))*-1,"") ->  | I76: =IF('Development Details'!$C$13<3,"Y",IF(H76="","Y","")) -> Y | O76: Component 3 - UOM 1
A77: ED | B77: =C51&"ED" -> WastewaterED | C77: =C76 -> Existing Demand 3 - | D77: =IF('Development Details'!B$78="","",'Development Details'!B$78) ->  | E77: =IF('Development Details'!C$78="","",'Development Details'!C$78) ->  | F77: =IFERROR(INDEX(AICR_RATES,MATCH(CHARGE_AREA&EXU_3&$D77,AICR_REG&AICR_USE&AICR_CH_CAT,0),MATCH($C51,AICR_COL,0))*-1,"") ->  | I77: =IF('Development Details'!$C$13<3,"Y",IF(H77="","Y","")) -> Y | O77: Component 3 - UOM 2
A78: ED | B78: =C51&"ED" -> WastewaterED | C78: =C76 -> Existing Demand 3 - | D78: =IF('Development Details'!B$79="","",'Development Details'!B$79) ->  | E78: =IF('Development Details'!C$79="","",'Development Details'!C$79) ->  | F78: =IFERROR(INDEX(AICR_RATES,MATCH(CHARGE_AREA&EXU_3&$D78,AICR_REG&AICR_USE&AICR_CH_CAT,0),MATCH($C51,AICR_COL,0))*-1,"") ->  | I78: =IF('Development Details'!$C$13<3,"Y",IF(H78="","Y","")) -> Y | O78: Component 3 - UOM 3
A79: ED | B79: =C51&"ED" -> WastewaterED | C79: ="Existing Demand 4 - "&'Development Details'!$C$81 -> Existing Demand 4 - | D79: =IF('Development Details'!B$85="","",'Development Details'!B$85) ->  | E79: =IF('Development Details'!C$85="","",'Development Details'!C$85) ->  | F79: =IFERROR(INDEX(AICR_RATES,MATCH(CHARGE_AREA&EXU_4&$D79,AICR_REG&AICR_USE&AICR_CH_CAT,0),MATCH($C51,AICR_COL,0))*-1,"") ->  | I79: =IF('Development Details'!$C$13<4,"Y",IF(H79="","Y","")) -> Y | O79: Component 4 - UOM 1
A80: ED | B80: =C51&"ED" -> WastewaterED | C80: =C79 -> Existing Demand 4 - | D80: =IF('Development Details'!B$86="","",'Development Details'!B$86) ->  | E80: =IF('Development Details'!C$86="","",'Development Details'!C$86) ->  | F80: =IFERROR(INDEX(AICR_RATES,MATCH(CHARGE_AREA&EXU_4&$D80,AICR_REG&AICR_USE&AICR_CH_CAT,0),MATCH($C51,AICR_COL,0))*-1,"") ->  | I80: =IF('Development Details'!$C$13<4,"Y",IF(H80="","Y","")) -> Y | O80: Component 4 - UOM 2
A81: ED | B81: =C51&"ED" -> WastewaterED | C81: =C79 -> Existing Demand 4 - | D81: =IF('Development Details'!B$87="","",'Development Details'!B$87) ->  | E81: =IF('Development Details'!C$87="","",'Development Details'!C$87) ->  | F81: =IFERROR(INDEX(AICR_RATES,MATCH(CHARGE_AREA&EXU_4&$D81,AICR_REG&AICR_USE&AICR_CH_CAT,0),MATCH($C51,AICR_COL,0))*-1,"") ->  | I81: =IF('Development Details'!$C$13<4,"Y",IF(H81="","Y","")) -> Y | O81: Component 4 - UOM 3
A82: ED | B82: =C51&"ED" -> WastewaterED | C82: ="Existing Demand 5 - "&'Development Details'!$C$89 -> Existing Demand 5 - | D82: =IF('Development Details'!B$93="","",'Development Details'!B$93) ->  | E82: =IF('Development Details'!C$93="","",'Development Details'!C$93) ->  | F82: =IFERROR(INDEX(AICR_RATES,MATCH(CHARGE_AREA&EXU_5&$D82,AICR_REG&AICR_USE&AICR_CH_CAT,0),MATCH($C51,AICR_COL,0))*-1,"") ->  | I82: =IF('Development Details'!$C$13<5,"Y",IF(H82="","Y","")) -> Y | O82: Component 5 - UOM 1
A83: ED | B83: =C51&"ED" -> WastewaterED | C83: =C82 -> Existing Demand 5 - | D83: =IF('Development Details'!B$94="","",'Development Details'!B$94) ->  | E83: =IF('Development Details'!C$94="","",'Development Details'!C$94) ->  | F83: =IFERROR(INDEX(AICR_RATES,MATCH(CHARGE_AREA&EXU_5&$D83,AICR_REG&AICR_USE&AICR_CH_CAT,0),MATCH($C51,AICR_COL,0))*-1,"") ->  | I83: =IF('Development Details'!$C$13<5,"Y",IF(H83="","Y","")) -> Y | O83: Component 5 - UOM 2
A84: ED | B84: =C51&"ED" -> WastewaterED | C84: =C82 -> Existing Demand 5 - | D84: =IF('Development Details'!B$95="","",'Development Details'!B$95) ->  | E84: =IF('Development Details'!C$95="","",'Development Details'!C$95) ->  | F84: =IFERROR(INDEX(AICR_RATES,MATCH(CHARGE_AREA&EXU_5&$D84,AICR_REG&AICR_USE&AICR_CH_CAT,0),MATCH($C51,AICR_COL,0))*-1,"") ->  | I84: =IF('Development Details'!$C$13<5,"Y",IF(H84="","Y","")) -> Y | O84: Component 5 - UOM 3
A85: EL | B85: =C51&"EL" -> WastewaterEL | C85: Existing Lot Credit | D85: Lots | E85: =SUM('Development Details'!$C$5:$C$9) -> 1 | F85: =IFERROR(INDEX(AICR_RATES,MATCH(CHARGE_AREA&"Reconfiguring a Lot - Residential"&$D85,AICR_REG&AICR_USE&AICR_CH_CAT,0),MATCH($C51,AICR_COL,0))*-1,"") -> -2641 | H85: -2641
C87: Stormwater
C88: Adopted Charges
C89: Development Description | D89: Units of Measure | E89: Number of Units | F89: Charge Rate | G89: Reference | H89: Amount
A90: DD | B90: =C87&"DD" -> StormwaterDD | C90: ="SW Component 1 - "&'Development Details'!$C$16 -> SW Component 1 - Dwelling house | D90: =IF('Development Details'!B$20="","",'Development Details'!B$20) -> 3 or more bedrooms | E90: =IF('Development Details'!C$20="","",'Development Details'!C$20) -> 4 | F90: =IFERROR(INDEX(AICR_RATES,MATCH(CHARGE_AREA&COMP_1&$D90,AICR_REG&AICR_USE&AICR_CH_CAT,0),MATCH($C87,AICR_COL,0)),"") -> 293 | H90: =IFERROR(F90*E90,"") -> 1172 | N90: SW Component 1 - UOM 1
A91: DD | B91: =C87&"DD" -> StormwaterDD | C91: =C90 -> SW Component 1 - Dwelling house | D91: =IF('Development Details'!B$21="","",'Development Details'!B$21) ->  | E91: =IF('Development Details'!C$21="","",'Development Details'!C$21) ->  | F91: =IFERROR(INDEX(AICR_RATES,MATCH(CHARGE_AREA&COMP_1&$D91,AICR_REG&AICR_USE&AICR_CH_CAT,0),MATCH($C87,AICR_COL,0)),"") ->  | I91: =IF(H91="","Y","") -> Y | N91: SW Component 1 - UOM 2
A92: DD | B92: =C87&"DD" -> StormwaterDD | C92: =C90 -> SW Component 1 - Dwelling house | D92: =IF('Development Details'!B$22="","",'Development Details'!B$22) ->  | E92: =IF('Development Details'!C$22="","",'Development Details'!C$22) ->  | F92: =IFERROR(INDEX(AICR_RATES,MATCH(CHARGE_AREA&COMP_1&$D92,AICR_REG&AICR_USE&AICR_CH_CAT,0),MATCH($C87,AICR_COL,0)),"") ->  | I92: =IF(H92="","Y","") -> Y | N92: SW Component 1 - UOM 3
A93: DD | B93: =C87&"DD" -> StormwaterDD | C93: ="SW Component 2 - "&'Development Details'!$C$24 -> SW Component 2 - | D93: =IF('Development Details'!B$28="","",'Development Details'!B$28) ->  | E93: =IF('Development Details'!C$28="","",'Development Details'!C$28) ->  | F93: =IFERROR(INDEX(AICR_RATES,MATCH(CHARGE_AREA&COMP_2&$D93,AICR_REG&AICR_USE&AICR_CH_CAT,0),MATCH($C87,AICR_COL,0)),"") ->  | I93: =IF('Development Details'!$C$11=1,"Y",IF(H93="","Y","")) -> Y | N93: SW Component 2 - UOM 1
A94: DD | B94: =C87&"DD" -> StormwaterDD | C94: =C93 -> SW Component 2 - | D94: =IF('Development Details'!B$29="","",'Development Details'!B$29) ->  | E94: =IF('Development Details'!C$29="","",'Development Details'!C$29) ->  | F94: =IFERROR(INDEX(AICR_RATES,MATCH(CHARGE_AREA&COMP_2&$D94,AICR_REG&AICR_USE&AICR_CH_CAT,0),MATCH($C87,AICR_COL,0)),"") ->  | I94: =IF('Development Details'!$C$11=1,"Y",IF(H94="","Y","")) -> Y | N94: SW Component 2 - UOM 2
A95: DD | B95: =C87&"DD" -> StormwaterDD | C95: =C93 -> SW Component 2 - | D95: =IF('Development Details'!B$30="","",'Development Details'!B$30) ->  | E95: =IF('Development Details'!C$30="","",'Development Details'!C$30) ->  | F95: =IFERROR(INDEX(AICR_RATES,MATCH(CHARGE_AREA&COMP_2&$D95,AICR_REG&AICR_USE&AICR_CH_CAT,0),MATCH($C87,AICR_COL,0)),"") ->  | I95: =IF('Development Details'!$C$11=1,"Y",IF(H95="","Y","")) -> Y | N95: SW Component 2 - UOM 3
A96: DD | B96: =C87&"DD" -> StormwaterDD | C96: ="SW Component 3 - "&'Development Details'!$C$32 -> SW Component 3 - | D96: =IF('Development Details'!B$36="","",'Development Details'!B$36) ->  | E96: =IF('Development Details'!C$36="","",'Development Details'!C$36) ->  | F96: =IFERROR(INDEX(AICR_RATES,MATCH(CHARGE_AREA&COMP_3&$D96,AICR_REG&AICR_USE&AICR_CH_CAT,0),MATCH($C87,AICR_COL,0)),"") ->  | I96: =IF('Development Details'!$C$11<3,"Y",IF(H96="","Y","")) -> Y | N96: SW Component 3 - UOM 1
A97: DD | B97: =C87&"DD" -> StormwaterDD | C97: =C96 -> SW Component 3 - | D97: =IF('Development Details'!B$37="","",'Development Details'!B$37) ->  | E97: =IF('Development Details'!C$37="","",'Development Details'!C$37) ->  | F97: =IFERROR(INDEX(AICR_RATES,MATCH(CHARGE_AREA&COMP_3&$D97,AICR_REG&AICR_USE&AICR_CH_CAT,0),MATCH($C87,AICR_COL,0)),"") ->  | I97: =IF('Development Details'!$C$11<3,"Y",IF(H97="","Y","")) -> Y | N97: SW Component 3 - UOM 2
A98: DD | B98: =C87&"DD" -> StormwaterDD | C98: =C96 -> SW Component 3 - | D98: =IF('Development Details'!B$38="","",'Development Details'!B$38) ->  | E98: =IF('Development Details'!C$38="","",'Development Details'!C$38) ->  | F98: =IFERROR(INDEX(AICR_RATES,MATCH(CHARGE_AREA&COMP_3&$D98,AICR_REG&AICR_USE&AICR_CH_CAT,0),MATCH($C87,AICR_COL,0)),"") ->  | I98: =IF('Development Details'!$C$11<3,"Y",IF(H98="","Y","")) -> Y | N98: SW Component 3 - UOM 3
A99: DD | B99: =C87&"DD" -> StormwaterDD | C99: ="SW Component 4 - "&'Development Details'!$C$40 -> SW Component 4 - | D99: =IF('Development Details'!B$44="","",'Development Details'!B$44) ->  | E99: =IF('Development Details'!C$44="","",'Development Details'!C$44) ->  | F99: =IFERROR(INDEX(AICR_RATES,MATCH(CHARGE_AREA&COMP_4&$D99,AICR_REG&AICR_USE&AICR_CH_CAT,0),MATCH($C87,AICR_COL,0)),"") ->  | I99: =IF('Development Details'!$C$11<4,"Y",IF(H99="","Y","")) -> Y | N99: SW Component 4 - UOM 1
A100: DD | B100: =C87&"DD" -> StormwaterDD | C100: =C99 -> SW Component 4 - | D100: =IF('Development Details'!B$45="","",'Development Details'!B$45) ->  | E100: =IF('Development Details'!C$45="","",'Development Details'!C$45) ->  | F100: =IFERROR(INDEX(AICR_RATES,MATCH(CHARGE_AREA&COMP_4&$D100,AICR_REG&AICR_USE&AICR_CH_CAT,0),MATCH($C87,AICR_COL,0)),"") ->  | I100: =IF('Development Details'!$C$11<4,"Y",IF(H100="","Y","")) -> Y | N100: SW Component 4 - UOM 2
A101: DD | B101: =C87&"DD" -> StormwaterDD | C101: =C99 -> SW Component 4 - | D101: =IF('Development Details'!B$46="","",'Development Details'!B$46) ->  | E101: =IF('Development Details'!C$46="","",'Development Details'!C$46) ->  | F101: =IFERROR(INDEX(AICR_RATES,MATCH(CHARGE_AREA&COMP_4&$D101,AICR_REG&AICR_USE&AICR_CH_CAT,0),MATCH($C87,AICR_COL,0)),"") ->  | I101: =IF('Development Details'!$C$11<4,"Y",IF(H101="","Y","")) -> Y | N101: SW Component 4 - UOM 3
A102: DD | B102: =C87&"DD" -> StormwaterDD | C102: ="SW Component 5 - "&'Development Details'!$C$48 -> SW Component 5 - | D102: =IF('Development Details'!B$52="","",'Development Details'!B$52) ->  | E102: =IF('Development Details'!C$52="","",'Development Details'!C$52) ->  | F102: =IFERROR(INDEX(AICR_RATES,MATCH(CHARGE_AREA&COMP_5&$D102,AICR_REG&AICR_USE&AICR_CH_CAT,0),MATCH($C87,AICR_COL,0)),"") ->  | I102: =IF('Development Details'!$C$11<5,"Y",IF(H102="","Y","")) -> Y | N102: SW Component 5 - UOM 1
A103: DD | B103: =C87&"DD" -> StormwaterDD | C103: =C102 -> SW Component 5 - | D103: =IF('Development Details'!B$53="","",'Development Details'!B$53) ->  | E103: =IF('Development Details'!C$53="","",'Development Details'!C$53) ->  | F103: =IFERROR(INDEX(AICR_RATES,MATCH(CHARGE_AREA&COMP_5&$D103,AICR_REG&AICR_USE&AICR_CH_CAT,0),MATCH($C87,AICR_COL,0)),"") ->  | I103: =IF('Development Details'!$C$11<5,"Y",IF(H103="","Y","")) -> Y | N103: SW Component 5 - UOM 2
A104: DD | B104: =C87&"DD" -> StormwaterDD | C104: =C102 -> SW Component 5 - | D104: =IF('Development Details'!B$54="","",'Development Details'!B$54) ->  | E104: =IF('Development Details'!C$54="","",'Development Details'!C$54) ->  | F104: =IFERROR(INDEX(AICR_RATES,MATCH(CHARGE_AREA&COMP_5&$D104,AICR_REG&AICR_USE&AICR_CH_CAT,0),MATCH($C87,AICR_COL,0)),"") ->  | I104: =IF('Development Details'!$C$11<5,"Y",IF(H104="","Y","")) -> Y | N104: SW Component 5 - UOM 3
C105: Existing Demand
A106: ED | B106: =C87&"ED" -> StormwaterED | C106: ="Existing SW Demand 1 - "&'Development Details'!$C$57 -> Existing SW Demand 1 - | D106: =IF('Development Details'!B$61="","",'Development Details'!B$61) ->  | E106: =IF('Development Details'!C$61="","",'Development Details'!C$61) ->  | F106: =IFERROR(INDEX(AICR_RATES,MATCH(CHARGE_AREA&EXU_1&$D106,AICR_REG&AICR_USE&AICR_CH_CAT,0),MATCH($C87,AICR_COL,0))*-1,"") ->  | H106: =IFERROR(F106*E106,"") ->  | O106: SW Component 1 - UOM 1
A107: ED | B107: =C87&"ED" -> StormwaterED | C107: =C106 -> Existing SW Demand 1 - | D107: =IF('Development Details'!B$62="","",'Development Details'!B$62) ->  | E107: =IF('Development Details'!C$62="","",'Development Details'!C$62) ->  | F107: =IFERROR(INDEX(AICR_RATES,MATCH(CHARGE_AREA&EXU_1&$D107,AICR_REG&AICR_USE&AICR_CH_CAT,0),MATCH($C87,AICR_COL,0))*-1,"") ->  | I107: =IF(H107="","Y","") -> Y | O107: SW Component 1 - UOM 2
A108: ED | B108: =C87&"ED" -> StormwaterED | C108: =C106 -> Existing SW Demand 1 - | D108: =IF('Development Details'!B$63="","",'Development Details'!B$63) ->  | E108: =IF('Development Details'!C$63="","",'Development Details'!C$63) ->  | F108: =IFERROR(INDEX(AICR_RATES,MATCH(CHARGE_AREA&EXU_1&$D108,AICR_REG&AICR_USE&AICR_CH_CAT,0),MATCH($C87,AICR_COL,0))*-1,"") ->  | I108: =IF(H108="","Y","") -> Y | O108: SW Component 1 - UOM 3
A109: ED | B109: =C87&"ED" -> StormwaterED | C109: ="Existing SW Demand 2 - "&'Development Details'!$C$65 -> Existing SW Demand 2 - | D109: =IF('Development Details'!B$69="","",'Development Details'!B$69) ->  | E109: =IF('Development Details'!C$69="","",'Development Details'!C$69) ->  | F109: =IFERROR(INDEX(AICR_RATES,MATCH(CHARGE_AREA&EXU_2&$D109,AICR_REG&AICR_USE&AICR_CH_CAT,0),MATCH($C87,AICR_COL,0))*-1,"") ->  | I109: =IF('Development Details'!$C$13=1,"Y",IF(H109="","Y","")) -> Y | O109: SW Component 2 - UOM 1
A110: ED | B110: =C87&"ED" -> StormwaterED | C110: =C109 -> Existing SW Demand 2 - | D110: =IF('Development Details'!B$70="","",'Development Details'!B$70) ->  | E110: =IF('Development Details'!C$70="","",'Development Details'!C$70) ->  | F110: =IFERROR(INDEX(AICR_RATES,MATCH(CHARGE_AREA&EXU_2&$D110,AICR_REG&AICR_USE&AICR_CH_CAT,0),MATCH($C87,AICR_COL,0))*-1,"") ->  | I110: =IF('Development Details'!$C$13=1,"Y",IF(H110="","Y","")) -> Y | O110: SW Component 2 - UOM 2
A111: ED | B111: =C87&"ED" -> StormwaterED | C111: =C109 -> Existing SW Demand 2 - | D111: =IF('Development Details'!B$71="","",'Development Details'!B$71) ->  | E111: =IF('Development Details'!C$71="","",'Development Details'!C$71) ->  | F111: =IFERROR(INDEX(AICR_RATES,MATCH(CHARGE_AREA&EXU_2&$D111,AICR_REG&AICR_USE&AICR_CH_CAT,0),MATCH($C87,AICR_COL,0))*-1,"") ->  | I111: =IF('Development Details'!$C$13=1,"Y",IF(H111="","Y","")) -> Y | O111: SW Component 2 - UOM 3
A112: ED | B112: =C87&"ED" -> StormwaterED | C112: ="Existing SW Demand 3 - "&'Development Details'!$C$73 -> Existing SW Demand 3 - | D112: =IF('Development Details'!B$77="","",'Development Details'!B$77) ->  | E112: =IF('Development Details'!C$77="","",'Development Details'!C$77) ->  | F112: =IFERROR(INDEX(AICR_RATES,MATCH(CHARGE_AREA&EXU_3&$D112,AICR_REG&AICR_USE&AICR_CH_CAT,0),MATCH($C87,AICR_COL,0))*-1,"") ->  | I112: =IF('Development Details'!$C$13<3,"Y",IF(H112="","Y","")) -> Y | O112: SW Component 3 - UOM 1
A113: ED | B113: =C87&"ED" -> StormwaterED | C113: =C112 -> Existing SW Demand 3 - | D113: =IF('Development Details'!B$78="","",'Development Details'!B$78) ->  | E113: =IF('Development Details'!C$78="","",'Development Details'!C$78) ->  | F113: =IFERROR(INDEX(AICR_RATES,MATCH(CHARGE_AREA&EXU_3&$D113,AICR_REG&AICR_USE&AICR_CH_CAT,0),MATCH($C87,AICR_COL,0))*-1,"") ->  | I113: =IF('Development Details'!$C$13<3,"Y",IF(H113="","Y","")) -> Y | O113: SW Component 3 - UOM 2
A114: ED | B114: =C87&"ED" -> StormwaterED | C114: =C112 -> Existing SW Demand 3 - | D114: =IF('Development Details'!B$79="","",'Development Details'!B$79) ->  | E114: =IF('Development Details'!C$79="","",'Development Details'!C$79) ->  | F114: =IFERROR(INDEX(AICR_RATES,MATCH(CHARGE_AREA&EXU_3&$D114,AICR_REG&AICR_USE&AICR_CH_CAT,0),MATCH($C87,AICR_COL,0))*-1,"") ->  | I114: =IF('Development Details'!$C$13<3,"Y",IF(H114="","Y","")) -> Y | O114: SW Component 3 - UOM 3
A115: ED | B115: =C87&"ED" -> StormwaterED | C115: ="Existing SW Demand 4 - "&'Development Details'!$C$81 -> Existing SW Demand 4 - | D115: =IF('Development Details'!B$85="","",'Development Details'!B$85) ->  | E115: =IF('Development Details'!C$85="","",'Development Details'!C$85) ->  | F115: =IFERROR(INDEX(AICR_RATES,MATCH(CHARGE_AREA&EXU_4&$D115,AICR_REG&AICR_USE&AICR_CH_CAT,0),MATCH($C87,AICR_COL,0))*-1,"") ->  | I115: =IF('Development Details'!$C$13<4,"Y",IF(H115="","Y","")) -> Y | O115: SW Component 4 - UOM 1
A116: ED | B116: =C87&"ED" -> StormwaterED | C116: =C115 -> Existing SW Demand 4 - | D116: =IF('Development Details'!B$86="","",'Development Details'!B$86) ->  | E116: =IF('Development Details'!C$86="","",'Development Details'!C$86) ->  | F116: =IFERROR(INDEX(AICR_RATES,MATCH(CHARGE_AREA&EXU_4&$D116,AICR_REG&AICR_USE&AICR_CH_CAT,0),MATCH($C87,AICR_COL,0))*-1,"") ->  | I116: =IF('Development Details'!$C$13<4,"Y",IF(H116="","Y","")) -> Y | O116: SW Component 4 - UOM 2
A117: ED | B117: =C87&"ED" -> StormwaterED | C117: =C115 -> Existing SW Demand 4 - | D117: =IF('Development Details'!B$87="","",'Development Details'!B$87) ->  | E117: =IF('Development Details'!C$87="","",'Development Details'!C$87) ->  | F117: =IFERROR(INDEX(AICR_RATES,MATCH(CHARGE_AREA&EXU_4&$D117,AICR_REG&AICR_USE&AICR_CH_CAT,0),MATCH($C87,AICR_COL,0))*-1,"") ->  | I117: =IF('Development Details'!$C$13<4,"Y",IF(H117="","Y","")) -> Y | O117: SW Component 4 - UOM 3
A118: ED | B118: =C87&"ED" -> StormwaterED | C118: ="Existing SW Demand 5 - "&'Development Details'!$C$89 -> Existing SW Demand 5 - | D118: =IF('Development Details'!B$93="","",'Development Details'!B$93) ->  | E118: =IF('Development Details'!C$93="","",'Development Details'!C$93) ->  | F118: =IFERROR(INDEX(AICR_RATES,MATCH(CHARGE_AREA&EXU_5&$D118,AICR_REG&AICR_USE&AICR_CH_CAT,0),MATCH($C87,AICR_COL,0))*-1,"") ->  | I118: =IF('Development Details'!$C$13<5,"Y",IF(H118="","Y","")) -> Y | O118: SW Component 5 - UOM 1
A119: ED | B119: =C87&"ED" -> StormwaterED | C119: =C118 -> Existing SW Demand 5 - | D119: =IF('Development Details'!B$94="","",'Development Details'!B$94) ->  | E119: =IF('Development Details'!C$94="","",'Development Details'!C$94) ->  | F119: =IFERROR(INDEX(AICR_RATES,MATCH(CHARGE_AREA&EXU_5&$D119,AICR_REG&AICR_USE&AICR_CH_CAT,0),MATCH($C87,AICR_COL,0))*-1,"") ->  | I119: =IF('Development Details'!$C$13<5,"Y",IF(H119="","Y","")) -> Y | O119: SW Component 5 - UOM 2
A120: ED | B120: =C87&"ED" -> StormwaterED | C120: =C118 -> Existing SW Demand 5 - | D120: =IF('Development Details'!B$95="","",'Development Details'!B$95) ->  | E120: =IF('Development Details'!C$95="","",'Development Details'!C$95) ->  | F120: =IFERROR(INDEX(AICR_RATES,MATCH(CHARGE_AREA&EXU_5&$D120,AICR_REG&AICR_USE&AICR_CH_CAT,0),MATCH($C87,AICR_COL,0))*-1,"") ->  | I120: =IF('Development Details'!$C$13<5,"Y",IF(H120="","Y","")) -> Y | O120: SW Component 5 - UOM 3
A121: EL | B121: =C87&"EL" -> StormwaterEL | C121: Existing Lot Credit | D121: Lots | E121: =SUM('Development Details'!$C$5:$C$9) -> 1 | F121: =IFERROR(INDEX(AICR_RATES,MATCH(CHARGE_AREA&"Reconfiguring a Lot - Residential"&$D121,AICR_REG&AICR_USE&AICR_CH_CAT,0),MATCH($C87,AICR_COL,0))*-1,"") -> -293 | H121: -293
C123: Transport
C124: Adopted Charges
C125: Development Description | D125: Units of Measure | E125: Number of Units | F125: Charge Rate | G125: Reference | H125: Amount
A126: DD | B126: =C123&"DD" -> TransportDD | C126: ="Component 1 - "&'Development Details'!$C$16 -> Component 1 - Dwelling house | D126: =IF('Development Details'!B$20="","",'Development Details'!B$20) -> 3 or more bedrooms | E126: =IF('Development Details'!C$20="","",'Development Details'!C$20) -> 4 | F126: =IFERROR(INDEX(AICR_RATES,MATCH(CHARGE_AREA&COMP_1&$D126,AICR_REG&AICR_USE&AICR_CH_CAT,0),MATCH($C123,AICR_COL,0)),"") -> 7335 | H126: =IFERROR(F126*E126,"") -> 29340 | N126: Component 1 - UOM 1
A127: DD | B127: =C123&"DD" -> TransportDD | C127: =C126 -> Component 1 - Dwelling house | D127: =IF('Development Details'!B$21="","",'Development Details'!B$21) ->  | E127: =IF('Development Details'!C$21="","",'Development Details'!C$21) ->  | F127: =IFERROR(INDEX(AICR_RATES,MATCH(CHARGE_AREA&COMP_1&$D127,AICR_REG&AICR_USE&AICR_CH_CAT,0),MATCH($C123,AICR_COL,0)),"") ->  | I127: =IF(H127="","Y","") -> Y | N127: Component 1 - UOM 2
A128: DD | B128: =C123&"DD" -> TransportDD | C128: =C126 -> Component 1 - Dwelling house | D128: =IF('Development Details'!B$22="","",'Development Details'!B$22) ->  | E128: =IF('Development Details'!C$22="","",'Development Details'!C$22) ->  | F128: =IFERROR(INDEX(AICR_RATES,MATCH(CHARGE_AREA&COMP_1&$D128,AICR_REG&AICR_USE&AICR_CH_CAT,0),MATCH($C123,AICR_COL,0)),"") ->  | I128: =IF(H128="","Y","") -> Y | N128: Component 1 - UOM 3
A129: DD | B129: =C123&"DD" -> TransportDD | C129: ="Component 2 - "&'Development Details'!$C$24 -> Component 2 - | D129: =IF('Development Details'!B$28="","",'Development Details'!B$28) ->  | E129: =IF('Development Details'!C$28="","",'Development Details'!C$28) ->  | F129: =IFERROR(INDEX(AICR_RATES,MATCH(CHARGE_AREA&COMP_2&$D129,AICR_REG&AICR_USE&AICR_CH_CAT,0),MATCH($C123,AICR_COL,0)),"") ->  | I129: =IF('Development Details'!$C$11=1,"Y",IF(H129="","Y","")) -> Y | N129: Component 2 - UOM 1
A130: DD | B130: =C123&"DD" -> TransportDD | C130: =C129 -> Component 2 - | D130: =IF('Development Details'!B$29="","",'Development Details'!B$29) ->  | E130: =IF('Development Details'!C$29="","",'Development Details'!C$29) ->  | F130: =IFERROR(INDEX(AICR_RATES,MATCH(CHARGE_AREA&COMP_2&$D130,AICR_REG&AICR_USE&AICR_CH_CAT,0),MATCH($C123,AICR_COL,0)),"") ->  | I130: =IF('Development Details'!$C$11=1,"Y",IF(H130="","Y","")) -> Y | N130: Component 2 - UOM 2
A131: DD | B131: =C123&"DD" -> TransportDD | C131: =C129 -> Component 2 - | D131: =IF('Development Details'!B$30="","",'Development Details'!B$30) ->  | E131: =IF('Development Details'!C$30="","",'Development Details'!C$30) ->  | F131: =IFERROR(INDEX(AICR_RATES,MATCH(CHARGE_AREA&COMP_2&$D131,AICR_REG&AICR_USE&AICR_CH_CAT,0),MATCH($C123,AICR_COL,0)),"") ->  | I131: =IF('Development Details'!$C$11=1,"Y",IF(H131="","Y","")) -> Y | N131: Component 2 - UOM 3
A132: DD | B132: =C123&"DD" -> TransportDD | C132: ="Component 3 - "&'Development Details'!$C$32 -> Component 3 - | D132: =IF('Development Details'!B$36="","",'Development Details'!B$36) ->  | E132: =IF('Development Details'!C$36="","",'Development Details'!C$36) ->  | F132: =IFERROR(INDEX(AICR_RATES,MATCH(CHARGE_AREA&COMP_3&$D132,AICR_REG&AICR_USE&AICR_CH_CAT,0),MATCH($C123,AICR_COL,0)),"") ->  | I132: =IF('Development Details'!$C$11<3,"Y",IF(H132="","Y","")) -> Y | N132: Component 3 - UOM 1
A133: DD | B133: =C123&"DD" -> TransportDD | C133: =C132 -> Component 3 - | D133: =IF('Development Details'!B$37="","",'Development Details'!B$37) ->  | E133: =IF('Development Details'!C$37="","",'Development Details'!C$37) ->  | F133: =IFERROR(INDEX(AICR_RATES,MATCH(CHARGE_AREA&COMP_3&$D133,AICR_REG&AICR_USE&AICR_CH_CAT,0),MATCH($C123,AICR_COL,0)),"") ->  | I133: =IF('Development Details'!$C$11<3,"Y",IF(H133="","Y","")) -> Y | N133: Component 3 - UOM 2
A134: DD | B134: =C123&"DD" -> TransportDD | C134: =C132 -> Component 3 - | D134: =IF('Development Details'!B$38="","",'Development Details'!B$38) ->  | E134: =IF('Development Details'!C$38="","",'Development Details'!C$38) ->  | F134: =IFERROR(INDEX(AICR_RATES,MATCH(CHARGE_AREA&COMP_3&$D134,AICR_REG&AICR_USE&AICR_CH_CAT,0),MATCH($C123,AICR_COL,0)),"") ->  | I134: =IF('Development Details'!$C$11<3,"Y",IF(H134="","Y","")) -> Y | N134: Component 3 - UOM 3
A135: DD | B135: =C123&"DD" -> TransportDD | C135: ="Component 4 - "&'Development Details'!$C$40 -> Component 4 - | D135: =IF('Development Details'!B$44="","",'Development Details'!B$44) ->  | E135: =IF('Development Details'!C$44="","",'Development Details'!C$44) ->  | F135: =IFERROR(INDEX(AICR_RATES,MATCH(CHARGE_AREA&COMP_4&$D135,AICR_REG&AICR_USE&AICR_CH_CAT,0),MATCH($C123,AICR_COL,0)),"") ->  | I135: =IF('Development Details'!$C$11<4,"Y",IF(H135="","Y","")) -> Y | N135: Component 4 - UOM 1
A136: DD | B136: =C123&"DD" -> TransportDD | C136: =C135 -> Component 4 - | D136: =IF('Development Details'!B$45="","",'Development Details'!B$45) ->  | E136: =IF('Development Details'!C$45="","",'Development Details'!C$45) ->  | F136: =IFERROR(INDEX(AICR_RATES,MATCH(CHARGE_AREA&COMP_4&$D136,AICR_REG&AICR_USE&AICR_CH_CAT,0),MATCH($C123,AICR_COL,0)),"") ->  | I136: =IF('Development Details'!$C$11<4,"Y",IF(H136="","Y","")) -> Y | N136: Component 4 - UOM 2
A137: DD | B137: =C123&"DD" -> TransportDD | C137: =C135 -> Component 4 - | D137: =IF('Development Details'!B$46="","",'Development Details'!B$46) ->  | E137: =IF('Development Details'!C$46="","",'Development Details'!C$46) ->  | F137: =IFERROR(INDEX(AICR_RATES,MATCH(CHARGE_AREA&COMP_4&$D137,AICR_REG&AICR_USE&AICR_CH_CAT,0),MATCH($C123,AICR_COL,0)),"") ->  | I137: =IF('Development Details'!$C$11<4,"Y",IF(H137="","Y","")) -> Y | N137: Component 4 - UOM 3
A138: DD | B138: =C123&"DD" -> TransportDD | C138: ="Component 5 - "&'Development Details'!$C$48 -> Component 5 - | D138: =IF('Development Details'!B$52="","",'Development Details'!B$52) ->  | E138: =IF('Development Details'!C$52="","",'Development Details'!C$52) ->  | F138: =IFERROR(INDEX(AICR_RATES,MATCH(CHARGE_AREA&COMP_5&$D138,AICR_REG&AICR_USE&AICR_CH_CAT,0),MATCH($C123,AICR_COL,0)),"") ->  | I138: =IF('Development Details'!$C$11<5,"Y",IF(H138="","Y","")) -> Y | N138: Component 5 - UOM 1
A139: DD | B139: =C123&"DD" -> TransportDD | C139: =C138 -> Component 5 - | D139: =IF('Development Details'!B$53="","",'Development Details'!B$53) ->  | E139: =IF('Development Details'!C$53="","",'Development Details'!C$53) ->  | F139: =IFERROR(INDEX(AICR_RATES,MATCH(CHARGE_AREA&COMP_5&$D139,AICR_REG&AICR_USE&AICR_CH_CAT,0),MATCH($C123,AICR_COL,0)),"") ->  | I139: =IF('Development Details'!$C$11<5,"Y",IF(H139="","Y","")) -> Y | N139: Component 5 - UOM 2
A140: DD | B140: =C123&"DD" -> TransportDD | C140: =C138 -> Component 5 - | D140: =IF('Development Details'!B$54="","",'Development Details'!B$54) ->  | E140: =IF('Development Details'!C$54="","",'Development Details'!C$54) ->  | F140: =IFERROR(INDEX(AICR_RATES,MATCH(CHARGE_AREA&COMP_5&$D140,AICR_REG&AICR_USE&AICR_CH_CAT,0),MATCH($C123,AICR_COL,0)),"") ->  | I140: =IF('Development Details'!$C$11<5,"Y",IF(H140="","Y","")) -> Y | N140: Component 5 - UOM 3
C141: Existing Demand
A142: ED | B142: =C123&"ED" -> TransportED | C142: ="Existing Demand 1 - "&'Development Details'!$C$57 -> Existing Demand 1 - | D142: =IF('Development Details'!B$61="","",'Development Details'!B$61) ->  | E142: =IF('Development Details'!C$61="","",'Development Details'!C$61) ->  | F142: =IFERROR(INDEX(AICR_RATES,MATCH(CHARGE_AREA&EXU_1&$D142,AICR_REG&AICR_USE&AICR_CH_CAT,0),MATCH($C123,AICR_COL,0))*-1,"") ->  | H142: =IFERROR(F142*E142,"") ->  | O142: Component 1 - UOM 1
A143: ED | B143: =C123&"ED" -> TransportED | C143: =C142 -> Existing Demand 1 - | D143: =IF('Development Details'!B$62="","",'Development Details'!B$62) ->  | E143: =IF('Development Details'!C$62="","",'Development Details'!C$62) ->  | F143: =IFERROR(INDEX(AICR_RATES,MATCH(CHARGE_AREA&EXU_1&$D143,AICR_REG&AICR_USE&AICR_CH_CAT,0),MATCH($C123,AICR_COL,0))*-1,"") ->  | I143: =IF(H143="","Y","") -> Y | O143: Component 1 - UOM 2
A144: ED | B144: =C123&"ED" -> TransportED | C144: =C142 -> Existing Demand 1 - | D144: =IF('Development Details'!B$63="","",'Development Details'!B$63) ->  | E144: =IF('Development Details'!C$63="","",'Development Details'!C$63) ->  | F144: =IFERROR(INDEX(AICR_RATES,MATCH(CHARGE_AREA&EXU_1&$D144,AICR_REG&AICR_USE&AICR_CH_CAT,0),MATCH($C123,AICR_COL,0))*-1,"") ->  | I144: =IF(H144="","Y","") -> Y | O144: Component 1 - UOM 3
A145: ED | B145: =C123&"ED" -> TransportED | C145: ="Existing Demand 2 - "&'Development Details'!$C$65 -> Existing Demand 2 - | D145: =IF('Development Details'!B$69="","",'Development Details'!B$69) ->  | E145: =IF('Development Details'!C$69="","",'Development Details'!C$69) ->  | F145: =IFERROR(INDEX(AICR_RATES,MATCH(CHARGE_AREA&EXU_2&$D145,AICR_REG&AICR_USE&AICR_CH_CAT,0),MATCH($C123,AICR_COL,0))*-1,"") ->  | I145: =IF('Development Details'!$C$13=1,"Y",IF(H145="","Y","")) -> Y | O145: Component 2 - UOM 1
A146: ED | B146: =C123&"ED" -> TransportED | C146: =C145 -> Existing Demand 2 - | D146: =IF('Development Details'!B$70="","",'Development Details'!B$70) ->  | E146: =IF('Development Details'!C$70="","",'Development Details'!C$70) ->  | F146: =IFERROR(INDEX(AICR_RATES,MATCH(CHARGE_AREA&EXU_2&$D146,AICR_REG&AICR_USE&AICR_CH_CAT,0),MATCH($C123,AICR_COL,0))*-1,"") ->  | I146: =IF('Development Details'!$C$13=1,"Y",IF(H146="","Y","")) -> Y | O146: Component 2 - UOM 2
A147: ED | B147: =C123&"ED" -> TransportED | C147: =C145 -> Existing Demand 2 - | D147: =IF('Development Details'!B$71="","",'Development Details'!B$71) ->  | E147: =IF('Development Details'!C$71="","",'Development Details'!C$71) ->  | F147: =IFERROR(INDEX(AICR_RATES,MATCH(CHARGE_AREA&EXU_2&$D147,AICR_REG&AICR_USE&AICR_CH_CAT,0),MATCH($C123,AICR_COL,0))*-1,"") ->  | I147: =IF('Development Details'!$C$13=1,"Y",IF(H147="","Y","")) -> Y | O147: Component 2 - UOM 3
A148: ED | B148: =C123&"ED" -> TransportED | C148: ="Existing Demand 3 - "&'Development Details'!$C$73 -> Existing Demand 3 - | D148: =IF('Development Details'!B$77="","",'Development Details'!B$77) ->  | E148: =IF('Development Details'!C$77="","",'Development Details'!C$77) ->  | F148: =IFERROR(INDEX(AICR_RATES,MATCH(CHARGE_AREA&EXU_3&$D148,AICR_REG&AICR_USE&AICR_CH_CAT,0),MATCH($C123,AICR_COL,0))*-1,"") ->  | I148: =IF('Development Details'!$C$13<3,"Y",IF(H148="","Y","")) -> Y | O148: Component 3 - UOM 1
A149: ED | B149: =C123&"ED" -> TransportED | C149: =C148 -> Existing Demand 3 - | D149: =IF('Development Details'!B$78="","",'Development Details'!B$78) ->  | E149: =IF('Development Details'!C$78="","",'Development Details'!C$78) ->  | F149: =IFERROR(INDEX(AICR_RATES,MATCH(CHARGE_AREA&EXU_3&$D149,AICR_REG&AICR_USE&AICR_CH_CAT,0),MATCH($C123,AICR_COL,0))*-1,"") ->  | I149: =IF('Development Details'!$C$13<3,"Y",IF(H149="","Y","")) -> Y | O149: Component 3 - UOM 2
A150: ED | B150: =C123&"ED" -> TransportED | C150: =C148 -> Existing Demand 3 - | D150: =IF('Development Details'!B$79="","",'Development Details'!B$79) ->  | E150: =IF('Development Details'!C$79="","",'Development Details'!C$79) ->  | F150: =IFERROR(INDEX(AICR_RATES,MATCH(CHARGE_AREA&EXU_3&$D150,AICR_REG&AICR_USE&AICR_CH_CAT,0),MATCH($C123,AICR_COL,0))*-1,"") ->  | I150: =IF('Development Details'!$C$13<3,"Y",IF(H150="","Y","")) -> Y | O150: Component 3 - UOM 3
A151: ED | B151: =C123&"ED" -> TransportED | C151: ="Existing Demand 4 - "&'Development Details'!$C$81 -> Existing Demand 4 - | D151: =IF('Development Details'!B$85="","",'Development Details'!B$85) ->  | E151: =IF('Development Details'!C$85="","",'Development Details'!C$85) ->  | F151: =IFERROR(INDEX(AICR_RATES,MATCH(CHARGE_AREA&EXU_4&$D151,AICR_REG&AICR_USE&AICR_CH_CAT,0),MATCH($C123,AICR_COL,0))*-1,"") ->  | I151: =IF('Development Details'!$C$13<4,"Y",IF(H151="","Y","")) -> Y | O151: Component 4 - UOM 1
A152: ED | B152: =C123&"ED" -> TransportED | C152: =C151 -> Existing Demand 4 - | D152: =IF('Development Details'!B$86="","",'Development Details'!B$86) ->  | E152: =IF('Development Details'!C$86="","",'Development Details'!C$86) ->  | F152: =IFERROR(INDEX(AICR_RATES,MATCH(CHARGE_AREA&EXU_4&$D152,AICR_REG&AICR_USE&AICR_CH_CAT,0),MATCH($C123,AICR_COL,0))*-1,"") ->  | I152: =IF('Development Details'!$C$13<4,"Y",IF(H152="","Y","")) -> Y | O152: Component 4 - UOM 2
A153: ED | B153: =C123&"ED" -> TransportED | C153: =C151 -> Existing Demand 4 - | D153: =IF('Development Details'!B$87="","",'Development Details'!B$87) ->  | E153: =IF('Development Details'!C$87="","",'Development Details'!C$87) ->  | F153: =IFERROR(INDEX(AICR_RATES,MATCH(CHARGE_AREA&EXU_4&$D153,AICR_REG&AICR_USE&AICR_CH_CAT,0),MATCH($C123,AICR_COL,0))*-1,"") ->  | I153: =IF('Development Details'!$C$13<4,"Y",IF(H153="","Y","")) -> Y | O153: Component 4 - UOM 3
A154: ED | B154: =C123&"ED" -> TransportED | C154: ="Existing Demand 5 - "&'Development Details'!$C$89 -> Existing Demand 5 - | D154: =IF('Development Details'!B$93="","",'Development Details'!B$93) ->  | E154: =IF('Development Details'!C$93="","",'Development Details'!C$93) ->  | F154: =IFERROR(INDEX(AICR_RATES,MATCH(CHARGE_AREA&EXU_5&$D154,AICR_REG&AICR_USE&AICR_CH_CAT,0),MATCH($C123,AICR_COL,0))*-1,"") ->  | I154: =IF('Development Details'!$C$13<5,"Y",IF(H154="","Y","")) -> Y | O154: Component 5 - UOM 1
A155: ED | B155: =C123&"ED" -> TransportED | C155: =C154 -> Existing Demand 5 - | D155: =IF('Development Details'!B$94="","",'Development Details'!B$94) ->  | E155: =IF('Development Details'!C$94="","",'Development Details'!C$94) ->  | F155: =IFERROR(INDEX(AICR_RATES,MATCH(CHARGE_AREA&EXU_5&$D155,AICR_REG&AICR_USE&AICR_CH_CAT,0),MATCH($C123,AICR_COL,0))*-1,"") ->  | I155: =IF('Development Details'!$C$13<5,"Y",IF(H155="","Y","")) -> Y | O155: Component 5 - UOM 2
A156: ED | B156: =C123&"ED" -> TransportED | C156: =C154 -> Existing Demand 5 - | D156: =IF('Development Details'!B$95="","",'Development Details'!B$95) ->  | E156: =IF('Development Details'!C$95="","",'Development Details'!C$95) ->  | F156: =IFERROR(INDEX(AICR_RATES,MATCH(CHARGE_AREA&EXU_5&$D156,AICR_REG&AICR_USE&AICR_CH_CAT,0),MATCH($C123,AICR_COL,0))*-1,"") ->  | I156: =IF('Development Details'!$C$13<5,"Y",IF(H156="","Y","")) -> Y | O156: Component 5 - UOM 3
A157: EL | B157: =C123&"EL" -> TransportEL | C157: Existing Lot Credit | D157: Lots | E157: =SUM('Development Details'!$C$5:$C$9) -> 1 | F157: =IFERROR(INDEX(AICR_RATES,MATCH(CHARGE_AREA&"Reconfiguring a Lot - Residential"&$D157,AICR_REG&AICR_USE&AICR_CH_CAT,0),MATCH($C123,AICR_COL,0))*-1,"") -> -7335 | H157: -7335
C159: Parks
C160: Adopted Charges
C161: Development Description | D161: Units of Measure | E161: Number of Units | F161: Charge Rate | G161: Reference | H161: Amount
A162: DD | B162: =C159&"DD" -> ParksDD | C162: ="Component 1 - "&'Development Details'!$C$16 -> Component 1 - Dwelling house | D162: =IF('Development Details'!B$20="","",'Development Details'!B$20) -> 3 or more bedrooms | E162: =IF('Development Details'!C$20="","",'Development Details'!C$20) -> 4 | F162: =IFERROR(INDEX(AICR_RATES,MATCH(CHARGE_AREA&COMP_1&$D162,AICR_REG&AICR_USE&AICR_CH_CAT,0),MATCH($C159,AICR_COL,0)),"") -> 293 | H162: =IFERROR(F162*E162,"") -> 1172 | N162: Component 1 - UOM 1
A163: DD | B163: =C159&"DD" -> ParksDD | C163: =C162 -> Component 1 - Dwelling house | D163: =IF('Development Details'!B$21="","",'Development Details'!B$21) ->  | E163: =IF('Development Details'!C$21="","",'Development Details'!C$21) ->  | F163: =IFERROR(INDEX(AICR_RATES,MATCH(CHARGE_AREA&COMP_1&$D163,AICR_REG&AICR_USE&AICR_CH_CAT,0),MATCH($C159,AICR_COL,0)),"") ->  | I163: =IF(H163="","Y","") -> Y | N163: Component 1 - UOM 2
A164: DD | B164: =C159&"DD" -> ParksDD | C164: =C162 -> Component 1 - Dwelling house | D164: =IF('Development Details'!B$22="","",'Development Details'!B$22) ->  | E164: =IF('Development Details'!C$22="","",'Development Details'!C$22) ->  | F164: =IFERROR(INDEX(AICR_RATES,MATCH(CHARGE_AREA&COMP_1&$D164,AICR_REG&AICR_USE&AICR_CH_CAT,0),MATCH($C159,AICR_COL,0)),"") ->  | I164: =IF(H164="","Y","") -> Y | N164: Component 1 - UOM 3
A165: DD | B165: =C159&"DD" -> ParksDD | C165: ="Component 2 - "&'Development Details'!$C$24 -> Component 2 - | D165: =IF('Development Details'!B$28="","",'Development Details'!B$28) ->  | E165: =IF('Development Details'!C$28="","",'Development Details'!C$28) ->  | F165: =IFERROR(INDEX(AICR_RATES,MATCH(CHARGE_AREA&COMP_2&$D165,AICR_REG&AICR_USE&AICR_CH_CAT,0),MATCH($C159,AICR_COL,0)),"") ->  | I165: =IF('Development Details'!$C$11=1,"Y",IF(H165="","Y","")) -> Y | N165: Component 2 - UOM 1
A166: DD | B166: =C159&"DD" -> ParksDD | C166: =C165 -> Component 2 - | D166: =IF('Development Details'!B$29="","",'Development Details'!B$29) ->  | E166: =IF('Development Details'!C$29="","",'Development Details'!C$29) ->  | F166: =IFERROR(INDEX(AICR_RATES,MATCH(CHARGE_AREA&COMP_2&$D166,AICR_REG&AICR_USE&AICR_CH_CAT,0),MATCH($C159,AICR_COL,0)),"") ->  | I166: =IF('Development Details'!$C$11=1,"Y",IF(H166="","Y","")) -> Y | N166: Component 2 - UOM 2
A167: DD | B167: =C159&"DD" -> ParksDD | C167: =C165 -> Component 2 - | D167: =IF('Development Details'!B$30="","",'Development Details'!B$30) ->  | E167: =IF('Development Details'!C$30="","",'Development Details'!C$30) ->  | F167: =IFERROR(INDEX(AICR_RATES,MATCH(CHARGE_AREA&COMP_2&$D167,AICR_REG&AICR_USE&AICR_CH_CAT,0),MATCH($C159,AICR_COL,0)),"") ->  | I167: =IF('Development Details'!$C$11=1,"Y",IF(H167="","Y","")) -> Y | N167: Component 2 - UOM 3
A168: DD | B168: =C159&"DD" -> ParksDD | C168: ="Component 3 - "&'Development Details'!$C$32 -> Component 3 - | D168: =IF('Development Details'!B$36="","",'Development Details'!B$36) ->  | E168: =IF('Development Details'!C$36="","",'Development Details'!C$36) ->  | F168: =IFERROR(INDEX(AICR_RATES,MATCH(CHARGE_AREA&COMP_3&$D168,AICR_REG&AICR_USE&AICR_CH_CAT,0),MATCH($C159,AICR_COL,0)),"") ->  | I168: =IF('Development Details'!$C$11<3,"Y",IF(H168="","Y","")) -> Y | N168: Component 3 - UOM 1
A169: DD | B169: =C159&"DD" -> ParksDD | C169: =C168 -> Component 3 - | D169: =IF('Development Details'!B$37="","",'Development Details'!B$37) ->  | E169: =IF('Development Details'!C$37="","",'Development Details'!C$37) ->  | F169: =IFERROR(INDEX(AICR_RATES,MATCH(CHARGE_AREA&COMP_3&$D169,AICR_REG&AICR_USE&AICR_CH_CAT,0),MATCH($C159,AICR_COL,0)),"") ->  | I169: =IF('Development Details'!$C$11<3,"Y",IF(H169="","Y","")) -> Y | N169: Component 3 - UOM 2
A170: DD | B170: =C159&"DD" -> ParksDD | C170: =C168 -> Component 3 - | D170: =IF('Development Details'!B$38="","",'Development Details'!B$38) ->  | E170: =IF('Development Details'!C$38="","",'Development Details'!C$38) ->  | F170: =IFERROR(INDEX(AICR_RATES,MATCH(CHARGE_AREA&COMP_3&$D170,AICR_REG&AICR_USE&AICR_CH_CAT,0),MATCH($C159,AICR_COL,0)),"") ->  | I170: =IF('Development Details'!$C$11<3,"Y",IF(H170="","Y","")) -> Y | N170: Component 3 - UOM 3
A171: DD | B171: =C159&"DD" -> ParksDD | C171: ="Component 4 - "&'Development Details'!$C$40 -> Component 4 - | D171: =IF('Development Details'!B$44="","",'Development Details'!B$44) ->  | E171: =IF('Development Details'!C$44="","",'Development Details'!C$44) ->  | F171: =IFERROR(INDEX(AICR_RATES,MATCH(CHARGE_AREA&COMP_4&$D171,AICR_REG&AICR_USE&AICR_CH_CAT,0),MATCH($C159,AICR_COL,0)),"") ->  | I171: =IF('Development Details'!$C$11<4,"Y",IF(H171="","Y","")) -> Y | N171: Component 4 - UOM 1
A172: DD | B172: =C159&"DD" -> ParksDD | C172: =C171 -> Component 4 - | D172: =IF('Development Details'!B$45="","",'Development Details'!B$45) ->  | E172: =IF('Development Details'!C$45="","",'Development Details'!C$45) ->  | F172: =IFERROR(INDEX(AICR_RATES,MATCH(CHARGE_AREA&COMP_4&$D172,AICR_REG&AICR_USE&AICR_CH_CAT,0),MATCH($C159,AICR_COL,0)),"") ->  | I172: =IF('Development Details'!$C$11<4,"Y",IF(H172="","Y","")) -> Y | N172: Component 4 - UOM 2
A173: DD | B173: =C159&"DD" -> ParksDD | C173: =C171 -> Component 4 - | D173: =IF('Development Details'!B$46="","",'Development Details'!B$46) ->  | E173: =IF('Development Details'!C$46="","",'Development Details'!C$46) ->  | F173: =IFERROR(INDEX(AICR_RATES,MATCH(CHARGE_AREA&COMP_4&$D173,AICR_REG&AICR_USE&AICR_CH_CAT,0),MATCH($C159,AICR_COL,0)),"") ->  | I173: =IF('Development Details'!$C$11<4,"Y",IF(H173="","Y","")) -> Y | N173: Component 4 - UOM 3
A174: DD | B174: =C159&"DD" -> ParksDD | C174: ="Component 5 - "&'Development Details'!$C$48 -> Component 5 - | D174: =IF('Development Details'!B$52="","",'Development Details'!B$52) ->  | E174: =IF('Development Details'!C$52="","",'Development Details'!C$52) ->  | F174: =IFERROR(INDEX(AICR_RATES,MATCH(CHARGE_AREA&COMP_5&$D174,AICR_REG&AICR_USE&AICR_CH_CAT,0),MATCH($C159,AICR_COL,0)),"") ->  | I174: =IF('Development Details'!$C$11<5,"Y",IF(H174="","Y","")) -> Y | N174: Component 5 - UOM 1
A175: DD | B175: =C159&"DD" -> ParksDD | C175: =C174 -> Component 5 - | D175: =IF('Development Details'!B$53="","",'Development Details'!B$53) ->  | E175: =IF('Development Details'!C$53="","",'Development Details'!C$53) ->  | F175: =IFERROR(INDEX(AICR_RATES,MATCH(CHARGE_AREA&COMP_5&$D175,AICR_REG&AICR_USE&AICR_CH_CAT,0),MATCH($C159,AICR_COL,0)),"") ->  | I175: =IF('Development Details'!$C$11<5,"Y",IF(H175="","Y","")) -> Y | N175: Component 5 - UOM 2
A176: DD | B176: =C159&"DD" -> ParksDD | C176: =C174 -> Component 5 - | D176: =IF('Development Details'!B$54="","",'Development Details'!B$54) ->  | E176: =IF('Development Details'!C$54="","",'Development Details'!C$54) ->  | F176: =IFERROR(INDEX(AICR_RATES,MATCH(CHARGE_AREA&COMP_5&$D176,AICR_REG&AICR_USE&AICR_CH_CAT,0),MATCH($C159,AICR_COL,0)),"") ->  | I176: =IF('Development Details'!$C$11<5,"Y",IF(H176="","Y","")) -> Y | N176: Component 5 - UOM 3
C177: Existing Demand
A178: ED | B178: =C159&"ED" -> ParksED | C178: ="Existing Demand 1 - "&'Development Details'!$C$57 -> Existing Demand 1 - | D178: =IF('Development Details'!B$61="","",'Development Details'!B$61) ->  | E178: =IF('Development Details'!C$61="","",'Development Details'!C$61) ->  | F178: =IFERROR(INDEX(AICR_RATES,MATCH(CHARGE_AREA&EXU_1&$D178,AICR_REG&AICR_USE&AICR_CH_CAT,0),MATCH($C159,AICR_COL,0))*-1,"") ->  | H178: =IFERROR(F178*E178,"") ->  | O178: Component 1 - UOM 1
A179: ED | B179: =C159&"ED" -> ParksED | C179: =C178 -> Existing Demand 1 - | D179: =IF('Development Details'!B$62="","",'Development Details'!B$62) ->  | E179: =IF('Development Details'!C$62="","",'Development Details'!C$62) ->  | F179: =IFERROR(INDEX(AICR_RATES,MATCH(CHARGE_AREA&EXU_1&$D179,AICR_REG&AICR_USE&AICR_CH_CAT,0),MATCH($C159,AICR_COL,0))*-1,"") ->  | I179: =IF(H179="","Y","") -> Y | O179: Component 1 - UOM 2
A180: ED | B180: =C159&"ED" -> ParksED | C180: =C178 -> Existing Demand 1 - | D180: =IF('Development Details'!B$63="","",'Development Details'!B$63) ->  | E180: =IF('Development Details'!C$63="","",'Development Details'!C$63) ->  | F180: =IFERROR(INDEX(AICR_RATES,MATCH(CHARGE_AREA&EXU_1&$D180,AICR_REG&AICR_USE&AICR_CH_CAT,0),MATCH($C159,AICR_COL,0))*-1,"") ->  | I180: =IF(H180="","Y","") -> Y | O180: Component 1 - UOM 3
A181: ED | B181: =C159&"ED" -> ParksED | C181: ="Existing Demand 2 - "&'Development Details'!$C$65 -> Existing Demand 2 - | D181: =IF('Development Details'!B$69="","",'Development Details'!B$69) ->  | E181: =IF('Development Details'!C$69="","",'Development Details'!C$69) ->  | F181: =IFERROR(INDEX(AICR_RATES,MATCH(CHARGE_AREA&EXU_2&$D181,AICR_REG&AICR_USE&AICR_CH_CAT,0),MATCH($C159,AICR_COL,0))*-1,"") ->  | I181: =IF('Development Details'!$C$13=1,"Y",IF(H181="","Y","")) -> Y | O181: Component 2 - UOM 1
A182: ED | B182: =C159&"ED" -> ParksED | C182: =C181 -> Existing Demand 2 - | D182: =IF('Development Details'!B$70="","",'Development Details'!B$70) ->  | E182: =IF('Development Details'!C$70="","",'Development Details'!C$70) ->  | F182: =IFERROR(INDEX(AICR_RATES,MATCH(CHARGE_AREA&EXU_2&$D182,AICR_REG&AICR_USE&AICR_CH_CAT,0),MATCH($C159,AICR_COL,0))*-1,"") ->  | I182: =IF('Development Details'!$C$13=1,"Y",IF(H182="","Y","")) -> Y | O182: Component 2 - UOM 2
A183: ED | B183: =C159&"ED" -> ParksED | C183: =C181 -> Existing Demand 2 - | D183: =IF('Development Details'!B$71="","",'Development Details'!B$71) ->  | E183: =IF('Development Details'!C$71="","",'Development Details'!C$71) ->  | F183: =IFERROR(INDEX(AICR_RATES,MATCH(CHARGE_AREA&EXU_2&$D183,AICR_REG&AICR_USE&AICR_CH_CAT,0),MATCH($C159,AICR_COL,0))*-1,"") ->  | I183: =IF('Development Details'!$C$13=1,"Y",IF(H183="","Y","")) -> Y | O183: Component 2 - UOM 3
A184: ED | B184: =C159&"ED" -> ParksED | C184: ="Existing Demand 3 - "&'Development Details'!$C$73 -> Existing Demand 3 - | D184: =IF('Development Details'!B$77="","",'Development Details'!B$77) ->  | E184: =IF('Development Details'!C$77="","",'Development Details'!C$77) ->  | F184: =IFERROR(INDEX(AICR_RATES,MATCH(CHARGE_AREA&EXU_3&$D184,AICR_REG&AICR_USE&AICR_CH_CAT,0),MATCH($C159,AICR_COL,0))*-1,"") ->  | I184: =IF('Development Details'!$C$13<3,"Y",IF(H184="","Y","")) -> Y | O184: Component 3 - UOM 1
A185: ED | B185: =C159&"ED" -> ParksED | C185: =C184 -> Existing Demand 3 - | D185: =IF('Development Details'!B$78="","",'Development Details'!B$78) ->  | E185: =IF('Development Details'!C$78="","",'Development Details'!C$78) ->  | F185: =IFERROR(INDEX(AICR_RATES,MATCH(CHARGE_AREA&EXU_3&$D185,AICR_REG&AICR_USE&AICR_CH_CAT,0),MATCH($C159,AICR_COL,0))*-1,"") ->  | I185: =IF('Development Details'!$C$13<3,"Y",IF(H185="","Y","")) -> Y | O185: Component 3 - UOM 2
A186: ED | B186: =C159&"ED" -> ParksED | C186: =C184 -> Existing Demand 3 - | D186: =IF('Development Details'!B$79="","",'Development Details'!B$79) ->  | E186: =IF('Development Details'!C$79="","",'Development Details'!C$79) ->  | F186: =IFERROR(INDEX(AICR_RATES,MATCH(CHARGE_AREA&EXU_3&$D186,AICR_REG&AICR_USE&AICR_CH_CAT,0),MATCH($C159,AICR_COL,0))*-1,"") ->  | I186: =IF('Development Details'!$C$13<3,"Y",IF(H186="","Y","")) -> Y | O186: Component 3 - UOM 3
A187: ED | B187: =C159&"ED" -> ParksED | C187: ="Existing Demand 4 - "&'Development Details'!$C$81 -> Existing Demand 4 - | D187: =IF('Development Details'!B$85="","",'Development Details'!B$85) ->  | E187: =IF('Development Details'!C$85="","",'Development Details'!C$85) ->  | F187: =IFERROR(INDEX(AICR_RATES,MATCH(CHARGE_AREA&EXU_4&$D187,AICR_REG&AICR_USE&AICR_CH_CAT,0),MATCH($C159,AICR_COL,0))*-1,"") ->  | I187: =IF('Development Details'!$C$13<4,"Y",IF(H187="","Y","")) -> Y | O187: Component 4 - UOM 1
A188: ED | B188: =C159&"ED" -> ParksED | C188: =C187 -> Existing Demand 4 - | D188: =IF('Development Details'!B$86="","",'Development Details'!B$86) ->  | E188: =IF('Development Details'!C$86="","",'Development Details'!C$86) ->  | F188: =IFERROR(INDEX(AICR_RATES,MATCH(CHARGE_AREA&EXU_4&$D188,AICR_REG&AICR_USE&AICR_CH_CAT,0),MATCH($C159,AICR_COL,0))*-1,"") ->  | I188: =IF('Development Details'!$C$13<4,"Y",IF(H188="","Y","")) -> Y | O188: Component 4 - UOM 2
A189: ED | B189: =C159&"ED" -> ParksED | C189: =C187 -> Existing Demand 4 - | D189: =IF('Development Details'!B$87="","",'Development Details'!B$87) ->  | E189: =IF('Development Details'!C$87="","",'Development Details'!C$87) ->  | F189: =IFERROR(INDEX(AICR_RATES,MATCH(CHARGE_AREA&EXU_4&$D189,AICR_REG&AICR_USE&AICR_CH_CAT,0),MATCH($C159,AICR_COL,0))*-1,"") ->  | I189: =IF('Development Details'!$C$13<4,"Y",IF(H189="","Y","")) -> Y | O189: Component 4 - UOM 3
A190: ED | B190: =C159&"ED" -> ParksED | C190: ="Existing Demand 5 - "&'Development Details'!$C$89 -> Existing Demand 5 - | D190: =IF('Development Details'!B$93="","",'Development Details'!B$93) ->  | E190: =IF('Development Details'!C$93="","",'Development Details'!C$93) ->  | F190: =IFERROR(INDEX(AICR_RATES,MATCH(CHARGE_AREA&EXU_5&$D190,AICR_REG&AICR_USE&AICR_CH_CAT,0),MATCH($C159,AICR_COL,0))*-1,"") ->  | I190: =IF('Development Details'!$C$13<5,"Y",IF(H190="","Y","")) -> Y | O190: Component 5 - UOM 1
A191: ED | B191: =C159&"ED" -> ParksED | C191: =C190 -> Existing Demand 5 - | D191: =IF('Development Details'!B$94="","",'Development Details'!B$94) ->  | E191: =IF('Development Details'!C$94="","",'Development Details'!C$94) ->  | F191: =IFERROR(INDEX(AICR_RATES,MATCH(CHARGE_AREA&EXU_5&$D191,AICR_REG&AICR_USE&AICR_CH_CAT,0),MATCH($C159,AICR_COL,0))*-1,"") ->  | I191: =IF('Development Details'!$C$13<5,"Y",IF(H191="","Y","")) -> Y | O191: Component 5 - UOM 2
A192: ED | B192: =C159&"ED" -> ParksED | C192: =C190 -> Existing Demand 5 - | D192: =IF('Development Details'!B$95="","",'Development Details'!B$95) ->  | E192: =IF('Development Details'!C$95="","",'Development Details'!C$95) ->  | F192: =IFERROR(INDEX(AICR_RATES,MATCH(CHARGE_AREA&EXU_5&$D192,AICR_REG&AICR_USE&AICR_CH_CAT,0),MATCH($C159,AICR_COL,0))*-1,"") ->  | I192: =IF('Development Details'!$C$13<5,"Y",IF(H192="","Y","")) -> Y | O192: Component 5 - UOM 3
A193: EL | B193: =C159&"EL" -> ParksEL | C193: Existing Lot Credit | D193: Lots | E193: =SUM('Development Details'!$C$5:$C$9) -> 1 | F193: =IFERROR(INDEX(AICR_RATES,MATCH(CHARGE_AREA&"Reconfiguring a Lot - Residential"&$D193,AICR_REG&AICR_USE&AICR_CH_CAT,0),MATCH($C159,AICR_COL,0))*-1,"") -> -293 | H193: -293

Sheet ICN Output
B2: Use | C2: Infrastructure Charge | D2: No. of Units | E2: Infrastructure Charge for Stormwater Network | F2: No. of Units (Stormwater) | G2: Charge Amount (Development Demand)
B3: =IF(Calculations!D18="","",COMP_1&" ("&Calculations!D18&")") -> Dwelling house (3 or more bedrooms) | C3: =IF(SUMIFS(Calculations!$F$18:$F$193,Calculations!$N$18:$N$193,"Component 1 - UOM 1")=0,"",SUMIFS(Calculations!$F$18:$F$193,Calculations!$N$18:$N$193,"Component 1 - UOM 1")) -> 14377 | D3: =IFERROR(SUMIFS(Calculations!$H$18:$H$193,Calculations!$N$18:$N$193,"Component 1 - UOM 1")/C3,"") -> 4 | E3: =IF(SUMIFS(Calculations!$F$18:$F$193,Calculations!$N$18:$N$193,"SW Component 1 - UOM 1")=0,"",SUMIFS(Calculations!$F$18:$F$193,Calculations!$N$18:$N$193,"SW Component 1 - UOM 1")) -> 293 | F3: =IFERROR(SUMIFS(Calculations!$H$18:$H$193,Calculations!$N$18:$N$193,"SW Component 1 - UOM 1")/E3,"") -> 4 | G3: =IF(B3="","",SUMIFS(Calculations!$H$18:$H$193,Calculations!$N$18:$N$193,"Component 1 - UOM 1")+SUMIFS(Calculations!$H$18:$H$193,Calculations!$N$18:$N$193,"SW Component 1 - UOM 1")) -> 58680
B4: =IF(Calculations!D19="","",COMP_1&" ("&Calculations!D19&")") ->  | C4: =IF(SUMIFS(Calculations!$F$18:$F$193,Calculations!$N$18:$N$193,"Component 1 - UOM 2")=0,"",SUMIFS(Calculations!$F$18:$F$193,Calculations!$N$18:$N$193,"Component 1 - UOM 2")) ->  | D4: =IFERROR(SUMIFS(Calculations!$H$18:$H$193,Calculations!$N$18:$N$193,"Component 1 - UOM 2")/C4,"") ->  | E4: =IF(SUMIFS(Calculations!$F$18:$F$193,Calculations!$N$18:$N$193,"SW Component 1 - UOM 2")=0,"",SUMIFS(Calculations!$F$18:$F$193,Calculations!$N$18:$N$193,"SW Component 1 - UOM 2")) ->  | F4: =IFERROR(SUMIFS(Calculations!$H$18:$H$193,Calculations!$N$18:$N$193,"SW Component 1 - UOM 2")/E4,"") ->  | G4: =IF(B4="","",SUMIFS(Calculations!$H$18:$H$193,Calculations!$N$18:$N$193,"Component 1 - UOM 2")+SUMIFS(Calculations!$H$18:$H$193,Calculations!$N$18:$N$193,"SW Component 1 - UOM 2")) -> 
B5: =IF(Calculations!D20="","",COMP_1&" ("&Calculations!D20&")") ->  | C5: =IF(SUMIFS(Calculations!$F$18:$F$193,Calculations!$N$18:$N$193,"Component 1 - UOM 3")=0,"",SUMIFS(Calculations!$F$18:$F$193,Calculations!$N$18:$N$193,"Component 1 - UOM 3")) ->  | D5: =IFERROR(SUMIFS(Calculations!$H$18:$H$193,Calculations!$N$18:$N$193,"Component 1 - UOM 3")/C5,"") ->  | E5: =IF(SUMIFS(Calculations!$F$18:$F$193,Calculations!$N$18:$N$193,"SW Component 1 - UOM 3")=0,"",SUMIFS(Calculations!$F$18:$F$193,Calculations!$N$18:$N$193,"SW Component 1 - UOM 3")) ->  | F5: =IFERROR(SUMIFS(Calculations!$H$18:$H$193,Calculations!$N$18:$N$193,"SW Component 1 - UOM 3")/E5,"") ->  | G5: =IF(B5="","",SUMIFS(Calculations!$H$18:$H$193,Calculations!$N$18:$N$193,"Component 1 - UOM 3")+SUMIFS(Calculations!$H$18:$H$193,Calculations!$N$18:$N$193,"SW Component 1 - UOM 3")) -> 
B6: =IF('Development Details'!$C$11>1,IF(Calculations!D21="","",COMP_2&" ("&Calculations!D21&")"),"") ->  | C6: =IF(SUMIFS(Calculations!$F$18:$F$193,Calculations!$N$18:$N$193,"Component 2 - UOM 1")=0,"",SUMIFS(Calculations!$F$18:$F$193,Calculations!$N$18:$N$193,"Component 2 - UOM 1")) ->  | D6: =IFERROR(SUMIFS(Calculations!$H$18:$H$193,Calculations!$N$18:$N$193,"Component 2 - UOM 1")/C6,"") ->  | E6: =IF(SUMIFS(Calculations!$F$18:$F$193,Calculations!$N$18:$N$193,"SW Component 2 - UOM 1")=0,"",SUMIFS(Calculations!$F$18:$F$193,Calculations!$N$18:$N$193,"SW Component 2 - UOM 1")) ->  | F6: =IFERROR(SUMIFS(Calculations!$H$18:$H$193,Calculations!$N$18:$N$193,"SW Component 2 - UOM 1")/E6,"") ->  | G6: =IF(B6="","",SUMIFS(Calculations!$H$18:$H$193,Calculations!$N$18:$N$193,"Component 2 - UOM 1")+SUMIFS(Calculations!$H$18:$H$193,Calculations!$N$18:$N$193,"SW Component 2 - UOM 1")) -> 
B7: =IF('Development Details'!$C$11>1,IF(Calculations!D22="","",COMP_2&" ("&Calculations!D22&")"),"") ->  | C7: =IF(SUMIFS(Calculations!$F$18:$F$193,Calculations!$N$18:$N$193,"Component 2 - UOM 2")=0,"",SUMIFS(Calculations!$F$18:$F$193,Calculations!$N$18:$N$193,"Component 2 - UOM 2")) ->  | D7: =IFERROR(SUMIFS(Calculations!$H$18:$H$193,Calculations!$N$18:$N$193,"Component 2 - UOM 2")/C7,"") ->  | E7: =IF(SUMIFS(Calculations!$F$18:$F$193,Calculations!$N$18:$N$193,"SW Component 2 - UOM 2")=0,"",SUMIFS(Calculations!$F$18:$F$193,Calculations!$N$18:$N$193,"SW Component 2 - UOM 2")) ->  | F7: =IFERROR(SUMIFS(Calculations!$H$18:$H$193,Calculations!$N$18:$N$193,"SW Component 2 - UOM 2")/E7,"") ->  | G7: =IF(B7="","",SUMIFS(Calculations!$H$18:$H$193,Calculations!$N$18:$N$193,"Component 2 - UOM 2")+SUMIFS(Calculations!$H$18:$H$193,Calculations!$N$18:$N$193,"SW Component 2 - UOM 2")) -> 
B8: =IF('Development Details'!$C$11>1,IF(Calculations!D23="","",COMP_2&" ("&Calculations!D23&")"),"") ->  | C8: =IF(SUMIFS(Calculations!$F$18:$F$193,Calculations!$N$18:$N$193,"Component 2 - UOM 3")=0,"",SUMIFS(Calculations!$F$18:$F$193,Calculations!$N$18:$N$193,"Component 2 - UOM 3")) ->  | D8: =IFERROR(SUMIFS(Calculations!$H$18:$H$193,Calculations!$N$18:$N$193,"Component 2 - UOM 3")/C8,"") ->  | E8: =IF(SUMIFS(Calculations!$F$18:$F$193,Calculations!$N$18:$N$193,"SW Component 2 - UOM 3")=0,"",SUMIFS(Calculations!$F$18:$F$193,Calculations!$N$18:$N$193,"SW Component 2 - UOM 3")) ->  | F8: =IFERROR(SUMIFS(Calculations!$H$18:$H$193,Calculations!$N$18:$N$193,"SW Component 2 - UOM 3")/E8,"") ->  | G8: =IF(B8="","",SUMIFS(Calculations!$H$18:$H$193,Calculations!$N$18:$N$193,"Component 2 - UOM 3")+SUMIFS(Calculations!$H$18:$H$193,Calculations!$N$18:$N$193,"SW Component 2 - UOM 3")) -> 
B9: =IF('Development Details'!$C$11>2,IF(Calculations!D24="","",COMP_3&" ("&Calculations!D24&")"),"") ->  | C9: =IF(SUMIFS(Calculations!$F$18:$F$193,Calculations!$N$18:$N$193,"Component 3 - UOM 1")=0,"",SUMIFS(Calculations!$F$18:$F$193,Calculations!$N$18:$N$193,"Component 3 - UOM 1")) ->  | D9: =IFERROR(SUMIFS(Calculations!$H$18:$H$193,Calculations!$N$18:$N$193,"Component 3 - UOM 1")/C9,"") ->  | E9: =IF(SUMIFS(Calculations!$F$18:$F$193,Calculations!$N$18:$N$193,"SW Component 3 - UOM 1")=0,"",SUMIFS(Calculations!$F$18:$F$193,Calculations!$N$18:$N$193,"SW Component 3 - UOM 1")) ->  | F9: =IFERROR(SUMIFS(Calculations!$H$18:$H$193,Calculations!$N$18:$N$193,"SW Component 3 - UOM 1")/E9,"") ->  | G9: =IF(B9="","",SUMIFS(Calculations!$H$18:$H$193,Calculations!$N$18:$N$193,"Component 3 - UOM 1")+SUMIFS(Calculations!$H$18:$H$193,Calculations!$N$18:$N$193,"SW Component 3 - UOM 1")) -> 
B10: =IF('Development Details'!$C$11>2,IF(Calculations!D25="","",COMP_3&" ("&Calculations!D25&")"),"") ->  | C10: =IF(SUMIFS(Calculations!$F$18:$F$193,Calculations!$N$18:$N$193,"Component 3 - UOM 2")=0,"",SUMIFS(Calculations!$F$18:$F$193,Calculations!$N$18:$N$193,"Component 3 - UOM 2")) ->  | D10: =IFERROR(SUMIFS(Calculations!$H$18:$H$193,Calculations!$N$18:$N$193,"Component 3 - UOM 2")/C10,"") ->  | E10: =IF(SUMIFS(Calculations!$F$18:$F$193,Calculations!$N$18:$N$193,"SW Component 3 - UOM 2")=0,"",SUMIFS(Calculations!$F$18:$F$193,Calculations!$N$18:$N$193,"SW Component 3 - UOM 2")) ->  | F10: =IFERROR(SUMIFS(Calculations!$H$18:$H$193,Calculations!$N$18:$N$193,"SW Component 3 - UOM 2")/E10,"") ->  | G10: =IF(B10="","",SUMIFS(Calculations!$H$18:$H$193,Calculations!$N$18:$N$193,"Component 3 - UOM 2")+SUMIFS(Calculations!$H$18:$H$193,Calculations!$N$18:$N$193,"SW Component 3 - UOM 2")) -> 
B11: =IF('Development Details'!$C$11>2,IF(Calculations!D26="","",COMP_3&" ("&Calculations!D26&")"),"") ->  | C11: =IF(SUMIFS(Calculations!$F$18:$F$193,Calculations!$N$18:$N$193,"Component 3 - UOM 3")=0,"",SUMIFS(Calculations!$F$18:$F$193,Calculations!$N$18:$N$193,"Component 3 - UOM 3")) ->  | D11: =IFERROR(SUMIFS(Calculations!$H$18:$H$193,Calculations!$N$18:$N$193,"Component 3 - UOM 3")/C11,"") ->  | E11: =IF(SUMIFS(Calculations!$F$18:$F$193,Calculations!$N$18:$N$193,"SW Component 3 - UOM 3")=0,"",SUMIFS(Calculations!$F$18:$F$193,Calculations!$N$18:$N$193,"SW Component 3 - UOM 3")) ->  | F11: =IFERROR(SUMIFS(Calculations!$H$18:$H$193,Calculations!$N$18:$N$193,"SW Component 3 - UOM 3")/E11,"") ->  | G11: =IF(B11="","",SUMIFS(Calculations!$H$18:$H$193,Calculations!$N$18:$N$193,"Component 3 - UOM 3")+SUMIFS(Calculations!$H$18:$H$193,Calculations!$N$18:$N$193,"SW Component 3 - UOM 3")) -> 
B12: =IF('Development Details'!$C$11>3,IF(Calculations!D27="","",COMP_4&" ("&Calculations!D27&")"),"") ->  | C12: =IF(SUMIFS(Calculations!$F$18:$F$193,Calculations!$N$18:$N$193,"Component 4 - UOM 1")=0,"",SUMIFS(Calculations!$F$18:$F$193,Calculations!$N$18:$N$193,"Component 4 - UOM 1")) ->  | D12: =IFERROR(SUMIFS(Calculations!$H$18:$H$193,Calculations!$N$18:$N$193,"Component 4 - UOM 1")/C12,"") ->  | E12: =IF(SUMIFS(Calculations!$F$18:$F$193,Calculations!$N$18:$N$193,"SW Component 4 - UOM 1")=0,"",SUMIFS(Calculations!$F$18:$F$193,Calculations!$N$18:$N$193,"SW Component 4 - UOM 1")) ->  | F12: =IFERROR(SUMIFS(Calculations!$H$18:$H$193,Calculations!$N$18:$N$193,"SW Component 4 - UOM 1")/E12,"") ->  | G12: =IF(B12="","",SUMIFS(Calculations!$H$18:$H$193,Calculations!$N$18:$N$193,"Component 4 - UOM 1")+SUMIFS(Calculations!$H$18:$H$193,Calculations!$N$18:$N$193,"SW Component 4 - UOM 1")) -> 
B13: =IF('Development Details'!$C$11>3,IF(Calculations!D28="","",COMP_4&" ("&Calculations!D28&")"),"") ->  | C13: =IF(SUMIFS(Calculations!$F$18:$F$193,Calculations!$N$18:$N$193,"Component 4 - UOM 2")=0,"",SUMIFS(Calculations!$F$18:$F$193,Calculations!$N$18:$N$193,"Component 4 - UOM 2")) ->  | D13: =IFERROR(SUMIFS(Calculations!$H$18:$H$193,Calculations!$N$18:$N$193,"Component 4 - UOM 2")/C13,"") ->  | E13: =IF(SUMIFS(Calculations!$F$18:$F$193,Calculations!$N$18:$N$193,"SW Component 4 - UOM 2")=0,"",SUMIFS(Calculations!$F$18:$F$193,Calculations!$N$18:$N$193,"SW Component 4 - UOM 2")) ->  | F13: =IFERROR(SUMIFS(Calculations!$H$18:$H$193,Calculations!$N$18:$N$193,"SW Component 4 - UOM 2")/E13,"") ->  | G13: =IF(B13="","",SUMIFS(Calculations!$H$18:$H$193,Calculations!$N$18:$N$193,"Component 4 - UOM 2")+SUMIFS(Calculations!$H$18:$H$193,Calculations!$N$18:$N$193,"SW Component 4 - UOM 2")) -> 
B14: =IF('Development Details'!$C$11>3,IF(Calculations!D29="","",COMP_4&" ("&Calculations!D29&")"),"") ->  | C14: =IF(SUMIFS(Calculations!$F$18:$F$193,Calculations!$N$18:$N$193,"Component 4 - UOM 3")=0,"",SUMIFS(Calculations!$F$18:$F$193,Calculations!$N$18:$N$193,"Component 4 - UOM 3")) ->  | D14: =IFERROR(SUMIFS(Calculations!$H$18:$H$193,Calculations!$N$18:$N$193,"Component 4 - UOM 3")/C14,"") ->  | E14: =IF(SUMIFS(Calculations!$F$18:$F$193,Calculations!$N$18:$N$193,"SW Component 4 - UOM 3")=0,"",SUMIFS(Calculations!$F$18:$F$193,Calculations!$N$18:$N$193,"SW Component 4 - UOM 3")) ->  | F14: =IFERROR(SUMIFS(Calculations!$H$18:$H$193,Calculations!$N$18:$N$193,"SW Component 4 - UOM 3")/E14,"") ->  | G14: =IF(B14="","",SUMIFS(Calculations!$H$18:$H$193,Calculations!$N$18:$N$193,"Component 4 - UOM 3")+SUMIFS(Calculations!$H$18:$H$193,Calculations!$N$18:$N$193,"SW Component 4 - UOM 3")) -> 
B15: =IF('Development Details'!$C$11>4,IF(Calculations!D30="","",COMP_5&" ("&Calculations!D30&")"),"") ->  | C15: =IF(SUMIFS(Calculations!$F$18:$F$193,Calculations!$N$18:$N$193,"Component 5 - UOM 1")=0,"",SUMIFS(Calculations!$F$18:$F$193,Calculations!$N$18:$N$193,"Component 5 - UOM 1")) ->  | D15: =IFERROR(SUMIFS(Calculations!$H$18:$H$193,Calculations!$N$18:$N$193,"Component 5 - UOM 1")/C15,"") ->  | E15: =IF(SUMIFS(Calculations!$F$18:$F$193,Calculations!$N$18:$N$193,"SW Component 5 - UOM 1")=0,"",SUMIFS(Calculations!$F$18:$F$193,Calculations!$N$18:$N$193,"SW Component 5 - UOM 1")) ->  | F15: =IFERROR(SUMIFS(Calculations!$H$18:$H$193,Calculations!$N$18:$N$193,"SW Component 5 - UOM 1")/E15,"") ->  | G15: =IF(B15="","",SUMIFS(Calculations!$H$18:$H$193,Calculations!$N$18:$N$193,"Component 5 - UOM 1")+SUMIFS(Calculations!$H$18:$H$193,Calculations!$N$18:$N$193,"SW Component 5 - UOM 1")) -> 
B16: =IF('Development Details'!$C$11>4,IF(Calculations!D31="","",COMP_5&" ("&Calculations!D31&")"),"") ->  | C16: =IF(SUMIFS(Calculations!$F$18:$F$193,Calculations!$N$18:$N$193,"Component 5 - UOM 2")=0,"",SUMIFS(Calculations!$F$18:$F$193,Calculations!$N$18:$N$193,"Component 5 - UOM 2")) ->  | D16: =IFERROR(SUMIFS(Calculations!$H$18:$H$193,Calculations!$N$18:$N$193,"Component 5 - UOM 2")/C16,"") ->  | E16: =IF(SUMIFS(Calculations!$F$18:$F$193,Calculations!$N$18:$N$193,"SW Component 5 - UOM 2")=0,"",SUMIFS(Calculations!$F$18:$F$193,Calculations!$N$18:$N$193,"SW Component 5 - UOM 2")) ->  | F16: =IFERROR(SUMIFS(Calculations!$H$18:$H$193,Calculations!$N$18:$N$193,"SW Component 5 - UOM 2")/E16,"") ->  | G16: =IF(B16="","",SUMIFS(Calculations!$H$18:$H$193,Calculations!$N$18:$N$193,"Component 5 - UOM 2")+SUMIFS(Calculations!$H$18:$H$193,Calculations!$N$18:$N$193,"SW Component 5 - UOM 2")) -> 
B17: =IF('Development Details'!$C$11>4,IF(Calculations!D32="","",COMP_5&" ("&Calculations!D32&")"),"") ->  | C17: =IF(SUMIFS(Calculations!$F$18:$F$193,Calculations!$N$18:$N$193,"Component 5 - UOM 3")=0,"",SUMIFS(Calculations!$F$18:$F$193,Calculations!$N$18:$N$193,"Component 5 - UOM 3")) ->  | D17: =IFERROR(SUMIFS(Calculations!$H$18:$H$193,Calculations!$N$18:$N$193,"Component 5 - UOM 3")/C17,"") ->  | E17: =IF(SUMIFS(Calculations!$F$18:$F$193,Calculations!$N$18:$N$193,"SW Component 5 - UOM 3")=0,"",SUMIFS(Calculations!$F$18:$F$193,Calculations!$N$18:$N$193,"SW Component 5 - UOM 3")) ->  | F17: =IFERROR(SUMIFS(Calculations!$H$18:$H$193,Calculations!$N$18:$N$193,"SW Component 5 - UOM 3")/E17,"") ->  | G17: =IF(B17="","",SUMIFS(Calculations!$H$18:$H$193,Calculations!$N$18:$N$193,"Component 5 - UOM 3")+SUMIFS(Calculations!$H$18:$H$193,Calculations!$N$18:$N$193,"SW Component 5 - UOM 3")) -> 
E18: CHARGE SUBTOTAL | G18: =SUM(G3:G17) -> 58680
B19: [Existing/Previous] Lawful Use | C19: Discount Charge | D19: No. of Units | E19: Discount Charge for Stormwater Network | F19: No. of Units (Stormwater) | G19: Discount Charge Amount (Existing Demand)
B20: =EXU_1 -> 0 | C20: =SUMIFS(Calculations!$F$18:$F$193,Calculations!$C$18:$C$193,"Existing Demand 1 - "&EXU_1) -> 0 | D20: =SUMIFS(Calculations!$H$18:$H$193,Calculations!$C$18:$C$193,"Existing Demand 1 - "&EXU_1)/C20 ->  | E20: =SUMIFS(Calculations!$F$18:$F$193,Calculations!$C$18:$C$193,"Existing SW Demand 1 - "&EXU_1) -> 0 | F20: =IFERROR(SUMIFS(Calculations!$H$18:$H$193,Calculations!$C$18:$C$193,"Existing SW Demand 1 - "&EXU_1)/E20,"") ->  | G20: =SUMIFS(Calculations!$H$18:$H$193,Calculations!$C$18:$C$193,"Existing Demand 1 - "&EXU_1)+SUMIFS(Calculations!$H$18:$H$193,Calculations!$C$18:$C$193,"Existing SW Demand 1 - "&EXU_1) -> 0
B21: =IF('Development Details'!$C$13>1,EXU_2,"") ->  | C21: =IF('Development Details'!$C$13>1,SUMIFS(Calculations!$F$18:$F$193,Calculations!$C$18:$C$193,"Existing Demand 2 - "&EXU_2),"") ->  | D21: =IFERROR(SUMIFS(Calculations!$H$18:$H$193,Calculations!$C$18:$C$193,"Existing Demand 2 - "&EXU_2)/C21,"") ->  | E21: =SUMIFS(Calculations!$F$18:$F$193,Calculations!$C$18:$C$193,"Existing SW Demand 2 - "&EXU_2) -> 0 | F21: =IFERROR(SUMIFS(Calculations!$H$18:$H$193,Calculations!$C$18:$C$193,"Existing SW Demand 2 - "&EXU_2)/E21,"") ->  | G21: =SUMIFS(Calculations!$H$18:$H$193,Calculations!$C$18:$C$193,"Existing Demand 2 - "&EXU_2)+SUMIFS(Calculations!$H$18:$H$193,Calculations!$C$18:$C$193,"Existing SW Demand 2 - "&EXU_2) -> 0
B22: =IF('Development Details'!$C$13>2,EXU_3,"") ->  | C22: =IF('Development Details'!$C$13>2,SUMIFS(Calculations!$F$18:$F$193,Calculations!$C$18:$C$193,"Existing Demand 3 - "&EXU_3),"") ->  | D22: =IFERROR(SUMIFS(Calculations!$H$18:$H$193,Calculations!$C$18:$C$193,"Existing Demand 3 - "&EXU_3)/C22,"") ->  | E22: =SUMIFS(Calculations!$F$18:$F$193,Calculations!$C$18:$C$193,"Existing SW Demand 3 - "&EXU_3) -> 0 | F22: =IFERROR(SUMIFS(Calculations!$H$18:$H$193,Calculations!$C$18:$C$193,"SW Component 3 - "&COMP_3)/E22,"") ->  | G22: =SUMIFS(Calculations!$H$18:$H$193,Calculations!$C$18:$C$193,"Existing Demand 3 - "&EXU_3)+SUMIFS(Calculations!$H$18:$H$193,Calculations!$C$18:$C$193,"Existing SW Demand 3 - "&EXU_3) -> 0
B23: =IF('Development Details'!$C$13>3,EXU_4,"") ->  | C23: =IF('Development Details'!$C$13>3,SUMIFS(Calculations!$F$18:$F$193,Calculations!$C$18:$C$193,"Existing Demand 4 - "&EXU_4),"") ->  | D23: =IFERROR(SUMIFS(Calculations!$H$18:$H$193,Calculations!$C$18:$C$193,"Existing Demand 4 - "&EXU_4)/C23,"") ->  | E23: =SUMIFS(Calculations!$F$18:$F$193,Calculations!$C$18:$C$193,"Existing SW Demand 4 - "&EXU_4) -> 0 | F23: =IFERROR(SUMIFS(Calculations!$H$18:$H$193,Calculations!$C$18:$C$193,"SW Component 3 - "&COMP_3)/E23,"") ->  | G23: =SUMIFS(Calculations!$H$18:$H$193,Calculations!$C$18:$C$193,"Existing Demand 4 - "&EXU_4)+SUMIFS(Calculations!$H$18:$H$193,Calculations!$C$18:$C$193,"Existing SW Demand 4 - "&EXU_4) -> 0
B24: =IF('Development Details'!$C$13>4,EXU_5,"") ->  | C24: =IF('Development Details'!$C$13>4,SUMIFS(Calculations!$F$18:$F$193,Calculations!$C$18:$C$193,"Existing Demand 5 - "&EXU_5),"") ->  | D24: =IFERROR(SUMIFS(Calculations!$H$18:$H$193,Calculations!$C$18:$C$193,"Existing Demand 5 - "&EXU_5)/C24,"") ->  | E24: =SUMIFS(Calculations!$F$18:$F$193,Calculations!$C$18:$C$193,"Existing SW Demand 5 - "&EXU_5) -> 0 | F24: =IFERROR(SUMIFS(Calculations!$H$18:$H$193,Calculations!$C$18:$C$193,"SW Component 3 - "&COMP_3)/E24,"") ->  | G24: =SUMIFS(Calculations!$H$18:$H$193,Calculations!$C$18:$C$193,"Existing Demand 5 - "&EXU_5)+SUMIFS(Calculations!$H$18:$H$193,Calculations!$C$18:$C$193,"Existing SW Demand 5 - "&EXU_5) -> 0
B26: Existing Lot Credit | C26: =SUMIFS(Calculations!$F$18:$F$193,Calculations!$C$18:$C$193,B26) -> -14670 | D26: =SUMIFS(Calculations!$H$18:$H$193,Calculations!$C$18:$C$193,B26)/C26 -> 1 | E26: =SUMIFS(Calculations!$F$18:$F$193,Calculations!$C$18:$C$193,B26&" SW") -> 0 | F26: =IFERROR(SUMIFS(Calculations!$H$18:$H$193,Calculations!$C$18:$C$193,B26&" SW")/E26,"") ->  | G26: =SUMIFS(Calculations!$H$18:$H$193,Calculations!$C$18:$C$193,B26)+SUMIFS(Calculations!$H$18:$H$193,Calculations!$C$18:$C$193,B26&" SW") -> -14670
B28: Previous Financial Contribution | G28: =-PFC -> 0
E29: =IF(MIN(G28,G26,SUM(G20:G24))<>G29,"CREDIT SUBTOTAL*","CREDIT SUBTOTAL") -> CREDIT SUBTOTAL | G29: =MAX(MIN(G28,G26,SUM(G20:G24)),G18*-1) -> -14670
E30: TOTAL CHARGE | G30: =MAX(G18+G29,0) -> 44010
B31: =IF(MIN(G28,G26,SUM(G20:G24))<>G29,"*Credit for existing demand cannot exceed the proposed development demand","") -> 

Sheet AICR Input (hidden)
A1: Region | B1: Planning Scheme Use | C1: Regulated Use | D1: Regulated Use Category | E1: CH_CAT_LU | F1: Regulated Charge Category | G1: Charge Rate | H1: Water Supply | I1: Wastewater | J1: Stormwater | K1: Transport | L1: Parks | O1: Planning Scheme Use | P1: Sort 1 | Q1: Number | R1: Blank | S1: Sort 2 | T1: Use List | V1: Charge Area | W1: Sort 1 | X1: Number | Y1: Blank | Z1: Sort 2 | AA1: Use List | AC1: NR_1 | AD1: NR_2 | AE1: NR_3 | AG1: RU_1 | AH1: RU_2 | AI1: RU_3 | AN1: ROL | AQ1: Schedule 16 Category | AR1: Charge Category | AS1: Charge Rate | AT1: Water Supply | AU1: Wastewater | AV1: Transport | AW1: Parks | AX1: Stormwater
A2: Mt Isa - Fully Serviced | B2: Adult store | C2: Adult store | D2: Commercial (retail) | E2: NR_1 | F2: Gross Floor Area | G2: =SUM(H2:L2) -> 94 | H2: =INDEX(CHARGES,MATCH($D2&$F2,$AQ$2:$AQ$44&$AR$2:$AR$44,0),MATCH(H$1,$AS$1:$AX$1,0)) -> 20 | I2: =INDEX(CHARGES,MATCH($D2&$F2,$AQ$2:$AQ$44&$AR$2:$AR$44,0),MATCH(I$1,$AS$1:$AX$1,0)) -> 13 | J2: =INDEX(CHARGES,MATCH($D2&$F2,$AQ$2:$AQ$44&$AR$2:$AR$44,0),MATCH(J$1,$AS$1:$AX$1,0)) -> 0 | K2: =INDEX(CHARGES,MATCH($D2&$F2,$AQ$2:$AQ$44&$AR$2:$AR$44,0),MATCH(K$1,$AS$1:$AX$1,0)) -> 61 | L2: =INDEX(CHARGES,MATCH($D2&$F2,$AQ$2:$AQ$44&$AR$2:$AR$44,0),MATCH(L$1,$AS$1:$AX$1,0)) -> 0 | O2: =IFERROR(INDEX($B$2:$B$1969, MATCH(0, INDEX(COUNTIF($O$1:O1,$B$2:$B$1969), 0),0)),"") -> Adult store | P2: =COUNTIF($O$2:$O$109,"<="&O2) -> 14 | Q2: =IF(O2=0,0,--ISNUMBER(O2)) -> 0 | R2: =IF(O2=0,1,IF(O2="",1,0)) -> 0 | S2: =IF(IF(Q2=1,P2,IF(R2=1,P2,P2+$Q$110))-$P$110<0,"",IF(ISNUMBER(O2),P2,IF(R2=1,P2,P2+$Q$110))-$P$110) -> 1 | T2: =IFERROR(INDEX($O$2:$O$109,MATCH(SMALL($S$2:$S$109,ROWS(S2:$S$2)),$S$2:$S$109,0),1),"") -> Adult store | V2: =IFERROR(INDEX($A$2:$A$1969, MATCH(0, INDEX(COUNTIF($V$1:V1,$A$2:$A$1969), 0),0)),"") -> Mt Isa - Fully Serviced | W2: =COUNTIF($V$2:$V$25,"<="&V2) -> 20 | X2: =IF(V2=0,0,--ISNUMBER(V2)) -> 0 | Y2: =IF(V2=0,1,IF(V2="",1,0)) -> 0 | Z2: =IF(IF(X2=1,W2,IF(Y2=1,W2,W2+$X$26))-$W$26<0,"",IF(ISNUMBER(V2),W2,IF(Y2=1,W2,W2+$X$26))-$W$26) -> 4 | AA2: =IFERROR(INDEX($V$2:$V$25,MATCH(SMALL($Z$2:$Z$25,ROWS($Z2:Z$2)),$Z$2:$Z$25,0),1),"") -> Camooweal - Fully Serviced | AC2: Gross Floor Area | AD2: Gross Floor Area - not court area | AE2: Gross Floor Area | AG2: 2 or less bedrooms | AH2: bedroom that is not part of a suite | AI2: group of 2 sites/cabins or less | AN2: Lots | AQ2: Accommodation (long-term) | AR2: 2 or less bedrooms | AS2: 10478 | AT2: 2934 | AU2: 1886 | AV2: 5239 | AW2: 210 | AX2: 209
A3: Mt Isa - Fully Serviced | B3: Adult store | C3: Adult store | D3: Commercial (retail) | E3: NR_1 | F3: Impervious Area | G3: =SUM(H3:L3) -> 5 | H3: =INDEX(CHARGES,MATCH($D3&$F3,$AQ$2:$AQ$44&$AR$2:$AR$44,0),MATCH(H$1,$AS$1:$AX$1,0)) -> 0 | I3: =INDEX(CHARGES,MATCH($D3&$F3,$AQ$2:$AQ$44&$AR$2:$AR$44,0),MATCH(I$1,$AS$1:$AX$1,0)) -> 0 | J3: =INDEX(CHARGES,MATCH($D3&$F3,$AQ$2:$AQ$44&$AR$2:$AR$44,0),MATCH(J$1,$AS$1:$AX$1,0)) -> 5 | K3: =INDEX(CHARGES,MATCH($D3&$F3,$AQ$2:$AQ$44&$AR$2:$AR$44,0),MATCH(K$1,$AS$1:$AX$1,0)) -> 0 | L3: =INDEX(CHARGES,MATCH($D3&$F3,$AQ$2:$AQ$44&$AR$2:$AR$44,0),MATCH(L$1,$AS$1:$AX$1,0)) -> 0 | O3: =IFERROR(INDEX($B$2:$B$1969, MATCH(0, INDEX(COUNTIF($O$1:O2,$B$2:$B$1969), 0),0)),"") -> Agrigultural supplies store | P3: 15 | Q3: 0 | R3: 0 | S3: 2 | T3: =IFERROR(INDEX($O$2:$O$109,MATCH(SMALL($S$2:$S$109,ROWS(S$2:$S3)),$S$2:$S$109,0),1),"") -> Agrigultural supplies store | V3: =IFERROR(INDEX($A$2:$A$1969, MATCH(0, INDEX(COUNTIF($V$1:V2,$A$2:$A$1969), 0),0)),"") -> Mt Isa - Water Supply Only | W3: =COUNTIF($V$2:$V$25,"<="&V3) -> 22 | X3: 0 | Y3: 0 | Z3: =IF(IF(X3=1,W3,IF(Y3=1,W3,W3+$X$26))-$W$26<0,"",IF(ISNUMBER(V3),W3,IF(Y3=1,W3,W3+$X$26))-$W$26) -> 6 | AA3: =IFERROR(INDEX($V$2:$V$25,MATCH(SMALL($Z$2:$Z$25,ROWS($Z$2:Z3)),$Z$2:$Z$25,0),1),"") -> Camooweal - No Water or Sewer | AC3: Impervious Area | AD3: Gross Floor Area - court area | AG3: 3 or more bedrooms | AH3: 2 or less bedrooms | AI3: group of 3 sites/cabins | AQ3: Accommodation (long-term) | AR3: 2 or less bedrooms | AS3: 10478 | AT3: 2934 | AU3: 1886 | AV3: 5239 | AW3: 210 | AX3: 209
A4: Mt Isa - Fully Serviced | B4: Agrigultural supplies store | C4: Agrigultural supplies store | D4: Commercial (bulk goods) | E4: NR_1 | F4: Gross Floor Area | G4: 73 | H4: =INDEX(CHARGES,MATCH($D4&$F4,$AQ$2:$AQ$44&$AR$2:$AR$44,0),MATCH(H$1,$AS$1:$AX$1,0)) -> 15 | I4: =INDEX(CHARGES,MATCH($D4&$F4,$AQ$2:$AQ$44&$AR$2:$AR$44,0),MATCH(I$1,$AS$1:$AX$1,0)) -> 10 | J4: =INDEX(CHARGES,MATCH($D4&$F4,$AQ$2:$AQ$44&$AR$2:$AR$44,0),MATCH(J$1,$AS$1:$AX$1,0)) -> 0 | K4: =INDEX(CHARGES,MATCH($D4&$F4,$AQ$2:$AQ$44&$AR$2:$AR$44,0),MATCH(K$1,$AS$1:$AX$1,0)) -> 48 | L4: =INDEX(CHARGES,MATCH($D4&$F4,$AQ$2:$AQ$44&$AR$2:$AR$44,0),MATCH(L$1,$AS$1:$AX$1,0)) -> 0 | O4: =IFERROR(INDEX($B$2:$B$1969, MATCH(0, INDEX(COUNTIF($O$1:O3,$B$2:$B$1969), 0),0)),"") -> Air services | P4: 16 | Q4: 0 | R4: 0 | S4: 3 | T4: =IFERROR(INDEX($O$2:$O$109,MATCH(SMALL($S$2:$S$109,ROWS(S$2:$S4)),$S$2:$S$109,0),1),"") -> Air services | V4: =IFERROR(INDEX($A$2:$A$1969, MATCH(0, INDEX(COUNTIF($V$1:V3,$A$2:$A$1969), 0),0)),"") -> Mt Isa - No Water or Sewer | W4: 21 | X4: 0 | Y4: 0 | Z4: 5 | AA4: =IFERROR(INDEX($V$2:$V$25,MATCH(SMALL($Z$2:$Z$25,ROWS($Z$2:Z4)),$Z$2:$Z$25,0),1),"") -> Camooweal - Water Supply Only | AD4: Impervious Area | AH4: 3 or more bedrooms | AQ4: Accommodation (long-term) | AR4: 3 or more bedrooms | AS4: 14670 | AT4: 4108 | AU4: 2641 | AV4: 7335 | AW4: 293 | AX4: 293
A5: Mt Isa - Fully Serviced | B5: Agrigultural supplies store | C5: Agrigultural supplies store | D5: Commercial (bulk goods) | E5: NR_1 | F5: Impervious Area | G5: 5 | H5: =INDEX(CHARGES,MATCH($D5&$F5,$AQ$2:$AQ$44&$AR$2:$AR$44,0),MATCH(H$1,$AS$1:$AX$1,0)) -> 0 | I5: =INDEX(CHARGES,MATCH($D5&$F5,$AQ$2:$AQ$44&$AR$2:$AR$44,0),MATCH(I$1,$AS$1:$AX$1,0)) -> 0 | J5: =INDEX(CHARGES,MATCH($D5&$F5,$AQ$2:$AQ$44&$AR$2:$AR$44,0),MATCH(J$1,$AS$1:$AX$1,0)) -> 5 | K5: =INDEX(CHARGES,MATCH($D5&$F5,$AQ$2:$AQ$44&$AR$2:$AR$44,0),MATCH(K$1,$AS$1:$AX$1,0)) -> 0 | L5: =INDEX(CHARGES,MATCH($D5&$F5,$AQ$2:$AQ$44&$AR$2:$AR$44,0),MATCH(L$1,$AS$1:$AX$1,0)) -> 0 | O5: =IFERROR(INDEX($B$2:$B$1969, MATCH(0, INDEX(COUNTIF($O$1:O4,$B$2:$B$1969), 0),0)),"") -> Animal husbandry | P5: 17 | Q5: 0 | R5: 0 | S5: 4 | T5: =IFERROR(INDEX($O$2:$O$109,MATCH(SMALL($S$2:$S$109,ROWS(S$2:$S5)),$S$2:$S$109,0),1),"") -> Animal husbandry | V5: =IFERROR(INDEX($A$2:$A$1969, MATCH(0, INDEX(COUNTIF($V$1:V4,$A$2:$A$1969), 0),0)),"") -> Camooweal - Fully Serviced | W5: 17 | X5: 0 | Y5: 0 | Z5: 1 | AA5: =IFERROR(INDEX($V$2:$V$25,MATCH(SMALL($Z$2:$Z$25,ROWS($Z$2:Z5)),$Z$2:$Z$25,0),1),"") -> Mt Isa - Fully Serviced | AQ5: Accommodation (long-term) | AR5: bedroom that is not part of a suite | AS5: 10478 | AT5: 2934 | AU5: 1886 | AV5: 5239 | AW5: 210 | AX5: 209
A6: Mt Isa - Fully Serviced | B6: Air services | C6: Air services | D6: Other uses | E6: NR_1 | F6: Gross Floor Area | G6: 0 | H6: =INDEX(CHARGES,MATCH($D6&$F6,$AQ$2:$AQ$44&$AR$2:$AR$44,0),MATCH(H$1,$AS$1:$AX$1,0)) -> 0 | I6: =INDEX(CHARGES,MATCH($D6&$F6,$AQ$2:$AQ$44&$AR$2:$AR$44,0),MATCH(I$1,$AS$1:$AX$1,0)) -> 0 | J6: =INDEX(CHARGES,MATCH($D6&$F6,$AQ$2:$AQ$44&$AR$2:$AR$44,0),MATCH(J$1,$AS$1:$AX$1,0)) -> 0 | K6: =INDEX(CHARGES,MATCH($D6&$F6,$AQ$2:$AQ$44&$AR$2:$AR$44,0),MATCH(K$1,$AS$1:$AX$1,0)) -> 0 | L6: =INDEX(CHARGES,MATCH($D6&$F6,$AQ$2:$AQ$44&$AR$2:$AR$44,0),MATCH(L$1,$AS$1:$AX$1,0)) -> 0 | O6: =IFERROR(INDEX($B$2:$B$1969, MATCH(0, INDEX(COUNTIF($O$1:O5,$B$2:$B$1969), 0),0)),"") -> Animal keeping | P6: 18 | Q6: 0 | R6: 0 | S6: 5 | T6: =IFERROR(INDEX($O$2:$O$109,MATCH(SMALL($S$2:$S$109,ROWS(S$2:$S6)),$S$2:$S$109,0),1),"") -> Animal keeping | V6: =IFERROR(INDEX($A$2:$A$1969, MATCH(0, INDEX(COUNTIF($V$1:V5,$A$2:$A$1969), 0),0)),"") -> Camooweal - Water Supply Only | W6: 19 | X6: 0 | Y6: 0 | Z6: 3 | AA6: =IFERROR(INDEX($V$2:$V$25,MATCH(SMALL($Z$2:$Z$25,ROWS($Z$2:Z6)),$Z$2:$Z$25,0),1),"") -> Mt Isa - No Water or Sewer | AQ6: Accommodation (short-term) | AR6: 2 or less bedrooms | AS6: 5239 | AT6: 1467 | AU6: 943 | AV6: 2620 | AW6: 105 | AX6: 104
A7: Mt Isa - Fully Serviced | B7: Air services | C7: Air services | D7: Other uses | E7: NR_1 | F7: Impervious Area | G7: 0 | H7: =INDEX(CHARGES,MATCH($D7&$F7,$AQ$2:$AQ$44&$AR$2:$AR$44,0),MATCH(H$1,$AS$1:$AX$1,0)) -> 0 | I7: =INDEX(CHARGES,MATCH($D7&$F7,$AQ$2:$AQ$44&$AR$2:$AR$44,0),MATCH(I$1,$AS$1:$AX$1,0)) -> 0 | J7: =INDEX(CHARGES,MATCH($D7&$F7,$AQ$2:$AQ$44&$AR$2:$AR$44,0),MATCH(J$1,$AS$1:$AX$1,0)) -> 0 | K7: =INDEX(CHARGES,MATCH($D7&$F7,$AQ$2:$AQ$44&$AR$2:$AR$44,0),MATCH(K$1,$AS$1:$AX$1,0)) -> 0 | L7: =INDEX(CHARGES,MATCH($D7&$F7,$AQ$2:$AQ$44&$AR$2:$AR$44,0),MATCH(L$1,$AS$1:$AX$1,0)) -> 0 | O7: =IFERROR(INDEX($B$2:$B$1969, MATCH(0, INDEX(COUNTIF($O$1:O6,$B$2:$B$1969), 0),0)),"") -> Aquaculture | P7: 19 | Q7: 0 | R7: 0 | S7: 6 | T7: =IFERROR(INDEX($O$2:$O$109,MATCH(SMALL($S$2:$S$109,ROWS(S$2:$S7)),$S$2:$S$109,0),1),"") -> Aquaculture | V7: =IFERROR(INDEX($A$2:$A$1969, MATCH(0, INDEX(COUNTIF($V$1:V6,$A$2:$A$1969), 0),0)),"") -> Camooweal - No Water or Sewer | W7: 18 | X7: 0 | Y7: 0 | Z7: 2 | AA7: =IFERROR(INDEX($V$2:$V$25,MATCH(SMALL($Z$2:$Z$25,ROWS($Z$2:Z7)),$Z$2:$Z$25,0),1),"") -> Mt Isa - Water Supply Only | AQ7: Accommodation (short-term) | AR7: 3 or more bedrooms | AS7: 7335 | AT7: 2054 | AU7: 1320 | AV7: 3668 | AW7: 147 | AX7: 146
A8: Mt Isa - Fully Serviced | B8: Animal husbandry | C8: Animal husbandry | D8: Low impact rural | E8: NR_3 | F8: Gross Floor Area | G8: 0 | H8: =INDEX(CHARGES,MATCH($D8&$F8,$AQ$2:$AQ$44&$AR$2:$AR$44,0),MATCH(H$1,$AS$1:$AX$1,0)) -> 0 | I8: =INDEX(CHARGES,MATCH($D8&$F8,$AQ$2:$AQ$44&$AR$2:$AR$44,0),MATCH(I$1,$AS$1:$AX$1,0)) -> 0 | J8: =INDEX(CHARGES,MATCH($D8&$F8,$AQ$2:$AQ$44&$AR$2:$AR$44,0),MATCH(J$1,$AS$1:$AX$1,0)) -> 0 | K8: =INDEX(CHARGES,MATCH($D8&$F8,$AQ$2:$AQ$44&$AR$2:$AR$44,0),MATCH(K$1,$AS$1:$AX$1,0)) -> 0 | L8: =INDEX(CHARGES,MATCH($D8&$F8,$AQ$2:$AQ$44&$AR$2:$AR$44,0),MATCH(L$1,$AS$1:$AX$1,0)) -> 0 | O8: =IFERROR(INDEX($B$2:$B$1969, MATCH(0, INDEX(COUNTIF($O$1:O7,$B$2:$B$1969), 0),0)),"") -> Bar | P8: 20 | Q8: 0 | R8: 0 | S8: 7 | T8: =IFERROR(INDEX($O$2:$O$109,MATCH(SMALL($S$2:$S$109,ROWS(S$2:$S8)),$S$2:$S$109,0),1),"") -> Bar | V8: =IFERROR(INDEX($A$2:$A$1969, MATCH(0, INDEX(COUNTIF($V$1:V7,$A$2:$A$1969), 0),0)),"") -> Other Areas - No Water or Sewer | W8: 23 | X8: 0 | Y8: 0 | Z8: 7 | AA8: =IFERROR(INDEX($V$2:$V$25,MATCH(SMALL($Z$2:$Z$25,ROWS($Z$2:Z8)),$Z$2:$Z$25,0),1),"") -> Other Areas - No Water or Sewer | AQ8: Accommodation (short-term) | AR8: bedroom that is not part of a suite | AS8: 5239 | AT8: 1467 | AU8: 943 | AV8: 2620 | AW8: 105 | AX8: 104
A9: Mt Isa - Fully Serviced | B9: Animal keeping | C9: Animal keeping | D9: Other uses | E9: NR_1 | F9: Gross Floor Area | G9: 0 | H9: =INDEX(CHARGES,MATCH($D9&$F9,$AQ$2:$AQ$44&$AR$2:$AR$44,0),MATCH(H$1,$AS$1:$AX$1,0)) -> 0 | I9: =INDEX(CHARGES,MATCH($D9&$F9,$AQ$2:$AQ$44&$AR$2:$AR$44,0),MATCH(I$1,$AS$1:$AX$1,0)) -> 0 | J9: =INDEX(CHARGES,MATCH($D9&$F9,$AQ$2:$AQ$44&$AR$2:$AR$44,0),MATCH(J$1,$AS$1:$AX$1,0)) -> 0 | K9: =INDEX(CHARGES,MATCH($D9&$F9,$AQ$2:$AQ$44&$AR$2:$AR$44,0),MATCH(K$1,$AS$1:$AX$1,0)) -> 0 | L9: =INDEX(CHARGES,MATCH($D9&$F9,$AQ$2:$AQ$44&$AR$2:$AR$44,0),MATCH(L$1,$AS$1:$AX$1,0)) -> 0 | O9: =IFERROR(INDEX($B$2:$B$1969, MATCH(0, INDEX(COUNTIF($O$1:O8,$B$2:$B$1969), 0),0)),"") -> Brothel | P9: 21 | Q9: 0 | R9: 0 | S9: 8 | T9: =IFERROR(INDEX($O$2:$O$109,MATCH(SMALL($S$2:$S$109,ROWS(S$2:$S9)),$S$2:$S$109,0),1),"") -> Brothel | V9: =IFERROR(INDEX($A$2:$A$1969, MATCH(0, INDEX(COUNTIF($V$1:V8,$A$2:$A$1969), 0),0)),"") -> 0 | W9: 1 | X9: 0 | Y9: 1 | AA9: =IFERROR(INDEX($V$2:$V$25,MATCH(SMALL($Z$2:$Z$25,ROWS($Z$2:Z9)),$Z$2:$Z$25,0),1),"") ->  | AQ9: Accommodation (short-term) | AR9: group of 2 sites/cabins or less | AS9: 5239 | AT9: 1467 | AU9: 943 | AV9: 2620 | AW9: 105 | AX9: 104
A10: Mt Isa - Fully Serviced | B10: Animal keeping | C10: Animal keeping | D10: Other uses | E10: NR_1 | F10: Impervious Area | G10: 0 | H10: =INDEX(CHARGES,MATCH($D10&$F10,$AQ$2:$AQ$44&$AR$2:$AR$44,0),MATCH(H$1,$AS$1:$AX$1,0)) -> 0 | I10: =INDEX(CHARGES,MATCH($D10&$F10,$AQ$2:$AQ$44&$AR$2:$AR$44,0),MATCH(I$1,$AS$1:$AX$1,0)) -> 0 | J10: =INDEX(CHARGES,MATCH($D10&$F10,$AQ$2:$AQ$44&$AR$2:$AR$44,0),MATCH(J$1,$AS$1:$AX$1,0)) -> 0 | K10: =INDEX(CHARGES,MATCH($D10&$F10,$AQ$2:$AQ$44&$AR$2:$AR$44,0),MATCH(K$1,$AS$1:$AX$1,0)) -> 0 | L10: =INDEX(CHARGES,MATCH($D10&$F10,$AQ$2:$AQ$44&$AR$2:$AR$44,0),MATCH(L$1,$AS$1:$AX$1,0)) -> 0 | O10: =IFERROR(INDEX($B$2:$B$1969, MATCH(0, INDEX(COUNTIF($O$1:O9,$B$2:$B$1969), 0),0)),"") -> Bulk landscape supplies | P10: 22 | Q10: 0 | R10: 0 | S10: 9 | T10: =IFERROR(INDEX($O$2:$O$109,MATCH(SMALL($S$2:$S$109,ROWS(S$2:$S10)),$S$2:$S$109,0),1),"") -> Bulk landscape supplies | V10: =IFERROR(INDEX($A$2:$A$1969, MATCH(0, INDEX(COUNTIF($V$1:V9,$A$2:$A$1969), 0),0)),"") ->  | W10: 0 | X10: 0 | Y10: 1 | AA10: =IFERROR(INDEX($V$2:$V$25,MATCH(SMALL($Z$2:$Z$25,ROWS($Z$2:Z10)),$Z$2:$Z$25,0),1),"") ->  | AQ10: Accommodation (short-term) | AR10: group of 3 sites/cabins | AS10: 7335 | AT10: 2054 | AU10: 1320 | AV10: 3668 | AW10: 147 | AX10: 146
A11: Mt Isa - Fully Serviced | B11: Aquaculture | D11: Other uses | E11: NR_1 | F11: Gross Floor Area | G11: 0 | H11: =INDEX(CHARGES,MATCH($D11&$F11,$AQ$2:$AQ$44&$AR$2:$AR$44,0),MATCH(H$1,$AS$1:$AX$1,0)) -> 0 | I11: =INDEX(CHARGES,MATCH($D11&$F11,$AQ$2:$AQ$44&$AR$2:$AR$44,0),MATCH(I$1,$AS$1:$AX$1,0)) -> 0 | J11: =INDEX(CHARGES,MATCH($D11&$F11,$AQ$2:$AQ$44&$AR$2:$AR$44,0),MATCH(J$1,$AS$1:$AX$1,0)) -> 0 | K11: =INDEX(CHARGES,MATCH($D11&$F11,$AQ$2:$AQ$44&$AR$2:$AR$44,0),MATCH(K$1,$AS$1:$AX$1,0)) -> 0 | L11: =INDEX(CHARGES,MATCH($D11&$F11,$AQ$2:$AQ$44&$AR$2:$AR$44,0),MATCH(L$1,$AS$1:$AX$1,0)) -> 0 | O11: =IFERROR(INDEX($B$2:$B$1969, MATCH(0, INDEX(COUNTIF($O$1:O10,$B$2:$B$1969), 0),0)),"") -> Caretaker's accommodation | P11: 24 | Q11: 0 | R11: 0 | S11: 11 | T11: =IFERROR(INDEX($O$2:$O$109,MATCH(SMALL($S$2:$S$109,ROWS(S$2:$S11)),$S$2:$S$109,0),1),"") -> Car wash | V11: =IFERROR(INDEX($A$2:$A$1969, MATCH(0, INDEX(COUNTIF($V$1:V10,$A$2:$A$1969), 0),0)),"") ->  | W11: 0 | X11: 0 | Y11: 1 | AA11: =IFERROR(INDEX($V$2:$V$25,MATCH(SMALL($Z$2:$Z$25,ROWS($Z$2:Z11)),$Z$2:$Z$25,0),1),"") ->  | AQ11: Commercial (bulk goods) | AR11: Gross Floor Area | AS11: 73 | AT11: 15 | AU11: 10 | AV11: 48 | AW11: 0 | AX11: 0
A12: Mt Isa - Fully Serviced | B12: Aquaculture | D12: Other uses | E12: NR_1 | F12: Impervious Area | G12: 0 | H12: =INDEX(CHARGES,MATCH($D12&$F12,$AQ$2:$AQ$44&$AR$2:$AR$44,0),MATCH(H$1,$AS$1:$AX$1,0)) -> 0 | I12: =INDEX(CHARGES,MATCH($D12&$F12,$AQ$2:$AQ$44&$AR$2:$AR$44,0),MATCH(I$1,$AS$1:$AX$1,0)) -> 0 | J12: =INDEX(CHARGES,MATCH($D12&$F12,$AQ$2:$AQ$44&$AR$2:$AR$44,0),MATCH(J$1,$AS$1:$AX$1,0)) -> 0 | K12: =INDEX(CHARGES,MATCH($D12&$F12,$AQ$2:$AQ$44&$AR$2:$AR$44,0),MATCH(K$1,$AS$1:$AX$1,0)) -> 0 | L12: =INDEX(CHARGES,MATCH($D12&$F12,$AQ$2:$AQ$44&$AR$2:$AR$44,0),MATCH(L$1,$AS$1:$AX$1,0)) -> 0 | O12: =IFERROR(INDEX($B$2:$B$1969, MATCH(0, INDEX(COUNTIF($O$1:O11,$B$2:$B$1969), 0),0)),"") -> Car wash | P12: 23 | Q12: =IF(O12=0,0,--ISNUMBER(O12)) -> 0 | R12: =IF(O12=0,1,IF(O12="",1,0)) -> 0 | S12: 10 | T12: =IFERROR(INDEX($O$2:$O$109,MATCH(SMALL($S$2:$S$109,ROWS(S$2:$S12)),$S$2:$S$109,0),1),"") -> Caretaker's accommodation | V12: =IFERROR(INDEX($A$2:$A$1969, MATCH(0, INDEX(COUNTIF($V$1:V11,$A$2:$A$1969), 0),0)),"") ->  | W12: 0 | X12: 0 | Y12: 1 | AA12: =IFERROR(INDEX($V$2:$V$25,MATCH(SMALL($Z$2:$Z$25,ROWS($Z$2:Z12)),$Z$2:$Z$25,0),1),"") ->  | AQ12: Commercial (bulk goods) | AR12: Impervious Area | AS12: 0 | AT12: 0 | AU12: 0 | AV12: 0 | AW12: 0 | AX12: 5
A13: Mt Isa - Fully Serviced | B13: Bar | C13: Hotel | D13: Entertainment | E13: NR_1 | F13: Gross Floor Area | G13: 105 | H13: =INDEX(CHARGES,MATCH($D13&$F13,$AQ$2:$AQ$44&$AR$2:$AR$44,0),MATCH(H$1,$AS$1:$AX$1,0)) -> 22 | I13: =INDEX(CHARGES,MATCH($D13&$F13,$AQ$2:$AQ$44&$AR$2:$AR$44,0),MATCH(I$1,$AS$1:$AX$1,0)) -> 15 | J13: =INDEX(CHARGES,MATCH($D13&$F13,$AQ$2:$AQ$44&$AR$2:$AR$44,0),MATCH(J$1,$AS$1:$AX$1,0)) -> 0 | K13: =INDEX(CHARGES,MATCH($D13&$F13,$AQ$2:$AQ$44&$AR$2:$AR$44,0),MATCH(K$1,$AS$1:$AX$1,0)) -> 68 | L13: =INDEX(CHARGES,MATCH($D13&$F13,$AQ$2:$AQ$44&$AR$2:$AR$44,0),MATCH(L$1,$AS$1:$AX$1,0)) -> 0 | O13: =IFERROR(INDEX($B$2:$B$1969, MATCH(0, INDEX(COUNTIF($O$1:O12,$B$2:$B$1969), 0),0)),"") -> Cemetery | P13: 25 | Q13: 0 | R13: 0 | S13: 12 | T13: =IFERROR(INDEX($O$2:$O$109,MATCH(SMALL($S$2:$S$109,ROWS(S$2:$S13)),$S$2:$S$109,0),1),"") -> Cemetery | V13: =IFERROR(INDEX($A$2:$A$1969, MATCH(0, INDEX(COUNTIF($V$1:V12,$A$2:$A$1969), 0),0)),"") ->  | W13: 0 | X13: 0 | Y13: 1 | AA13: =IFERROR(INDEX($V$2:$V$25,MATCH(SMALL($Z$2:$Z$25,ROWS($Z$2:Z13)),$Z$2:$Z$25,0),1),"") ->  | AQ13: Commercial (office) | AR13: Gross Floor Area | AS13: 73 | AT13: 15 | AU13: 10 | AV13: 48 | AW13: 0 | AX13: 0
A14: Mt Isa - Fully Serviced | B14: Bar | C14: Hotel | D14: Entertainment | E14: NR_1 | F14: Impervious Area | G14: 5 | H14: =INDEX(CHARGES,MATCH($D14&$F14,$AQ$2:$AQ$44&$AR$2:$AR$44,0),MATCH(H$1,$AS$1:$AX$1,0)) -> 0 | I14: =INDEX(CHARGES,MATCH($D14&$F14,$AQ$2:$AQ$44&$AR$2:$AR$44,0),MATCH(I$1,$AS$1:$AX$1,0)) -> 0 | J14: =INDEX(CHARGES,MATCH($D14&$F14,$AQ$2:$AQ$44&$AR$2:$AR$44,0),MATCH(J$1,$AS$1:$AX$1,0)) -> 5 | K14: =INDEX(CHARGES,MATCH($D14&$F14,$AQ$2:$AQ$44&$AR$2:$AR$44,0),MATCH(K$1,$AS$1:$AX$1,0)) -> 0 | L14: =INDEX(CHARGES,MATCH($D14&$F14,$AQ$2:$AQ$44&$AR$2:$AR$44,0),MATCH(L$1,$AS$1:$AX$1,0)) -> 0 | O14: =IFERROR(INDEX($B$2:$B$1969, MATCH(0, INDEX(COUNTIF($O$1:O13,$B$2:$B$1969), 0),0)),"") -> Child care centre | P14: 26 | Q14: 0 | R14: 0 | S14: 13 | T14: =IFERROR(INDEX($O$2:$O$109,MATCH(SMALL($S$2:$S$109,ROWS(S$2:$S14)),$S$2:$S$109,0),1),"") -> Child care centre | V14: =IFERROR(INDEX($A$2:$A$1969, MATCH(0, INDEX(COUNTIF($V$1:V13,$A$2:$A$1969), 0),0)),"") ->  | W14: 0 | X14: 0 | Y14: 1 | AA14: =IFERROR(INDEX($V$2:$V$25,MATCH(SMALL($Z$2:$Z$25,ROWS($Z$2:Z14)),$Z$2:$Z$25,0),1),"") ->  | AQ14: Commercial (office) | AR14: Impervious Area | AS14: 0 | AT14: 0 | AU14: 0 | AV14: 0 | AW14: 0 | AX14: 5
A15: Mt Isa - Fully Serviced | B15: Brothel | D15: Entertainment | E15: NR_1 | F15: Gross Floor Area | G15: 105 | H15: =INDEX(CHARGES,MATCH($D15&$F15,$AQ$2:$AQ$44&$AR$2:$AR$44,0),MATCH(H$1,$AS$1:$AX$1,0)) -> 22 | I15: =INDEX(CHARGES,MATCH($D15&$F15,$AQ$2:$AQ$44&$AR$2:$AR$44,0),MATCH(I$1,$AS$1:$AX$1,0)) -> 15 | J15: =INDEX(CHARGES,MATCH($D15&$F15,$AQ$2:$AQ$44&$AR$2:$AR$44,0),MATCH(J$1,$AS$1:$AX$1,0)) -> 0 | K15: =INDEX(CHARGES,MATCH($D15&$F15,$AQ$2:$AQ$44&$AR$2:$AR$44,0),MATCH(K$1,$AS$1:$AX$1,0)) -> 68 | L15: =INDEX(CHARGES,MATCH($D15&$F15,$AQ$2:$AQ$44&$AR$2:$AR$44,0),MATCH(L$1,$AS$1:$AX$1,0)) -> 0 | O15: =IFERROR(INDEX($B$2:$B$1969, MATCH(0, INDEX(COUNTIF($O$1:O14,$B$2:$B$1969), 0),0)),"") -> Community residence | P15: 27 | Q15: 0 | R15: 0 | S15: 14 | T15: =IFERROR(INDEX($O$2:$O$109,MATCH(SMALL($S$2:$S$109,ROWS(S$2:$S15)),$S$2:$S$109,0),1),"") -> Community residence | V15: =IFERROR(INDEX($A$2:$A$1969, MATCH(0, INDEX(COUNTIF($V$1:V14,$A$2:$A$1969), 0),0)),"") ->  | W15: 0 | X15: 0 | Y15: 1 | AA15: =IFERROR(INDEX($V$2:$V$25,MATCH(SMALL($Z$2:$Z$25,ROWS($Z$2:Z15)),$Z$2:$Z$25,0),1),"") ->  | AQ15: Commercial (retail) | AR15: Gross Floor Area | AS15: 94 | AT15: 20 | AU15: 13 | AV15: 61 | AW15: 0 | AX15: 0
A16: Mt Isa - Fully Serviced | B16: Brothel | D16: Entertainment | E16: NR_1 | F16: Impervious Area | G16: 5 | H16: =INDEX(CHARGES,MATCH($D16&$F16,$AQ$2:$AQ$44&$AR$2:$AR$44,0),MATCH(H$1,$AS$1:$AX$1,0)) -> 0 | I16: =INDEX(CHARGES,MATCH($D16&$F16,$AQ$2:$AQ$44&$AR$2:$AR$44,0),MATCH(I$1,$AS$1:$AX$1,0)) -> 0 | J16: =INDEX(CHARGES,MATCH($D16&$F16,$AQ$2:$AQ$44&$AR$2:$AR$44,0),MATCH(J$1,$AS$1:$AX$1,0)) -> 5 | K16: =INDEX(CHARGES,MATCH($D16&$F16,$AQ$2:$AQ$44&$AR$2:$AR$44,0),MATCH(K$1,$AS$1:$AX$1,0)) -> 0 | L16: =INDEX(CHARGES,MATCH($D16&$F16,$AQ$2:$AQ$44&$AR$2:$AR$44,0),MATCH(L$1,$AS$1:$AX$1,0)) -> 0 | O16: =IFERROR(INDEX($B$2:$B$1969, MATCH(0, INDEX(COUNTIF($O$1:O15,$B$2:$B$1969), 0),0)),"") -> Community use | P16: 28 | Q16: 0 | R16: 0 | S16: 15 | T16: =IFERROR(INDEX($O$2:$O$109,MATCH(SMALL($S$2:$S$109,ROWS(S$2:$S16)),$S$2:$S$109,0),1),"") -> Community use | V16: =IFERROR(INDEX($A$2:$A$1969, MATCH(0, INDEX(COUNTIF($V$1:V15,$A$2:$A$1969), 0),0)),"") ->  | W16: 0 | X16: 0 | Y16: 1 | AA16: =IFERROR(INDEX($V$2:$V$25,MATCH(SMALL($Z$2:$Z$25,ROWS($Z$2:Z16)),$Z$2:$Z$25,0),1),"") ->  | AQ16: Commercial (retail) | AR16: Impervious Area | AS16: 0 | AT16: 0 | AU16: 0 | AV16: 0 | AW16: 0 | AX16: 5
A17: Mt Isa - Fully Serviced | B17: Bulk landscape supplies | C17: Bulk landscape supplies | D17: Commercial (bulk goods) | E17: NR_1 | F17: Gross Floor Area | G17: 73 | H17: =INDEX(CHARGES,MATCH($D17&$F17,$AQ$2:$AQ$44&$AR$2:$AR$44,0),MATCH(H$1,$AS$1:$AX$1,0)) -> 15 | I17: =INDEX(CHARGES,MATCH($D17&$F17,$AQ$2:$AQ$44&$AR$2:$AR$44,0),MATCH(I$1,$AS$1:$AX$1,0)) -> 10 | J17: =INDEX(CHARGES,MATCH($D17&$F17,$AQ$2:$AQ$44&$AR$2:$AR$44,0),MATCH(J$1,$AS$1:$AX$1,0)) -> 0 | K17: =INDEX(CHARGES,MATCH($D17&$F17,$AQ$2:$AQ$44&$AR$2:$AR$44,0),MATCH(K$1,$AS$1:$AX$1,0)) -> 48 | L17: =INDEX(CHARGES,MATCH($D17&$F17,$AQ$2:$AQ$44&$AR$2:$AR$44,0),MATCH(L$1,$AS$1:$AX$1,0)) -> 0 | O17: =IFERROR(INDEX($B$2:$B$1969, MATCH(0, INDEX(COUNTIF($O$1:O16,$B$2:$B$1969), 0),0)),"") -> Crematorium | P17: 29 | Q17: 0 | R17: 0 | S17: 16 | T17: =IFERROR(INDEX($O$2:$O$109,MATCH(SMALL($S$2:$S$109,ROWS(S$2:$S17)),$S$2:$S$109,0),1),"") -> Crematorium | V17: =IFERROR(INDEX($A$2:$A$1969, MATCH(0, INDEX(COUNTIF($V$1:V16,$A$2:$A$1969), 0),0)),"") ->  | W17: 0 | X17: 0 | Y17: 1 | AA17: =IFERROR(INDEX($V$2:$V$25,MATCH(SMALL($Z$2:$Z$25,ROWS($Z$2:Z17)),$Z$2:$Z$25,0),1),"") ->  | AQ17: Educational Facility | AR17: Gross Floor Area | AS17: 73 | AT17: 15 | AU17: 10 | AV17: 48 | AW17: 0 | AX17: 0
A18: Mt Isa - Fully Serviced | B18: Bulk landscape supplies | C18: Bulk landscape supplies | D18: Commercial (bulk goods) | E18: NR_1 | F18: Impervious Area | G18: 5 | H18: =INDEX(CHARGES,MATCH($D18&$F18,$AQ$2:$AQ$44&$AR$2:$AR$44,0),MATCH(H$1,$AS$1:$AX$1,0)) -> 0 | I18: =INDEX(CHARGES,MATCH($D18&$F18,$AQ$2:$AQ$44&$AR$2:$AR$44,0),MATCH(I$1,$AS$1:$AX$1,0)) -> 0 | J18: =INDEX(CHARGES,MATCH($D18&$F18,$AQ$2:$AQ$44&$AR$2:$AR$44,0),MATCH(J$1,$AS$1:$AX$1,0)) -> 5 | K18: =INDEX(CHARGES,MATCH($D18&$F18,$AQ$2:$AQ$44&$AR$2:$AR$44,0),MATCH(K$1,$AS$1:$AX$1,0)) -> 0 | L18: =INDEX(CHARGES,MATCH($D18&$F18,$AQ$2:$AQ$44&$AR$2:$AR$44,0),MATCH(L$1,$AS$1:$AX$1,0)) -> 0 | O18: =IFERROR(INDEX($B$2:$B$1969, MATCH(0, INDEX(COUNTIF($O$1:O17,$B$2:$B$1969), 0),0)),"") -> Cropping | P18: 30 | Q18: 0 | R18: 0 | S18: 17 | T18: =IFERROR(INDEX($O$2:$O$109,MATCH(SMALL($S$2:$S$109,ROWS(S$2:$S18)),$S$2:$S$109,0),1),"") -> Cropping | V18: =IFERROR(INDEX($A$2:$A$1969, MATCH(0, INDEX(COUNTIF($V$1:V17,$A$2:$A$1969), 0),0)),"") ->  | W18: 0 | X18: 0 | Y18: 1 | AA18: =IFERROR(INDEX($V$2:$V$25,MATCH(SMALL($Z$2:$Z$25,ROWS($Z$2:Z18)),$Z$2:$Z$25,0),1),"") ->  | AQ18: Educational Facility | AR18: Impervious Area | AS18: 0 | AT18: 0 | AU18: 0 | AV18: 0 | AW18: 0 | AX18: 5
A19: Mt Isa - Fully Serviced | B19: Caretaker's accommodation | C19: Caretaker's accommodation | D19: Residential uses | E19: RU_1 | F19: 2 or less bedrooms | G19: 10478 | H19: =INDEX(CHARGES,MATCH($D19&$F19,$AQ$2:$AQ$44&$AR$2:$AR$44,0),MATCH(H$1,$AS$1:$AX$1,0)) -> 2934 | I19: =INDEX(CHARGES,MATCH($D19&$F19,$AQ$2:$AQ$44&$AR$2:$AR$44,0),MATCH(I$1,$AS$1:$AX$1,0)) -> 1886 | J19: =INDEX(CHARGES,MATCH($D19&$F19,$AQ$2:$AQ$44&$AR$2:$AR$44,0),MATCH(J$1,$AS$1:$AX$1,0)) -> 209 | K19: =INDEX(CHARGES,MATCH($D19&$F19,$AQ$2:$AQ$44&$AR$2:$AR$44,0),MATCH(K$1,$AS$1:$AX$1,0)) -> 5239 | L19: =INDEX(CHARGES,MATCH($D19&$F19,$AQ$2:$AQ$44&$AR$2:$AR$44,0),MATCH(L$1,$AS$1:$AX$1,0)) -> 210 | O19: =IFERROR(INDEX($B$2:$B$1969, MATCH(0, INDEX(COUNTIF($O$1:O18,$B$2:$B$1969), 0),0)),"") -> Detention facility | P19: 31 | Q19: 0 | R19: 0 | S19: 18 | T19: =IFERROR(INDEX($O$2:$O$109,MATCH(SMALL($S$2:$S$109,ROWS(S$2:$S19)),$S$2:$S$109,0),1),"") -> Detention facility | V19: =IFERROR(INDEX($A$2:$A$1969, MATCH(0, INDEX(COUNTIF($V$1:V18,$A$2:$A$1969), 0),0)),"") ->  | W19: 0 | X19: 0 | Y19: 1 | AA19: =IFERROR(INDEX($V$2:$V$25,MATCH(SMALL($Z$2:$Z$25,ROWS($Z$2:Z19)),$Z$2:$Z$25,0),1),"") ->  | AQ19: Entertainment | AR19: Gross Floor Area | AS19: 105 | AT19: 22 | AU19: 15 | AV19: 68 | AW19: 0 | AX19: 0
A20: Mt Isa - Fully Serviced | B20: Caretaker's accommodation | C20: Caretaker's accommodation | D20: Residential uses | E20: RU_1 | F20: 3 or more bedrooms | G20: 14670 | H20: =INDEX(CHARGES,MATCH($D20&$F20,$AQ$2:$AQ$44&$AR$2:$AR$44,0),MATCH(H$1,$AS$1:$AX$1,0)) -> 4108 | I20: =INDEX(CHARGES,MATCH($D20&$F20,$AQ$2:$AQ$44&$AR$2:$AR$44,0),MATCH(I$1,$AS$1:$AX$1,0)) -> 2641 | J20: =INDEX(CHARGES,MATCH($D20&$F20,$AQ$2:$AQ$44&$AR$2:$AR$44,0),MATCH(J$1,$AS$1:$AX$1,0)) -> 293 | K20: =INDEX(CHARGES,MATCH($D20&$F20,$AQ$2:$AQ$44&$AR$2:$AR$44,0),MATCH(K$1,$AS$1:$AX$1,0)) -> 7335 | L20: =INDEX(CHARGES,MATCH($D20&$F20,$AQ$2:$AQ$44&$AR$2:$AR$44,0),MATCH(L$1,$AS$1:$AX$1,0)) -> 293 | O20: =IFERROR(INDEX($B$2:$B$1969, MATCH(0, INDEX(COUNTIF($O$1:O19,$B$2:$B$1969), 0),0)),"") -> Dual occupancy | P20: 32 | Q20: 0 | R20: 0 | S20: 19 | T20: =IFERROR(INDEX($O$2:$O$109,MATCH(SMALL($S$2:$S$109,ROWS(S$2:$S20)),$S$2:$S$109,0),1),"") -> Dual occupancy | V20: =IFERROR(INDEX($A$2:$A$1969, MATCH(0, INDEX(COUNTIF($V$1:V19,$A$2:$A$1969), 0),0)),"") ->  | W20: 0 | X20: 0 | Y20: 1 | AA20: =IFERROR(INDEX($V$2:$V$25,MATCH(SMALL($Z$2:$Z$25,ROWS($Z$2:Z20)),$Z$2:$Z$25,0),1),"") ->  | AQ20: Entertainment | AR20: Impervious Area | AS20: 0 | AT20: 0 | AU20: 0 | AV20: 0 | AW20: 0 | AX20: 5
A21: Mt Isa - Fully Serviced | B21: Car wash | D21: Other uses | E21: NR_1 | F21: Gross Floor Area | G21: 0 | H21: =INDEX(CHARGES,MATCH($D21&$F21,$AQ$2:$AQ$44&$AR$2:$AR$44,0),MATCH(H$1,$AS$1:$AX$1,0)) -> 0 | I21: =INDEX(CHARGES,MATCH($D21&$F21,$AQ$2:$AQ$44&$AR$2:$AR$44,0),MATCH(I$1,$AS$1:$AX$1,0)) -> 0 | J21: =INDEX(CHARGES,MATCH($D21&$F21,$AQ$2:$AQ$44&$AR$2:$AR$44,0),MATCH(J$1,$AS$1:$AX$1,0)) -> 0 | K21: =INDEX(CHARGES,MATCH($D21&$F21,$AQ$2:$AQ$44&$AR$2:$AR$44,0),MATCH(K$1,$AS$1:$AX$1,0)) -> 0 | L21: =INDEX(CHARGES,MATCH($D21&$F21,$AQ$2:$AQ$44&$AR$2:$AR$44,0),MATCH(L$1,$AS$1:$AX$1,0)) -> 0 | O21: =IFERROR(INDEX($B$2:$B$1969, MATCH(0, INDEX(COUNTIF($O$1:O20,$B$2:$B$1969), 0),0)),"") -> Dwelling house | P21: 33 | Q21: 0 | R21: 0 | S21: 20 | T21: =IFERROR(INDEX($O$2:$O$109,MATCH(SMALL($S$2:$S$109,ROWS(S$2:$S21)),$S$2:$S$109,0),1),"") -> Dwelling house | V21: =IFERROR(INDEX($A$2:$A$1969, MATCH(0, INDEX(COUNTIF($V$1:V20,$A$2:$A$1969), 0),0)),"") ->  | W21: 0 | X21: 0 | Y21: 1 | AA21: =IFERROR(INDEX($V$2:$V$25,MATCH(SMALL($Z$2:$Z$25,ROWS($Z$2:Z21)),$Z$2:$Z$25,0),1),"") ->  | AQ21: Essential services | AR21: Gross Floor Area | AS21: 73 | AT21: 15 | AU21: 10 | AV21: 48 | AW21: 0 | AX21: 0
A22: Mt Isa - Fully Serviced | B22: Car wash | D22: Other uses | E22: NR_1 | F22: Impervious Area | G22: 0 | H22: =INDEX(CHARGES,MATCH($D22&$F22,$AQ$2:$AQ$44&$AR$2:$AR$44,0),MATCH(H$1,$AS$1:$AX$1,0)) -> 0 | I22: =INDEX(CHARGES,MATCH($D22&$F22,$AQ$2:$AQ$44&$AR$2:$AR$44,0),MATCH(I$1,$AS$1:$AX$1,0)) -> 0 | J22: =INDEX(CHARGES,MATCH($D22&$F22,$AQ$2:$AQ$44&$AR$2:$AR$44,0),MATCH(J$1,$AS$1:$AX$1,0)) -> 0 | K22: =INDEX(CHARGES,MATCH($D22&$F22,$AQ$2:$AQ$44&$AR$2:$AR$44,0),MATCH(K$1,$AS$1:$AX$1,0)) -> 0 | L22: =INDEX(CHARGES,MATCH($D22&$F22,$AQ$2:$AQ$44&$AR$2:$AR$44,0),MATCH(L$1,$AS$1:$AX$1,0)) -> 0 | O22: =IFERROR(INDEX($B$2:$B$1969, MATCH(0, INDEX(COUNTIF($O$1:O21,$B$2:$B$1969), 0),0)),"") -> Dwelling unit | P22: 34 | Q22: 0 | R22: 0 | S22: 21 | T22: =IFERROR(INDEX($O$2:$O$109,MATCH(SMALL($S$2:$S$109,ROWS(S$2:$S22)),$S$2:$S$109,0),1),"") -> Dwelling unit | V22: =IFERROR(INDEX($A$2:$A$1969, MATCH(0, INDEX(COUNTIF($V$1:V21,$A$2:$A$1969), 0),0)),"") ->  | W22: 0 | X22: 0 | Y22: 1 | AA22: =IFERROR(INDEX($V$2:$V$25,MATCH(SMALL($Z$2:$Z$25,ROWS($Z$2:Z22)),$Z$2:$Z$25,0),1),"") ->  | AQ22: Essential services | AR22: Impervious Area | AS22: 0 | AT22: 0 | AU22: 0 | AV22: 0 | AW22: 0 | AX22: 5
A23: Mt Isa - Fully Serviced | B23: Cemetery | C23: Cemetery | D23: Minor uses | E23: NR_3 | F23: Gross Floor Area | G23: 0 | H23: =INDEX(CHARGES,MATCH($D23&$F23,$AQ$2:$AQ$44&$AR$2:$AR$44,0),MATCH(H$1,$AS$1:$AX$1,0)) -> 0 | I23: =INDEX(CHARGES,MATCH($D23&$F23,$AQ$2:$AQ$44&$AR$2:$AR$44,0),MATCH(I$1,$AS$1:$AX$1,0)) -> 0 | J23: =INDEX(CHARGES,MATCH($D23&$F23,$AQ$2:$AQ$44&$AR$2:$AR$44,0),MATCH(J$1,$AS$1:$AX$1,0)) -> 0 | K23: =INDEX(CHARGES,MATCH($D23&$F23,$AQ$2:$AQ$44&$AR$2:$AR$44,0),MATCH(K$1,$AS$1:$AX$1,0)) -> 0 | L23: =INDEX(CHARGES,MATCH($D23&$F23,$AQ$2:$AQ$44&$AR$2:$AR$44,0),MATCH(L$1,$AS$1:$AX$1,0)) -> 0 | O23: =IFERROR(INDEX($B$2:$B$1969, MATCH(0, INDEX(COUNTIF($O$1:O22,$B$2:$B$1969), 0),0)),"") -> Educational establishment other than an educational establishment for the Flying Start for Queensland Children program | P23: 35 | Q23: 0 | R23: 0 | S23: 22 | T23: =IFERROR(INDEX($O$2:$O$109,MATCH(SMALL($S$2:$S$109,ROWS(S$2:$S23)),$S$2:$S$109,0),1),"") -> Educational establishment other than an educational establishment for the Flying Start for Queensland Children program | V23: =IFERROR(INDEX($A$2:$A$1969, MATCH(0, INDEX(COUNTIF($V$1:V22,$A$2:$A$1969), 0),0)),"") ->  | W23: 0 | X23: 0 | Y23: 1 | AA23: =IFERROR(INDEX($V$2:$V$25,MATCH(SMALL($Z$2:$Z$25,ROWS($Z$2:Z23)),$Z$2:$Z$25,0),1),"") ->  | AQ23: High impact industry or special industry | AR23: Gross Floor Area | AS23: 37 | AT23: 8 | AU23: 5 | AV23: 24 | AW23: 0 | AX23: 0
A24: Mt Isa - Fully Serviced | B24: Child care centre | C24: Childcare centre | D24: Educational Facility | E24: NR_1 | F24: Gross Floor Area | G24: 73 | H24: =INDEX(CHARGES,MATCH($D24&$F24,$AQ$2:$AQ$44&$AR$2:$AR$44,0),MATCH(H$1,$AS$1:$AX$1,0)) -> 15 | I24: =INDEX(CHARGES,MATCH($D24&$F24,$AQ$2:$AQ$44&$AR$2:$AR$44,0),MATCH(I$1,$AS$1:$AX$1,0)) -> 10 | J24: =INDEX(CHARGES,MATCH($D24&$F24,$AQ$2:$AQ$44&$AR$2:$AR$44,0),MATCH(J$1,$AS$1:$AX$1,0)) -> 0 | K24: =INDEX(CHARGES,MATCH($D24&$F24,$AQ$2:$AQ$44&$AR$2:$AR$44,0),MATCH(K$1,$AS$1:$AX$1,0)) -> 48 | L24: =INDEX(CHARGES,MATCH($D24&$F24,$AQ$2:$AQ$44&$AR$2:$AR$44,0),MATCH(L$1,$AS$1:$AX$1,0)) -> 0 | O24: =IFERROR(INDEX($B$2:$B$1969, MATCH(0, INDEX(COUNTIF($O$1:O23,$B$2:$B$1969), 0),0)),"") -> Educational establishment that is an educational establishment for the Flying Start for Queensland Children program | P24: 36 | Q24: 0 | R24: 0 | S24: 23 | T24: =IFERROR(INDEX($O$2:$O$109,MATCH(SMALL($S$2:$S$109,ROWS(S$2:$S24)),$S$2:$S$109,0),1),"") -> Educational establishment that is an educational establishment for the Flying Start for Queensland Children program | V24: =IFERROR(INDEX($A$2:$A$1969, MATCH(0, INDEX(COUNTIF($V$1:V23,$A$2:$A$1969), 0),0)),"") ->  | W24: 0 | X24: 0 | Y24: 1 | AA24: =IFERROR(INDEX($V$2:$V$25,MATCH(SMALL($Z$2:$Z$25,ROWS($Z$2:Z24)),$Z$2:$Z$25,0),1),"") ->  | AQ24: High impact industry or special industry | AR24: Impervious Area | AS24: 0 | AT24: 0 | AU24: 0 | AV24: 0 | AW24: 0 | AX24: 5
A25: Mt Isa - Fully Serviced | B25: Child care centre | C25: Childcare centre | D25: Educational Facility | E25: NR_1 | F25: Impervious Area | G25: 5 | H25: =INDEX(CHARGES,MATCH($D25&$F25,$AQ$2:$AQ$44&$AR$2:$AR$44,0),MATCH(H$1,$AS$1:$AX$1,0)) -> 0 | I25: =INDEX(CHARGES,MATCH($D25&$F25,$AQ$2:$AQ$44&$AR$2:$AR$44,0),MATCH(I$1,$AS$1:$AX$1,0)) -> 0 | J25: =INDEX(CHARGES,MATCH($D25&$F25,$AQ$2:$AQ$44&$AR$2:$AR$44,0),MATCH(J$1,$AS$1:$AX$1,0)) -> 5 | K25: =INDEX(CHARGES,MATCH($D25&$F25,$AQ$2:$AQ$44&$AR$2:$AR$44,0),MATCH(K$1,$AS$1:$AX$1,0)) -> 0 | L25: =INDEX(CHARGES,MATCH($D25&$F25,$AQ$2:$AQ$44&$AR$2:$AR$44,0),MATCH(L$1,$AS$1:$AX$1,0)) -> 0 | O25: =IFERROR(INDEX($B$2:$B$1969, MATCH(0, INDEX(COUNTIF($O$1:O24,$B$2:$B$1969), 0),0)),"") -> Emergency services | P25: 37 | Q25: 0 | R25: 0 | S25: 24 | T25: =IFERROR(INDEX($O$2:$O$109,MATCH(SMALL($S$2:$S$109,ROWS(S$2:$S25)),$S$2:$S$109,0),1),"") -> Emergency services | V25: =IFERROR(INDEX($A$2:$A$1969, MATCH(0, INDEX(COUNTIF($V$1:V24,$A$2:$A$1969), 0),0)),"") ->  | W25: 0 | X25: 0 | Y25: 1 | AA25: =IFERROR(INDEX($V$2:$V$25,MATCH(SMALL($Z$2:$Z$25,ROWS($Z$2:Z25)),$Z$2:$Z$25,0),1),"") ->  | AQ25: High impact rural | AR25: Gross Floor Area | AS25: 10 | AT25: 2 | AU25: 1 | AV25: 7 | AW25: 0 | AX25: 0
A26: Mt Isa - Fully Serviced | B26: Community residence | C26: Community residence | D26: Accommodation (long-term) | E26: RU_2 | F26: bedroom that is not part of a suite | G26: 10478 | H26: =INDEX(CHARGES,MATCH($D26&$F26,$AQ$2:$AQ$44&$AR$2:$AR$44,0),MATCH(H$1,$AS$1:$AX$1,0)) -> 2934 | I26: =INDEX(CHARGES,MATCH($D26&$F26,$AQ$2:$AQ$44&$AR$2:$AR$44,0),MATCH(I$1,$AS$1:$AX$1,0)) -> 1886 | J26: =INDEX(CHARGES,MATCH($D26&$F26,$AQ$2:$AQ$44&$AR$2:$AR$44,0),MATCH(J$1,$AS$1:$AX$1,0)) -> 209 | K26: =INDEX(CHARGES,MATCH($D26&$F26,$AQ$2:$AQ$44&$AR$2:$AR$44,0),MATCH(K$1,$AS$1:$AX$1,0)) -> 5239 | L26: =INDEX(CHARGES,MATCH($D26&$F26,$AQ$2:$AQ$44&$AR$2:$AR$44,0),MATCH(L$1,$AS$1:$AX$1,0)) -> 210 | O26: =IFERROR(INDEX($B$2:$B$1969, MATCH(0, INDEX(COUNTIF($O$1:O25,$B$2:$B$1969), 0),0)),"") -> Environment facility | P26: 38 | Q26: 0 | R26: 0 | S26: 25 | T26: =IFERROR(INDEX($O$2:$O$109,MATCH(SMALL($S$2:$S$109,ROWS(S$2:$S26)),$S$2:$S$109,0),1),"") -> Environment facility | W26: =COUNTIF(W2:W25,0) -> 16 | X26: =SUM(X2:X25) -> 0 | Y26: =SUM(Y2:Y25) -> 17 | AQ26: Indoor sport and recreation | AR26: Gross Floor Area - court area | AS26: 10 | AT26: 2 | AU26: 1 | AV26: 7 | AW26: 0 | AX26: 0
A27: Mt Isa - Fully Serviced | B27: Community residence | C27: Community residence | D27: Accommodation (long-term) | E27: RU_2 | F27: 2 or less bedrooms | G27: 10478 | H27: =INDEX(CHARGES,MATCH($D27&$F27,$AQ$2:$AQ$44&$AR$2:$AR$44,0),MATCH(H$1,$AS$1:$AX$1,0)) -> 2934 | I27: =INDEX(CHARGES,MATCH($D27&$F27,$AQ$2:$AQ$44&$AR$2:$AR$44,0),MATCH(I$1,$AS$1:$AX$1,0)) -> 1886 | J27: =INDEX(CHARGES,MATCH($D27&$F27,$AQ$2:$AQ$44&$AR$2:$AR$44,0),MATCH(J$1,$AS$1:$AX$1,0)) -> 209 | K27: =INDEX(CHARGES,MATCH($D27&$F27,$AQ$2:$AQ$44&$AR$2:$AR$44,0),MATCH(K$1,$AS$1:$AX$1,0)) -> 5239 | L27: =INDEX(CHARGES,MATCH($D27&$F27,$AQ$2:$AQ$44&$AR$2:$AR$44,0),MATCH(L$1,$AS$1:$AX$1,0)) -> 210 | O27: =IFERROR(INDEX($B$2:$B$1969, MATCH(0, INDEX(COUNTIF($O$1:O26,$B$2:$B$1969), 0),0)),"") -> Extractive industry | P27: 39 | Q27: 0 | R27: 0 | S27: 26 | T27: =IFERROR(INDEX($O$2:$O$109,MATCH(SMALL($S$2:$S$109,ROWS(S$2:$S27)),$S$2:$S$109,0),1),"") -> Extractive industry | AQ27: Indoor sport and recreation | AR27: Gross Floor Area - not court area | AS27: 105 | AT27: 22 | AU27: 15 | AV27: 68 | AW27: 0 | AX27: 0
A28: Mt Isa - Fully Serviced | B28: Community residence | C28: Community residence | D28: Accommodation (long-term) | E28: RU_2 | F28: 3 or more bedrooms | G28: 14670 | H28: =INDEX(CHARGES,MATCH($D28&$F28,$AQ$2:$AQ$44&$AR$2:$AR$44,0),MATCH(H$1,$AS$1:$AX$1,0)) -> 4108 | I28: =INDEX(CHARGES,MATCH($D28&$F28,$AQ$2:$AQ$44&$AR$2:$AR$44,0),MATCH(I$1,$AS$1:$AX$1,0)) -> 2641 | J28: =INDEX(CHARGES,MATCH($D28&$F28,$AQ$2:$AQ$44&$AR$2:$AR$44,0),MATCH(J$1,$AS$1:$AX$1,0)) -> 293 | K28: =INDEX(CHARGES,MATCH($D28&$F28,$AQ$2:$AQ$44&$AR$2:$AR$44,0),MATCH(K$1,$AS$1:$AX$1,0)) -> 7335 | L28: =INDEX(CHARGES,MATCH($D28&$F28,$AQ$2:$AQ$44&$AR$2:$AR$44,0),MATCH(L$1,$AS$1:$AX$1,0)) -> 293 | O28: =IFERROR(INDEX($B$2:$B$1969, MATCH(0, INDEX(COUNTIF($O$1:O27,$B$2:$B$1969), 0),0)),"") -> Food and drink outlet | P28: =COUNTIF($O$2:$O$109,"<="&O28) -> 40 | Q28: =IF(O28=0,0,--ISNUMBER(O28)) -> 0 | R28: =IF(O28=0,1,IF(O28="",1,0)) -> 0 | S28: 27 | T28: =IFERROR(INDEX($O$2:$O$109,MATCH(SMALL($S$2:$S$109,ROWS(S$2:$S28)),$S$2:$S$109,0),1),"") -> Food and drink outlet | AQ28: Indoor sport and recreation | AR28: Impervious Area | AS28: 0 | AT28: 0 | AU28: 0 | AV28: 0 | AW28: 0 | AX28: 5
A29: Mt Isa - Fully Serviced | B29: Community use | C29: Community use | D29: Places of assembly | E29: NR_1 | F29: Gross Floor Area | G29: 37 | H29: =INDEX(CHARGES,MATCH($D29&$F29,$AQ$2:$AQ$44&$AR$2:$AR$44,0),MATCH(H$1,$AS$1:$AX$1,0)) -> 8 | I29: =INDEX(CHARGES,MATCH($D29&$F29,$AQ$2:$AQ$44&$AR$2:$AR$44,0),MATCH(I$1,$AS$1:$AX$1,0)) -> 5 | J29: =INDEX(CHARGES,MATCH($D29&$F29,$AQ$2:$AQ$44&$AR$2:$AR$44,0),MATCH(J$1,$AS$1:$AX$1,0)) -> 0 | K29: =INDEX(CHARGES,MATCH($D29&$F29,$AQ$2:$AQ$44&$AR$2:$AR$44,0),MATCH(K$1,$AS$1:$AX$1,0)) -> 24 | L29: =INDEX(CHARGES,MATCH($D29&$F29,$AQ$2:$AQ$44&$AR$2:$AR$44,0),MATCH(L$1,$AS$1:$AX$1,0)) -> 0 | O29: =IFERROR(INDEX($B$2:$B$1969, MATCH(0, INDEX(COUNTIF($O$1:O28,$B$2:$B$1969), 0),0)),"") -> Office | P29: 66 | Q29: 0 | R29: 0 | S29: 53 | T29: =IFERROR(INDEX($O$2:$O$109,MATCH(SMALL($S$2:$S$109,ROWS(S$2:$S29)),$S$2:$S$109,0),1),"") -> Function facility | AQ29: Low impact rural | AR29: Gross Floor Area | AS29: 0 | AT29: 0 | AU29: 0 | AV29: 0 | AW29: 0 | AX29: 0
A30: Mt Isa - Fully Serviced | B30: Community use | C30: Community use | D30: Places of assembly | E30: NR_1 | F30: Impervious Area | G30: 5 | H30: =INDEX(CHARGES,MATCH($D30&$F30,$AQ$2:$AQ$44&$AR$2:$AR$44,0),MATCH(H$1,$AS$1:$AX$1,0)) -> 0 | I30: =INDEX(CHARGES,MATCH($D30&$F30,$AQ$2:$AQ$44&$AR$2:$AR$44,0),MATCH(I$1,$AS$1:$AX$1,0)) -> 0 | J30: =INDEX(CHARGES,MATCH($D30&$F30,$AQ$2:$AQ$44&$AR$2:$AR$44,0),MATCH(J$1,$AS$1:$AX$1,0)) -> 5 | K30: =INDEX(CHARGES,MATCH($D30&$F30,$AQ$2:$AQ$44&$AR$2:$AR$44,0),MATCH(K$1,$AS$1:$AX$1,0)) -> 0 | L30: =INDEX(CHARGES,MATCH($D30&$F30,$AQ$2:$AQ$44&$AR$2:$AR$44,0),MATCH(L$1,$AS$1:$AX$1,0)) -> 0 | O30: =IFERROR(INDEX($B$2:$B$1969, MATCH(0, INDEX(COUNTIF($O$1:O29,$B$2:$B$1969), 0),0)),"") -> Outdoor sales | P30: 67 | Q30: 0 | R30: 0 | S30: 54 | T30: =IFERROR(INDEX($O$2:$O$109,MATCH(SMALL($S$2:$S$109,ROWS(S$2:$S30)),$S$2:$S$109,0),1),"") -> Funeral parlour | AQ30: Minor uses | AR30: Gross Floor Area | AS30: 0 | AT30: 0 | AU30: 0 | AV30: 0 | AW30: 0 | AX30: 0
A31: Mt Isa - Fully Serviced | B31: Crematorium | C31: Crematorium | D31: Other uses | E31: NR_1 | F31: Gross Floor Area | G31: 0 | H31: =INDEX(CHARGES,MATCH($D31&$F31,$AQ$2:$AQ$44&$AR$2:$AR$44,0),MATCH(H$1,$AS$1:$AX$1,0)) -> 0 | I31: =INDEX(CHARGES,MATCH($D31&$F31,$AQ$2:$AQ$44&$AR$2:$AR$44,0),MATCH(I$1,$AS$1:$AX$1,0)) -> 0 | J31: =INDEX(CHARGES,MATCH($D31&$F31,$AQ$2:$AQ$44&$AR$2:$AR$44,0),MATCH(J$1,$AS$1:$AX$1,0)) -> 0 | K31: =INDEX(CHARGES,MATCH($D31&$F31,$AQ$2:$AQ$44&$AR$2:$AR$44,0),MATCH(K$1,$AS$1:$AX$1,0)) -> 0 | L31: =INDEX(CHARGES,MATCH($D31&$F31,$AQ$2:$AQ$44&$AR$2:$AR$44,0),MATCH(L$1,$AS$1:$AX$1,0)) -> 0 | O31: =IFERROR(INDEX($B$2:$B$1969, MATCH(0, INDEX(COUNTIF($O$1:O30,$B$2:$B$1969), 0),0)),"") -> Outdoor sport and recreation | P31: 68 | Q31: 0 | R31: 0 | S31: 55 | T31: =IFERROR(INDEX($O$2:$O$109,MATCH(SMALL($S$2:$S$109,ROWS(S$2:$S31)),$S$2:$S$109,0),1),"") -> Garden centre | AQ31: Other industry | AR31: Gross Floor Area | AS31: 26 | AT31: 5 | AU31: 4 | AV31: 17 | AW31: 0 | AX31: 0
A32: Mt Isa - Fully Serviced | B32: Crematorium | C32: Crematorium | D32: Other uses | E32: NR_1 | F32: Impervious Area | G32: 0 | H32: =INDEX(CHARGES,MATCH($D32&$F32,$AQ$2:$AQ$44&$AR$2:$AR$44,0),MATCH(H$1,$AS$1:$AX$1,0)) -> 0 | I32: =INDEX(CHARGES,MATCH($D32&$F32,$AQ$2:$AQ$44&$AR$2:$AR$44,0),MATCH(I$1,$AS$1:$AX$1,0)) -> 0 | J32: =INDEX(CHARGES,MATCH($D32&$F32,$AQ$2:$AQ$44&$AR$2:$AR$44,0),MATCH(J$1,$AS$1:$AX$1,0)) -> 0 | K32: =INDEX(CHARGES,MATCH($D32&$F32,$AQ$2:$AQ$44&$AR$2:$AR$44,0),MATCH(K$1,$AS$1:$AX$1,0)) -> 0 | L32: =INDEX(CHARGES,MATCH($D32&$F32,$AQ$2:$AQ$44&$AR$2:$AR$44,0),MATCH(L$1,$AS$1:$AX$1,0)) -> 0 | O32: =IFERROR(INDEX($B$2:$B$1969, MATCH(0, INDEX(COUNTIF($O$1:O31,$B$2:$B$1969), 0),0)),"") -> Outstation | P32: 69 | Q32: 0 | R32: 0 | S32: 56 | T32: =IFERROR(INDEX($O$2:$O$109,MATCH(SMALL($S$2:$S$109,ROWS(S$2:$S32)),$S$2:$S$109,0),1),"") -> Hardware and trade supplies | AQ32: Other industry | AR32: Impervious Area | AS32: 0 | AT32: 0 | AU32: 0 | AV32: 0 | AW32: 0 | AX32: 5
A33: Mt Isa - Fully Serviced | B33: Cropping | C33: Cropping | D33: Low impact rural | E33: NR_3 | F33: Gross Floor Area | G33: 0 | H33: =INDEX(CHARGES,MATCH($D33&$F33,$AQ$2:$AQ$44&$AR$2:$AR$44,0),MATCH(H$1,$AS$1:$AX$1,0)) -> 0 | I33: =INDEX(CHARGES,MATCH($D33&$F33,$AQ$2:$AQ$44&$AR$2:$AR$44,0),MATCH(I$1,$AS$1:$AX$1,0)) -> 0 | J33: =INDEX(CHARGES,MATCH($D33&$F33,$AQ$2:$AQ$44&$AR$2:$AR$44,0),MATCH(J$1,$AS$1:$AX$1,0)) -> 0 | K33: =INDEX(CHARGES,MATCH($D33&$F33,$AQ$2:$AQ$44&$AR$2:$AR$44,0),MATCH(K$1,$AS$1:$AX$1,0)) -> 0 | L33: =INDEX(CHARGES,MATCH($D33&$F33,$AQ$2:$AQ$44&$AR$2:$AR$44,0),MATCH(L$1,$AS$1:$AX$1,0)) -> 0 | O33: =IFERROR(INDEX($B$2:$B$1969, MATCH(0, INDEX(COUNTIF($O$1:O32,$B$2:$B$1969), 0),0)),"") -> Park | P33: 70 | Q33: 0 | R33: 0 | S33: 57 | T33: =IFERROR(INDEX($O$2:$O$109,MATCH(SMALL($S$2:$S$109,ROWS(S$2:$S33)),$S$2:$S$109,0),1),"") -> Health care services | AQ33: Other uses | AR33: Gross Floor Area | AS33: 0 | AT33: 0 | AU33: 0 | AV33: 0 | AW33: 0 | AX33: 0
A34: Mt Isa - Fully Serviced | B34: Detention facility | C34: Correctional facility | D34: Essential services | E34: NR_1 | F34: Gross Floor Area | G34: 73 | H34: =INDEX(CHARGES,MATCH($D34&$F34,$AQ$2:$AQ$44&$AR$2:$AR$44,0),MATCH(H$1,$AS$1:$AX$1,0)) -> 15 | I34: =INDEX(CHARGES,MATCH($D34&$F34,$AQ$2:$AQ$44&$AR$2:$AR$44,0),MATCH(I$1,$AS$1:$AX$1,0)) -> 10 | J34: =INDEX(CHARGES,MATCH($D34&$F34,$AQ$2:$AQ$44&$AR$2:$AR$44,0),MATCH(J$1,$AS$1:$AX$1,0)) -> 0 | K34: =INDEX(CHARGES,MATCH($D34&$F34,$AQ$2:$AQ$44&$AR$2:$AR$44,0),MATCH(K$1,$AS$1:$AX$1,0)) -> 48 | L34: =INDEX(CHARGES,MATCH($D34&$F34,$AQ$2:$AQ$44&$AR$2:$AR$44,0),MATCH(L$1,$AS$1:$AX$1,0)) -> 0 | O34: =IFERROR(INDEX($B$2:$B$1969, MATCH(0, INDEX(COUNTIF($O$1:O33,$B$2:$B$1969), 0),0)),"") -> Parking station | P34: 71 | Q34: 0 | R34: 0 | S34: 58 | T34: =IFERROR(INDEX($O$2:$O$109,MATCH(SMALL($S$2:$S$109,ROWS(S$2:$S34)),$S$2:$S$109,0),1),"") -> High impact industry | AQ34: Other uses | AR34: Gross Floor Area - court area | AS34: 0 | AT34: 0 | AU34: 0 | AV34: 0 | AW34: 0 | AX34: 0
A35: Mt Isa - Fully Serviced | B35: Detention facility | C35: Correctional facility | D35: Essential services | E35: NR_1 | F35: Impervious Area | G35: 5 | H35: =INDEX(CHARGES,MATCH($D35&$F35,$AQ$2:$AQ$44&$AR$2:$AR$44,0),MATCH(H$1,$AS$1:$AX$1,0)) -> 0 | I35: =INDEX(CHARGES,MATCH($D35&$F35,$AQ$2:$AQ$44&$AR$2:$AR$44,0),MATCH(I$1,$AS$1:$AX$1,0)) -> 0 | J35: =INDEX(CHARGES,MATCH($D35&$F35,$AQ$2:$AQ$44&$AR$2:$AR$44,0),MATCH(J$1,$AS$1:$AX$1,0)) -> 5 | K35: =INDEX(CHARGES,MATCH($D35&$F35,$AQ$2:$AQ$44&$AR$2:$AR$44,0),MATCH(K$1,$AS$1:$AX$1,0)) -> 0 | L35: =INDEX(CHARGES,MATCH($D35&$F35,$AQ$2:$AQ$44&$AR$2:$AR$44,0),MATCH(L$1,$AS$1:$AX$1,0)) -> 0 | O35: =IFERROR(INDEX($B$2:$B$1969, MATCH(0, INDEX(COUNTIF($O$1:O34,$B$2:$B$1969), 0),0)),"") -> Permanent plantation | P35: 72 | Q35: 0 | R35: 0 | S35: 59 | T35: =IFERROR(INDEX($O$2:$O$109,MATCH(SMALL($S$2:$S$109,ROWS(S$2:$S35)),$S$2:$S$109,0),1),"") -> Home based business | AQ35: Other uses | AR35: Gross Floor Area - not court area | AS35: 0 | AT35: 0 | AU35: 0 | AV35: 0 | AW35: 0 | AX35: 0
A36: Mt Isa - Fully Serviced | B36: Dual occupancy | C36: Dual occupancy | D36: Residential uses | E36: RU_1 | F36: 2 or less bedrooms | G36: 10478 | H36: =INDEX(CHARGES,MATCH($D36&$F36,$AQ$2:$AQ$44&$AR$2:$AR$44,0),MATCH(H$1,$AS$1:$AX$1,0)) -> 2934 | I36: =INDEX(CHARGES,MATCH($D36&$F36,$AQ$2:$AQ$44&$AR$2:$AR$44,0),MATCH(I$1,$AS$1:$AX$1,0)) -> 1886 | J36: =INDEX(CHARGES,MATCH($D36&$F36,$AQ$2:$AQ$44&$AR$2:$AR$44,0),MATCH(J$1,$AS$1:$AX$1,0)) -> 209 | K36: =INDEX(CHARGES,MATCH($D36&$F36,$AQ$2:$AQ$44&$AR$2:$AR$44,0),MATCH(K$1,$AS$1:$AX$1,0)) -> 5239 | L36: =INDEX(CHARGES,MATCH($D36&$F36,$AQ$2:$AQ$44&$AR$2:$AR$44,0),MATCH(L$1,$AS$1:$AX$1,0)) -> 210 | O36: =IFERROR(INDEX($B$2:$B$1969, MATCH(0, INDEX(COUNTIF($O$1:O35,$B$2:$B$1969), 0),0)),"") -> Function facility | P36: 41 | Q36: 0 | R36: 0 | S36: 28 | T36: =IFERROR(INDEX($O$2:$O$109,MATCH(SMALL($S$2:$S$109,ROWS(S$2:$S36)),$S$2:$S$109,0),1),"") -> Hospital | AQ36: Other uses | AR36: Impervious Area | AS36: 0 | AT36: 0 | AU36: 0 | AV36: 0 | AW36: 0 | AX36: 0
A37: Mt Isa - Fully Serviced | B37: Dual occupancy | C37: Dual occupancy | D37: Residential uses | E37: RU_1 | F37: 3 or more bedrooms | G37: 14670 | H37: =INDEX(CHARGES,MATCH($D37&$F37,$AQ$2:$AQ$44&$AR$2:$AR$44,0),MATCH(H$1,$AS$1:$AX$1,0)) -> 4108 | I37: =INDEX(CHARGES,MATCH($D37&$F37,$AQ$2:$AQ$44&$AR$2:$AR$44,0),MATCH(I$1,$AS$1:$AX$1,0)) -> 2641 | J37: =INDEX(CHARGES,MATCH($D37&$F37,$AQ$2:$AQ$44&$AR$2:$AR$44,0),MATCH(J$1,$AS$1:$AX$1,0)) -> 293 | K37: =INDEX(CHARGES,MATCH($D37&$F37,$AQ$2:$AQ$44&$AR$2:$AR$44,0),MATCH(K$1,$AS$1:$AX$1,0)) -> 7335 | L37: =INDEX(CHARGES,MATCH($D37&$F37,$AQ$2:$AQ$44&$AR$2:$AR$44,0),MATCH(L$1,$AS$1:$AX$1,0)) -> 293 | O37: =IFERROR(INDEX($B$2:$B$1969, MATCH(0, INDEX(COUNTIF($O$1:O36,$B$2:$B$1969), 0),0)),"") -> Funeral parlour | P37: 42 | Q37: 0 | R37: 0 | S37: 29 | T37: =IFERROR(INDEX($O$2:$O$109,MATCH(SMALL($S$2:$S$109,ROWS(S$2:$S37)),$S$2:$S$109,0),1),"") -> Hotel - Accommodation component | AQ37: Places of assembly | AR37: Gross Floor Area | AS37: 37 | AT37: 8 | AU37: 5 | AV37: 24 | AW37: 0 | AX37: 0
A38: Mt Isa - Fully Serviced | B38: Dwelling house | C38: Dwelling house | D38: Residential uses | E38: RU_1 | F38: 2 or less bedrooms | G38: 10478 | H38: =INDEX(CHARGES,MATCH($D38&$F38,$AQ$2:$AQ$44&$AR$2:$AR$44,0),MATCH(H$1,$AS$1:$AX$1,0)) -> 2934 | I38: =INDEX(CHARGES,MATCH($D38&$F38,$AQ$2:$AQ$44&$AR$2:$AR$44,0),MATCH(I$1,$AS$1:$AX$1,0)) -> 1886 | J38: =INDEX(CHARGES,MATCH($D38&$F38,$AQ$2:$AQ$44&$AR$2:$AR$44,0),MATCH(J$1,$AS$1:$AX$1,0)) -> 209 | K38: =INDEX(CHARGES,MATCH($D38&$F38,$AQ$2:$AQ$44&$AR$2:$AR$44,0),MATCH(K$1,$AS$1:$AX$1,0)) -> 5239 | L38: =INDEX(CHARGES,MATCH($D38&$F38,$AQ$2:$AQ$44&$AR$2:$AR$44,0),MATCH(L$1,$AS$1:$AX$1,0)) -> 210 | O38: =IFERROR(INDEX($B$2:$B$1969, MATCH(0, INDEX(COUNTIF($O$1:O37,$B$2:$B$1969), 0),0)),"") -> Garden centre | P38: 43 | Q38: 0 | R38: 0 | S38: 30 | T38: =IFERROR(INDEX($O$2:$O$109,MATCH(SMALL($S$2:$S$109,ROWS(S$2:$S38)),$S$2:$S$109,0),1),"") -> Hotel - Entertainment component | AQ38: Places of assembly | AR38: Impervious Area | AS38: 0 | AT38: 0 | AU38: 0 | AV38: 0 | AW38: 0 | AX38: 5
A39: Mt Isa - Fully Serviced | B39: Dwelling house | C39: Dwelling house | D39: Residential uses | E39: RU_1 | F39: 3 or more bedrooms | G39: 14670 | H39: =INDEX(CHARGES,MATCH($D39&$F39,$AQ$2:$AQ$44&$AR$2:$AR$44,0),MATCH(H$1,$AS$1:$AX$1,0)) -> 4108 | I39: =INDEX(CHARGES,MATCH($D39&$F39,$AQ$2:$AQ$44&$AR$2:$AR$44,0),MATCH(I$1,$AS$1:$AX$1,0)) -> 2641 | J39: =INDEX(CHARGES,MATCH($D39&$F39,$AQ$2:$AQ$44&$AR$2:$AR$44,0),MATCH(J$1,$AS$1:$AX$1,0)) -> 293 | K39: =INDEX(CHARGES,MATCH($D39&$F39,$AQ$2:$AQ$44&$AR$2:$AR$44,0),MATCH(K$1,$AS$1:$AX$1,0)) -> 7335 | L39: =INDEX(CHARGES,MATCH($D39&$F39,$AQ$2:$AQ$44&$AR$2:$AR$44,0),MATCH(L$1,$AS$1:$AX$1,0)) -> 293 | O39: =IFERROR(INDEX($B$2:$B$1969, MATCH(0, INDEX(COUNTIF($O$1:O38,$B$2:$B$1969), 0),0)),"") -> Hardware and trade supplies | P39: 44 | Q39: 0 | R39: 0 | S39: 31 | T39: =IFERROR(INDEX($O$2:$O$109,MATCH(SMALL($S$2:$S$109,ROWS(S$2:$S39)),$S$2:$S$109,0),1),"") -> Indoor sport and recreation | AQ39: Residential uses | AR39: 1 bedroom | AS39: 10478 | AT39: 2934 | AU39: 1886 | AV39: 5239 | AW39: 210 | AX39: 209
A40: Mt Isa - Fully Serviced | B40: Dwelling unit | C40: Multiple dwelling | D40: Residential uses | E40: RU_1 | F40: 2 or less bedrooms | G40: 10478 | H40: =INDEX(CHARGES,MATCH($D40&$F40,$AQ$2:$AQ$44&$AR$2:$AR$44,0),MATCH(H$1,$AS$1:$AX$1,0)) -> 2934 | I40: =INDEX(CHARGES,MATCH($D40&$F40,$AQ$2:$AQ$44&$AR$2:$AR$44,0),MATCH(I$1,$AS$1:$AX$1,0)) -> 1886 | J40: =INDEX(CHARGES,MATCH($D40&$F40,$AQ$2:$AQ$44&$AR$2:$AR$44,0),MATCH(J$1,$AS$1:$AX$1,0)) -> 209 | K40: =INDEX(CHARGES,MATCH($D40&$F40,$AQ$2:$AQ$44&$AR$2:$AR$44,0),MATCH(K$1,$AS$1:$AX$1,0)) -> 5239 | L40: =INDEX(CHARGES,MATCH($D40&$F40,$AQ$2:$AQ$44&$AR$2:$AR$44,0),MATCH(L$1,$AS$1:$AX$1,0)) -> 210 | O40: =IFERROR(INDEX($B$2:$B$1969, MATCH(0, INDEX(COUNTIF($O$1:O39,$B$2:$B$1969), 0),0)),"") -> Health care services | P40: 45 | Q40: 0 | R40: 0 | S40: 32 | T40: =IFERROR(INDEX($O$2:$O$109,MATCH(SMALL($S$2:$S$109,ROWS(S$2:$S40)),$S$2:$S$109,0),1),"") -> Intensive animal industry | AQ40: Residential uses | AR40: 2 bedrooms | AS40: 10478 | AT40: 2934 | AU40: 1886 | AV40: 5239 | AW40: 210 | AX40: 209
A41: Mt Isa - Fully Serviced | B41: Dwelling unit | C41: Multiple dwelling | D41: Residential uses | E41: RU_1 | F41: 3 or more bedrooms | G41: 14670 | H41: =INDEX(CHARGES,MATCH($D41&$F41,$AQ$2:$AQ$44&$AR$2:$AR$44,0),MATCH(H$1,$AS$1:$AX$1,0)) -> 4108 | I41: =INDEX(CHARGES,MATCH($D41&$F41,$AQ$2:$AQ$44&$AR$2:$AR$44,0),MATCH(I$1,$AS$1:$AX$1,0)) -> 2641 | J41: =INDEX(CHARGES,MATCH($D41&$F41,$AQ$2:$AQ$44&$AR$2:$AR$44,0),MATCH(J$1,$AS$1:$AX$1,0)) -> 293 | K41: =INDEX(CHARGES,MATCH($D41&$F41,$AQ$2:$AQ$44&$AR$2:$AR$44,0),MATCH(K$1,$AS$1:$AX$1,0)) -> 7335 | L41: =INDEX(CHARGES,MATCH($D41&$F41,$AQ$2:$AQ$44&$AR$2:$AR$44,0),MATCH(L$1,$AS$1:$AX$1,0)) -> 293 | O41: =IFERROR(INDEX($B$2:$B$1969, MATCH(0, INDEX(COUNTIF($O$1:O40,$B$2:$B$1969), 0),0)),"") -> High impact industry | P41: 46 | Q41: 0 | R41: 0 | S41: 33 | T41: =IFERROR(INDEX($O$2:$O$109,MATCH(SMALL($S$2:$S$109,ROWS(S$2:$S41)),$S$2:$S$109,0),1),"") -> Intensive horticulture | AQ41: Residential uses | AR41: 2 or less bedrooms | AS41: 10478 | AT41: 2934 | AU41: 1886 | AV41: 5239 | AW41: 210 | AX41: 209
A42: Mt Isa - Fully Serviced | B42: Educational establishment other than an educational establishment for the Flying Start for Queensland Children program | C42: Educational establishment other than an educational establishment for the Flying Start for Queensland Children program | D42: Educational Facility | E42: NR_1 | F42: Gross Floor Area | G42: 73 | H42: =INDEX(CHARGES,MATCH($D42&$F42,$AQ$2:$AQ$44&$AR$2:$AR$44,0),MATCH(H$1,$AS$1:$AX$1,0)) -> 15 | I42: =INDEX(CHARGES,MATCH($D42&$F42,$AQ$2:$AQ$44&$AR$2:$AR$44,0),MATCH(I$1,$AS$1:$AX$1,0)) -> 10 | J42: =INDEX(CHARGES,MATCH($D42&$F42,$AQ$2:$AQ$44&$AR$2:$AR$44,0),MATCH(J$1,$AS$1:$AX$1,0)) -> 0 | K42: =INDEX(CHARGES,MATCH($D42&$F42,$AQ$2:$AQ$44&$AR$2:$AR$44,0),MATCH(K$1,$AS$1:$AX$1,0)) -> 48 | L42: =INDEX(CHARGES,MATCH($D42&$F42,$AQ$2:$AQ$44&$AR$2:$AR$44,0),MATCH(L$1,$AS$1:$AX$1,0)) -> 0 | O42: =IFERROR(INDEX($B$2:$B$1969, MATCH(0, INDEX(COUNTIF($O$1:O41,$B$2:$B$1969), 0),0)),"") -> Home based business | P42: 47 | Q42: 0 | R42: 0 | S42: 34 | T42: =IFERROR(INDEX($O$2:$O$109,MATCH(SMALL($S$2:$S$109,ROWS(S$2:$S42)),$S$2:$S$109,0),1),"") -> Landing | AQ42: Residential uses | AR42: 3 or more bedrooms | AS42: 14670 | AT42: 4108 | AU42: 2641 | AV42: 7335 | AW42: 293 | AX42: 293
A43: Mt Isa - Fully Serviced | B43: Educational establishment other than an educational establishment for the Flying Start for Queensland Children program | C43: Educational establishment other than an educational establishment for the Flying Start for Queensland Children program | D43: Educational Facility | E43: NR_1 | F43: Impervious Area | G43: 5 | H43: =INDEX(CHARGES,MATCH($D43&$F43,$AQ$2:$AQ$44&$AR$2:$AR$44,0),MATCH(H$1,$AS$1:$AX$1,0)) -> 0 | I43: =INDEX(CHARGES,MATCH($D43&$F43,$AQ$2:$AQ$44&$AR$2:$AR$44,0),MATCH(I$1,$AS$1:$AX$1,0)) -> 0 | J43: =INDEX(CHARGES,MATCH($D43&$F43,$AQ$2:$AQ$44&$AR$2:$AR$44,0),MATCH(J$1,$AS$1:$AX$1,0)) -> 5 | K43: =INDEX(CHARGES,MATCH($D43&$F43,$AQ$2:$AQ$44&$AR$2:$AR$44,0),MATCH(K$1,$AS$1:$AX$1,0)) -> 0 | L43: =INDEX(CHARGES,MATCH($D43&$F43,$AQ$2:$AQ$44&$AR$2:$AR$44,0),MATCH(L$1,$AS$1:$AX$1,0)) -> 0 | O43: =IFERROR(INDEX($B$2:$B$1969, MATCH(0, INDEX(COUNTIF($O$1:O42,$B$2:$B$1969), 0),0)),"") -> Hospital | P43: 48 | Q43: 0 | R43: 0 | S43: 35 | T43: =IFERROR(INDEX($O$2:$O$109,MATCH(SMALL($S$2:$S$109,ROWS(S$2:$S43)),$S$2:$S$109,0),1),"") -> Low impact industry | AQ43: Non-residential uses | AR43: Lots | AS43: 14670 | AT43: 3081 | AU43: 2054 | AV43: 9242 | AW43: 0 | AX43: 293
A44: Mt Isa - Fully Serviced | B44: Educational establishment that is an educational establishment for the Flying Start for Queensland Children program | C44: Educational establishment that is an educational establishment for the Flying Start for Queensland Children program | D44: Educational Facility | E44: NR_1 | F44: Gross Floor Area | G44: 73 | H44: =INDEX(CHARGES,MATCH($D44&$F44,$AQ$2:$AQ$44&$AR$2:$AR$44,0),MATCH(H$1,$AS$1:$AX$1,0)) -> 15 | I44: =INDEX(CHARGES,MATCH($D44&$F44,$AQ$2:$AQ$44&$AR$2:$AR$44,0),MATCH(I$1,$AS$1:$AX$1,0)) -> 10 | J44: =INDEX(CHARGES,MATCH($D44&$F44,$AQ$2:$AQ$44&$AR$2:$AR$44,0),MATCH(J$1,$AS$1:$AX$1,0)) -> 0 | K44: =INDEX(CHARGES,MATCH($D44&$F44,$AQ$2:$AQ$44&$AR$2:$AR$44,0),MATCH(K$1,$AS$1:$AX$1,0)) -> 48 | L44: =INDEX(CHARGES,MATCH($D44&$F44,$AQ$2:$AQ$44&$AR$2:$AR$44,0),MATCH(L$1,$AS$1:$AX$1,0)) -> 0 | O44: =IFERROR(INDEX($B$2:$B$1969, MATCH(0, INDEX(COUNTIF($O$1:O43,$B$2:$B$1969), 0),0)),"") -> Hotel - Accommodation component | P44: 49 | Q44: 0 | R44: 0 | S44: 36 | T44: =IFERROR(INDEX($O$2:$O$109,MATCH(SMALL($S$2:$S$109,ROWS(S$2:$S44)),$S$2:$S$109,0),1),"") -> Major electricity infrastructure | AQ44: Residential uses | AR44: Lots | AS44: 14670 | AT44: 4108 | AU44: 2641 | AV44: 7335 | AW44: 293 | AX44: 293
A45: Mt Isa - Fully Serviced | B45: Educational establishment that is an educational establishment for the Flying Start for Queensland Children program | C45: Educational establishment that is an educational establishment for the Flying Start for Queensland Children program | D45: Educational Facility | E45: NR_1 | F45: Impervious Area | G45: 5 | H45: =INDEX(CHARGES,MATCH($D45&$F45,$AQ$2:$AQ$44&$AR$2:$AR$44,0),MATCH(H$1,$AS$1:$AX$1,0)) -> 0 | I45: =INDEX(CHARGES,MATCH($D45&$F45,$AQ$2:$AQ$44&$AR$2:$AR$44,0),MATCH(I$1,$AS$1:$AX$1,0)) -> 0 | J45: =INDEX(CHARGES,MATCH($D45&$F45,$AQ$2:$AQ$44&$AR$2:$AR$44,0),MATCH(J$1,$AS$1:$AX$1,0)) -> 5 | K45: =INDEX(CHARGES,MATCH($D45&$F45,$AQ$2:$AQ$44&$AR$2:$AR$44,0),MATCH(K$1,$AS$1:$AX$1,0)) -> 0 | L45: =INDEX(CHARGES,MATCH($D45&$F45,$AQ$2:$AQ$44&$AR$2:$AR$44,0),MATCH(L$1,$AS$1:$AX$1,0)) -> 0 | O45: =IFERROR(INDEX($B$2:$B$1969, MATCH(0, INDEX(COUNTIF($O$1:O44,$B$2:$B$1969), 0),0)),"") -> Hotel - Entertainment component | P45: 50 | Q45: 0 | R45: 0 | S45: 37 | T45: =IFERROR(INDEX($O$2:$O$109,MATCH(SMALL($S$2:$S$109,ROWS(S$2:$S45)),$S$2:$S$109,0),1),"") -> Major sport, recreation and entertainment facility
A46: Mt Isa - Fully Serviced | B46: Emergency services | C46: Emergency services | D46: Essential services | E46: NR_1 | F46: Gross Floor Area | G46: 73 | H46: =INDEX(CHARGES,MATCH($D46&$F46,$AQ$2:$AQ$44&$AR$2:$AR$44,0),MATCH(H$1,$AS$1:$AX$1,0)) -> 15 | I46: =INDEX(CHARGES,MATCH($D46&$F46,$AQ$2:$AQ$44&$AR$2:$AR$44,0),MATCH(I$1,$AS$1:$AX$1,0)) -> 10 | J46: =INDEX(CHARGES,MATCH($D46&$F46,$AQ$2:$AQ$44&$AR$2:$AR$44,0),MATCH(J$1,$AS$1:$AX$1,0)) -> 0 | K46: =INDEX(CHARGES,MATCH($D46&$F46,$AQ$2:$AQ$44&$AR$2:$AR$44,0),MATCH(K$1,$AS$1:$AX$1,0)) -> 48 | L46: =INDEX(CHARGES,MATCH($D46&$F46,$AQ$2:$AQ$44&$AR$2:$AR$44,0),MATCH(L$1,$AS$1:$AX$1,0)) -> 0 | O46: =IFERROR(INDEX($B$2:$B$1969, MATCH(0, INDEX(COUNTIF($O$1:O45,$B$2:$B$1969), 0),0)),"") -> Indoor sport and recreation | P46: 51 | Q46: 0 | R46: 0 | S46: 38 | T46: =IFERROR(INDEX($O$2:$O$109,MATCH(SMALL($S$2:$S$109,ROWS(S$2:$S46)),$S$2:$S$109,0),1),"") -> Marine industry
A47: Mt Isa - Fully Serviced | B47: Emergency services | C47: Emergency services | D47: Essential services | E47: NR_1 | F47: Impervious Area | G47: 5 | H47: =INDEX(CHARGES,MATCH($D47&$F47,$AQ$2:$AQ$44&$AR$2:$AR$44,0),MATCH(H$1,$AS$1:$AX$1,0)) -> 0 | I47: =INDEX(CHARGES,MATCH($D47&$F47,$AQ$2:$AQ$44&$AR$2:$AR$44,0),MATCH(I$1,$AS$1:$AX$1,0)) -> 0 | J47: =INDEX(CHARGES,MATCH($D47&$F47,$AQ$2:$AQ$44&$AR$2:$AR$44,0),MATCH(J$1,$AS$1:$AX$1,0)) -> 5 | K47: =INDEX(CHARGES,MATCH($D47&$F47,$AQ$2:$AQ$44&$AR$2:$AR$44,0),MATCH(K$1,$AS$1:$AX$1,0)) -> 0 | L47: =INDEX(CHARGES,MATCH($D47&$F47,$AQ$2:$AQ$44&$AR$2:$AR$44,0),MATCH(L$1,$AS$1:$AX$1,0)) -> 0 | O47: =IFERROR(INDEX($B$2:$B$1969, MATCH(0, INDEX(COUNTIF($O$1:O46,$B$2:$B$1969), 0),0)),"") -> Intensive animal industry | P47: 52 | Q47: 0 | R47: 0 | S47: 39 | T47: =IFERROR(INDEX($O$2:$O$109,MATCH(SMALL($S$2:$S$109,ROWS(S$2:$S47)),$S$2:$S$109,0),1),"") -> Market
A48: Mt Isa - Fully Serviced | B48: Environment facility | D48: Other uses | E48: NR_1 | F48: Gross Floor Area | G48: 0 | H48: =INDEX(CHARGES,MATCH($D48&$F48,$AQ$2:$AQ$44&$AR$2:$AR$44,0),MATCH(H$1,$AS$1:$AX$1,0)) -> 0 | I48: =INDEX(CHARGES,MATCH($D48&$F48,$AQ$2:$AQ$44&$AR$2:$AR$44,0),MATCH(I$1,$AS$1:$AX$1,0)) -> 0 | J48: =INDEX(CHARGES,MATCH($D48&$F48,$AQ$2:$AQ$44&$AR$2:$AR$44,0),MATCH(J$1,$AS$1:$AX$1,0)) -> 0 | K48: =INDEX(CHARGES,MATCH($D48&$F48,$AQ$2:$AQ$44&$AR$2:$AR$44,0),MATCH(K$1,$AS$1:$AX$1,0)) -> 0 | L48: =INDEX(CHARGES,MATCH($D48&$F48,$AQ$2:$AQ$44&$AR$2:$AR$44,0),MATCH(L$1,$AS$1:$AX$1,0)) -> 0 | O48: =IFERROR(INDEX($B$2:$B$1969, MATCH(0, INDEX(COUNTIF($O$1:O47,$B$2:$B$1969), 0),0)),"") -> Intensive horticulture | P48: 53 | Q48: 0 | R48: 0 | S48: 40 | T48: =IFERROR(INDEX($O$2:$O$109,MATCH(SMALL($S$2:$S$109,ROWS(S$2:$S48)),$S$2:$S$109,0),1),"") -> Medium impact industry
A49: Mt Isa - Fully Serviced | B49: Environment facility | D49: Other uses | E49: NR_1 | F49: Impervious Area | G49: 0 | H49: =INDEX(CHARGES,MATCH($D49&$F49,$AQ$2:$AQ$44&$AR$2:$AR$44,0),MATCH(H$1,$AS$1:$AX$1,0)) -> 0 | I49: =INDEX(CHARGES,MATCH($D49&$F49,$AQ$2:$AQ$44&$AR$2:$AR$44,0),MATCH(I$1,$AS$1:$AX$1,0)) -> 0 | J49: =INDEX(CHARGES,MATCH($D49&$F49,$AQ$2:$AQ$44&$AR$2:$AR$44,0),MATCH(J$1,$AS$1:$AX$1,0)) -> 0 | K49: =INDEX(CHARGES,MATCH($D49&$F49,$AQ$2:$AQ$44&$AR$2:$AR$44,0),MATCH(K$1,$AS$1:$AX$1,0)) -> 0 | L49: =INDEX(CHARGES,MATCH($D49&$F49,$AQ$2:$AQ$44&$AR$2:$AR$44,0),MATCH(L$1,$AS$1:$AX$1,0)) -> 0 | O49: =IFERROR(INDEX($B$2:$B$1969, MATCH(0, INDEX(COUNTIF($O$1:O48,$B$2:$B$1969), 0),0)),"") -> Landing | P49: 54 | Q49: 0 | R49: 0 | S49: 41 | T49: =IFERROR(INDEX($O$2:$O$109,MATCH(SMALL($S$2:$S$109,ROWS(S$2:$S49)),$S$2:$S$109,0),1),"") -> Motor sport facility
A50: Mt Isa - Fully Serviced | B50: Extractive industry | C50: Extractive industry | D50: Other uses | E50: NR_1 | F50: Gross Floor Area | G50: 0 | H50: =INDEX(CHARGES,MATCH($D50&$F50,$AQ$2:$AQ$44&$AR$2:$AR$44,0),MATCH(H$1,$AS$1:$AX$1,0)) -> 0 | I50: =INDEX(CHARGES,MATCH($D50&$F50,$AQ$2:$AQ$44&$AR$2:$AR$44,0),MATCH(I$1,$AS$1:$AX$1,0)) -> 0 | J50: =INDEX(CHARGES,MATCH($D50&$F50,$AQ$2:$AQ$44&$AR$2:$AR$44,0),MATCH(J$1,$AS$1:$AX$1,0)) -> 0 | K50: =INDEX(CHARGES,MATCH($D50&$F50,$AQ$2:$AQ$44&$AR$2:$AR$44,0),MATCH(K$1,$AS$1:$AX$1,0)) -> 0 | L50: =INDEX(CHARGES,MATCH($D50&$F50,$AQ$2:$AQ$44&$AR$2:$AR$44,0),MATCH(L$1,$AS$1:$AX$1,0)) -> 0 | O50: =IFERROR(INDEX($B$2:$B$1969, MATCH(0, INDEX(COUNTIF($O$1:O49,$B$2:$B$1969), 0),0)),"") -> Low impact industry | P50: 55 | Q50: 0 | R50: 0 | S50: 42 | T50: =IFERROR(INDEX($O$2:$O$109,MATCH(SMALL($S$2:$S$109,ROWS(S$2:$S50)),$S$2:$S$109,0),1),"") -> Multiple dwelling
A51: Mt Isa - Fully Serviced | B51: Extractive industry | C51: Extractive industry | D51: Other uses | E51: NR_1 | F51: Impervious Area | G51: 0 | H51: =INDEX(CHARGES,MATCH($D51&$F51,$AQ$2:$AQ$44&$AR$2:$AR$44,0),MATCH(H$1,$AS$1:$AX$1,0)) -> 0 | I51: =INDEX(CHARGES,MATCH($D51&$F51,$AQ$2:$AQ$44&$AR$2:$AR$44,0),MATCH(I$1,$AS$1:$AX$1,0)) -> 0 | J51: =INDEX(CHARGES,MATCH($D51&$F51,$AQ$2:$AQ$44&$AR$2:$AR$44,0),MATCH(J$1,$AS$1:$AX$1,0)) -> 0 | K51: =INDEX(CHARGES,MATCH($D51&$F51,$AQ$2:$AQ$44&$AR$2:$AR$44,0),MATCH(K$1,$AS$1:$AX$1,0)) -> 0 | L51: =INDEX(CHARGES,MATCH($D51&$F51,$AQ$2:$AQ$44&$AR$2:$AR$44,0),MATCH(L$1,$AS$1:$AX$1,0)) -> 0 | O51: =IFERROR(INDEX($B$2:$B$1969, MATCH(0, INDEX(COUNTIF($O$1:O50,$B$2:$B$1969), 0),0)),"") -> Major electricity infrastructure | P51: 56 | Q51: 0 | R51: 0 | S51: 43 | T51: =IFERROR(INDEX($O$2:$O$109,MATCH(SMALL($S$2:$S$109,ROWS(S$2:$S51)),$S$2:$S$109,0),1),"") -> Nature-based tourism
A52: Mt Isa - Fully Serviced | B52: Food and drink outlet | C52: Food and drink outlet | D52: Commercial (retail) | E52: NR_1 | F52: Gross Floor Area | G52: 94 | H52: =INDEX(CHARGES,MATCH($D52&$F52,$AQ$2:$AQ$44&$AR$2:$AR$44,0),MATCH(H$1,$AS$1:$AX$1,0)) -> 20 | I52: =INDEX(CHARGES,MATCH($D52&$F52,$AQ$2:$AQ$44&$AR$2:$AR$44,0),MATCH(I$1,$AS$1:$AX$1,0)) -> 13 | J52: =INDEX(CHARGES,MATCH($D52&$F52,$AQ$2:$AQ$44&$AR$2:$AR$44,0),MATCH(J$1,$AS$1:$AX$1,0)) -> 0 | K52: =INDEX(CHARGES,MATCH($D52&$F52,$AQ$2:$AQ$44&$AR$2:$AR$44,0),MATCH(K$1,$AS$1:$AX$1,0)) -> 61 | L52: =INDEX(CHARGES,MATCH($D52&$F52,$AQ$2:$AQ$44&$AR$2:$AR$44,0),MATCH(L$1,$AS$1:$AX$1,0)) -> 0 | O52: =IFERROR(INDEX($B$2:$B$1969, MATCH(0, INDEX(COUNTIF($O$1:O51,$B$2:$B$1969), 0),0)),"") -> Major sport, recreation and entertainment facility | P52: 57 | Q52: 0 | R52: 0 | S52: 44 | T52: =IFERROR(INDEX($O$2:$O$109,MATCH(SMALL($S$2:$S$109,ROWS(S$2:$S52)),$S$2:$S$109,0),1),"") -> Nightclub entertainment facility
A53: Mt Isa - Fully Serviced | B53: Food and drink outlet | C53: Food and drink outlet | D53: Commercial (retail) | E53: NR_1 | F53: Impervious Area | G53: 5 | H53: =INDEX(CHARGES,MATCH($D53&$F53,$AQ$2:$AQ$44&$AR$2:$AR$44,0),MATCH(H$1,$AS$1:$AX$1,0)) -> 0 | I53: =INDEX(CHARGES,MATCH($D53&$F53,$AQ$2:$AQ$44&$AR$2:$AR$44,0),MATCH(I$1,$AS$1:$AX$1,0)) -> 0 | J53: =INDEX(CHARGES,MATCH($D53&$F53,$AQ$2:$AQ$44&$AR$2:$AR$44,0),MATCH(J$1,$AS$1:$AX$1,0)) -> 5 | K53: =INDEX(CHARGES,MATCH($D53&$F53,$AQ$2:$AQ$44&$AR$2:$AR$44,0),MATCH(K$1,$AS$1:$AX$1,0)) -> 0 | L53: =INDEX(CHARGES,MATCH($D53&$F53,$AQ$2:$AQ$44&$AR$2:$AR$44,0),MATCH(L$1,$AS$1:$AX$1,0)) -> 0 | O53: =IFERROR(INDEX($B$2:$B$1969, MATCH(0, INDEX(COUNTIF($O$1:O52,$B$2:$B$1969), 0),0)),"") -> Marine industry | P53: 58 | Q53: 0 | R53: 0 | S53: 45 | T53: =IFERROR(INDEX($O$2:$O$109,MATCH(SMALL($S$2:$S$109,ROWS(S$2:$S53)),$S$2:$S$109,0),1),"") -> Non-resident workforce accommodation
A54: Mt Isa - Fully Serviced | B54: Office | C54: Office | D54: Commercial (office) | E54: NR_1 | F54: Gross Floor Area | G54: 73 | H54: =INDEX(CHARGES,MATCH($D54&$F54,$AQ$2:$AQ$44&$AR$2:$AR$44,0),MATCH(H$1,$AS$1:$AX$1,0)) -> 15 | I54: =INDEX(CHARGES,MATCH($D54&$F54,$AQ$2:$AQ$44&$AR$2:$AR$44,0),MATCH(I$1,$AS$1:$AX$1,0)) -> 10 | J54: =INDEX(CHARGES,MATCH($D54&$F54,$AQ$2:$AQ$44&$AR$2:$AR$44,0),MATCH(J$1,$AS$1:$AX$1,0)) -> 0 | K54: =INDEX(CHARGES,MATCH($D54&$F54,$AQ$2:$AQ$44&$AR$2:$AR$44,0),MATCH(K$1,$AS$1:$AX$1,0)) -> 48 | L54: =INDEX(CHARGES,MATCH($D54&$F54,$AQ$2:$AQ$44&$AR$2:$AR$44,0),MATCH(L$1,$AS$1:$AX$1,0)) -> 0 | O54: =IFERROR(INDEX($B$2:$B$1969, MATCH(0, INDEX(COUNTIF($O$1:O53,$B$2:$B$1969), 0),0)),"") -> Market | P54: 59 | Q54: 0 | R54: 0 | S54: 46 | T54: =IFERROR(INDEX($O$2:$O$109,MATCH(SMALL($S$2:$S$109,ROWS(S$2:$S54)),$S$2:$S$109,0),1),"") -> Office
A55: Mt Isa - Fully Serviced | B55: Office | C55: Office | D55: Commercial (office) | E55: NR_1 | F55: Impervious Area | G55: 5 | H55: =INDEX(CHARGES,MATCH($D55&$F55,$AQ$2:$AQ$44&$AR$2:$AR$44,0),MATCH(H$1,$AS$1:$AX$1,0)) -> 0 | I55: =INDEX(CHARGES,MATCH($D55&$F55,$AQ$2:$AQ$44&$AR$2:$AR$44,0),MATCH(I$1,$AS$1:$AX$1,0)) -> 0 | J55: =INDEX(CHARGES,MATCH($D55&$F55,$AQ$2:$AQ$44&$AR$2:$AR$44,0),MATCH(J$1,$AS$1:$AX$1,0)) -> 5 | K55: =INDEX(CHARGES,MATCH($D55&$F55,$AQ$2:$AQ$44&$AR$2:$AR$44,0),MATCH(K$1,$AS$1:$AX$1,0)) -> 0 | L55: =INDEX(CHARGES,MATCH($D55&$F55,$AQ$2:$AQ$44&$AR$2:$AR$44,0),MATCH(L$1,$AS$1:$AX$1,0)) -> 0 | O55: =IFERROR(INDEX($B$2:$B$1969, MATCH(0, INDEX(COUNTIF($O$1:O54,$B$2:$B$1969), 0),0)),"") -> Medium impact industry | P55: 60 | Q55: 0 | R55: 0 | S55: 47 | T55: =IFERROR(INDEX($O$2:$O$109,MATCH(SMALL($S$2:$S$109,ROWS(S$2:$S55)),$S$2:$S$109,0),1),"") -> Outdoor sales
A56: Mt Isa - Fully Serviced | B56: Outdoor sales | C56: Outdoor sales | D56: Commercial (retail) | E56: NR_1 | F56: Gross Floor Area | G56: 94 | H56: =INDEX(CHARGES,MATCH($D56&$F56,$AQ$2:$AQ$44&$AR$2:$AR$44,0),MATCH(H$1,$AS$1:$AX$1,0)) -> 20 | I56: =INDEX(CHARGES,MATCH($D56&$F56,$AQ$2:$AQ$44&$AR$2:$AR$44,0),MATCH(I$1,$AS$1:$AX$1,0)) -> 13 | J56: =INDEX(CHARGES,MATCH($D56&$F56,$AQ$2:$AQ$44&$AR$2:$AR$44,0),MATCH(J$1,$AS$1:$AX$1,0)) -> 0 | K56: =INDEX(CHARGES,MATCH($D56&$F56,$AQ$2:$AQ$44&$AR$2:$AR$44,0),MATCH(K$1,$AS$1:$AX$1,0)) -> 61 | L56: =INDEX(CHARGES,MATCH($D56&$F56,$AQ$2:$AQ$44&$AR$2:$AR$44,0),MATCH(L$1,$AS$1:$AX$1,0)) -> 0 | O56: =IFERROR(INDEX($B$2:$B$1969, MATCH(0, INDEX(COUNTIF($O$1:O55,$B$2:$B$1969), 0),0)),"") -> Motor sport facility | P56: 61 | Q56: 0 | R56: 0 | S56: 48 | T56: =IFERROR(INDEX($O$2:$O$109,MATCH(SMALL($S$2:$S$109,ROWS(S$2:$S56)),$S$2:$S$109,0),1),"") -> Outdoor sport and recreation
A57: Mt Isa - Fully Serviced | B57: Outdoor sales | C57: Outdoor sales | D57: Commercial (retail) | E57: NR_1 | F57: Impervious Area | G57: 5 | H57: =INDEX(CHARGES,MATCH($D57&$F57,$AQ$2:$AQ$44&$AR$2:$AR$44,0),MATCH(H$1,$AS$1:$AX$1,0)) -> 0 | I57: =INDEX(CHARGES,MATCH($D57&$F57,$AQ$2:$AQ$44&$AR$2:$AR$44,0),MATCH(I$1,$AS$1:$AX$1,0)) -> 0 | J57: =INDEX(CHARGES,MATCH($D57&$F57,$AQ$2:$AQ$44&$AR$2:$AR$44,0),MATCH(J$1,$AS$1:$AX$1,0)) -> 5 | K57: =INDEX(CHARGES,MATCH($D57&$F57,$AQ$2:$AQ$44&$AR$2:$AR$44,0),MATCH(K$1,$AS$1:$AX$1,0)) -> 0 | L57: =INDEX(CHARGES,MATCH($D57&$F57,$AQ$2:$AQ$44&$AR$2:$AR$44,0),MATCH(L$1,$AS$1:$AX$1,0)) -> 0 | O57: =IFERROR(INDEX($B$2:$B$1969, MATCH(0, INDEX(COUNTIF($O$1:O56,$B$2:$B$1969), 0),0)),"") -> Multiple dwelling | P57: 62 | Q57: 0 | R57: 0 | S57: 49 | T57: =IFERROR(INDEX($O$2:$O$109,MATCH(SMALL($S$2:$S$109,ROWS(S$2:$S57)),$S$2:$S$109,0),1),"") -> Outstation
A58: Mt Isa - Fully Serviced | B58: Outdoor sport and recreation | C58: Outdoor sport and recreation | D58: Other uses | E58: NR_2 | F58: Gross Floor Area - not court area | G58: 0 | H58: =INDEX(CHARGES,MATCH($D58&$F58,$AQ$2:$AQ$44&$AR$2:$AR$44,0),MATCH(H$1,$AS$1:$AX$1,0)) -> 0 | I58: =INDEX(CHARGES,MATCH($D58&$F58,$AQ$2:$AQ$44&$AR$2:$AR$44,0),MATCH(I$1,$AS$1:$AX$1,0)) -> 0 | J58: =INDEX(CHARGES,MATCH($D58&$F58,$AQ$2:$AQ$44&$AR$2:$AR$44,0),MATCH(J$1,$AS$1:$AX$1,0)) -> 0 | K58: =INDEX(CHARGES,MATCH($D58&$F58,$AQ$2:$AQ$44&$AR$2:$AR$44,0),MATCH(K$1,$AS$1:$AX$1,0)) -> 0 | L58: =INDEX(CHARGES,MATCH($D58&$F58,$AQ$2:$AQ$44&$AR$2:$AR$44,0),MATCH(L$1,$AS$1:$AX$1,0)) -> 0 | O58: =IFERROR(INDEX($B$2:$B$1969, MATCH(0, INDEX(COUNTIF($O$1:O57,$B$2:$B$1969), 0),0)),"") -> Nature-based tourism | P58: 63 | Q58: 0 | R58: 0 | S58: 50 | T58: =IFERROR(INDEX($O$2:$O$109,MATCH(SMALL($S$2:$S$109,ROWS(S$2:$S58)),$S$2:$S$109,0),1),"") -> Park
A59: Mt Isa - Fully Serviced | B59: Outdoor sport and recreation | C59: Outdoor sport and recreation | D59: Other uses | E59: NR_2 | F59: Gross Floor Area - court area | G59: 0 | H59: =INDEX(CHARGES,MATCH($D59&$F59,$AQ$2:$AQ$44&$AR$2:$AR$44,0),MATCH(H$1,$AS$1:$AX$1,0)) -> 0 | I59: =INDEX(CHARGES,MATCH($D59&$F59,$AQ$2:$AQ$44&$AR$2:$AR$44,0),MATCH(I$1,$AS$1:$AX$1,0)) -> 0 | J59: =INDEX(CHARGES,MATCH($D59&$F59,$AQ$2:$AQ$44&$AR$2:$AR$44,0),MATCH(J$1,$AS$1:$AX$1,0)) -> 0 | K59: =INDEX(CHARGES,MATCH($D59&$F59,$AQ$2:$AQ$44&$AR$2:$AR$44,0),MATCH(K$1,$AS$1:$AX$1,0)) -> 0 | L59: =INDEX(CHARGES,MATCH($D59&$F59,$AQ$2:$AQ$44&$AR$2:$AR$44,0),MATCH(L$1,$AS$1:$AX$1,0)) -> 0 | O59: =IFERROR(INDEX($B$2:$B$1969, MATCH(0, INDEX(COUNTIF($O$1:O58,$B$2:$B$1969), 0),0)),"") -> Nightclub entertainment facility | P59: 64 | Q59: 0 | R59: 0 | S59: 51 | T59: =IFERROR(INDEX($O$2:$O$109,MATCH(SMALL($S$2:$S$109,ROWS(S$2:$S59)),$S$2:$S$109,0),1),"") -> Parking station
A60: Mt Isa - Fully Serviced | B60: Outdoor sport and recreation | C60: Outdoor sport and recreation | D60: Other uses | E60: NR_2 | F60: Impervious Area | G60: 0 | H60: =INDEX(CHARGES,MATCH($D60&$F60,$AQ$2:$AQ$44&$AR$2:$AR$44,0),MATCH(H$1,$AS$1:$AX$1,0)) -> 0 | I60: =INDEX(CHARGES,MATCH($D60&$F60,$AQ$2:$AQ$44&$AR$2:$AR$44,0),MATCH(I$1,$AS$1:$AX$1,0)) -> 0 | J60: =INDEX(CHARGES,MATCH($D60&$F60,$AQ$2:$AQ$44&$AR$2:$AR$44,0),MATCH(J$1,$AS$1:$AX$1,0)) -> 0 | K60: =INDEX(CHARGES,MATCH($D60&$F60,$AQ$2:$AQ$44&$AR$2:$AR$44,0),MATCH(K$1,$AS$1:$AX$1,0)) -> 0 | L60: =INDEX(CHARGES,MATCH($D60&$F60,$AQ$2:$AQ$44&$AR$2:$AR$44,0),MATCH(L$1,$AS$1:$AX$1,0)) -> 0 | O60: =IFERROR(INDEX($B$2:$B$1969, MATCH(0, INDEX(COUNTIF($O$1:O59,$B$2:$B$1969), 0),0)),"") -> Non-resident workforce accommodation | P60: 65 | Q60: 0 | R60: 0 | S60: 52 | T60: =IFERROR(INDEX($O$2:$O$109,MATCH(SMALL($S$2:$S$109,ROWS(S$2:$S60)),$S$2:$S$109,0),1),"") -> Permanent plantation
A61: Mt Isa - Fully Serviced | B61: Outstation | D61: Other uses | E61: NR_1 | F61: Gross Floor Area | G61: 0 | H61: =INDEX(CHARGES,MATCH($D61&$F61,$AQ$2:$AQ$44&$AR$2:$AR$44,0),MATCH(H$1,$AS$1:$AX$1,0)) -> 0 | I61: =INDEX(CHARGES,MATCH($D61&$F61,$AQ$2:$AQ$44&$AR$2:$AR$44,0),MATCH(I$1,$AS$1:$AX$1,0)) -> 0 | J61: =INDEX(CHARGES,MATCH($D61&$F61,$AQ$2:$AQ$44&$AR$2:$AR$44,0),MATCH(J$1,$AS$1:$AX$1,0)) -> 0 | K61: =INDEX(CHARGES,MATCH($D61&$F61,$AQ$2:$AQ$44&$AR$2:$AR$44,0),MATCH(K$1,$AS$1:$AX$1,0)) -> 0 | L61: =INDEX(CHARGES,MATCH($D61&$F61,$AQ$2:$AQ$44&$AR$2:$AR$44,0),MATCH(L$1,$AS$1:$AX$1,0)) -> 0 | O61: =IFERROR(INDEX($B$2:$B$1969, MATCH(0, INDEX(COUNTIF($O$1:O60,$B$2:$B$1969), 0),0)),"") -> Place of worship | P61: 73 | Q61: 0 | R61: 0 | S61: 60 | T61: =IFERROR(INDEX($O$2:$O$109,MATCH(SMALL($S$2:$S$109,ROWS(S$2:$S61)),$S$2:$S$109,0),1),"") -> Place of worship
A62: Mt Isa - Fully Serviced | B62: Outstation | D62: Other uses | E62: NR_1 | F62: Impervious Area | G62: 0 | H62: =INDEX(CHARGES,MATCH($D62&$F62,$AQ$2:$AQ$44&$AR$2:$AR$44,0),MATCH(H$1,$AS$1:$AX$1,0)) -> 0 | I62: =INDEX(CHARGES,MATCH($D62&$F62,$AQ$2:$AQ$44&$AR$2:$AR$44,0),MATCH(I$1,$AS$1:$AX$1,0)) -> 0 | J62: =INDEX(CHARGES,MATCH($D62&$F62,$AQ$2:$AQ$44&$AR$2:$AR$44,0),MATCH(J$1,$AS$1:$AX$1,0)) -> 0 | K62: =INDEX(CHARGES,MATCH($D62&$F62,$AQ$2:$AQ$44&$AR$2:$AR$44,0),MATCH(K$1,$AS$1:$AX$1,0)) -> 0 | L62: =INDEX(CHARGES,MATCH($D62&$F62,$AQ$2:$AQ$44&$AR$2:$AR$44,0),MATCH(L$1,$AS$1:$AX$1,0)) -> 0 | O62: =IFERROR(INDEX($B$2:$B$1969, MATCH(0, INDEX(COUNTIF($O$1:O61,$B$2:$B$1969), 0),0)),"") -> Port services | P62: 74 | Q62: 0 | R62: 0 | S62: 61 | T62: =IFERROR(INDEX($O$2:$O$109,MATCH(SMALL($S$2:$S$109,ROWS(S$2:$S62)),$S$2:$S$109,0),1),"") -> Port services
A63: Mt Isa - Fully Serviced | B63: Park | C63: Park | D63: Minor uses | E63: NR_3 | F63: Gross Floor Area | G63: 0 | H63: =INDEX(CHARGES,MATCH($D63&$F63,$AQ$2:$AQ$44&$AR$2:$AR$44,0),MATCH(H$1,$AS$1:$AX$1,0)) -> 0 | I63: =INDEX(CHARGES,MATCH($D63&$F63,$AQ$2:$AQ$44&$AR$2:$AR$44,0),MATCH(I$1,$AS$1:$AX$1,0)) -> 0 | J63: =INDEX(CHARGES,MATCH($D63&$F63,$AQ$2:$AQ$44&$AR$2:$AR$44,0),MATCH(J$1,$AS$1:$AX$1,0)) -> 0 | K63: =INDEX(CHARGES,MATCH($D63&$F63,$AQ$2:$AQ$44&$AR$2:$AR$44,0),MATCH(K$1,$AS$1:$AX$1,0)) -> 0 | L63: =INDEX(CHARGES,MATCH($D63&$F63,$AQ$2:$AQ$44&$AR$2:$AR$44,0),MATCH(L$1,$AS$1:$AX$1,0)) -> 0 | O63: =IFERROR(INDEX($B$2:$B$1969, MATCH(0, INDEX(COUNTIF($O$1:O62,$B$2:$B$1969), 0),0)),"") -> Relocatable home park | P63: 77 | Q63: 0 | R63: 0 | S63: 64 | T63: =IFERROR(INDEX($O$2:$O$109,MATCH(SMALL($S$2:$S$109,ROWS(S$2:$S63)),$S$2:$S$109,0),1),"") -> Reconfiguring a lot - Non residential
A64: Mt Isa - Fully Serviced | B64: Parking station | D64: Other uses | E64: NR_1 | F64: Gross Floor Area | G64: 0 | H64: =INDEX(CHARGES,MATCH($D64&$F64,$AQ$2:$AQ$44&$AR$2:$AR$44,0),MATCH(H$1,$AS$1:$AX$1,0)) -> 0 | I64: =INDEX(CHARGES,MATCH($D64&$F64,$AQ$2:$AQ$44&$AR$2:$AR$44,0),MATCH(I$1,$AS$1:$AX$1,0)) -> 0 | J64: =INDEX(CHARGES,MATCH($D64&$F64,$AQ$2:$AQ$44&$AR$2:$AR$44,0),MATCH(J$1,$AS$1:$AX$1,0)) -> 0 | K64: =INDEX(CHARGES,MATCH($D64&$F64,$AQ$2:$AQ$44&$AR$2:$AR$44,0),MATCH(K$1,$AS$1:$AX$1,0)) -> 0 | L64: =INDEX(CHARGES,MATCH($D64&$F64,$AQ$2:$AQ$44&$AR$2:$AR$44,0),MATCH(L$1,$AS$1:$AX$1,0)) -> 0 | O64: =IFERROR(INDEX($B$2:$B$1969, MATCH(0, INDEX(COUNTIF($O$1:O63,$B$2:$B$1969), 0),0)),"") -> Renewable energy facility | P64: 78 | Q64: 0 | R64: 0 | S64: 65 | T64: =IFERROR(INDEX($O$2:$O$109,MATCH(SMALL($S$2:$S$109,ROWS(S$2:$S64)),$S$2:$S$109,0),1),"") -> Reconfiguring a lot - Residential
A65: Mt Isa - Fully Serviced | B65: Parking station | D65: Other uses | E65: NR_1 | F65: Impervious Area | G65: =SUM(H65:L65) -> 0 | H65: =INDEX(CHARGES,MATCH($D65&$F65,$AQ$2:$AQ$44&$AR$2:$AR$44,0),MATCH(H$1,$AS$1:$AX$1,0)) -> 0 | I65: =INDEX(CHARGES,MATCH($D65&$F65,$AQ$2:$AQ$44&$AR$2:$AR$44,0),MATCH(I$1,$AS$1:$AX$1,0)) -> 0 | J65: =INDEX(CHARGES,MATCH($D65&$F65,$AQ$2:$AQ$44&$AR$2:$AR$44,0),MATCH(J$1,$AS$1:$AX$1,0)) -> 0 | K65: =INDEX(CHARGES,MATCH($D65&$F65,$AQ$2:$AQ$44&$AR$2:$AR$44,0),MATCH(K$1,$AS$1:$AX$1,0)) -> 0 | L65: =INDEX(CHARGES,MATCH($D65&$F65,$AQ$2:$AQ$44&$AR$2:$AR$44,0),MATCH(L$1,$AS$1:$AX$1,0)) -> 0 | O65: =IFERROR(INDEX($B$2:$B$1969, MATCH(0, INDEX(COUNTIF($O$1:O64,$B$2:$B$1969), 0),0)),"") -> Research and technology industry | P65: 79 | Q65: 0 | R65: 0 | S65: 66 | T65: =IFERROR(INDEX($O$2:$O$109,MATCH(SMALL($S$2:$S$109,ROWS(S$2:$S65)),$S$2:$S$109,0),1),"") -> Relocatable home park
A66: Mt Isa - Fully Serviced | B66: Permanent plantation | C66: Permanent plantation | D66: Low impact rural | E66: NR_3 | F66: Gross Floor Area | G66: 0 | H66: =INDEX(CHARGES,MATCH($D66&$F66,$AQ$2:$AQ$44&$AR$2:$AR$44,0),MATCH(H$1,$AS$1:$AX$1,0)) -> 0 | I66: =INDEX(CHARGES,MATCH($D66&$F66,$AQ$2:$AQ$44&$AR$2:$AR$44,0),MATCH(I$1,$AS$1:$AX$1,0)) -> 0 | J66: =INDEX(CHARGES,MATCH($D66&$F66,$AQ$2:$AQ$44&$AR$2:$AR$44,0),MATCH(J$1,$AS$1:$AX$1,0)) -> 0 | K66: =INDEX(CHARGES,MATCH($D66&$F66,$AQ$2:$AQ$44&$AR$2:$AR$44,0),MATCH(K$1,$AS$1:$AX$1,0)) -> 0 | L66: =INDEX(CHARGES,MATCH($D66&$F66,$AQ$2:$AQ$44&$AR$2:$AR$44,0),MATCH(L$1,$AS$1:$AX$1,0)) -> 0 | O66: =IFERROR(INDEX($B$2:$B$1969, MATCH(0, INDEX(COUNTIF($O$1:O65,$B$2:$B$1969), 0),0)),"") -> Residential care facility | P66: 80 | Q66: 0 | R66: 0 | S66: =IF(IF(Q66=1,P66,IF(R66=1,P66,P66+$Q$110))-$P$110<0,"",IF(ISNUMBER(O66),P66,IF(R66=1,P66,P66+$Q$110))-$P$110) -> 67 | T66: =IFERROR(INDEX($O$2:$O$109,MATCH(SMALL($S$2:$S$109,ROWS(S$2:$S66)),$S$2:$S$109,0),1),"") -> Renewable energy facility
A67: Mt Isa - Fully Serviced | B67: Function facility | C67: Function facility | D67: Places of assembly | E67: NR_1 | F67: Gross Floor Area | G67: 37 | H67: =INDEX(CHARGES,MATCH($D67&$F67,$AQ$2:$AQ$44&$AR$2:$AR$44,0),MATCH(H$1,$AS$1:$AX$1,0)) -> 8 | I67: =INDEX(CHARGES,MATCH($D67&$F67,$AQ$2:$AQ$44&$AR$2:$AR$44,0),MATCH(I$1,$AS$1:$AX$1,0)) -> 5 | J67: =INDEX(CHARGES,MATCH($D67&$F67,$AQ$2:$AQ$44&$AR$2:$AR$44,0),MATCH(J$1,$AS$1:$AX$1,0)) -> 0 | K67: =INDEX(CHARGES,MATCH($D67&$F67,$AQ$2:$AQ$44&$AR$2:$AR$44,0),MATCH(K$1,$AS$1:$AX$1,0)) -> 24 | L67: =INDEX(CHARGES,MATCH($D67&$F67,$AQ$2:$AQ$44&$AR$2:$AR$44,0),MATCH(L$1,$AS$1:$AX$1,0)) -> 0 | O67: =IFERROR(INDEX($B$2:$B$1969, MATCH(0, INDEX(COUNTIF($O$1:O66,$B$2:$B$1969), 0),0)),"") -> Resort complex - Accommodation component | P67: 81 | Q67: 0 | R67: 0 | S67: 68 | T67: =IFERROR(INDEX($O$2:$O$109,MATCH(SMALL($S$2:$S$109,ROWS(S$2:$S67)),$S$2:$S$109,0),1),"") -> Research and technology industry
A68: Mt Isa - Fully Serviced | B68: Function facility | C68: Function facility | D68: Places of assembly | E68: NR_1 | F68: Impervious Area | G68: 5 | H68: =INDEX(CHARGES,MATCH($D68&$F68,$AQ$2:$AQ$44&$AR$2:$AR$44,0),MATCH(H$1,$AS$1:$AX$1,0)) -> 0 | I68: =INDEX(CHARGES,MATCH($D68&$F68,$AQ$2:$AQ$44&$AR$2:$AR$44,0),MATCH(I$1,$AS$1:$AX$1,0)) -> 0 | J68: =INDEX(CHARGES,MATCH($D68&$F68,$AQ$2:$AQ$44&$AR$2:$AR$44,0),MATCH(J$1,$AS$1:$AX$1,0)) -> 5 | K68: =INDEX(CHARGES,MATCH($D68&$F68,$AQ$2:$AQ$44&$AR$2:$AR$44,0),MATCH(K$1,$AS$1:$AX$1,0)) -> 0 | L68: =INDEX(CHARGES,MATCH($D68&$F68,$AQ$2:$AQ$44&$AR$2:$AR$44,0),MATCH(L$1,$AS$1:$AX$1,0)) -> 0 | O68: =IFERROR(INDEX($B$2:$B$1969, MATCH(0, INDEX(COUNTIF($O$1:O67,$B$2:$B$1969), 0),0)),"") -> Resort complex - Entertainment component | P68: 82 | Q68: 0 | R68: 0 | S68: 69 | T68: =IFERROR(INDEX($O$2:$O$109,MATCH(SMALL($S$2:$S$109,ROWS(S$2:$S68)),$S$2:$S$109,0),1),"") -> Residential care facility
A69: Mt Isa - Fully Serviced | B69: Funeral parlour | C69: Funeral parlour | D69: Places of assembly | E69: NR_1 | F69: Gross Floor Area | G69: 37 | H69: =INDEX(CHARGES,MATCH($D69&$F69,$AQ$2:$AQ$44&$AR$2:$AR$44,0),MATCH(H$1,$AS$1:$AX$1,0)) -> 8 | I69: =INDEX(CHARGES,MATCH($D69&$F69,$AQ$2:$AQ$44&$AR$2:$AR$44,0),MATCH(I$1,$AS$1:$AX$1,0)) -> 5 | J69: =INDEX(CHARGES,MATCH($D69&$F69,$AQ$2:$AQ$44&$AR$2:$AR$44,0),MATCH(J$1,$AS$1:$AX$1,0)) -> 0 | K69: =INDEX(CHARGES,MATCH($D69&$F69,$AQ$2:$AQ$44&$AR$2:$AR$44,0),MATCH(K$1,$AS$1:$AX$1,0)) -> 24 | L69: =INDEX(CHARGES,MATCH($D69&$F69,$AQ$2:$AQ$44&$AR$2:$AR$44,0),MATCH(L$1,$AS$1:$AX$1,0)) -> 0 | O69: =IFERROR(INDEX($B$2:$B$1969, MATCH(0, INDEX(COUNTIF($O$1:O68,$B$2:$B$1969), 0),0)),"") -> Retirement facility | P69: 83 | Q69: 0 | R69: 0 | S69: 70 | T69: =IFERROR(INDEX($O$2:$O$109,MATCH(SMALL($S$2:$S$109,ROWS(S$2:$S69)),$S$2:$S$109,0),1),"") -> Resort complex - Accommodation component
A70: Mt Isa - Fully Serviced | B70: Funeral parlour | C70: Funeral parlour | D70: Places of assembly | E70: NR_1 | F70: Impervious Area | G70: 5 | H70: =INDEX(CHARGES,MATCH($D70&$F70,$AQ$2:$AQ$44&$AR$2:$AR$44,0),MATCH(H$1,$AS$1:$AX$1,0)) -> 0 | I70: =INDEX(CHARGES,MATCH($D70&$F70,$AQ$2:$AQ$44&$AR$2:$AR$44,0),MATCH(I$1,$AS$1:$AX$1,0)) -> 0 | J70: =INDEX(CHARGES,MATCH($D70&$F70,$AQ$2:$AQ$44&$AR$2:$AR$44,0),MATCH(J$1,$AS$1:$AX$1,0)) -> 5 | K70: =INDEX(CHARGES,MATCH($D70&$F70,$AQ$2:$AQ$44&$AR$2:$AR$44,0),MATCH(K$1,$AS$1:$AX$1,0)) -> 0 | L70: =INDEX(CHARGES,MATCH($D70&$F70,$AQ$2:$AQ$44&$AR$2:$AR$44,0),MATCH(L$1,$AS$1:$AX$1,0)) -> 0 | O70: =IFERROR(INDEX($B$2:$B$1969, MATCH(0, INDEX(COUNTIF($O$1:O69,$B$2:$B$1969), 0),0)),"") -> Roadside stall | P70: 84 | Q70: 0 | R70: 0 | S70: 71 | T70: =IFERROR(INDEX($O$2:$O$109,MATCH(SMALL($S$2:$S$109,ROWS(S$2:$S70)),$S$2:$S$109,0),1),"") -> Resort complex - Entertainment component
A71: Mt Isa - Fully Serviced | B71: Garden centre | C71: Garden centre | D71: Commercial (bulk goods) | E71: NR_1 | F71: Gross Floor Area | G71: 73 | H71: =INDEX(CHARGES,MATCH($D71&$F71,$AQ$2:$AQ$44&$AR$2:$AR$44,0),MATCH(H$1,$AS$1:$AX$1,0)) -> 15 | I71: =INDEX(CHARGES,MATCH($D71&$F71,$AQ$2:$AQ$44&$AR$2:$AR$44,0),MATCH(I$1,$AS$1:$AX$1,0)) -> 10 | J71: =INDEX(CHARGES,MATCH($D71&$F71,$AQ$2:$AQ$44&$AR$2:$AR$44,0),MATCH(J$1,$AS$1:$AX$1,0)) -> 0 | K71: =INDEX(CHARGES,MATCH($D71&$F71,$AQ$2:$AQ$44&$AR$2:$AR$44,0),MATCH(K$1,$AS$1:$AX$1,0)) -> 48 | L71: =INDEX(CHARGES,MATCH($D71&$F71,$AQ$2:$AQ$44&$AR$2:$AR$44,0),MATCH(L$1,$AS$1:$AX$1,0)) -> 0 | O71: =IFERROR(INDEX($B$2:$B$1969, MATCH(0, INDEX(COUNTIF($O$1:O70,$B$2:$B$1969), 0),0)),"") -> Rooming accommodation | P71: 85 | Q71: 0 | R71: 0 | S71: 72 | T71: =IFERROR(INDEX($O$2:$O$109,MATCH(SMALL($S$2:$S$109,ROWS(S$2:$S71)),$S$2:$S$109,0),1),"") -> Retirement facility
A72: Mt Isa - Fully Serviced | B72: Garden centre | C72: Garden centre | D72: Commercial (bulk goods) | E72: NR_1 | F72: Impervious Area | G72: 5 | H72: =INDEX(CHARGES,MATCH($D72&$F72,$AQ$2:$AQ$44&$AR$2:$AR$44,0),MATCH(H$1,$AS$1:$AX$1,0)) -> 0 | I72: =INDEX(CHARGES,MATCH($D72&$F72,$AQ$2:$AQ$44&$AR$2:$AR$44,0),MATCH(I$1,$AS$1:$AX$1,0)) -> 0 | J72: =INDEX(CHARGES,MATCH($D72&$F72,$AQ$2:$AQ$44&$AR$2:$AR$44,0),MATCH(J$1,$AS$1:$AX$1,0)) -> 5 | K72: =INDEX(CHARGES,MATCH($D72&$F72,$AQ$2:$AQ$44&$AR$2:$AR$44,0),MATCH(K$1,$AS$1:$AX$1,0)) -> 0 | L72: =INDEX(CHARGES,MATCH($D72&$F72,$AQ$2:$AQ$44&$AR$2:$AR$44,0),MATCH(L$1,$AS$1:$AX$1,0)) -> 0 | O72: =IFERROR(INDEX($B$2:$B$1969, MATCH(0, INDEX(COUNTIF($O$1:O71,$B$2:$B$1969), 0),0)),"") -> Rural industry | P72: 86 | Q72: 0 | R72: 0 | S72: 73 | T72: =IFERROR(INDEX($O$2:$O$109,MATCH(SMALL($S$2:$S$109,ROWS(S$2:$S72)),$S$2:$S$109,0),1),"") -> Roadside stall
A73: Mt Isa - Fully Serviced | B73: Hardware and trade supplies | C73: Hardware and trade supplies | D73: Commercial (bulk goods) | E73: NR_1 | F73: Gross Floor Area | G73: 73 | H73: =INDEX(CHARGES,MATCH($D73&$F73,$AQ$2:$AQ$44&$AR$2:$AR$44,0),MATCH(H$1,$AS$1:$AX$1,0)) -> 15 | I73: =INDEX(CHARGES,MATCH($D73&$F73,$AQ$2:$AQ$44&$AR$2:$AR$44,0),MATCH(I$1,$AS$1:$AX$1,0)) -> 10 | J73: =INDEX(CHARGES,MATCH($D73&$F73,$AQ$2:$AQ$44&$AR$2:$AR$44,0),MATCH(J$1,$AS$1:$AX$1,0)) -> 0 | K73: =INDEX(CHARGES,MATCH($D73&$F73,$AQ$2:$AQ$44&$AR$2:$AR$44,0),MATCH(K$1,$AS$1:$AX$1,0)) -> 48 | L73: =INDEX(CHARGES,MATCH($D73&$F73,$AQ$2:$AQ$44&$AR$2:$AR$44,0),MATCH(L$1,$AS$1:$AX$1,0)) -> 0 | O73: =IFERROR(INDEX($B$2:$B$1969, MATCH(0, INDEX(COUNTIF($O$1:O72,$B$2:$B$1969), 0),0)),"") -> Rural workers accommodation | P73: 87 | Q73: 0 | R73: 0 | S73: 74 | T73: =IFERROR(INDEX($O$2:$O$109,MATCH(SMALL($S$2:$S$109,ROWS(S$2:$S73)),$S$2:$S$109,0),1),"") -> Rooming accommodation
A74: Mt Isa - Fully Serviced | B74: Hardware and trade supplies | C74: Hardware and trade supplies | D74: Commercial (bulk goods) | E74: NR_1 | F74: Impervious Area | G74: 5 | H74: =INDEX(CHARGES,MATCH($D74&$F74,$AQ$2:$AQ$44&$AR$2:$AR$44,0),MATCH(H$1,$AS$1:$AX$1,0)) -> 0 | I74: =INDEX(CHARGES,MATCH($D74&$F74,$AQ$2:$AQ$44&$AR$2:$AR$44,0),MATCH(I$1,$AS$1:$AX$1,0)) -> 0 | J74: =INDEX(CHARGES,MATCH($D74&$F74,$AQ$2:$AQ$44&$AR$2:$AR$44,0),MATCH(J$1,$AS$1:$AX$1,0)) -> 5 | K74: =INDEX(CHARGES,MATCH($D74&$F74,$AQ$2:$AQ$44&$AR$2:$AR$44,0),MATCH(K$1,$AS$1:$AX$1,0)) -> 0 | L74: =INDEX(CHARGES,MATCH($D74&$F74,$AQ$2:$AQ$44&$AR$2:$AR$44,0),MATCH(L$1,$AS$1:$AX$1,0)) -> 0 | O74: =IFERROR(INDEX($B$2:$B$1969, MATCH(0, INDEX(COUNTIF($O$1:O73,$B$2:$B$1969), 0),0)),"") -> Sales office | P74: 88 | Q74: 0 | R74: 0 | S74: 75 | T74: =IFERROR(INDEX($O$2:$O$109,MATCH(SMALL($S$2:$S$109,ROWS(S$2:$S74)),$S$2:$S$109,0),1),"") -> Rural industry
A75: Mt Isa - Fully Serviced | B75: Health care services | C75: Health care service | D75: Essential services | E75: NR_1 | F75: Gross Floor Area | G75: 73 | H75: =INDEX(CHARGES,MATCH($D75&$F75,$AQ$2:$AQ$44&$AR$2:$AR$44,0),MATCH(H$1,$AS$1:$AX$1,0)) -> 15 | I75: =INDEX(CHARGES,MATCH($D75&$F75,$AQ$2:$AQ$44&$AR$2:$AR$44,0),MATCH(I$1,$AS$1:$AX$1,0)) -> 10 | J75: =INDEX(CHARGES,MATCH($D75&$F75,$AQ$2:$AQ$44&$AR$2:$AR$44,0),MATCH(J$1,$AS$1:$AX$1,0)) -> 0 | K75: =INDEX(CHARGES,MATCH($D75&$F75,$AQ$2:$AQ$44&$AR$2:$AR$44,0),MATCH(K$1,$AS$1:$AX$1,0)) -> 48 | L75: =INDEX(CHARGES,MATCH($D75&$F75,$AQ$2:$AQ$44&$AR$2:$AR$44,0),MATCH(L$1,$AS$1:$AX$1,0)) -> 0 | O75: =IFERROR(INDEX($B$2:$B$1969, MATCH(0, INDEX(COUNTIF($O$1:O74,$B$2:$B$1969), 0),0)),"") -> Service industry | P75: 89 | Q75: 0 | R75: 0 | S75: 76 | T75: =IFERROR(INDEX($O$2:$O$109,MATCH(SMALL($S$2:$S$109,ROWS(S$2:$S75)),$S$2:$S$109,0),1),"") -> Rural workers accommodation
A76: Mt Isa - Fully Serviced | B76: Health care services | C76: Health care service | D76: Essential services | E76: NR_1 | F76: Impervious Area | G76: 5 | H76: =INDEX(CHARGES,MATCH($D76&$F76,$AQ$2:$AQ$44&$AR$2:$AR$44,0),MATCH(H$1,$AS$1:$AX$1,0)) -> 0 | I76: =INDEX(CHARGES,MATCH($D76&$F76,$AQ$2:$AQ$44&$AR$2:$AR$44,0),MATCH(I$1,$AS$1:$AX$1,0)) -> 0 | J76: =INDEX(CHARGES,MATCH($D76&$F76,$AQ$2:$AQ$44&$AR$2:$AR$44,0),MATCH(J$1,$AS$1:$AX$1,0)) -> 5 | K76: =INDEX(CHARGES,MATCH($D76&$F76,$AQ$2:$AQ$44&$AR$2:$AR$44,0),MATCH(K$1,$AS$1:$AX$1,0)) -> 0 | L76: =INDEX(CHARGES,MATCH($D76&$F76,$AQ$2:$AQ$44&$AR$2:$AR$44,0),MATCH(L$1,$AS$1:$AX$1,0)) -> 0 | O76: =IFERROR(INDEX($B$2:$B$1969, MATCH(0, INDEX(COUNTIF($O$1:O75,$B$2:$B$1969), 0),0)),"") -> Service station | P76: 90 | Q76: 0 | R76: 0 | S76: 77 | T76: =IFERROR(INDEX($O$2:$O$109,MATCH(SMALL($S$2:$S$109,ROWS(S$2:$S76)),$S$2:$S$109,0),1),"") -> Sales office
A77: Mt Isa - Fully Serviced | B77: High impact industry | C77: High impact industry | D77: High impact industry or special industry | E77: NR_1 | F77: Gross Floor Area | G77: 37 | H77: =INDEX(CHARGES,MATCH($D77&$F77,$AQ$2:$AQ$44&$AR$2:$AR$44,0),MATCH(H$1,$AS$1:$AX$1,0)) -> 8 | I77: =INDEX(CHARGES,MATCH($D77&$F77,$AQ$2:$AQ$44&$AR$2:$AR$44,0),MATCH(I$1,$AS$1:$AX$1,0)) -> 5 | J77: =INDEX(CHARGES,MATCH($D77&$F77,$AQ$2:$AQ$44&$AR$2:$AR$44,0),MATCH(J$1,$AS$1:$AX$1,0)) -> 0 | K77: =INDEX(CHARGES,MATCH($D77&$F77,$AQ$2:$AQ$44&$AR$2:$AR$44,0),MATCH(K$1,$AS$1:$AX$1,0)) -> 24 | L77: =INDEX(CHARGES,MATCH($D77&$F77,$AQ$2:$AQ$44&$AR$2:$AR$44,0),MATCH(L$1,$AS$1:$AX$1,0)) -> 0 | O77: =IFERROR(INDEX($B$2:$B$1969, MATCH(0, INDEX(COUNTIF($O$1:O76,$B$2:$B$1969), 0),0)),"") -> Shop | P77: 91 | Q77: 0 | R77: 0 | S77: 78 | T77: =IFERROR(INDEX($O$2:$O$109,MATCH(SMALL($S$2:$S$109,ROWS(S$2:$S77)),$S$2:$S$109,0),1),"") -> Service industry
A78: Mt Isa - Fully Serviced | B78: High impact industry | C78: High impact industry | D78: High impact industry or special industry | E78: NR_1 | F78: Impervious Area | G78: 5 | H78: =INDEX(CHARGES,MATCH($D78&$F78,$AQ$2:$AQ$44&$AR$2:$AR$44,0),MATCH(H$1,$AS$1:$AX$1,0)) -> 0 | I78: =INDEX(CHARGES,MATCH($D78&$F78,$AQ$2:$AQ$44&$AR$2:$AR$44,0),MATCH(I$1,$AS$1:$AX$1,0)) -> 0 | J78: =INDEX(CHARGES,MATCH($D78&$F78,$AQ$2:$AQ$44&$AR$2:$AR$44,0),MATCH(J$1,$AS$1:$AX$1,0)) -> 5 | K78: =INDEX(CHARGES,MATCH($D78&$F78,$AQ$2:$AQ$44&$AR$2:$AR$44,0),MATCH(K$1,$AS$1:$AX$1,0)) -> 0 | L78: =INDEX(CHARGES,MATCH($D78&$F78,$AQ$2:$AQ$44&$AR$2:$AR$44,0),MATCH(L$1,$AS$1:$AX$1,0)) -> 0 | O78: =IFERROR(INDEX($B$2:$B$1969, MATCH(0, INDEX(COUNTIF($O$1:O77,$B$2:$B$1969), 0),0)),"") -> Shopping centre | P78: 92 | Q78: 0 | R78: 0 | S78: 79 | T78: =IFERROR(INDEX($O$2:$O$109,MATCH(SMALL($S$2:$S$109,ROWS(S$2:$S78)),$S$2:$S$109,0),1),"") -> Service station
A79: Mt Isa - Fully Serviced | B79: Home based business | C79: Home based business | D79: Minor uses | E79: NR_3 | F79: Gross Floor Area | G79: 0 | H79: =INDEX(CHARGES,MATCH($D79&$F79,$AQ$2:$AQ$44&$AR$2:$AR$44,0),MATCH(H$1,$AS$1:$AX$1,0)) -> 0 | I79: =INDEX(CHARGES,MATCH($D79&$F79,$AQ$2:$AQ$44&$AR$2:$AR$44,0),MATCH(I$1,$AS$1:$AX$1,0)) -> 0 | J79: =INDEX(CHARGES,MATCH($D79&$F79,$AQ$2:$AQ$44&$AR$2:$AR$44,0),MATCH(J$1,$AS$1:$AX$1,0)) -> 0 | K79: =INDEX(CHARGES,MATCH($D79&$F79,$AQ$2:$AQ$44&$AR$2:$AR$44,0),MATCH(K$1,$AS$1:$AX$1,0)) -> 0 | L79: =INDEX(CHARGES,MATCH($D79&$F79,$AQ$2:$AQ$44&$AR$2:$AR$44,0),MATCH(L$1,$AS$1:$AX$1,0)) -> 0 | O79: =IFERROR(INDEX($B$2:$B$1969, MATCH(0, INDEX(COUNTIF($O$1:O78,$B$2:$B$1969), 0),0)),"") -> Short-term accommodation | P79: 93 | Q79: 0 | R79: 0 | S79: 80 | T79: =IFERROR(INDEX($O$2:$O$109,MATCH(SMALL($S$2:$S$109,ROWS(S$2:$S79)),$S$2:$S$109,0),1),"") -> Shop
A80: Mt Isa - Fully Serviced | B80: Hospital | C80: Hospital | D80: Essential services | E80: NR_1 | F80: Gross Floor Area | G80: 73 | H80: =INDEX(CHARGES,MATCH($D80&$F80,$AQ$2:$AQ$44&$AR$2:$AR$44,0),MATCH(H$1,$AS$1:$AX$1,0)) -> 15 | I80: =INDEX(CHARGES,MATCH($D80&$F80,$AQ$2:$AQ$44&$AR$2:$AR$44,0),MATCH(I$1,$AS$1:$AX$1,0)) -> 10 | J80: =INDEX(CHARGES,MATCH($D80&$F80,$AQ$2:$AQ$44&$AR$2:$AR$44,0),MATCH(J$1,$AS$1:$AX$1,0)) -> 0 | K80: =INDEX(CHARGES,MATCH($D80&$F80,$AQ$2:$AQ$44&$AR$2:$AR$44,0),MATCH(K$1,$AS$1:$AX$1,0)) -> 48 | L80: =INDEX(CHARGES,MATCH($D80&$F80,$AQ$2:$AQ$44&$AR$2:$AR$44,0),MATCH(L$1,$AS$1:$AX$1,0)) -> 0 | O80: =IFERROR(INDEX($B$2:$B$1969, MATCH(0, INDEX(COUNTIF($O$1:O79,$B$2:$B$1969), 0),0)),"") -> Showroom | P80: 94 | Q80: 0 | R80: 0 | S80: 81 | T80: =IFERROR(INDEX($O$2:$O$109,MATCH(SMALL($S$2:$S$109,ROWS(S$2:$S80)),$S$2:$S$109,0),1),"") -> Shopping centre
A81: Mt Isa - Fully Serviced | B81: Hospital | C81: Hospital | D81: Essential services | E81: NR_1 | F81: Impervious Area | G81: 5 | H81: =INDEX(CHARGES,MATCH($D81&$F81,$AQ$2:$AQ$44&$AR$2:$AR$44,0),MATCH(H$1,$AS$1:$AX$1,0)) -> 0 | I81: =INDEX(CHARGES,MATCH($D81&$F81,$AQ$2:$AQ$44&$AR$2:$AR$44,0),MATCH(I$1,$AS$1:$AX$1,0)) -> 0 | J81: =INDEX(CHARGES,MATCH($D81&$F81,$AQ$2:$AQ$44&$AR$2:$AR$44,0),MATCH(J$1,$AS$1:$AX$1,0)) -> 5 | K81: =INDEX(CHARGES,MATCH($D81&$F81,$AQ$2:$AQ$44&$AR$2:$AR$44,0),MATCH(K$1,$AS$1:$AX$1,0)) -> 0 | L81: =INDEX(CHARGES,MATCH($D81&$F81,$AQ$2:$AQ$44&$AR$2:$AR$44,0),MATCH(L$1,$AS$1:$AX$1,0)) -> 0 | O81: =IFERROR(INDEX($B$2:$B$1969, MATCH(0, INDEX(COUNTIF($O$1:O80,$B$2:$B$1969), 0),0)),"") -> Special industry | P81: 95 | Q81: 0 | R81: 0 | S81: 82 | T81: =IFERROR(INDEX($O$2:$O$109,MATCH(SMALL($S$2:$S$109,ROWS(S$2:$S81)),$S$2:$S$109,0),1),"") -> Short-term accommodation
A82: Mt Isa - Fully Serviced | B82: Hotel - Accommodation component | C82: Hotel | D82: Accommodation (short-term) | E82: RU_2 | F82: bedroom that is not part of a suite | G82: =SUM(H82:L82) -> 5239 | H82: =INDEX(CHARGES,MATCH($D82&$F82,$AQ$2:$AQ$44&$AR$2:$AR$44,0),MATCH(H$1,$AS$1:$AX$1,0)) -> 1467 | I82: =INDEX(CHARGES,MATCH($D82&$F82,$AQ$2:$AQ$44&$AR$2:$AR$44,0),MATCH(I$1,$AS$1:$AX$1,0)) -> 943 | J82: =INDEX(CHARGES,MATCH($D82&$F82,$AQ$2:$AQ$44&$AR$2:$AR$44,0),MATCH(J$1,$AS$1:$AX$1,0)) -> 104 | K82: =INDEX(CHARGES,MATCH($D82&$F82,$AQ$2:$AQ$44&$AR$2:$AR$44,0),MATCH(K$1,$AS$1:$AX$1,0)) -> 2620 | L82: =INDEX(CHARGES,MATCH($D82&$F82,$AQ$2:$AQ$44&$AR$2:$AR$44,0),MATCH(L$1,$AS$1:$AX$1,0)) -> 105 | O82: =IFERROR(INDEX($B$2:$B$1969, MATCH(0, INDEX(COUNTIF($O$1:O81,$B$2:$B$1969), 0),0)),"") -> Substation | P82: 96 | Q82: 0 | R82: 0 | S82: 83 | T82: =IFERROR(INDEX($O$2:$O$109,MATCH(SMALL($S$2:$S$109,ROWS(S$2:$S82)),$S$2:$S$109,0),1),"") -> Showroom
A83: Mt Isa - Fully Serviced | B83: Hotel - Accommodation component | C83: Hotel | D83: Accommodation (short-term) | E83: RU_2 | F83: 2 or less bedrooms | G83: 5239 | H83: =INDEX(CHARGES,MATCH($D83&$F83,$AQ$2:$AQ$44&$AR$2:$AR$44,0),MATCH(H$1,$AS$1:$AX$1,0)) -> 1467 | I83: =INDEX(CHARGES,MATCH($D83&$F83,$AQ$2:$AQ$44&$AR$2:$AR$44,0),MATCH(I$1,$AS$1:$AX$1,0)) -> 943 | J83: =INDEX(CHARGES,MATCH($D83&$F83,$AQ$2:$AQ$44&$AR$2:$AR$44,0),MATCH(J$1,$AS$1:$AX$1,0)) -> 104 | K83: =INDEX(CHARGES,MATCH($D83&$F83,$AQ$2:$AQ$44&$AR$2:$AR$44,0),MATCH(K$1,$AS$1:$AX$1,0)) -> 2620 | L83: =INDEX(CHARGES,MATCH($D83&$F83,$AQ$2:$AQ$44&$AR$2:$AR$44,0),MATCH(L$1,$AS$1:$AX$1,0)) -> 105 | O83: =IFERROR(INDEX($B$2:$B$1969, MATCH(0, INDEX(COUNTIF($O$1:O82,$B$2:$B$1969), 0),0)),"") -> Telecommunications facility | P83: 97 | Q83: 0 | R83: 0 | S83: 84 | T83: =IFERROR(INDEX($O$2:$O$109,MATCH(SMALL($S$2:$S$109,ROWS(S$2:$S83)),$S$2:$S$109,0),1),"") -> Special industry
A84: Mt Isa - Fully Serviced | B84: Hotel - Accommodation component | C84: Hotel | D84: Accommodation (short-term) | E84: RU_2 | F84: 3 or more bedrooms | G84: 7335 | H84: =INDEX(CHARGES,MATCH($D84&$F84,$AQ$2:$AQ$44&$AR$2:$AR$44,0),MATCH(H$1,$AS$1:$AX$1,0)) -> 2054 | I84: =INDEX(CHARGES,MATCH($D84&$F84,$AQ$2:$AQ$44&$AR$2:$AR$44,0),MATCH(I$1,$AS$1:$AX$1,0)) -> 1320 | J84: =INDEX(CHARGES,MATCH($D84&$F84,$AQ$2:$AQ$44&$AR$2:$AR$44,0),MATCH(J$1,$AS$1:$AX$1,0)) -> 146 | K84: =INDEX(CHARGES,MATCH($D84&$F84,$AQ$2:$AQ$44&$AR$2:$AR$44,0),MATCH(K$1,$AS$1:$AX$1,0)) -> 3668 | L84: =INDEX(CHARGES,MATCH($D84&$F84,$AQ$2:$AQ$44&$AR$2:$AR$44,0),MATCH(L$1,$AS$1:$AX$1,0)) -> 147 | O84: =IFERROR(INDEX($B$2:$B$1969, MATCH(0, INDEX(COUNTIF($O$1:O83,$B$2:$B$1969), 0),0)),"") -> Theatre | P84: 98 | Q84: 0 | R84: 0 | S84: 85 | T84: =IFERROR(INDEX($O$2:$O$109,MATCH(SMALL($S$2:$S$109,ROWS(S$2:$S84)),$S$2:$S$109,0),1),"") -> Substation
A85: Mt Isa - Fully Serviced | B85: Hotel - Entertainment component | C85: Hotel | D85: Entertainment | E85: NR_1 | F85: Gross Floor Area | G85: 105 | H85: =INDEX(CHARGES,MATCH($D85&$F85,$AQ$2:$AQ$44&$AR$2:$AR$44,0),MATCH(H$1,$AS$1:$AX$1,0)) -> 22 | I85: =INDEX(CHARGES,MATCH($D85&$F85,$AQ$2:$AQ$44&$AR$2:$AR$44,0),MATCH(I$1,$AS$1:$AX$1,0)) -> 15 | J85: =INDEX(CHARGES,MATCH($D85&$F85,$AQ$2:$AQ$44&$AR$2:$AR$44,0),MATCH(J$1,$AS$1:$AX$1,0)) -> 0 | K85: =INDEX(CHARGES,MATCH($D85&$F85,$AQ$2:$AQ$44&$AR$2:$AR$44,0),MATCH(K$1,$AS$1:$AX$1,0)) -> 68 | L85: =INDEX(CHARGES,MATCH($D85&$F85,$AQ$2:$AQ$44&$AR$2:$AR$44,0),MATCH(L$1,$AS$1:$AX$1,0)) -> 0 | O85: =IFERROR(INDEX($B$2:$B$1969, MATCH(0, INDEX(COUNTIF($O$1:O84,$B$2:$B$1969), 0),0)),"") -> Tourist attraction | P85: 99 | Q85: 0 | R85: 0 | S85: 86 | T85: =IFERROR(INDEX($O$2:$O$109,MATCH(SMALL($S$2:$S$109,ROWS(S$2:$S85)),$S$2:$S$109,0),1),"") -> Telecommunications facility
A86: Mt Isa - Fully Serviced | B86: Hotel - Entertainment component | C86: Hotel | D86: Entertainment | E86: NR_1 | F86: Impervious Area | G86: 5 | H86: =INDEX(CHARGES,MATCH($D86&$F86,$AQ$2:$AQ$44&$AR$2:$AR$44,0),MATCH(H$1,$AS$1:$AX$1,0)) -> 0 | I86: =INDEX(CHARGES,MATCH($D86&$F86,$AQ$2:$AQ$44&$AR$2:$AR$44,0),MATCH(I$1,$AS$1:$AX$1,0)) -> 0 | J86: =INDEX(CHARGES,MATCH($D86&$F86,$AQ$2:$AQ$44&$AR$2:$AR$44,0),MATCH(J$1,$AS$1:$AX$1,0)) -> 5 | K86: =INDEX(CHARGES,MATCH($D86&$F86,$AQ$2:$AQ$44&$AR$2:$AR$44,0),MATCH(K$1,$AS$1:$AX$1,0)) -> 0 | L86: =INDEX(CHARGES,MATCH($D86&$F86,$AQ$2:$AQ$44&$AR$2:$AR$44,0),MATCH(L$1,$AS$1:$AX$1,0)) -> 0 | O86: =IFERROR(INDEX($B$2:$B$1969, MATCH(0, INDEX(COUNTIF($O$1:O85,$B$2:$B$1969), 0),0)),"") -> Tourist park | P86: 100 | Q86: 0 | R86: 0 | S86: 87 | T86: =IFERROR(INDEX($O$2:$O$109,MATCH(SMALL($S$2:$S$109,ROWS(S$2:$S86)),$S$2:$S$109,0),1),"") -> Theatre
A87: Mt Isa - Fully Serviced | B87: Indoor sport and recreation | C87: Indoor sport and recreation | D87: Indoor sport and recreation | E87: NR_2 | F87: Gross Floor Area - not court area | G87: 105 | H87: =INDEX(CHARGES,MATCH($D87&$F87,$AQ$2:$AQ$44&$AR$2:$AR$44,0),MATCH(H$1,$AS$1:$AX$1,0)) -> 22 | I87: =INDEX(CHARGES,MATCH($D87&$F87,$AQ$2:$AQ$44&$AR$2:$AR$44,0),MATCH(I$1,$AS$1:$AX$1,0)) -> 15 | J87: =INDEX(CHARGES,MATCH($D87&$F87,$AQ$2:$AQ$44&$AR$2:$AR$44,0),MATCH(J$1,$AS$1:$AX$1,0)) -> 0 | K87: =INDEX(CHARGES,MATCH($D87&$F87,$AQ$2:$AQ$44&$AR$2:$AR$44,0),MATCH(K$1,$AS$1:$AX$1,0)) -> 68 | L87: =INDEX(CHARGES,MATCH($D87&$F87,$AQ$2:$AQ$44&$AR$2:$AR$44,0),MATCH(L$1,$AS$1:$AX$1,0)) -> 0 | O87: =IFERROR(INDEX($B$2:$B$1969, MATCH(0, INDEX(COUNTIF($O$1:O86,$B$2:$B$1969), 0),0)),"") -> Transport depot | P87: 101 | Q87: 0 | R87: 0 | S87: 88 | T87: =IFERROR(INDEX($O$2:$O$109,MATCH(SMALL($S$2:$S$109,ROWS(S$2:$S87)),$S$2:$S$109,0),1),"") -> Tourist attraction
A88: Mt Isa - Fully Serviced | B88: Indoor sport and recreation | C88: Indoor sport and recreation | D88: Indoor sport and recreation | E88: NR_2 | F88: Gross Floor Area - court area | G88: 10 | H88: =INDEX(CHARGES,MATCH($D88&$F88,$AQ$2:$AQ$44&$AR$2:$AR$44,0),MATCH(H$1,$AS$1:$AX$1,0)) -> 2 | I88: =INDEX(CHARGES,MATCH($D88&$F88,$AQ$2:$AQ$44&$AR$2:$AR$44,0),MATCH(I$1,$AS$1:$AX$1,0)) -> 1 | J88: =INDEX(CHARGES,MATCH($D88&$F88,$AQ$2:$AQ$44&$AR$2:$AR$44,0),MATCH(J$1,$AS$1:$AX$1,0)) -> 0 | K88: =INDEX(CHARGES,MATCH($D88&$F88,$AQ$2:$AQ$44&$AR$2:$AR$44,0),MATCH(K$1,$AS$1:$AX$1,0)) -> 7 | L88: =INDEX(CHARGES,MATCH($D88&$F88,$AQ$2:$AQ$44&$AR$2:$AR$44,0),MATCH(L$1,$AS$1:$AX$1,0)) -> 0 | O88: =IFERROR(INDEX($B$2:$B$1969, MATCH(0, INDEX(COUNTIF($O$1:O87,$B$2:$B$1969), 0),0)),"") -> Utility installation | P88: 102 | Q88: 0 | R88: 0 | S88: 89 | T88: =IFERROR(INDEX($O$2:$O$109,MATCH(SMALL($S$2:$S$109,ROWS(S$2:$S88)),$S$2:$S$109,0),1),"") -> Tourist park
A89: Mt Isa - Fully Serviced | B89: Indoor sport and recreation | C89: Indoor sport and recreation | D89: Indoor sport and recreation | E89: NR_2 | F89: Impervious Area | G89: 5 | H89: =INDEX(CHARGES,MATCH($D89&$F89,$AQ$2:$AQ$44&$AR$2:$AR$44,0),MATCH(H$1,$AS$1:$AX$1,0)) -> 0 | I89: =INDEX(CHARGES,MATCH($D89&$F89,$AQ$2:$AQ$44&$AR$2:$AR$44,0),MATCH(I$1,$AS$1:$AX$1,0)) -> 0 | J89: =INDEX(CHARGES,MATCH($D89&$F89,$AQ$2:$AQ$44&$AR$2:$AR$44,0),MATCH(J$1,$AS$1:$AX$1,0)) -> 5 | K89: =INDEX(CHARGES,MATCH($D89&$F89,$AQ$2:$AQ$44&$AR$2:$AR$44,0),MATCH(K$1,$AS$1:$AX$1,0)) -> 0 | L89: =INDEX(CHARGES,MATCH($D89&$F89,$AQ$2:$AQ$44&$AR$2:$AR$44,0),MATCH(L$1,$AS$1:$AX$1,0)) -> 0 | O89: =IFERROR(INDEX($B$2:$B$1969, MATCH(0, INDEX(COUNTIF($O$1:O88,$B$2:$B$1969), 0),0)),"") -> Veterinary services | P89: 103 | Q89: 0 | R89: 0 | S89: 90 | T89: =IFERROR(INDEX($O$2:$O$109,MATCH(SMALL($S$2:$S$109,ROWS(S$2:$S89)),$S$2:$S$109,0),1),"") -> Transport depot
A90: Mt Isa - Fully Serviced | B90: Intensive animal industry | C90: Intensive animal industry | D90: High impact rural | E90: NR_3 | F90: Gross Floor Area | G90: 10 | H90: =INDEX(CHARGES,MATCH($D90&$F90,$AQ$2:$AQ$44&$AR$2:$AR$44,0),MATCH(H$1,$AS$1:$AX$1,0)) -> 2 | I90: =INDEX(CHARGES,MATCH($D90&$F90,$AQ$2:$AQ$44&$AR$2:$AR$44,0),MATCH(I$1,$AS$1:$AX$1,0)) -> 1 | J90: =INDEX(CHARGES,MATCH($D90&$F90,$AQ$2:$AQ$44&$AR$2:$AR$44,0),MATCH(J$1,$AS$1:$AX$1,0)) -> 0 | K90: =INDEX(CHARGES,MATCH($D90&$F90,$AQ$2:$AQ$44&$AR$2:$AR$44,0),MATCH(K$1,$AS$1:$AX$1,0)) -> 7 | L90: =INDEX(CHARGES,MATCH($D90&$F90,$AQ$2:$AQ$44&$AR$2:$AR$44,0),MATCH(L$1,$AS$1:$AX$1,0)) -> 0 | O90: =IFERROR(INDEX($B$2:$B$1969, MATCH(0, INDEX(COUNTIF($O$1:O89,$B$2:$B$1969), 0),0)),"") -> Warehouse | P90: 104 | Q90: 0 | R90: 0 | S90: 91 | T90: =IFERROR(INDEX($O$2:$O$109,MATCH(SMALL($S$2:$S$109,ROWS(S$2:$S90)),$S$2:$S$109,0),1),"") -> Utility installation
A91: Mt Isa - Fully Serviced | B91: Intensive horticulture | C91: Intensive horticulture | D91: High impact rural | E91: NR_3 | F91: Gross Floor Area | G91: 10 | H91: =INDEX(CHARGES,MATCH($D91&$F91,$AQ$2:$AQ$44&$AR$2:$AR$44,0),MATCH(H$1,$AS$1:$AX$1,0)) -> 2 | I91: =INDEX(CHARGES,MATCH($D91&$F91,$AQ$2:$AQ$44&$AR$2:$AR$44,0),MATCH(I$1,$AS$1:$AX$1,0)) -> 1 | J91: =INDEX(CHARGES,MATCH($D91&$F91,$AQ$2:$AQ$44&$AR$2:$AR$44,0),MATCH(J$1,$AS$1:$AX$1,0)) -> 0 | K91: =INDEX(CHARGES,MATCH($D91&$F91,$AQ$2:$AQ$44&$AR$2:$AR$44,0),MATCH(K$1,$AS$1:$AX$1,0)) -> 7 | L91: =INDEX(CHARGES,MATCH($D91&$F91,$AQ$2:$AQ$44&$AR$2:$AR$44,0),MATCH(L$1,$AS$1:$AX$1,0)) -> 0 | O91: =IFERROR(INDEX($B$2:$B$1969, MATCH(0, INDEX(COUNTIF($O$1:O90,$B$2:$B$1969), 0),0)),"") -> Wholesale nursery | P91: =COUNTIF($O$2:$O$109,"<="&O91) -> 106 | Q91: =IF(O91=0,0,--ISNUMBER(O91)) -> 0 | R91: =IF(O91=0,1,IF(O91="",1,0)) -> 0 | S91: =IF(IF(Q91=1,P91,IF(R91=1,P91,P91+$Q$110))-$P$110<0,"",IF(ISNUMBER(O91),P91,IF(R91=1,P91,P91+$Q$110))-$P$110) -> 93 | T91: =IFERROR(INDEX($O$2:$O$109,MATCH(SMALL($S$2:$S$109,ROWS(S$2:$S91)),$S$2:$S$109,0),1),"") -> Veterinary services
A92: Mt Isa - Fully Serviced | B92: Landing | C92: Landing | D92: Minor uses | E92: NR_3 | F92: Gross Floor Area | G92: =SUM(H92:L92) -> 0 | H92: =INDEX(CHARGES,MATCH($D92&$F92,$AQ$2:$AQ$44&$AR$2:$AR$44,0),MATCH(H$1,$AS$1:$AX$1,0)) -> 0 | I92: =INDEX(CHARGES,MATCH($D92&$F92,$AQ$2:$AQ$44&$AR$2:$AR$44,0),MATCH(I$1,$AS$1:$AX$1,0)) -> 0 | J92: =INDEX(CHARGES,MATCH($D92&$F92,$AQ$2:$AQ$44&$AR$2:$AR$44,0),MATCH(J$1,$AS$1:$AX$1,0)) -> 0 | K92: =INDEX(CHARGES,MATCH($D92&$F92,$AQ$2:$AQ$44&$AR$2:$AR$44,0),MATCH(K$1,$AS$1:$AX$1,0)) -> 0 | L92: =INDEX(CHARGES,MATCH($D92&$F92,$AQ$2:$AQ$44&$AR$2:$AR$44,0),MATCH(L$1,$AS$1:$AX$1,0)) -> 0 | O92: =IFERROR(INDEX($B$2:$B$1969, MATCH(0, INDEX(COUNTIF($O$1:O91,$B$2:$B$1969), 0),0)),"") -> Winery | P92: 107 | Q92: 0 | R92: 0 | S92: 94 | T92: =IFERROR(INDEX($O$2:$O$109,MATCH(SMALL($S$2:$S$109,ROWS(S$2:$S92)),$S$2:$S$109,0),1),"") -> Warehouse
A93: Mt Isa - Fully Serviced | B93: Low impact industry | C93: Low impact industry | D93: Other industry | E93: NR_1 | F93: Gross Floor Area | G93: 26 | H93: =INDEX(CHARGES,MATCH($D93&$F93,$AQ$2:$AQ$44&$AR$2:$AR$44,0),MATCH(H$1,$AS$1:$AX$1,0)) -> 5 | I93: =INDEX(CHARGES,MATCH($D93&$F93,$AQ$2:$AQ$44&$AR$2:$AR$44,0),MATCH(I$1,$AS$1:$AX$1,0)) -> 4 | J93: =INDEX(CHARGES,MATCH($D93&$F93,$AQ$2:$AQ$44&$AR$2:$AR$44,0),MATCH(J$1,$AS$1:$AX$1,0)) -> 0 | K93: =INDEX(CHARGES,MATCH($D93&$F93,$AQ$2:$AQ$44&$AR$2:$AR$44,0),MATCH(K$1,$AS$1:$AX$1,0)) -> 17 | L93: =INDEX(CHARGES,MATCH($D93&$F93,$AQ$2:$AQ$44&$AR$2:$AR$44,0),MATCH(L$1,$AS$1:$AX$1,0)) -> 0 | O93: =IFERROR(INDEX($B$2:$B$1969, MATCH(0, INDEX(COUNTIF($O$1:O90,$B$2:$B$1969), 0),0)),"") -> Wholesale nursery | P93: 106 | Q93: 0 | R93: 0 | S93: 93 | T93: =IFERROR(INDEX($O$2:$O$109,MATCH(SMALL($S$2:$S$109,ROWS(S$2:$S93)),$S$2:$S$109,0),1),"") -> Wholesale nursery
A94: Mt Isa - Fully Serviced | B94: Low impact industry | C94: Low impact industry | D94: Other industry | E94: NR_1 | F94: Impervious Area | G94: 5 | H94: =INDEX(CHARGES,MATCH($D94&$F94,$AQ$2:$AQ$44&$AR$2:$AR$44,0),MATCH(H$1,$AS$1:$AX$1,0)) -> 0 | I94: =INDEX(CHARGES,MATCH($D94&$F94,$AQ$2:$AQ$44&$AR$2:$AR$44,0),MATCH(I$1,$AS$1:$AX$1,0)) -> 0 | J94: =INDEX(CHARGES,MATCH($D94&$F94,$AQ$2:$AQ$44&$AR$2:$AR$44,0),MATCH(J$1,$AS$1:$AX$1,0)) -> 5 | K94: =INDEX(CHARGES,MATCH($D94&$F94,$AQ$2:$AQ$44&$AR$2:$AR$44,0),MATCH(K$1,$AS$1:$AX$1,0)) -> 0 | L94: =INDEX(CHARGES,MATCH($D94&$F94,$AQ$2:$AQ$44&$AR$2:$AR$44,0),MATCH(L$1,$AS$1:$AX$1,0)) -> 0 | O94: =IFERROR(INDEX($B$2:$B$1969, MATCH(0, INDEX(COUNTIF($O$1:O93,$B$2:$B$1969), 0),0)),"") -> Reconfiguring a lot - Residential | P94: =COUNTIF($O$2:$O$109,"<="&O94) -> 76 | Q94: =IF(O94=0,0,--ISNUMBER(O94)) -> 0 | R94: =IF(O94=0,1,IF(O94="",1,0)) -> 0 | S94: 63 | T94: =IFERROR(INDEX($O$2:$O$109,MATCH(SMALL($S$2:$S$109,ROWS(S$2:$S94)),$S$2:$S$109,0),1),"") -> Wholesale nursery
A95: Mt Isa - Fully Serviced | B95: Major electricity infrastructure | C95: Utility installation | D95: Other uses | E95: NR_1 | F95: Gross Floor Area | G95: 0 | H95: =INDEX(CHARGES,MATCH($D95&$F95,$AQ$2:$AQ$44&$AR$2:$AR$44,0),MATCH(H$1,$AS$1:$AX$1,0)) -> 0 | I95: =INDEX(CHARGES,MATCH($D95&$F95,$AQ$2:$AQ$44&$AR$2:$AR$44,0),MATCH(I$1,$AS$1:$AX$1,0)) -> 0 | J95: =INDEX(CHARGES,MATCH($D95&$F95,$AQ$2:$AQ$44&$AR$2:$AR$44,0),MATCH(J$1,$AS$1:$AX$1,0)) -> 0 | K95: =INDEX(CHARGES,MATCH($D95&$F95,$AQ$2:$AQ$44&$AR$2:$AR$44,0),MATCH(K$1,$AS$1:$AX$1,0)) -> 0 | L95: =INDEX(CHARGES,MATCH($D95&$F95,$AQ$2:$AQ$44&$AR$2:$AR$44,0),MATCH(L$1,$AS$1:$AX$1,0)) -> 0 | O95: =IFERROR(INDEX($B$2:$B$1969, MATCH(0, INDEX(COUNTIF($O$1:O94,$B$2:$B$1969), 0),0)),"") -> Reconfiguring a lot - Non residential | P95: 75 | Q95: 0 | R95: 0 | S95: 62 | T95: =IFERROR(INDEX($O$2:$O$109,MATCH(SMALL($S$2:$S$109,ROWS(S$2:$S95)),$S$2:$S$109,0),1),"") -> Winery
A96: Mt Isa - Fully Serviced | B96: Major electricity infrastructure | C96: Utility installation | D96: Other uses | E96: NR_1 | F96: Impervious Area | G96: 0 | H96: =INDEX(CHARGES,MATCH($D96&$F96,$AQ$2:$AQ$44&$AR$2:$AR$44,0),MATCH(H$1,$AS$1:$AX$1,0)) -> 0 | I96: =INDEX(CHARGES,MATCH($D96&$F96,$AQ$2:$AQ$44&$AR$2:$AR$44,0),MATCH(I$1,$AS$1:$AX$1,0)) -> 0 | J96: =INDEX(CHARGES,MATCH($D96&$F96,$AQ$2:$AQ$44&$AR$2:$AR$44,0),MATCH(J$1,$AS$1:$AX$1,0)) -> 0 | K96: =INDEX(CHARGES,MATCH($D96&$F96,$AQ$2:$AQ$44&$AR$2:$AR$44,0),MATCH(K$1,$AS$1:$AX$1,0)) -> 0 | L96: =INDEX(CHARGES,MATCH($D96&$F96,$AQ$2:$AQ$44&$AR$2:$AR$44,0),MATCH(L$1,$AS$1:$AX$1,0)) -> 0 | O96: =IFERROR(INDEX($B$2:$B$1969, MATCH(0, INDEX(COUNTIF($O$1:O95,$B$2:$B$1969), 0),0)),"") -> 0 | P96: 1 | Q96: 0 | R96: 1 | T96: =IFERROR(INDEX($O$2:$O$109,MATCH(SMALL($S$2:$S$109,ROWS(S$2:$S96)),$S$2:$S$109,0),1),"") -> 
A97: Mt Isa - Fully Serviced | B97: Major sport, recreation and entertainment facility | C97: Major sport, recreation and entertainment facility | D97: Other uses | E97: NR_1 | F97: Gross Floor Area | G97: 0 | H97: =INDEX(CHARGES,MATCH($D97&$F97,$AQ$2:$AQ$44&$AR$2:$AR$44,0),MATCH(H$1,$AS$1:$AX$1,0)) -> 0 | I97: =INDEX(CHARGES,MATCH($D97&$F97,$AQ$2:$AQ$44&$AR$2:$AR$44,0),MATCH(I$1,$AS$1:$AX$1,0)) -> 0 | J97: =INDEX(CHARGES,MATCH($D97&$F97,$AQ$2:$AQ$44&$AR$2:$AR$44,0),MATCH(J$1,$AS$1:$AX$1,0)) -> 0 | K97: =INDEX(CHARGES,MATCH($D97&$F97,$AQ$2:$AQ$44&$AR$2:$AR$44,0),MATCH(K$1,$AS$1:$AX$1,0)) -> 0 | L97: =INDEX(CHARGES,MATCH($D97&$F97,$AQ$2:$AQ$44&$AR$2:$AR$44,0),MATCH(L$1,$AS$1:$AX$1,0)) -> 0 | O97: =IFERROR(INDEX($B$2:$B$1969, MATCH(0, INDEX(COUNTIF($O$1:O96,$B$2:$B$1969), 0),0)),"") ->  | P97: 0 | Q97: 0 | R97: 1 | T97: =IFERROR(INDEX($O$2:$O$109,MATCH(SMALL($S$2:$S$109,ROWS(S$2:$S97)),$S$2:$S$109,0),1),"") -> 
A98: Mt Isa - Fully Serviced | B98: Major sport, recreation and entertainment facility | C98: Major sport, recreation and entertainment facility | D98: Other uses | E98: NR_1 | F98: Impervious Area | G98: 0 | H98: =INDEX(CHARGES,MATCH($D98&$F98,$AQ$2:$AQ$44&$AR$2:$AR$44,0),MATCH(H$1,$AS$1:$AX$1,0)) -> 0 | I98: =INDEX(CHARGES,MATCH($D98&$F98,$AQ$2:$AQ$44&$AR$2:$AR$44,0),MATCH(I$1,$AS$1:$AX$1,0)) -> 0 | J98: =INDEX(CHARGES,MATCH($D98&$F98,$AQ$2:$AQ$44&$AR$2:$AR$44,0),MATCH(J$1,$AS$1:$AX$1,0)) -> 0 | K98: =INDEX(CHARGES,MATCH($D98&$F98,$AQ$2:$AQ$44&$AR$2:$AR$44,0),MATCH(K$1,$AS$1:$AX$1,0)) -> 0 | L98: =INDEX(CHARGES,MATCH($D98&$F98,$AQ$2:$AQ$44&$AR$2:$AR$44,0),MATCH(L$1,$AS$1:$AX$1,0)) -> 0 | O98: =IFERROR(INDEX($B$2:$B$1969, MATCH(0, INDEX(COUNTIF($O$1:O97,$B$2:$B$1969), 0),0)),"") ->  | P98: 0 | Q98: 0 | R98: 1 | T98: =IFERROR(INDEX($O$2:$O$109,MATCH(SMALL($S$2:$S$109,ROWS(S$2:$S98)),$S$2:$S$109,0),1),"") -> 
A99: Mt Isa - Fully Serviced | B99: Marine industry | C99: Marine industry | D99: Other industry | E99: NR_1 | F99: Gross Floor Area | G99: 26 | H99: =INDEX(CHARGES,MATCH($D99&$F99,$AQ$2:$AQ$44&$AR$2:$AR$44,0),MATCH(H$1,$AS$1:$AX$1,0)) -> 5 | I99: =INDEX(CHARGES,MATCH($D99&$F99,$AQ$2:$AQ$44&$AR$2:$AR$44,0),MATCH(I$1,$AS$1:$AX$1,0)) -> 4 | J99: =INDEX(CHARGES,MATCH($D99&$F99,$AQ$2:$AQ$44&$AR$2:$AR$44,0),MATCH(J$1,$AS$1:$AX$1,0)) -> 0 | K99: =INDEX(CHARGES,MATCH($D99&$F99,$AQ$2:$AQ$44&$AR$2:$AR$44,0),MATCH(K$1,$AS$1:$AX$1,0)) -> 17 | L99: =INDEX(CHARGES,MATCH($D99&$F99,$AQ$2:$AQ$44&$AR$2:$AR$44,0),MATCH(L$1,$AS$1:$AX$1,0)) -> 0 | O99: =IFERROR(INDEX($B$2:$B$1969, MATCH(0, INDEX(COUNTIF($O$1:O98,$B$2:$B$1969), 0),0)),"") ->  | P99: 0 | Q99: 0 | R99: 1 | T99: =IFERROR(INDEX($O$2:$O$109,MATCH(SMALL($S$2:$S$109,ROWS(S$2:$S99)),$S$2:$S$109,0),1),"") -> 
A100: Mt Isa - Fully Serviced | B100: Marine industry | C100: Marine industry | D100: Other industry | E100: NR_1 | F100: Impervious Area | G100: 5 | H100: =INDEX(CHARGES,MATCH($D100&$F100,$AQ$2:$AQ$44&$AR$2:$AR$44,0),MATCH(H$1,$AS$1:$AX$1,0)) -> 0 | I100: =INDEX(CHARGES,MATCH($D100&$F100,$AQ$2:$AQ$44&$AR$2:$AR$44,0),MATCH(I$1,$AS$1:$AX$1,0)) -> 0 | J100: =INDEX(CHARGES,MATCH($D100&$F100,$AQ$2:$AQ$44&$AR$2:$AR$44,0),MATCH(J$1,$AS$1:$AX$1,0)) -> 5 | K100: =INDEX(CHARGES,MATCH($D100&$F100,$AQ$2:$AQ$44&$AR$2:$AR$44,0),MATCH(K$1,$AS$1:$AX$1,0)) -> 0 | L100: =INDEX(CHARGES,MATCH($D100&$F100,$AQ$2:$AQ$44&$AR$2:$AR$44,0),MATCH(L$1,$AS$1:$AX$1,0)) -> 0 | O100: =IFERROR(INDEX($B$2:$B$1969, MATCH(0, INDEX(COUNTIF($O$1:O99,$B$2:$B$1969), 0),0)),"") ->  | P100: 0 | Q100: 0 | R100: 1 | T100: =IFERROR(INDEX($O$2:$O$109,MATCH(SMALL($S$2:$S$109,ROWS(S$2:$S100)),$S$2:$S$109,0),1),"") -> 
A101: Mt Isa - Fully Serviced | B101: Market | C101: Market | D101: Minor uses | E101: NR_3 | F101: Gross Floor Area | G101: 0 | H101: =INDEX(CHARGES,MATCH($D101&$F101,$AQ$2:$AQ$44&$AR$2:$AR$44,0),MATCH(H$1,$AS$1:$AX$1,0)) -> 0 | I101: =INDEX(CHARGES,MATCH($D101&$F101,$AQ$2:$AQ$44&$AR$2:$AR$44,0),MATCH(I$1,$AS$1:$AX$1,0)) -> 0 | J101: =INDEX(CHARGES,MATCH($D101&$F101,$AQ$2:$AQ$44&$AR$2:$AR$44,0),MATCH(J$1,$AS$1:$AX$1,0)) -> 0 | K101: =INDEX(CHARGES,MATCH($D101&$F101,$AQ$2:$AQ$44&$AR$2:$AR$44,0),MATCH(K$1,$AS$1:$AX$1,0)) -> 0 | L101: =INDEX(CHARGES,MATCH($D101&$F101,$AQ$2:$AQ$44&$AR$2:$AR$44,0),MATCH(L$1,$AS$1:$AX$1,0)) -> 0 | O101: =IFERROR(INDEX($B$2:$B$1969, MATCH(0, INDEX(COUNTIF($O$1:O100,$B$2:$B$1969), 0),0)),"") ->  | P101: 0 | Q101: 0 | R101: 1 | T101: =IFERROR(INDEX($O$2:$O$109,MATCH(SMALL($S$2:$S$109,ROWS(S$2:$S101)),$S$2:$S$109,0),1),"") -> 
A102: Mt Isa - Fully Serviced | B102: Medium impact industry | C102: Medium impact industry | D102: Other industry | E102: NR_1 | F102: Gross Floor Area | G102: 26 | H102: =INDEX(CHARGES,MATCH($D102&$F102,$AQ$2:$AQ$44&$AR$2:$AR$44,0),MATCH(H$1,$AS$1:$AX$1,0)) -> 5 | I102: =INDEX(CHARGES,MATCH($D102&$F102,$AQ$2:$AQ$44&$AR$2:$AR$44,0),MATCH(I$1,$AS$1:$AX$1,0)) -> 4 | J102: =INDEX(CHARGES,MATCH($D102&$F102,$AQ$2:$AQ$44&$AR$2:$AR$44,0),MATCH(J$1,$AS$1:$AX$1,0)) -> 0 | K102: =INDEX(CHARGES,MATCH($D102&$F102,$AQ$2:$AQ$44&$AR$2:$AR$44,0),MATCH(K$1,$AS$1:$AX$1,0)) -> 17 | L102: =INDEX(CHARGES,MATCH($D102&$F102,$AQ$2:$AQ$44&$AR$2:$AR$44,0),MATCH(L$1,$AS$1:$AX$1,0)) -> 0 | O102: =IFERROR(INDEX($B$2:$B$1969, MATCH(0, INDEX(COUNTIF($O$1:O101,$B$2:$B$1969), 0),0)),"") ->  | P102: 0 | Q102: 0 | R102: 1 | T102: =IFERROR(INDEX($O$2:$O$109,MATCH(SMALL($S$2:$S$109,ROWS(S$2:$S102)),$S$2:$S$109,0),1),"") -> 
A103: Mt Isa - Fully Serviced | B103: Medium impact industry | C103: Medium impact industry | D103: Other industry | E103: NR_1 | F103: Impervious Area | G103: 5 | H103: =INDEX(CHARGES,MATCH($D103&$F103,$AQ$2:$AQ$44&$AR$2:$AR$44,0),MATCH(H$1,$AS$1:$AX$1,0)) -> 0 | I103: =INDEX(CHARGES,MATCH($D103&$F103,$AQ$2:$AQ$44&$AR$2:$AR$44,0),MATCH(I$1,$AS$1:$AX$1,0)) -> 0 | J103: =INDEX(CHARGES,MATCH($D103&$F103,$AQ$2:$AQ$44&$AR$2:$AR$44,0),MATCH(J$1,$AS$1:$AX$1,0)) -> 5 | K103: =INDEX(CHARGES,MATCH($D103&$F103,$AQ$2:$AQ$44&$AR$2:$AR$44,0),MATCH(K$1,$AS$1:$AX$1,0)) -> 0 | L103: =INDEX(CHARGES,MATCH($D103&$F103,$AQ$2:$AQ$44&$AR$2:$AR$44,0),MATCH(L$1,$AS$1:$AX$1,0)) -> 0 | O103: =IFERROR(INDEX($B$2:$B$1969, MATCH(0, INDEX(COUNTIF($O$1:O102,$B$2:$B$1969), 0),0)),"") ->  | P103: 0 | Q103: 0 | R103: 1 | T103: =IFERROR(INDEX($O$2:$O$109,MATCH(SMALL($S$2:$S$109,ROWS(S$2:$S103)),$S$2:$S$109,0),1),"") -> 
A104: Mt Isa - Fully Serviced | B104: Motor sport facility | C104: Motor sport facility | D104: Other uses | E104: NR_1 | F104: Gross Floor Area | G104: 0 | H104: =INDEX(CHARGES,MATCH($D104&$F104,$AQ$2:$AQ$44&$AR$2:$AR$44,0),MATCH(H$1,$AS$1:$AX$1,0)) -> 0 | I104: =INDEX(CHARGES,MATCH($D104&$F104,$AQ$2:$AQ$44&$AR$2:$AR$44,0),MATCH(I$1,$AS$1:$AX$1,0)) -> 0 | J104: =INDEX(CHARGES,MATCH($D104&$F104,$AQ$2:$AQ$44&$AR$2:$AR$44,0),MATCH(J$1,$AS$1:$AX$1,0)) -> 0 | K104: =INDEX(CHARGES,MATCH($D104&$F104,$AQ$2:$AQ$44&$AR$2:$AR$44,0),MATCH(K$1,$AS$1:$AX$1,0)) -> 0 | L104: =INDEX(CHARGES,MATCH($D104&$F104,$AQ$2:$AQ$44&$AR$2:$AR$44,0),MATCH(L$1,$AS$1:$AX$1,0)) -> 0 | O104: =IFERROR(INDEX($B$2:$B$1969, MATCH(0, INDEX(COUNTIF($O$1:O103,$B$2:$B$1969), 0),0)),"") ->  | P104: 0 | Q104: 0 | R104: 1 | T104: =IFERROR(INDEX($O$2:$O$109,MATCH(SMALL($S$2:$S$109,ROWS(S$2:$S104)),$S$2:$S$109,0),1),"") -> 
A105: Mt Isa - Fully Serviced | B105: Motor sport facility | C105: Motor sport facility | D105: Other uses | E105: NR_1 | F105: Impervious Area | G105: 0 | H105: =INDEX(CHARGES,MATCH($D105&$F105,$AQ$2:$AQ$44&$AR$2:$AR$44,0),MATCH(H$1,$AS$1:$AX$1,0)) -> 0 | I105: =INDEX(CHARGES,MATCH($D105&$F105,$AQ$2:$AQ$44&$AR$2:$AR$44,0),MATCH(I$1,$AS$1:$AX$1,0)) -> 0 | J105: =INDEX(CHARGES,MATCH($D105&$F105,$AQ$2:$AQ$44&$AR$2:$AR$44,0),MATCH(J$1,$AS$1:$AX$1,0)) -> 0 | K105: =INDEX(CHARGES,MATCH($D105&$F105,$AQ$2:$AQ$44&$AR$2:$AR$44,0),MATCH(K$1,$AS$1:$AX$1,0)) -> 0 | L105: =INDEX(CHARGES,MATCH($D105&$F105,$AQ$2:$AQ$44&$AR$2:$AR$44,0),MATCH(L$1,$AS$1:$AX$1,0)) -> 0 | O105: =IFERROR(INDEX($B$2:$B$1969, MATCH(0, INDEX(COUNTIF($O$1:O104,$B$2:$B$1969), 0),0)),"") ->  | P105: 0 | Q105: 0 | R105: 1 | T105: =IFERROR(INDEX($O$2:$O$109,MATCH(SMALL($S$2:$S$109,ROWS(S$2:$S105)),$S$2:$S$109,0),1),"") -> 
A106: Mt Isa - Fully Serviced | B106: Multiple dwelling | C106: Multiple dwelling | D106: Residential uses | E106: RU_1 | F106: 2 or less bedrooms | G106: 10478 | H106: =INDEX(CHARGES,MATCH($D106&$F106,$AQ$2:$AQ$44&$AR$2:$AR$44,0),MATCH(H$1,$AS$1:$AX$1,0)) -> 2934 | I106: =INDEX(CHARGES,MATCH($D106&$F106,$AQ$2:$AQ$44&$AR$2:$AR$44,0),MATCH(I$1,$AS$1:$AX$1,0)) -> 1886 | J106: =INDEX(CHARGES,MATCH($D106&$F106,$AQ$2:$AQ$44&$AR$2:$AR$44,0),MATCH(J$1,$AS$1:$AX$1,0)) -> 209 | K106: =INDEX(CHARGES,MATCH($D106&$F106,$AQ$2:$AQ$44&$AR$2:$AR$44,0),MATCH(K$1,$AS$1:$AX$1,0)) -> 5239 | L106: =INDEX(CHARGES,MATCH($D106&$F106,$AQ$2:$AQ$44&$AR$2:$AR$44,0),MATCH(L$1,$AS$1:$AX$1,0)) -> 210 | O106: =IFERROR(INDEX($B$2:$B$1969, MATCH(0, INDEX(COUNTIF($O$1:O105,$B$2:$B$1969), 0),0)),"") ->  | P106: 0 | Q106: 0 | R106: 1 | T106: =IFERROR(INDEX($O$2:$O$109,MATCH(SMALL($S$2:$S$109,ROWS(S$2:$S106)),$S$2:$S$109,0),1),"") -> 
A107: Mt Isa - Fully Serviced | B107: Multiple dwelling | C107: Multiple dwelling | D107: Residential uses | E107: RU_1 | F107: 3 or more bedrooms | G107: 14670 | H107: =INDEX(CHARGES,MATCH($D107&$F107,$AQ$2:$AQ$44&$AR$2:$AR$44,0),MATCH(H$1,$AS$1:$AX$1,0)) -> 4108 | I107: =INDEX(CHARGES,MATCH($D107&$F107,$AQ$2:$AQ$44&$AR$2:$AR$44,0),MATCH(I$1,$AS$1:$AX$1,0)) -> 2641 | J107: =INDEX(CHARGES,MATCH($D107&$F107,$AQ$2:$AQ$44&$AR$2:$AR$44,0),MATCH(J$1,$AS$1:$AX$1,0)) -> 293 | K107: =INDEX(CHARGES,MATCH($D107&$F107,$AQ$2:$AQ$44&$AR$2:$AR$44,0),MATCH(K$1,$AS$1:$AX$1,0)) -> 7335 | L107: =INDEX(CHARGES,MATCH($D107&$F107,$AQ$2:$AQ$44&$AR$2:$AR$44,0),MATCH(L$1,$AS$1:$AX$1,0)) -> 293 | O107: =IFERROR(INDEX($B$2:$B$1969, MATCH(0, INDEX(COUNTIF($O$1:O106,$B$2:$B$1969), 0),0)),"") ->  | P107: 0 | Q107: 0 | R107: 1 | T107: =IFERROR(INDEX($O$2:$O$109,MATCH(SMALL($S$2:$S$109,ROWS(S$2:$S107)),$S$2:$S$109,0),1),"") -> 
A108: Mt Isa - Fully Serviced | B108: Nature-based tourism | D108: Other uses | E108: NR_1 | F108: Gross Floor Area | G108: 0 | H108: =INDEX(CHARGES,MATCH($D108&$F108,$AQ$2:$AQ$44&$AR$2:$AR$44,0),MATCH(H$1,$AS$1:$AX$1,0)) -> 0 | I108: =INDEX(CHARGES,MATCH($D108&$F108,$AQ$2:$AQ$44&$AR$2:$AR$44,0),MATCH(I$1,$AS$1:$AX$1,0)) -> 0 | J108: =INDEX(CHARGES,MATCH($D108&$F108,$AQ$2:$AQ$44&$AR$2:$AR$44,0),MATCH(J$1,$AS$1:$AX$1,0)) -> 0 | K108: =INDEX(CHARGES,MATCH($D108&$F108,$AQ$2:$AQ$44&$AR$2:$AR$44,0),MATCH(K$1,$AS$1:$AX$1,0)) -> 0 | L108: =INDEX(CHARGES,MATCH($D108&$F108,$AQ$2:$AQ$44&$AR$2:$AR$44,0),MATCH(L$1,$AS$1:$AX$1,0)) -> 0 | O108: =IFERROR(INDEX($B$2:$B$1969, MATCH(0, INDEX(COUNTIF($O$1:O107,$B$2:$B$1969), 0),0)),"") ->  | P108: 0 | Q108: 0 | R108: 1 | T108: =IFERROR(INDEX($O$2:$O$109,MATCH(SMALL($S$2:$S$109,ROWS(S$2:$S108)),$S$2:$S$109,0),1),"") -> 
A109: Mt Isa - Fully Serviced | B109: Nature-based tourism | D109: Other uses | E109: NR_1 | F109: Impervious Area | G109: 0 | H109: =INDEX(CHARGES,MATCH($D109&$F109,$AQ$2:$AQ$44&$AR$2:$AR$44,0),MATCH(H$1,$AS$1:$AX$1,0)) -> 0 | I109: =INDEX(CHARGES,MATCH($D109&$F109,$AQ$2:$AQ$44&$AR$2:$AR$44,0),MATCH(I$1,$AS$1:$AX$1,0)) -> 0 | J109: =INDEX(CHARGES,MATCH($D109&$F109,$AQ$2:$AQ$44&$AR$2:$AR$44,0),MATCH(J$1,$AS$1:$AX$1,0)) -> 0 | K109: =INDEX(CHARGES,MATCH($D109&$F109,$AQ$2:$AQ$44&$AR$2:$AR$44,0),MATCH(K$1,$AS$1:$AX$1,0)) -> 0 | L109: =INDEX(CHARGES,MATCH($D109&$F109,$AQ$2:$AQ$44&$AR$2:$AR$44,0),MATCH(L$1,$AS$1:$AX$1,0)) -> 0 | O109: =IFERROR(INDEX($B$2:$B$1969, MATCH(0, INDEX(COUNTIF($O$1:O108,$B$2:$B$1969), 0),0)),"") ->  | P109: 0 | Q109: 0 | R109: 1 | T109: =IFERROR(INDEX($O$2:$O$109,MATCH(SMALL($S$2:$S$109,ROWS(S$2:$S109)),$S$2:$S$109,0),1),"") -> 
A110: Mt Isa - Fully Serviced | B110: Nightclub entertainment facility | C110: Nightclub entertainment facility | D110: Entertainment | E110: NR_1 | F110: Gross Floor Area | G110: 105 | H110: =INDEX(CHARGES,MATCH($D110&$F110,$AQ$2:$AQ$44&$AR$2:$AR$44,0),MATCH(H$1,$AS$1:$AX$1,0)) -> 22 | I110: =INDEX(CHARGES,MATCH($D110&$F110,$AQ$2:$AQ$44&$AR$2:$AR$44,0),MATCH(I$1,$AS$1:$AX$1,0)) -> 15 | J110: =INDEX(CHARGES,MATCH($D110&$F110,$AQ$2:$AQ$44&$AR$2:$AR$44,0),MATCH(J$1,$AS$1:$AX$1,0)) -> 0 | K110: =INDEX(CHARGES,MATCH($D110&$F110,$AQ$2:$AQ$44&$AR$2:$AR$44,0),MATCH(K$1,$AS$1:$AX$1,0)) -> 68 | L110: =INDEX(CHARGES,MATCH($D110&$F110,$AQ$2:$AQ$44&$AR$2:$AR$44,0),MATCH(L$1,$AS$1:$AX$1,0)) -> 0 | P110: =COUNTIF(P2:P109,0) -> 13 | Q110: =SUM(Q2:Q109) -> 0 | R110: =SUM(R2:R109) -> 14
A111: Mt Isa - Fully Serviced | B111: Nightclub entertainment facility | C111: Nightclub entertainment facility | D111: Entertainment | E111: NR_1 | F111: Impervious Area | G111: 5 | H111: =INDEX(CHARGES,MATCH($D111&$F111,$AQ$2:$AQ$44&$AR$2:$AR$44,0),MATCH(H$1,$AS$1:$AX$1,0)) -> 0 | I111: =INDEX(CHARGES,MATCH($D111&$F111,$AQ$2:$AQ$44&$AR$2:$AR$44,0),MATCH(I$1,$AS$1:$AX$1,0)) -> 0 | J111: =INDEX(CHARGES,MATCH($D111&$F111,$AQ$2:$AQ$44&$AR$2:$AR$44,0),MATCH(J$1,$AS$1:$AX$1,0)) -> 5 | K111: =INDEX(CHARGES,MATCH($D111&$F111,$AQ$2:$AQ$44&$AR$2:$AR$44,0),MATCH(K$1,$AS$1:$AX$1,0)) -> 0 | L111: =INDEX(CHARGES,MATCH($D111&$F111,$AQ$2:$AQ$44&$AR$2:$AR$44,0),MATCH(L$1,$AS$1:$AX$1,0)) -> 0
A112: Mt Isa - Fully Serviced | B112: Non-resident workforce accommodation | C112: Short-term accommodation | D112: Accommodation (short-term) | E112: RU_2 | F112: bedroom that is not part of a suite | G112: 5239 | H112: =INDEX(CHARGES,MATCH($D112&$F112,$AQ$2:$AQ$44&$AR$2:$AR$44,0),MATCH(H$1,$AS$1:$AX$1,0)) -> 1467 | I112: =INDEX(CHARGES,MATCH($D112&$F112,$AQ$2:$AQ$44&$AR$2:$AR$44,0),MATCH(I$1,$AS$1:$AX$1,0)) -> 943 | J112: =INDEX(CHARGES,MATCH($D112&$F112,$AQ$2:$AQ$44&$AR$2:$AR$44,0),MATCH(J$1,$AS$1:$AX$1,0)) -> 104 | K112: =INDEX(CHARGES,MATCH($D112&$F112,$AQ$2:$AQ$44&$AR$2:$AR$44,0),MATCH(K$1,$AS$1:$AX$1,0)) -> 2620 | L112: =INDEX(CHARGES,MATCH($D112&$F112,$AQ$2:$AQ$44&$AR$2:$AR$44,0),MATCH(L$1,$AS$1:$AX$1,0)) -> 105
A113: Mt Isa - Fully Serviced | B113: Non-resident workforce accommodation | C113: Short-term accommodation | D113: Accommodation (short-term) | E113: RU_2 | F113: 2 or less bedrooms | G113: 5239 | H113: =INDEX(CHARGES,MATCH($D113&$F113,$AQ$2:$AQ$44&$AR$2:$AR$44,0),MATCH(H$1,$AS$1:$AX$1,0)) -> 1467 | I113: =INDEX(CHARGES,MATCH($D113&$F113,$AQ$2:$AQ$44&$AR$2:$AR$44,0),MATCH(I$1,$AS$1:$AX$1,0)) -> 943 | J113: =INDEX(CHARGES,MATCH($D113&$F113,$AQ$2:$AQ$44&$AR$2:$AR$44,0),MATCH(J$1,$AS$1:$AX$1,0)) -> 104 | K113: =INDEX(CHARGES,MATCH($D113&$F113,$AQ$2:$AQ$44&$AR$2:$AR$44,0),MATCH(K$1,$AS$1:$AX$1,0)) -> 2620 | L113: =INDEX(CHARGES,MATCH($D113&$F113,$AQ$2:$AQ$44&$AR$2:$AR$44,0),MATCH(L$1,$AS$1:$AX$1,0)) -> 105
A114: Mt Isa - Fully Serviced | B114: Non-resident workforce accommodation | C114: Short-term accommodation | D114: Accommodation (short-term) | E114: RU_2 | F114: 3 or more bedrooms | G114: 7335 | H114: =INDEX(CHARGES,MATCH($D114&$F114,$AQ$2:$AQ$44&$AR$2:$AR$44,0),MATCH(H$1,$AS$1:$AX$1,0)) -> 2054 | I114: =INDEX(CHARGES,MATCH($D114&$F114,$AQ$2:$AQ$44&$AR$2:$AR$44,0),MATCH(I$1,$AS$1:$AX$1,0)) -> 1320 | J114: =INDEX(CHARGES,MATCH($D114&$F114,$AQ$2:$AQ$44&$AR$2:$AR$44,0),MATCH(J$1,$AS$1:$AX$1,0)) -> 146 | K114: =INDEX(CHARGES,MATCH($D114&$F114,$AQ$2:$AQ$44&$AR$2:$AR$44,0),MATCH(K$1,$AS$1:$AX$1,0)) -> 3668 | L114: =INDEX(CHARGES,MATCH($D114&$F114,$AQ$2:$AQ$44&$AR$2:$AR$44,0),MATCH(L$1,$AS$1:$AX$1,0)) -> 147
A115: Mt Isa - Fully Serviced | B115: Place of worship | C115: Place of worship | D115: Places of assembly | E115: NR_1 | F115: Gross Floor Area | G115: 37 | H115: =INDEX(CHARGES,MATCH($D115&$F115,$AQ$2:$AQ$44&$AR$2:$AR$44,0),MATCH(H$1,$AS$1:$AX$1,0)) -> 8 | I115: =INDEX(CHARGES,MATCH($D115&$F115,$AQ$2:$AQ$44&$AR$2:$AR$44,0),MATCH(I$1,$AS$1:$AX$1,0)) -> 5 | J115: =INDEX(CHARGES,MATCH($D115&$F115,$AQ$2:$AQ$44&$AR$2:$AR$44,0),MATCH(J$1,$AS$1:$AX$1,0)) -> 0 | K115: =INDEX(CHARGES,MATCH($D115&$F115,$AQ$2:$AQ$44&$AR$2:$AR$44,0),MATCH(K$1,$AS$1:$AX$1,0)) -> 24 | L115: =INDEX(CHARGES,MATCH($D115&$F115,$AQ$2:$AQ$44&$AR$2:$AR$44,0),MATCH(L$1,$AS$1:$AX$1,0)) -> 0
A116: Mt Isa - Fully Serviced | B116: Place of worship | C116: Place of worship | D116: Places of assembly | E116: NR_1 | F116: Impervious Area | G116: 5 | H116: =INDEX(CHARGES,MATCH($D116&$F116,$AQ$2:$AQ$44&$AR$2:$AR$44,0),MATCH(H$1,$AS$1:$AX$1,0)) -> 0 | I116: =INDEX(CHARGES,MATCH($D116&$F116,$AQ$2:$AQ$44&$AR$2:$AR$44,0),MATCH(I$1,$AS$1:$AX$1,0)) -> 0 | J116: =INDEX(CHARGES,MATCH($D116&$F116,$AQ$2:$AQ$44&$AR$2:$AR$44,0),MATCH(J$1,$AS$1:$AX$1,0)) -> 5 | K116: =INDEX(CHARGES,MATCH($D116&$F116,$AQ$2:$AQ$44&$AR$2:$AR$44,0),MATCH(K$1,$AS$1:$AX$1,0)) -> 0 | L116: =INDEX(CHARGES,MATCH($D116&$F116,$AQ$2:$AQ$44&$AR$2:$AR$44,0),MATCH(L$1,$AS$1:$AX$1,0)) -> 0
A117: Mt Isa - Fully Serviced | B117: Port services | C117: Port service | D117: Other uses | E117: NR_1 | F117: Gross Floor Area | G117: 0 | H117: =INDEX(CHARGES,MATCH($D117&$F117,$AQ$2:$AQ$44&$AR$2:$AR$44,0),MATCH(H$1,$AS$1:$AX$1,0)) -> 0 | I117: =INDEX(CHARGES,MATCH($D117&$F117,$AQ$2:$AQ$44&$AR$2:$AR$44,0),MATCH(I$1,$AS$1:$AX$1,0)) -> 0 | J117: =INDEX(CHARGES,MATCH($D117&$F117,$AQ$2:$AQ$44&$AR$2:$AR$44,0),MATCH(J$1,$AS$1:$AX$1,0)) -> 0 | K117: =INDEX(CHARGES,MATCH($D117&$F117,$AQ$2:$AQ$44&$AR$2:$AR$44,0),MATCH(K$1,$AS$1:$AX$1,0)) -> 0 | L117: =INDEX(CHARGES,MATCH($D117&$F117,$AQ$2:$AQ$44&$AR$2:$AR$44,0),MATCH(L$1,$AS$1:$AX$1,0)) -> 0
A118: Mt Isa - Fully Serviced | B118: Port services | C118: Port service | D118: Other uses | E118: NR_1 | F118: Impervious Area | G118: 0 | H118: =INDEX(CHARGES,MATCH($D118&$F118,$AQ$2:$AQ$44&$AR$2:$AR$44,0),MATCH(H$1,$AS$1:$AX$1,0)) -> 0 | I118: =INDEX(CHARGES,MATCH($D118&$F118,$AQ$2:$AQ$44&$AR$2:$AR$44,0),MATCH(I$1,$AS$1:$AX$1,0)) -> 0 | J118: =INDEX(CHARGES,MATCH($D118&$F118,$AQ$2:$AQ$44&$AR$2:$AR$44,0),MATCH(J$1,$AS$1:$AX$1,0)) -> 0 | K118: =INDEX(CHARGES,MATCH($D118&$F118,$AQ$2:$AQ$44&$AR$2:$AR$44,0),MATCH(K$1,$AS$1:$AX$1,0)) -> 0 | L118: =INDEX(CHARGES,MATCH($D118&$F118,$AQ$2:$AQ$44&$AR$2:$AR$44,0),MATCH(L$1,$AS$1:$AX$1,0)) -> 0
A119: Mt Isa - Fully Serviced | B119: Relocatable home park | C119: Relocatable home park | D119: Accommodation (long-term) | E119: RU_1 | F119: 2 or less bedrooms | G119: 10478 | H119: =INDEX(CHARGES,MATCH($D119&$F119,$AQ$2:$AQ$44&$AR$2:$AR$44,0),MATCH(H$1,$AS$1:$AX$1,0)) -> 2934 | I119: =INDEX(CHARGES,MATCH($D119&$F119,$AQ$2:$AQ$44&$AR$2:$AR$44,0),MATCH(I$1,$AS$1:$AX$1,0)) -> 1886 | J119: =INDEX(CHARGES,MATCH($D119&$F119,$AQ$2:$AQ$44&$AR$2:$AR$44,0),MATCH(J$1,$AS$1:$AX$1,0)) -> 209 | K119: =INDEX(CHARGES,MATCH($D119&$F119,$AQ$2:$AQ$44&$AR$2:$AR$44,0),MATCH(K$1,$AS$1:$AX$1,0)) -> 5239 | L119: =INDEX(CHARGES,MATCH($D119&$F119,$AQ$2:$AQ$44&$AR$2:$AR$44,0),MATCH(L$1,$AS$1:$AX$1,0)) -> 210
A120: Mt Isa - Fully Serviced | B120: Relocatable home park | C120: Relocatable home park | D120: Accommodation (long-term) | E120: RU_1 | F120: 3 or more bedrooms | G120: 14670 | H120: =INDEX(CHARGES,MATCH($D120&$F120,$AQ$2:$AQ$44&$AR$2:$AR$44,0),MATCH(H$1,$AS$1:$AX$1,0)) -> 4108 | I120: =INDEX(CHARGES,MATCH($D120&$F120,$AQ$2:$AQ$44&$AR$2:$AR$44,0),MATCH(I$1,$AS$1:$AX$1,0)) -> 2641 | J120: =INDEX(CHARGES,MATCH($D120&$F120,$AQ$2:$AQ$44&$AR$2:$AR$44,0),MATCH(J$1,$AS$1:$AX$1,0)) -> 293 | K120: =INDEX(CHARGES,MATCH($D120&$F120,$AQ$2:$AQ$44&$AR$2:$AR$44,0),MATCH(K$1,$AS$1:$AX$1,0)) -> 7335 | L120: =INDEX(CHARGES,MATCH($D120&$F120,$AQ$2:$AQ$44&$AR$2:$AR$44,0),MATCH(L$1,$AS$1:$AX$1,0)) -> 293
A121: Mt Isa - Fully Serviced | B121: Renewable energy facility | D121: Other uses | E121: NR_1 | F121: Gross Floor Area | G121: 0 | H121: =INDEX(CHARGES,MATCH($D121&$F121,$AQ$2:$AQ$44&$AR$2:$AR$44,0),MATCH(H$1,$AS$1:$AX$1,0)) -> 0 | I121: =INDEX(CHARGES,MATCH($D121&$F121,$AQ$2:$AQ$44&$AR$2:$AR$44,0),MATCH(I$1,$AS$1:$AX$1,0)) -> 0 | J121: =INDEX(CHARGES,MATCH($D121&$F121,$AQ$2:$AQ$44&$AR$2:$AR$44,0),MATCH(J$1,$AS$1:$AX$1,0)) -> 0 | K121: =INDEX(CHARGES,MATCH($D121&$F121,$AQ$2:$AQ$44&$AR$2:$AR$44,0),MATCH(K$1,$AS$1:$AX$1,0)) -> 0 | L121: =INDEX(CHARGES,MATCH($D121&$F121,$AQ$2:$AQ$44&$AR$2:$AR$44,0),MATCH(L$1,$AS$1:$AX$1,0)) -> 0
A122: Mt Isa - Fully Serviced | B122: Renewable energy facility | D122: Other uses | E122: NR_1 | F122: Impervious Area | G122: 0 | H122: =INDEX(CHARGES,MATCH($D122&$F122,$AQ$2:$AQ$44&$AR$2:$AR$44,0),MATCH(H$1,$AS$1:$AX$1,0)) -> 0 | I122: =INDEX(CHARGES,MATCH($D122&$F122,$AQ$2:$AQ$44&$AR$2:$AR$44,0),MATCH(I$1,$AS$1:$AX$1,0)) -> 0 | J122: =INDEX(CHARGES,MATCH($D122&$F122,$AQ$2:$AQ$44&$AR$2:$AR$44,0),MATCH(J$1,$AS$1:$AX$1,0)) -> 0 | K122: =INDEX(CHARGES,MATCH($D122&$F122,$AQ$2:$AQ$44&$AR$2:$AR$44,0),MATCH(K$1,$AS$1:$AX$1,0)) -> 0 | L122: =INDEX(CHARGES,MATCH($D122&$F122,$AQ$2:$AQ$44&$AR$2:$AR$44,0),MATCH(L$1,$AS$1:$AX$1,0)) -> 0
A123: Mt Isa - Fully Serviced | B123: Research and technology industry | C123: Low impact industry | D123: Other industry | E123: NR_1 | F123: Gross Floor Area | G123: 26 | H123: =INDEX(CHARGES,MATCH($D123&$F123,$AQ$2:$AQ$44&$AR$2:$AR$44,0),MATCH(H$1,$AS$1:$AX$1,0)) -> 5 | I123: =INDEX(CHARGES,MATCH($D123&$F123,$AQ$2:$AQ$44&$AR$2:$AR$44,0),MATCH(I$1,$AS$1:$AX$1,0)) -> 4 | J123: =INDEX(CHARGES,MATCH($D123&$F123,$AQ$2:$AQ$44&$AR$2:$AR$44,0),MATCH(J$1,$AS$1:$AX$1,0)) -> 0 | K123: =INDEX(CHARGES,MATCH($D123&$F123,$AQ$2:$AQ$44&$AR$2:$AR$44,0),MATCH(K$1,$AS$1:$AX$1,0)) -> 17 | L123: =INDEX(CHARGES,MATCH($D123&$F123,$AQ$2:$AQ$44&$AR$2:$AR$44,0),MATCH(L$1,$AS$1:$AX$1,0)) -> 0
A124: Mt Isa - Fully Serviced | B124: Research and technology industry | C124: Low impact industry | D124: Other industry | E124: NR_1 | F124: Impervious Area | G124: 5 | H124: =INDEX(CHARGES,MATCH($D124&$F124,$AQ$2:$AQ$44&$AR$2:$AR$44,0),MATCH(H$1,$AS$1:$AX$1,0)) -> 0 | I124: =INDEX(CHARGES,MATCH($D124&$F124,$AQ$2:$AQ$44&$AR$2:$AR$44,0),MATCH(I$1,$AS$1:$AX$1,0)) -> 0 | J124: =INDEX(CHARGES,MATCH($D124&$F124,$AQ$2:$AQ$44&$AR$2:$AR$44,0),MATCH(J$1,$AS$1:$AX$1,0)) -> 5 | K124: =INDEX(CHARGES,MATCH($D124&$F124,$AQ$2:$AQ$44&$AR$2:$AR$44,0),MATCH(K$1,$AS$1:$AX$1,0)) -> 0 | L124: =INDEX(CHARGES,MATCH($D124&$F124,$AQ$2:$AQ$44&$AR$2:$AR$44,0),MATCH(L$1,$AS$1:$AX$1,0)) -> 0
A125: Mt Isa - Fully Serviced | B125: Residential care facility | C125: Short-term accommodation | D125: Accommodation (short-term) | E125: RU_2 | F125: bedroom that is not part of a suite | G125: 5239 | H125: =INDEX(CHARGES,MATCH($D125&$F125,$AQ$2:$AQ$44&$AR$2:$AR$44,0),MATCH(H$1,$AS$1:$AX$1,0)) -> 1467 | I125: =INDEX(CHARGES,MATCH($D125&$F125,$AQ$2:$AQ$44&$AR$2:$AR$44,0),MATCH(I$1,$AS$1:$AX$1,0)) -> 943 | J125: =INDEX(CHARGES,MATCH($D125&$F125,$AQ$2:$AQ$44&$AR$2:$AR$44,0),MATCH(J$1,$AS$1:$AX$1,0)) -> 104 | K125: =INDEX(CHARGES,MATCH($D125&$F125,$AQ$2:$AQ$44&$AR$2:$AR$44,0),MATCH(K$1,$AS$1:$AX$1,0)) -> 2620 | L125: =INDEX(CHARGES,MATCH($D125&$F125,$AQ$2:$AQ$44&$AR$2:$AR$44,0),MATCH(L$1,$AS$1:$AX$1,0)) -> 105
A126: Mt Isa - Fully Serviced | B126: Residential care facility | C126: Short-term accommodation | D126: Accommodation (short-term) | E126: RU_2 | F126: 2 or less bedrooms | G126: 5239 | H126: =INDEX(CHARGES,MATCH($D126&$F126,$AQ$2:$AQ$44&$AR$2:$AR$44,0),MATCH(H$1,$AS$1:$AX$1,0)) -> 1467 | I126: =INDEX(CHARGES,MATCH($D126&$F126,$AQ$2:$AQ$44&$AR$2:$AR$44,0),MATCH(I$1,$AS$1:$AX$1,0)) -> 943 | J126: =INDEX(CHARGES,MATCH($D126&$F126,$AQ$2:$AQ$44&$AR$2:$AR$44,0),MATCH(J$1,$AS$1:$AX$1,0)) -> 104 | K126: =INDEX(CHARGES,MATCH($D126&$F126,$AQ$2:$AQ$44&$AR$2:$AR$44,0),MATCH(K$1,$AS$1:$AX$1,0)) -> 2620 | L126: =INDEX(CHARGES,MATCH($D126&$F126,$AQ$2:$AQ$44&$AR$2:$AR$44,0),MATCH(L$1,$AS$1:$AX$1,0)) -> 105
A127: Mt Isa - Fully Serviced | B127: Residential care facility | C127: Short-term accommodation | D127: Accommodation (short-term) | E127: RU_2 | F127: 3 or more bedrooms | G127: 7335 | H127: =INDEX(CHARGES,MATCH($D127&$F127,$AQ$2:$AQ$44&$AR$2:$AR$44,0),MATCH(H$1,$AS$1:$AX$1,0)) -> 2054 | I127: =INDEX(CHARGES,MATCH($D127&$F127,$AQ$2:$AQ$44&$AR$2:$AR$44,0),MATCH(I$1,$AS$1:$AX$1,0)) -> 1320 | J127: =INDEX(CHARGES,MATCH($D127&$F127,$AQ$2:$AQ$44&$AR$2:$AR$44,0),MATCH(J$1,$AS$1:$AX$1,0)) -> 146 | K127: =INDEX(CHARGES,MATCH($D127&$F127,$AQ$2:$AQ$44&$AR$2:$AR$44,0),MATCH(K$1,$AS$1:$AX$1,0)) -> 3668 | L127: =INDEX(CHARGES,MATCH($D127&$F127,$AQ$2:$AQ$44&$AR$2:$AR$44,0),MATCH(L$1,$AS$1:$AX$1,0)) -> 147
A128: Mt Isa - Fully Serviced | B128: Resort complex - Accommodation component | C128: Resort complex | D128: Accommodation (short-term) | E128: RU_2 | F128: bedroom that is not part of a suite | G128: 5239 | H128: =INDEX(CHARGES,MATCH($D128&$F128,$AQ$2:$AQ$44&$AR$2:$AR$44,0),MATCH(H$1,$AS$1:$AX$1,0)) -> 1467 | I128: =INDEX(CHARGES,MATCH($D128&$F128,$AQ$2:$AQ$44&$AR$2:$AR$44,0),MATCH(I$1,$AS$1:$AX$1,0)) -> 943 | J128: =INDEX(CHARGES,MATCH($D128&$F128,$AQ$2:$AQ$44&$AR$2:$AR$44,0),MATCH(J$1,$AS$1:$AX$1,0)) -> 104 | K128: =INDEX(CHARGES,MATCH($D128&$F128,$AQ$2:$AQ$44&$AR$2:$AR$44,0),MATCH(K$1,$AS$1:$AX$1,0)) -> 2620 | L128: =INDEX(CHARGES,MATCH($D128&$F128,$AQ$2:$AQ$44&$AR$2:$AR$44,0),MATCH(L$1,$AS$1:$AX$1,0)) -> 105
A129: Mt Isa - Fully Serviced | B129: Resort complex - Accommodation component | C129: Resort complex | D129: Accommodation (short-term) | E129: RU_2 | F129: 2 or less bedrooms | G129: 5239 | H129: =INDEX(CHARGES,MATCH($D129&$F129,$AQ$2:$AQ$44&$AR$2:$AR$44,0),MATCH(H$1,$AS$1:$AX$1,0)) -> 1467 | I129: =INDEX(CHARGES,MATCH($D129&$F129,$AQ$2:$AQ$44&$AR$2:$AR$44,0),MATCH(I$1,$AS$1:$AX$1,0)) -> 943 | J129: =INDEX(CHARGES,MATCH($D129&$F129,$AQ$2:$AQ$44&$AR$2:$AR$44,0),MATCH(J$1,$AS$1:$AX$1,0)) -> 104 | K129: =INDEX(CHARGES,MATCH($D129&$F129,$AQ$2:$AQ$44&$AR$2:$AR$44,0),MATCH(K$1,$AS$1:$AX$1,0)) -> 2620 | L129: =INDEX(CHARGES,MATCH($D129&$F129,$AQ$2:$AQ$44&$AR$2:$AR$44,0),MATCH(L$1,$AS$1:$AX$1,0)) -> 105
A130: Mt Isa - Fully Serviced | B130: Resort complex - Accommodation component | C130: Resort complex | D130: Accommodation (short-term) | E130: RU_2 | F130: 3 or more bedrooms | G130: 7335 | H130: =INDEX(CHARGES,MATCH($D130&$F130,$AQ$2:$AQ$44&$AR$2:$AR$44,0),MATCH(H$1,$AS$1:$AX$1,0)) -> 2054 | I130: =INDEX(CHARGES,MATCH($D130&$F130,$AQ$2:$AQ$44&$AR$2:$AR$44,0),MATCH(I$1,$AS$1:$AX$1,0)) -> 1320 | J130: =INDEX(CHARGES,MATCH($D130&$F130,$AQ$2:$AQ$44&$AR$2:$AR$44,0),MATCH(J$1,$AS$1:$AX$1,0)) -> 146 | K130: =INDEX(CHARGES,MATCH($D130&$F130,$AQ$2:$AQ$44&$AR$2:$AR$44,0),MATCH(K$1,$AS$1:$AX$1,0)) -> 3668 | L130: =INDEX(CHARGES,MATCH($D130&$F130,$AQ$2:$AQ$44&$AR$2:$AR$44,0),MATCH(L$1,$AS$1:$AX$1,0)) -> 147
A131: Mt Isa - Fully Serviced | B131: Resort complex - Entertainment component | C131: Resort complex | D131: Entertainment | E131: NR_1 | F131: Gross Floor Area | G131: 105 | H131: =INDEX(CHARGES,MATCH($D131&$F131,$AQ$2:$AQ$44&$AR$2:$AR$44,0),MATCH(H$1,$AS$1:$AX$1,0)) -> 22 | I131: =INDEX(CHARGES,MATCH($D131&$F131,$AQ$2:$AQ$44&$AR$2:$AR$44,0),MATCH(I$1,$AS$1:$AX$1,0)) -> 15 | J131: =INDEX(CHARGES,MATCH($D131&$F131,$AQ$2:$AQ$44&$AR$2:$AR$44,0),MATCH(J$1,$AS$1:$AX$1,0)) -> 0 | K131: =INDEX(CHARGES,MATCH($D131&$F131,$AQ$2:$AQ$44&$AR$2:$AR$44,0),MATCH(K$1,$AS$1:$AX$1,0)) -> 68 | L131: =INDEX(CHARGES,MATCH($D131&$F131,$AQ$2:$AQ$44&$AR$2:$AR$44,0),MATCH(L$1,$AS$1:$AX$1,0)) -> 0
A132: Mt Isa - Fully Serviced | B132: Resort complex - Entertainment component | C132: Resort complex | D132: Entertainment | E132: NR_1 | F132: Impervious Area | G132: 5 | H132: =INDEX(CHARGES,MATCH($D132&$F132,$AQ$2:$AQ$44&$AR$2:$AR$44,0),MATCH(H$1,$AS$1:$AX$1,0)) -> 0 | I132: =INDEX(CHARGES,MATCH($D132&$F132,$AQ$2:$AQ$44&$AR$2:$AR$44,0),MATCH(I$1,$AS$1:$AX$1,0)) -> 0 | J132: =INDEX(CHARGES,MATCH($D132&$F132,$AQ$2:$AQ$44&$AR$2:$AR$44,0),MATCH(J$1,$AS$1:$AX$1,0)) -> 5 | K132: =INDEX(CHARGES,MATCH($D132&$F132,$AQ$2:$AQ$44&$AR$2:$AR$44,0),MATCH(K$1,$AS$1:$AX$1,0)) -> 0 | L132: =INDEX(CHARGES,MATCH($D132&$F132,$AQ$2:$AQ$44&$AR$2:$AR$44,0),MATCH(L$1,$AS$1:$AX$1,0)) -> 0
A133: Mt Isa - Fully Serviced | B133: Retirement facility | C133: Retirement facility | D133: Accommodation (long-term) | E133: RU_2 | F133: bedroom that is not part of a suite | G133: 10478 | H133: =INDEX(CHARGES,MATCH($D133&$F133,$AQ$2:$AQ$44&$AR$2:$AR$44,0),MATCH(H$1,$AS$1:$AX$1,0)) -> 2934 | I133: =INDEX(CHARGES,MATCH($D133&$F133,$AQ$2:$AQ$44&$AR$2:$AR$44,0),MATCH(I$1,$AS$1:$AX$1,0)) -> 1886 | J133: =INDEX(CHARGES,MATCH($D133&$F133,$AQ$2:$AQ$44&$AR$2:$AR$44,0),MATCH(J$1,$AS$1:$AX$1,0)) -> 209 | K133: =INDEX(CHARGES,MATCH($D133&$F133,$AQ$2:$AQ$44&$AR$2:$AR$44,0),MATCH(K$1,$AS$1:$AX$1,0)) -> 5239 | L133: =INDEX(CHARGES,MATCH($D133&$F133,$AQ$2:$AQ$44&$AR$2:$AR$44,0),MATCH(L$1,$AS$1:$AX$1,0)) -> 210
A134: Mt Isa - Fully Serviced | B134: Retirement facility | C134: Retirement facility | D134: Accommodation (long-term) | E134: RU_2 | F134: 2 or less bedrooms | G134: 10478 | H134: =INDEX(CHARGES,MATCH($D134&$F134,$AQ$2:$AQ$44&$AR$2:$AR$44,0),MATCH(H$1,$AS$1:$AX$1,0)) -> 2934 | I134: =INDEX(CHARGES,MATCH($D134&$F134,$AQ$2:$AQ$44&$AR$2:$AR$44,0),MATCH(I$1,$AS$1:$AX$1,0)) -> 1886 | J134: =INDEX(CHARGES,MATCH($D134&$F134,$AQ$2:$AQ$44&$AR$2:$AR$44,0),MATCH(J$1,$AS$1:$AX$1,0)) -> 209 | K134: =INDEX(CHARGES,MATCH($D134&$F134,$AQ$2:$AQ$44&$AR$2:$AR$44,0),MATCH(K$1,$AS$1:$AX$1,0)) -> 5239 | L134: =INDEX(CHARGES,MATCH($D134&$F134,$AQ$2:$AQ$44&$AR$2:$AR$44,0),MATCH(L$1,$AS$1:$AX$1,0)) -> 210
A135: Mt Isa - Fully Serviced | B135: Retirement facility | C135: Retirement facility | D135: Accommodation (long-term) | E135: RU_2 | F135: 3 or more bedrooms | G135: 14670 | H135: =INDEX(CHARGES,MATCH($D135&$F135,$AQ$2:$AQ$44&$AR$2:$AR$44,0),MATCH(H$1,$AS$1:$AX$1,0)) -> 4108 | I135: =INDEX(CHARGES,MATCH($D135&$F135,$AQ$2:$AQ$44&$AR$2:$AR$44,0),MATCH(I$1,$AS$1:$AX$1,0)) -> 2641 | J135: =INDEX(CHARGES,MATCH($D135&$F135,$AQ$2:$AQ$44&$AR$2:$AR$44,0),MATCH(J$1,$AS$1:$AX$1,0)) -> 293 | K135: =INDEX(CHARGES,MATCH($D135&$F135,$AQ$2:$AQ$44&$AR$2:$AR$44,0),MATCH(K$1,$AS$1:$AX$1,0)) -> 7335 | L135: =INDEX(CHARGES,MATCH($D135&$F135,$AQ$2:$AQ$44&$AR$2:$AR$44,0),MATCH(L$1,$AS$1:$AX$1,0)) -> 293
A136: Mt Isa - Fully Serviced | B136: Roadside stall | C136: Roadside stall | D136: Minor uses | E136: NR_3 | F136: Gross Floor Area | G136: =SUM(H136:L136) -> 0 | H136: =INDEX(CHARGES,MATCH($D136&$F136,$AQ$2:$AQ$44&$AR$2:$AR$44,0),MATCH(H$1,$AS$1:$AX$1,0)) -> 0 | I136: =INDEX(CHARGES,MATCH($D136&$F136,$AQ$2:$AQ$44&$AR$2:$AR$44,0),MATCH(I$1,$AS$1:$AX$1,0)) -> 0 | J136: =INDEX(CHARGES,MATCH($D136&$F136,$AQ$2:$AQ$44&$AR$2:$AR$44,0),MATCH(J$1,$AS$1:$AX$1,0)) -> 0 | K136: =INDEX(CHARGES,MATCH($D136&$F136,$AQ$2:$AQ$44&$AR$2:$AR$44,0),MATCH(K$1,$AS$1:$AX$1,0)) -> 0 | L136: =INDEX(CHARGES,MATCH($D136&$F136,$AQ$2:$AQ$44&$AR$2:$AR$44,0),MATCH(L$1,$AS$1:$AX$1,0)) -> 0
A137: Mt Isa - Fully Serviced | B137: Rooming accommodation | C137: Rooming accommodation | D137: Accommodation (long-term) | E137: RU_2 | F137: bedroom that is not part of a suite | G137: 10478 | H137: =INDEX(CHARGES,MATCH($D137&$F137,$AQ$2:$AQ$44&$AR$2:$AR$44,0),MATCH(H$1,$AS$1:$AX$1,0)) -> 2934 | I137: =INDEX(CHARGES,MATCH($D137&$F137,$AQ$2:$AQ$44&$AR$2:$AR$44,0),MATCH(I$1,$AS$1:$AX$1,0)) -> 1886 | J137: =INDEX(CHARGES,MATCH($D137&$F137,$AQ$2:$AQ$44&$AR$2:$AR$44,0),MATCH(J$1,$AS$1:$AX$1,0)) -> 209 | K137: =INDEX(CHARGES,MATCH($D137&$F137,$AQ$2:$AQ$44&$AR$2:$AR$44,0),MATCH(K$1,$AS$1:$AX$1,0)) -> 5239 | L137: =INDEX(CHARGES,MATCH($D137&$F137,$AQ$2:$AQ$44&$AR$2:$AR$44,0),MATCH(L$1,$AS$1:$AX$1,0)) -> 210
A138: Mt Isa - Fully Serviced | B138: Rooming accommodation | C138: Rooming accommodation | D138: Accommodation (long-term) | E138: RU_2 | F138: 2 or less bedrooms | G138: 10478 | H138: =INDEX(CHARGES,MATCH($D138&$F138,$AQ$2:$AQ$44&$AR$2:$AR$44,0),MATCH(H$1,$AS$1:$AX$1,0)) -> 2934 | I138: =INDEX(CHARGES,MATCH($D138&$F138,$AQ$2:$AQ$44&$AR$2:$AR$44,0),MATCH(I$1,$AS$1:$AX$1,0)) -> 1886 | J138: =INDEX(CHARGES,MATCH($D138&$F138,$AQ$2:$AQ$44&$AR$2:$AR$44,0),MATCH(J$1,$AS$1:$AX$1,0)) -> 209 | K138: =INDEX(CHARGES,MATCH($D138&$F138,$AQ$2:$AQ$44&$AR$2:$AR$44,0),MATCH(K$1,$AS$1:$AX$1,0)) -> 5239 | L138: =INDEX(CHARGES,MATCH($D138&$F138,$AQ$2:$AQ$44&$AR$2:$AR$44,0),MATCH(L$1,$AS$1:$AX$1,0)) -> 210
A139: Mt Isa - Fully Serviced | B139: Rooming accommodation | C139: Rooming accommodation | D139: Accommodation (long-term) | E139: RU_2 | F139: 3 or more bedrooms | G139: 14670 | H139: =INDEX(CHARGES,MATCH($D139&$F139,$AQ$2:$AQ$44&$AR$2:$AR$44,0),MATCH(H$1,$AS$1:$AX$1,0)) -> 4108 | I139: =INDEX(CHARGES,MATCH($D139&$F139,$AQ$2:$AQ$44&$AR$2:$AR$44,0),MATCH(I$1,$AS$1:$AX$1,0)) -> 2641 | J139: =INDEX(CHARGES,MATCH($D139&$F139,$AQ$2:$AQ$44&$AR$2:$AR$44,0),MATCH(J$1,$AS$1:$AX$1,0)) -> 293 | K139: =INDEX(CHARGES,MATCH($D139&$F139,$AQ$2:$AQ$44&$AR$2:$AR$44,0),MATCH(K$1,$AS$1:$AX$1,0)) -> 7335 | L139: =INDEX(CHARGES,MATCH($D139&$F139,$AQ$2:$AQ$44&$AR$2:$AR$44,0),MATCH(L$1,$AS$1:$AX$1,0)) -> 293
A140: Mt Isa - Fully Serviced | B140: Rural industry | C140: Rural industry | D140: Other industry | E140: NR_1 | F140: Gross Floor Area | G140: 26 | H140: =INDEX(CHARGES,MATCH($D140&$F140,$AQ$2:$AQ$44&$AR$2:$AR$44,0),MATCH(H$1,$AS$1:$AX$1,0)) -> 5 | I140: =INDEX(CHARGES,MATCH($D140&$F140,$AQ$2:$AQ$44&$AR$2:$AR$44,0),MATCH(I$1,$AS$1:$AX$1,0)) -> 4 | J140: =INDEX(CHARGES,MATCH($D140&$F140,$AQ$2:$AQ$44&$AR$2:$AR$44,0),MATCH(J$1,$AS$1:$AX$1,0)) -> 0 | K140: =INDEX(CHARGES,MATCH($D140&$F140,$AQ$2:$AQ$44&$AR$2:$AR$44,0),MATCH(K$1,$AS$1:$AX$1,0)) -> 17 | L140: =INDEX(CHARGES,MATCH($D140&$F140,$AQ$2:$AQ$44&$AR$2:$AR$44,0),MATCH(L$1,$AS$1:$AX$1,0)) -> 0
A141: Mt Isa - Fully Serviced | B141: Rural industry | C141: Rural industry | D141: Other industry | E141: NR_1 | F141: Impervious Area | G141: 5 | H141: =INDEX(CHARGES,MATCH($D141&$F141,$AQ$2:$AQ$44&$AR$2:$AR$44,0),MATCH(H$1,$AS$1:$AX$1,0)) -> 0 | I141: =INDEX(CHARGES,MATCH($D141&$F141,$AQ$2:$AQ$44&$AR$2:$AR$44,0),MATCH(I$1,$AS$1:$AX$1,0)) -> 0 | J141: =INDEX(CHARGES,MATCH($D141&$F141,$AQ$2:$AQ$44&$AR$2:$AR$44,0),MATCH(J$1,$AS$1:$AX$1,0)) -> 5 | K141: =INDEX(CHARGES,MATCH($D141&$F141,$AQ$2:$AQ$44&$AR$2:$AR$44,0),MATCH(K$1,$AS$1:$AX$1,0)) -> 0 | L141: =INDEX(CHARGES,MATCH($D141&$F141,$AQ$2:$AQ$44&$AR$2:$AR$44,0),MATCH(L$1,$AS$1:$AX$1,0)) -> 0
A142: Mt Isa - Fully Serviced | B142: Rural workers accommodation | C142: Short-term accommodation | D142: Accommodation (short-term) | E142: RU_2 | F142: bedroom that is not part of a suite | G142: 5239 | H142: =INDEX(CHARGES,MATCH($D142&$F142,$AQ$2:$AQ$44&$AR$2:$AR$44,0),MATCH(H$1,$AS$1:$AX$1,0)) -> 1467 | I142: =INDEX(CHARGES,MATCH($D142&$F142,$AQ$2:$AQ$44&$AR$2:$AR$44,0),MATCH(I$1,$AS$1:$AX$1,0)) -> 943 | J142: =INDEX(CHARGES,MATCH($D142&$F142,$AQ$2:$AQ$44&$AR$2:$AR$44,0),MATCH(J$1,$AS$1:$AX$1,0)) -> 104 | K142: =INDEX(CHARGES,MATCH($D142&$F142,$AQ$2:$AQ$44&$AR$2:$AR$44,0),MATCH(K$1,$AS$1:$AX$1,0)) -> 2620 | L142: =INDEX(CHARGES,MATCH($D142&$F142,$AQ$2:$AQ$44&$AR$2:$AR$44,0),MATCH(L$1,$AS$1:$AX$1,0)) -> 105
A143: Mt Isa - Fully Serviced | B143: Rural workers accommodation | C143: Short-term accommodation | D143: Accommodation (short-term) | E143: RU_2 | F143: 2 or less bedrooms | G143: 5239 | H143: =INDEX(CHARGES,MATCH($D143&$F143,$AQ$2:$AQ$44&$AR$2:$AR$44,0),MATCH(H$1,$AS$1:$AX$1,0)) -> 1467 | I143: =INDEX(CHARGES,MATCH($D143&$F143,$AQ$2:$AQ$44&$AR$2:$AR$44,0),MATCH(I$1,$AS$1:$AX$1,0)) -> 943 | J143: =INDEX(CHARGES,MATCH($D143&$F143,$AQ$2:$AQ$44&$AR$2:$AR$44,0),MATCH(J$1,$AS$1:$AX$1,0)) -> 104 | K143: =INDEX(CHARGES,MATCH($D143&$F143,$AQ$2:$AQ$44&$AR$2:$AR$44,0),MATCH(K$1,$AS$1:$AX$1,0)) -> 2620 | L143: =INDEX(CHARGES,MATCH($D143&$F143,$AQ$2:$AQ$44&$AR$2:$AR$44,0),MATCH(L$1,$AS$1:$AX$1,0)) -> 105
A144: Mt Isa - Fully Serviced | B144: Rural workers accommodation | C144: Short-term accommodation | D144: Accommodation (short-term) | E144: RU_2 | F144: 3 or more bedrooms | G144: 7335 | H144: =INDEX(CHARGES,MATCH($D144&$F144,$AQ$2:$AQ$44&$AR$2:$AR$44,0),MATCH(H$1,$AS$1:$AX$1,0)) -> 2054 | I144: =INDEX(CHARGES,MATCH($D144&$F144,$AQ$2:$AQ$44&$AR$2:$AR$44,0),MATCH(I$1,$AS$1:$AX$1,0)) -> 1320 | J144: =INDEX(CHARGES,MATCH($D144&$F144,$AQ$2:$AQ$44&$AR$2:$AR$44,0),MATCH(J$1,$AS$1:$AX$1,0)) -> 146 | K144: =INDEX(CHARGES,MATCH($D144&$F144,$AQ$2:$AQ$44&$AR$2:$AR$44,0),MATCH(K$1,$AS$1:$AX$1,0)) -> 3668 | L144: =INDEX(CHARGES,MATCH($D144&$F144,$AQ$2:$AQ$44&$AR$2:$AR$44,0),MATCH(L$1,$AS$1:$AX$1,0)) -> 147
A145: Mt Isa - Fully Serviced | B145: Sales office | C145: Sales office | D145: Commercial (office) | E145: NR_1 | F145: Gross Floor Area | G145: 73 | H145: =INDEX(CHARGES,MATCH($D145&$F145,$AQ$2:$AQ$44&$AR$2:$AR$44,0),MATCH(H$1,$AS$1:$AX$1,0)) -> 15 | I145: =INDEX(CHARGES,MATCH($D145&$F145,$AQ$2:$AQ$44&$AR$2:$AR$44,0),MATCH(I$1,$AS$1:$AX$1,0)) -> 10 | J145: =INDEX(CHARGES,MATCH($D145&$F145,$AQ$2:$AQ$44&$AR$2:$AR$44,0),MATCH(J$1,$AS$1:$AX$1,0)) -> 0 | K145: =INDEX(CHARGES,MATCH($D145&$F145,$AQ$2:$AQ$44&$AR$2:$AR$44,0),MATCH(K$1,$AS$1:$AX$1,0)) -> 48 | L145: =INDEX(CHARGES,MATCH($D145&$F145,$AQ$2:$AQ$44&$AR$2:$AR$44,0),MATCH(L$1,$AS$1:$AX$1,0)) -> 0
A146: Mt Isa - Fully Serviced | B146: Sales office | C146: Sales office | D146: Commercial (office) | E146: NR_1 | F146: Impervious Area | G146: 5 | H146: =INDEX(CHARGES,MATCH($D146&$F146,$AQ$2:$AQ$44&$AR$2:$AR$44,0),MATCH(H$1,$AS$1:$AX$1,0)) -> 0 | I146: =INDEX(CHARGES,MATCH($D146&$F146,$AQ$2:$AQ$44&$AR$2:$AR$44,0),MATCH(I$1,$AS$1:$AX$1,0)) -> 0 | J146: =INDEX(CHARGES,MATCH($D146&$F146,$AQ$2:$AQ$44&$AR$2:$AR$44,0),MATCH(J$1,$AS$1:$AX$1,0)) -> 5 | K146: =INDEX(CHARGES,MATCH($D146&$F146,$AQ$2:$AQ$44&$AR$2:$AR$44,0),MATCH(K$1,$AS$1:$AX$1,0)) -> 0 | L146: =INDEX(CHARGES,MATCH($D146&$F146,$AQ$2:$AQ$44&$AR$2:$AR$44,0),MATCH(L$1,$AS$1:$AX$1,0)) -> 0
A147: Mt Isa - Fully Serviced | B147: Service industry | C147: Service industry | D147: Commercial (retail) | E147: NR_1 | F147: Gross Floor Area | G147: 94 | H147: =INDEX(CHARGES,MATCH($D147&$F147,$AQ$2:$AQ$44&$AR$2:$AR$44,0),MATCH(H$1,$AS$1:$AX$1,0)) -> 20 | I147: =INDEX(CHARGES,MATCH($D147&$F147,$AQ$2:$AQ$44&$AR$2:$AR$44,0),MATCH(I$1,$AS$1:$AX$1,0)) -> 13 | J147: =INDEX(CHARGES,MATCH($D147&$F147,$AQ$2:$AQ$44&$AR$2:$AR$44,0),MATCH(J$1,$AS$1:$AX$1,0)) -> 0 | K147: =INDEX(CHARGES,MATCH($D147&$F147,$AQ$2:$AQ$44&$AR$2:$AR$44,0),MATCH(K$1,$AS$1:$AX$1,0)) -> 61 | L147: =INDEX(CHARGES,MATCH($D147&$F147,$AQ$2:$AQ$44&$AR$2:$AR$44,0),MATCH(L$1,$AS$1:$AX$1,0)) -> 0
A148: Mt Isa - Fully Serviced | B148: Service industry | C148: Service industry | D148: Commercial (retail) | E148: NR_1 | F148: Impervious Area | G148: 5 | H148: =INDEX(CHARGES,MATCH($D148&$F148,$AQ$2:$AQ$44&$AR$2:$AR$44,0),MATCH(H$1,$AS$1:$AX$1,0)) -> 0 | I148: =INDEX(CHARGES,MATCH($D148&$F148,$AQ$2:$AQ$44&$AR$2:$AR$44,0),MATCH(I$1,$AS$1:$AX$1,0)) -> 0 | J148: =INDEX(CHARGES,MATCH($D148&$F148,$AQ$2:$AQ$44&$AR$2:$AR$44,0),MATCH(J$1,$AS$1:$AX$1,0)) -> 5 | K148: =INDEX(CHARGES,MATCH($D148&$F148,$AQ$2:$AQ$44&$AR$2:$AR$44,0),MATCH(K$1,$AS$1:$AX$1,0)) -> 0 | L148: =INDEX(CHARGES,MATCH($D148&$F148,$AQ$2:$AQ$44&$AR$2:$AR$44,0),MATCH(L$1,$AS$1:$AX$1,0)) -> 0
A149: Mt Isa - Fully Serviced | B149: Service station | C149: Service station | D149: Commercial (retail) | E149: NR_1 | F149: Gross Floor Area | G149: 94 | H149: =INDEX(CHARGES,MATCH($D149&$F149,$AQ$2:$AQ$44&$AR$2:$AR$44,0),MATCH(H$1,$AS$1:$AX$1,0)) -> 20 | I149: =INDEX(CHARGES,MATCH($D149&$F149,$AQ$2:$AQ$44&$AR$2:$AR$44,0),MATCH(I$1,$AS$1:$AX$1,0)) -> 13 | J149: =INDEX(CHARGES,MATCH($D149&$F149,$AQ$2:$AQ$44&$AR$2:$AR$44,0),MATCH(J$1,$AS$1:$AX$1,0)) -> 0 | K149: =INDEX(CHARGES,MATCH($D149&$F149,$AQ$2:$AQ$44&$AR$2:$AR$44,0),MATCH(K$1,$AS$1:$AX$1,0)) -> 61 | L149: =INDEX(CHARGES,MATCH($D149&$F149,$AQ$2:$AQ$44&$AR$2:$AR$44,0),MATCH(L$1,$AS$1:$AX$1,0)) -> 0
A150: Mt Isa - Fully Serviced | B150: Service station | C150: Service station | D150: Commercial (retail) | E150: NR_1 | F150: Impervious Area | G150: 5 | H150: =INDEX(CHARGES,MATCH($D150&$F150,$AQ$2:$AQ$44&$AR$2:$AR$44,0),MATCH(H$1,$AS$1:$AX$1,0)) -> 0 | I150: =INDEX(CHARGES,MATCH($D150&$F150,$AQ$2:$AQ$44&$AR$2:$AR$44,0),MATCH(I$1,$AS$1:$AX$1,0)) -> 0 | J150: =INDEX(CHARGES,MATCH($D150&$F150,$AQ$2:$AQ$44&$AR$2:$AR$44,0),MATCH(J$1,$AS$1:$AX$1,0)) -> 5 | K150: =INDEX(CHARGES,MATCH($D150&$F150,$AQ$2:$AQ$44&$AR$2:$AR$44,0),MATCH(K$1,$AS$1:$AX$1,0)) -> 0 | L150: =INDEX(CHARGES,MATCH($D150&$F150,$AQ$2:$AQ$44&$AR$2:$AR$44,0),MATCH(L$1,$AS$1:$AX$1,0)) -> 0
A151: Mt Isa - Fully Serviced | B151: Shop | C151: Shop | D151: Commercial (retail) | E151: NR_1 | F151: Gross Floor Area | G151: 94 | H151: =INDEX(CHARGES,MATCH($D151&$F151,$AQ$2:$AQ$44&$AR$2:$AR$44,0),MATCH(H$1,$AS$1:$AX$1,0)) -> 20 | I151: =INDEX(CHARGES,MATCH($D151&$F151,$AQ$2:$AQ$44&$AR$2:$AR$44,0),MATCH(I$1,$AS$1:$AX$1,0)) -> 13 | J151: =INDEX(CHARGES,MATCH($D151&$F151,$AQ$2:$AQ$44&$AR$2:$AR$44,0),MATCH(J$1,$AS$1:$AX$1,0)) -> 0 | K151: =INDEX(CHARGES,MATCH($D151&$F151,$AQ$2:$AQ$44&$AR$2:$AR$44,0),MATCH(K$1,$AS$1:$AX$1,0)) -> 61 | L151: =INDEX(CHARGES,MATCH($D151&$F151,$AQ$2:$AQ$44&$AR$2:$AR$44,0),MATCH(L$1,$AS$1:$AX$1,0)) -> 0
A152: Mt Isa - Fully Serviced | B152: Shop | C152: Shop | D152: Commercial (retail) | E152: NR_1 | F152: Impervious Area | G152: 5 | H152: =INDEX(CHARGES,MATCH($D152&$F152,$AQ$2:$AQ$44&$AR$2:$AR$44,0),MATCH(H$1,$AS$1:$AX$1,0)) -> 0 | I152: =INDEX(CHARGES,MATCH($D152&$F152,$AQ$2:$AQ$44&$AR$2:$AR$44,0),MATCH(I$1,$AS$1:$AX$1,0)) -> 0 | J152: =INDEX(CHARGES,MATCH($D152&$F152,$AQ$2:$AQ$44&$AR$2:$AR$44,0),MATCH(J$1,$AS$1:$AX$1,0)) -> 5 | K152: =INDEX(CHARGES,MATCH($D152&$F152,$AQ$2:$AQ$44&$AR$2:$AR$44,0),MATCH(K$1,$AS$1:$AX$1,0)) -> 0 | L152: =INDEX(CHARGES,MATCH($D152&$F152,$AQ$2:$AQ$44&$AR$2:$AR$44,0),MATCH(L$1,$AS$1:$AX$1,0)) -> 0
A153: Mt Isa - Fully Serviced | B153: Shopping centre | C153: Shopping centre | D153: Commercial (retail) | E153: NR_1 | F153: Gross Floor Area | G153: 94 | H153: =INDEX(CHARGES,MATCH($D153&$F153,$AQ$2:$AQ$44&$AR$2:$AR$44,0),MATCH(H$1,$AS$1:$AX$1,0)) -> 20 | I153: =INDEX(CHARGES,MATCH($D153&$F153,$AQ$2:$AQ$44&$AR$2:$AR$44,0),MATCH(I$1,$AS$1:$AX$1,0)) -> 13 | J153: =INDEX(CHARGES,MATCH($D153&$F153,$AQ$2:$AQ$44&$AR$2:$AR$44,0),MATCH(J$1,$AS$1:$AX$1,0)) -> 0 | K153: =INDEX(CHARGES,MATCH($D153&$F153,$AQ$2:$AQ$44&$AR$2:$AR$44,0),MATCH(K$1,$AS$1:$AX$1,0)) -> 61 | L153: =INDEX(CHARGES,MATCH($D153&$F153,$AQ$2:$AQ$44&$AR$2:$AR$44,0),MATCH(L$1,$AS$1:$AX$1,0)) -> 0
A154: Mt Isa - Fully Serviced | B154: Shopping centre | C154: Shopping centre | D154: Commercial (retail) | E154: NR_1 | F154: Impervious Area | G154: 5 | H154: =INDEX(CHARGES,MATCH($D154&$F154,$AQ$2:$AQ$44&$AR$2:$AR$44,0),MATCH(H$1,$AS$1:$AX$1,0)) -> 0 | I154: =INDEX(CHARGES,MATCH($D154&$F154,$AQ$2:$AQ$44&$AR$2:$AR$44,0),MATCH(I$1,$AS$1:$AX$1,0)) -> 0 | J154: =INDEX(CHARGES,MATCH($D154&$F154,$AQ$2:$AQ$44&$AR$2:$AR$44,0),MATCH(J$1,$AS$1:$AX$1,0)) -> 5 | K154: =INDEX(CHARGES,MATCH($D154&$F154,$AQ$2:$AQ$44&$AR$2:$AR$44,0),MATCH(K$1,$AS$1:$AX$1,0)) -> 0 | L154: =INDEX(CHARGES,MATCH($D154&$F154,$AQ$2:$AQ$44&$AR$2:$AR$44,0),MATCH(L$1,$AS$1:$AX$1,0)) -> 0
A155: Mt Isa - Fully Serviced | B155: Short-term accommodation | C155: Short-term accommodation | D155: Accommodation (short-term) | E155: RU_2 | F155: bedroom that is not part of a suite | G155: 5239 | H155: =INDEX(CHARGES,MATCH($D155&$F155,$AQ$2:$AQ$44&$AR$2:$AR$44,0),MATCH(H$1,$AS$1:$AX$1,0)) -> 1467 | I155: =INDEX(CHARGES,MATCH($D155&$F155,$AQ$2:$AQ$44&$AR$2:$AR$44,0),MATCH(I$1,$AS$1:$AX$1,0)) -> 943 | J155: =INDEX(CHARGES,MATCH($D155&$F155,$AQ$2:$AQ$44&$AR$2:$AR$44,0),MATCH(J$1,$AS$1:$AX$1,0)) -> 104 | K155: =INDEX(CHARGES,MATCH($D155&$F155,$AQ$2:$AQ$44&$AR$2:$AR$44,0),MATCH(K$1,$AS$1:$AX$1,0)) -> 2620 | L155: =INDEX(CHARGES,MATCH($D155&$F155,$AQ$2:$AQ$44&$AR$2:$AR$44,0),MATCH(L$1,$AS$1:$AX$1,0)) -> 105
A156: Mt Isa - Fully Serviced | B156: Short-term accommodation | C156: Short-term accommodation | D156: Accommodation (short-term) | E156: RU_2 | F156: 2 or less bedrooms | G156: 5239 | H156: =INDEX(CHARGES,MATCH($D156&$F156,$AQ$2:$AQ$44&$AR$2:$AR$44,0),MATCH(H$1,$AS$1:$AX$1,0)) -> 1467 | I156: =INDEX(CHARGES,MATCH($D156&$F156,$AQ$2:$AQ$44&$AR$2:$AR$44,0),MATCH(I$1,$AS$1:$AX$1,0)) -> 943 | J156: =INDEX(CHARGES,MATCH($D156&$F156,$AQ$2:$AQ$44&$AR$2:$AR$44,0),MATCH(J$1,$AS$1:$AX$1,0)) -> 104 | K156: =INDEX(CHARGES,MATCH($D156&$F156,$AQ$2:$AQ$44&$AR$2:$AR$44,0),MATCH(K$1,$AS$1:$AX$1,0)) -> 2620 | L156: =INDEX(CHARGES,MATCH($D156&$F156,$AQ$2:$AQ$44&$AR$2:$AR$44,0),MATCH(L$1,$AS$1:$AX$1,0)) -> 105
A157: Mt Isa - Fully Serviced | B157: Short-term accommodation | C157: Short-term accommodation | D157: Accommodation (short-term) | E157: RU_2 | F157: 3 or more bedrooms | G157: 7335 | H157: =INDEX(CHARGES,MATCH($D157&$F157,$AQ$2:$AQ$44&$AR$2:$AR$44,0),MATCH(H$1,$AS$1:$AX$1,0)) -> 2054 | I157: =INDEX(CHARGES,MATCH($D157&$F157,$AQ$2:$AQ$44&$AR$2:$AR$44,0),MATCH(I$1,$AS$1:$AX$1,0)) -> 1320 | J157: =INDEX(CHARGES,MATCH($D157&$F157,$AQ$2:$AQ$44&$AR$2:$AR$44,0),MATCH(J$1,$AS$1:$AX$1,0)) -> 146 | K157: =INDEX(CHARGES,MATCH($D157&$F157,$AQ$2:$AQ$44&$AR$2:$AR$44,0),MATCH(K$1,$AS$1:$AX$1,0)) -> 3668 | L157: =INDEX(CHARGES,MATCH($D157&$F157,$AQ$2:$AQ$44&$AR$2:$AR$44,0),MATCH(L$1,$AS$1:$AX$1,0)) -> 147
A158: Mt Isa - Fully Serviced | B158: Showroom | C158: Showroom | D158: Commercial (bulk goods) | E158: NR_1 | F158: Gross Floor Area | G158: 73 | H158: =INDEX(CHARGES,MATCH($D158&$F158,$AQ$2:$AQ$44&$AR$2:$AR$44,0),MATCH(H$1,$AS$1:$AX$1,0)) -> 15 | I158: =INDEX(CHARGES,MATCH($D158&$F158,$AQ$2:$AQ$44&$AR$2:$AR$44,0),MATCH(I$1,$AS$1:$AX$1,0)) -> 10 | J158: =INDEX(CHARGES,MATCH($D158&$F158,$AQ$2:$AQ$44&$AR$2:$AR$44,0),MATCH(J$1,$AS$1:$AX$1,0)) -> 0 | K158: =INDEX(CHARGES,MATCH($D158&$F158,$AQ$2:$AQ$44&$AR$2:$AR$44,0),MATCH(K$1,$AS$1:$AX$1,0)) -> 48 | L158: =INDEX(CHARGES,MATCH($D158&$F158,$AQ$2:$AQ$44&$AR$2:$AR$44,0),MATCH(L$1,$AS$1:$AX$1,0)) -> 0
A159: Mt Isa - Fully Serviced | B159: Showroom | C159: Showroom | D159: Commercial (bulk goods) | E159: NR_1 | F159: Impervious Area | G159: 5 | H159: =INDEX(CHARGES,MATCH($D159&$F159,$AQ$2:$AQ$44&$AR$2:$AR$44,0),MATCH(H$1,$AS$1:$AX$1,0)) -> 0 | I159: =INDEX(CHARGES,MATCH($D159&$F159,$AQ$2:$AQ$44&$AR$2:$AR$44,0),MATCH(I$1,$AS$1:$AX$1,0)) -> 0 | J159: =INDEX(CHARGES,MATCH($D159&$F159,$AQ$2:$AQ$44&$AR$2:$AR$44,0),MATCH(J$1,$AS$1:$AX$1,0)) -> 5 | K159: =INDEX(CHARGES,MATCH($D159&$F159,$AQ$2:$AQ$44&$AR$2:$AR$44,0),MATCH(K$1,$AS$1:$AX$1,0)) -> 0 | L159: =INDEX(CHARGES,MATCH($D159&$F159,$AQ$2:$AQ$44&$AR$2:$AR$44,0),MATCH(L$1,$AS$1:$AX$1,0)) -> 0
A160: Mt Isa - Fully Serviced | B160: Special industry | C160: Special industry | D160: High impact industry or special industry | E160: NR_1 | F160: Gross Floor Area | G160: 37 | H160: =INDEX(CHARGES,MATCH($D160&$F160,$AQ$2:$AQ$44&$AR$2:$AR$44,0),MATCH(H$1,$AS$1:$AX$1,0)) -> 8 | I160: =INDEX(CHARGES,MATCH($D160&$F160,$AQ$2:$AQ$44&$AR$2:$AR$44,0),MATCH(I$1,$AS$1:$AX$1,0)) -> 5 | J160: =INDEX(CHARGES,MATCH($D160&$F160,$AQ$2:$AQ$44&$AR$2:$AR$44,0),MATCH(J$1,$AS$1:$AX$1,0)) -> 0 | K160: =INDEX(CHARGES,MATCH($D160&$F160,$AQ$2:$AQ$44&$AR$2:$AR$44,0),MATCH(K$1,$AS$1:$AX$1,0)) -> 24 | L160: =INDEX(CHARGES,MATCH($D160&$F160,$AQ$2:$AQ$44&$AR$2:$AR$44,0),MATCH(L$1,$AS$1:$AX$1,0)) -> 0
A161: Mt Isa - Fully Serviced | B161: Special industry | C161: Special industry | D161: High impact industry or special industry | E161: NR_1 | F161: Impervious Area | G161: 5 | H161: =INDEX(CHARGES,MATCH($D161&$F161,$AQ$2:$AQ$44&$AR$2:$AR$44,0),MATCH(H$1,$AS$1:$AX$1,0)) -> 0 | I161: =INDEX(CHARGES,MATCH($D161&$F161,$AQ$2:$AQ$44&$AR$2:$AR$44,0),MATCH(I$1,$AS$1:$AX$1,0)) -> 0 | J161: =INDEX(CHARGES,MATCH($D161&$F161,$AQ$2:$AQ$44&$AR$2:$AR$44,0),MATCH(J$1,$AS$1:$AX$1,0)) -> 5 | K161: =INDEX(CHARGES,MATCH($D161&$F161,$AQ$2:$AQ$44&$AR$2:$AR$44,0),MATCH(K$1,$AS$1:$AX$1,0)) -> 0 | L161: =INDEX(CHARGES,MATCH($D161&$F161,$AQ$2:$AQ$44&$AR$2:$AR$44,0),MATCH(L$1,$AS$1:$AX$1,0)) -> 0
A162: Mt Isa - Fully Serviced | B162: Substation | C162: Utility installation | D162: Other uses | E162: NR_1 | F162: Gross Floor Area | G162: 0 | H162: =INDEX(CHARGES,MATCH($D162&$F162,$AQ$2:$AQ$44&$AR$2:$AR$44,0),MATCH(H$1,$AS$1:$AX$1,0)) -> 0 | I162: =INDEX(CHARGES,MATCH($D162&$F162,$AQ$2:$AQ$44&$AR$2:$AR$44,0),MATCH(I$1,$AS$1:$AX$1,0)) -> 0 | J162: =INDEX(CHARGES,MATCH($D162&$F162,$AQ$2:$AQ$44&$AR$2:$AR$44,0),MATCH(J$1,$AS$1:$AX$1,0)) -> 0 | K162: =INDEX(CHARGES,MATCH($D162&$F162,$AQ$2:$AQ$44&$AR$2:$AR$44,0),MATCH(K$1,$AS$1:$AX$1,0)) -> 0 | L162: =INDEX(CHARGES,MATCH($D162&$F162,$AQ$2:$AQ$44&$AR$2:$AR$44,0),MATCH(L$1,$AS$1:$AX$1,0)) -> 0
A163: Mt Isa - Fully Serviced | B163: Substation | C163: Utility installation | D163: Other uses | E163: NR_1 | F163: Impervious Area | G163: 0 | H163: =INDEX(CHARGES,MATCH($D163&$F163,$AQ$2:$AQ$44&$AR$2:$AR$44,0),MATCH(H$1,$AS$1:$AX$1,0)) -> 0 | I163: =INDEX(CHARGES,MATCH($D163&$F163,$AQ$2:$AQ$44&$AR$2:$AR$44,0),MATCH(I$1,$AS$1:$AX$1,0)) -> 0 | J163: =INDEX(CHARGES,MATCH($D163&$F163,$AQ$2:$AQ$44&$AR$2:$AR$44,0),MATCH(J$1,$AS$1:$AX$1,0)) -> 0 | K163: =INDEX(CHARGES,MATCH($D163&$F163,$AQ$2:$AQ$44&$AR$2:$AR$44,0),MATCH(K$1,$AS$1:$AX$1,0)) -> 0 | L163: =INDEX(CHARGES,MATCH($D163&$F163,$AQ$2:$AQ$44&$AR$2:$AR$44,0),MATCH(L$1,$AS$1:$AX$1,0)) -> 0
A164: Mt Isa - Fully Serviced | B164: Telecommunications facility | C164: Utility installation | D164: Other uses | E164: NR_1 | F164: Gross Floor Area | G164: 0 | H164: =INDEX(CHARGES,MATCH($D164&$F164,$AQ$2:$AQ$44&$AR$2:$AR$44,0),MATCH(H$1,$AS$1:$AX$1,0)) -> 0 | I164: =INDEX(CHARGES,MATCH($D164&$F164,$AQ$2:$AQ$44&$AR$2:$AR$44,0),MATCH(I$1,$AS$1:$AX$1,0)) -> 0 | J164: =INDEX(CHARGES,MATCH($D164&$F164,$AQ$2:$AQ$44&$AR$2:$AR$44,0),MATCH(J$1,$AS$1:$AX$1,0)) -> 0 | K164: =INDEX(CHARGES,MATCH($D164&$F164,$AQ$2:$AQ$44&$AR$2:$AR$44,0),MATCH(K$1,$AS$1:$AX$1,0)) -> 0 | L164: =INDEX(CHARGES,MATCH($D164&$F164,$AQ$2:$AQ$44&$AR$2:$AR$44,0),MATCH(L$1,$AS$1:$AX$1,0)) -> 0
A165: Mt Isa - Fully Serviced | B165: Telecommunications facility | C165: Utility installation | D165: Other uses | E165: NR_1 | F165: Impervious Area | G165: 0 | H165: =INDEX(CHARGES,MATCH($D165&$F165,$AQ$2:$AQ$44&$AR$2:$AR$44,0),MATCH(H$1,$AS$1:$AX$1,0)) -> 0 | I165: =INDEX(CHARGES,MATCH($D165&$F165,$AQ$2:$AQ$44&$AR$2:$AR$44,0),MATCH(I$1,$AS$1:$AX$1,0)) -> 0 | J165: =INDEX(CHARGES,MATCH($D165&$F165,$AQ$2:$AQ$44&$AR$2:$AR$44,0),MATCH(J$1,$AS$1:$AX$1,0)) -> 0 | K165: =INDEX(CHARGES,MATCH($D165&$F165,$AQ$2:$AQ$44&$AR$2:$AR$44,0),MATCH(K$1,$AS$1:$AX$1,0)) -> 0 | L165: =INDEX(CHARGES,MATCH($D165&$F165,$AQ$2:$AQ$44&$AR$2:$AR$44,0),MATCH(L$1,$AS$1:$AX$1,0)) -> 0
A166: Mt Isa - Fully Serviced | B166: Theatre | C166: Theatre | D166: Entertainment | E166: NR_1 | F166: Gross Floor Area | G166: 105 | H166: =INDEX(CHARGES,MATCH($D166&$F166,$AQ$2:$AQ$44&$AR$2:$AR$44,0),MATCH(H$1,$AS$1:$AX$1,0)) -> 22 | I166: =INDEX(CHARGES,MATCH($D166&$F166,$AQ$2:$AQ$44&$AR$2:$AR$44,0),MATCH(I$1,$AS$1:$AX$1,0)) -> 15 | J166: =INDEX(CHARGES,MATCH($D166&$F166,$AQ$2:$AQ$44&$AR$2:$AR$44,0),MATCH(J$1,$AS$1:$AX$1,0)) -> 0 | K166: =INDEX(CHARGES,MATCH($D166&$F166,$AQ$2:$AQ$44&$AR$2:$AR$44,0),MATCH(K$1,$AS$1:$AX$1,0)) -> 68 | L166: =INDEX(CHARGES,MATCH($D166&$F166,$AQ$2:$AQ$44&$AR$2:$AR$44,0),MATCH(L$1,$AS$1:$AX$1,0)) -> 0
A167: Mt Isa - Fully Serviced | B167: Theatre | C167: Theatre | D167: Entertainment | E167: NR_1 | F167: Impervious Area | G167: 5 | H167: =INDEX(CHARGES,MATCH($D167&$F167,$AQ$2:$AQ$44&$AR$2:$AR$44,0),MATCH(H$1,$AS$1:$AX$1,0)) -> 0 | I167: =INDEX(CHARGES,MATCH($D167&$F167,$AQ$2:$AQ$44&$AR$2:$AR$44,0),MATCH(I$1,$AS$1:$AX$1,0)) -> 0 | J167: =INDEX(CHARGES,MATCH($D167&$F167,$AQ$2:$AQ$44&$AR$2:$AR$44,0),MATCH(J$1,$AS$1:$AX$1,0)) -> 5 | K167: =INDEX(CHARGES,MATCH($D167&$F167,$AQ$2:$AQ$44&$AR$2:$AR$44,0),MATCH(K$1,$AS$1:$AX$1,0)) -> 0 | L167: =INDEX(CHARGES,MATCH($D167&$F167,$AQ$2:$AQ$44&$AR$2:$AR$44,0),MATCH(L$1,$AS$1:$AX$1,0)) -> 0
A168: Mt Isa - Fully Serviced | B168: Tourist attraction | C168: Tourist attraction | D168: Other uses | E168: NR_1 | F168: Gross Floor Area | G168: 0 | H168: =INDEX(CHARGES,MATCH($D168&$F168,$AQ$2:$AQ$44&$AR$2:$AR$44,0),MATCH(H$1,$AS$1:$AX$1,0)) -> 0 | I168: =INDEX(CHARGES,MATCH($D168&$F168,$AQ$2:$AQ$44&$AR$2:$AR$44,0),MATCH(I$1,$AS$1:$AX$1,0)) -> 0 | J168: =INDEX(CHARGES,MATCH($D168&$F168,$AQ$2:$AQ$44&$AR$2:$AR$44,0),MATCH(J$1,$AS$1:$AX$1,0)) -> 0 | K168: =INDEX(CHARGES,MATCH($D168&$F168,$AQ$2:$AQ$44&$AR$2:$AR$44,0),MATCH(K$1,$AS$1:$AX$1,0)) -> 0 | L168: =INDEX(CHARGES,MATCH($D168&$F168,$AQ$2:$AQ$44&$AR$2:$AR$44,0),MATCH(L$1,$AS$1:$AX$1,0)) -> 0
A169: Mt Isa - Fully Serviced | B169: Tourist attraction | C169: Tourist attraction | D169: Other uses | E169: NR_1 | F169: Impervious Area | G169: 0 | H169: =INDEX(CHARGES,MATCH($D169&$F169,$AQ$2:$AQ$44&$AR$2:$AR$44,0),MATCH(H$1,$AS$1:$AX$1,0)) -> 0 | I169: =INDEX(CHARGES,MATCH($D169&$F169,$AQ$2:$AQ$44&$AR$2:$AR$44,0),MATCH(I$1,$AS$1:$AX$1,0)) -> 0 | J169: =INDEX(CHARGES,MATCH($D169&$F169,$AQ$2:$AQ$44&$AR$2:$AR$44,0),MATCH(J$1,$AS$1:$AX$1,0)) -> 0 | K169: =INDEX(CHARGES,MATCH($D169&$F169,$AQ$2:$AQ$44&$AR$2:$AR$44,0),MATCH(K$1,$AS$1:$AX$1,0)) -> 0 | L169: =INDEX(CHARGES,MATCH($D169&$F169,$AQ$2:$AQ$44&$AR$2:$AR$44,0),MATCH(L$1,$AS$1:$AX$1,0)) -> 0
A170: Mt Isa - Fully Serviced | B170: Tourist park | C170: Tourist park | D170: Accommodation (short-term) | E170: RU_3 | F170: group of 2 sites/cabins or less | G170: 5239 | H170: =INDEX(CHARGES,MATCH($D170&$F170,$AQ$2:$AQ$44&$AR$2:$AR$44,0),MATCH(H$1,$AS$1:$AX$1,0)) -> 1467 | I170: =INDEX(CHARGES,MATCH($D170&$F170,$AQ$2:$AQ$44&$AR$2:$AR$44,0),MATCH(I$1,$AS$1:$AX$1,0)) -> 943 | J170: =INDEX(CHARGES,MATCH($D170&$F170,$AQ$2:$AQ$44&$AR$2:$AR$44,0),MATCH(J$1,$AS$1:$AX$1,0)) -> 104 | K170: =INDEX(CHARGES,MATCH($D170&$F170,$AQ$2:$AQ$44&$AR$2:$AR$44,0),MATCH(K$1,$AS$1:$AX$1,0)) -> 2620 | L170: =INDEX(CHARGES,MATCH($D170&$F170,$AQ$2:$AQ$44&$AR$2:$AR$44,0),MATCH(L$1,$AS$1:$AX$1,0)) -> 105
A171: Mt Isa - Fully Serviced | B171: Tourist park | C171: Tourist park | D171: Accommodation (short-term) | E171: RU_3 | F171: group of 3 sites/cabins | G171: 7335 | H171: =INDEX(CHARGES,MATCH($D171&$F171,$AQ$2:$AQ$44&$AR$2:$AR$44,0),MATCH(H$1,$AS$1:$AX$1,0)) -> 2054 | I171: =INDEX(CHARGES,MATCH($D171&$F171,$AQ$2:$AQ$44&$AR$2:$AR$44,0),MATCH(I$1,$AS$1:$AX$1,0)) -> 1320 | J171: =INDEX(CHARGES,MATCH($D171&$F171,$AQ$2:$AQ$44&$AR$2:$AR$44,0),MATCH(J$1,$AS$1:$AX$1,0)) -> 146 | K171: =INDEX(CHARGES,MATCH($D171&$F171,$AQ$2:$AQ$44&$AR$2:$AR$44,0),MATCH(K$1,$AS$1:$AX$1,0)) -> 3668 | L171: =INDEX(CHARGES,MATCH($D171&$F171,$AQ$2:$AQ$44&$AR$2:$AR$44,0),MATCH(L$1,$AS$1:$AX$1,0)) -> 147
A172: Mt Isa - Fully Serviced | B172: Transport depot | C172: Low impact industry | D172: Other industry | E172: NR_1 | F172: Gross Floor Area | G172: 26 | H172: =INDEX(CHARGES,MATCH($D172&$F172,$AQ$2:$AQ$44&$AR$2:$AR$44,0),MATCH(H$1,$AS$1:$AX$1,0)) -> 5 | I172: =INDEX(CHARGES,MATCH($D172&$F172,$AQ$2:$AQ$44&$AR$2:$AR$44,0),MATCH(I$1,$AS$1:$AX$1,0)) -> 4 | J172: =INDEX(CHARGES,MATCH($D172&$F172,$AQ$2:$AQ$44&$AR$2:$AR$44,0),MATCH(J$1,$AS$1:$AX$1,0)) -> 0 | K172: =INDEX(CHARGES,MATCH($D172&$F172,$AQ$2:$AQ$44&$AR$2:$AR$44,0),MATCH(K$1,$AS$1:$AX$1,0)) -> 17 | L172: =INDEX(CHARGES,MATCH($D172&$F172,$AQ$2:$AQ$44&$AR$2:$AR$44,0),MATCH(L$1,$AS$1:$AX$1,0)) -> 0
A173: Mt Isa - Fully Serviced | B173: Transport depot | C173: Low impact industry | D173: Other industry | E173: NR_1 | F173: Impervious Area | G173: 5 | H173: =INDEX(CHARGES,MATCH($D173&$F173,$AQ$2:$AQ$44&$AR$2:$AR$44,0),MATCH(H$1,$AS$1:$AX$1,0)) -> 0 | I173: =INDEX(CHARGES,MATCH($D173&$F173,$AQ$2:$AQ$44&$AR$2:$AR$44,0),MATCH(I$1,$AS$1:$AX$1,0)) -> 0 | J173: =INDEX(CHARGES,MATCH($D173&$F173,$AQ$2:$AQ$44&$AR$2:$AR$44,0),MATCH(J$1,$AS$1:$AX$1,0)) -> 5 | K173: =INDEX(CHARGES,MATCH($D173&$F173,$AQ$2:$AQ$44&$AR$2:$AR$44,0),MATCH(K$1,$AS$1:$AX$1,0)) -> 0 | L173: =INDEX(CHARGES,MATCH($D173&$F173,$AQ$2:$AQ$44&$AR$2:$AR$44,0),MATCH(L$1,$AS$1:$AX$1,0)) -> 0
A174: Mt Isa - Fully Serviced | B174: Utility installation | C174: Utility installation | D174: Other uses | E174: NR_1 | F174: Gross Floor Area | G174: 0 | H174: =INDEX(CHARGES,MATCH($D174&$F174,$AQ$2:$AQ$44&$AR$2:$AR$44,0),MATCH(H$1,$AS$1:$AX$1,0)) -> 0 | I174: =INDEX(CHARGES,MATCH($D174&$F174,$AQ$2:$AQ$44&$AR$2:$AR$44,0),MATCH(I$1,$AS$1:$AX$1,0)) -> 0 | J174: =INDEX(CHARGES,MATCH($D174&$F174,$AQ$2:$AQ$44&$AR$2:$AR$44,0),MATCH(J$1,$AS$1:$AX$1,0)) -> 0 | K174: =INDEX(CHARGES,MATCH($D174&$F174,$AQ$2:$AQ$44&$AR$2:$AR$44,0),MATCH(K$1,$AS$1:$AX$1,0)) -> 0 | L174: =INDEX(CHARGES,MATCH($D174&$F174,$AQ$2:$AQ$44&$AR$2:$AR$44,0),MATCH(L$1,$AS$1:$AX$1,0)) -> 0
A175: Mt Isa - Fully Serviced | B175: Utility installation | C175: Utility installation | D175: Other uses | E175: NR_1 | F175: Impervious Area | G175: 0 | H175: =INDEX(CHARGES,MATCH($D175&$F175,$AQ$2:$AQ$44&$AR$2:$AR$44,0),MATCH(H$1,$AS$1:$AX$1,0)) -> 0 | I175: =INDEX(CHARGES,MATCH($D175&$F175,$AQ$2:$AQ$44&$AR$2:$AR$44,0),MATCH(I$1,$AS$1:$AX$1,0)) -> 0 | J175: =INDEX(CHARGES,MATCH($D175&$F175,$AQ$2:$AQ$44&$AR$2:$AR$44,0),MATCH(J$1,$AS$1:$AX$1,0)) -> 0 | K175: =INDEX(CHARGES,MATCH($D175&$F175,$AQ$2:$AQ$44&$AR$2:$AR$44,0),MATCH(K$1,$AS$1:$AX$1,0)) -> 0 | L175: =INDEX(CHARGES,MATCH($D175&$F175,$AQ$2:$AQ$44&$AR$2:$AR$44,0),MATCH(L$1,$AS$1:$AX$1,0)) -> 0
A176: Mt Isa - Fully Serviced | B176: Veterinary services | C176: Veterinary services | D176: Essential services | E176: NR_1 | F176: Gross Floor Area | G176: 73 | H176: =INDEX(CHARGES,MATCH($D176&$F176,$AQ$2:$AQ$44&$AR$2:$AR$44,0),MATCH(H$1,$AS$1:$AX$1,0)) -> 15 | I176: =INDEX(CHARGES,MATCH($D176&$F176,$AQ$2:$AQ$44&$AR$2:$AR$44,0),MATCH(I$1,$AS$1:$AX$1,0)) -> 10 | J176: =INDEX(CHARGES,MATCH($D176&$F176,$AQ$2:$AQ$44&$AR$2:$AR$44,0),MATCH(J$1,$AS$1:$AX$1,0)) -> 0 | K176: =INDEX(CHARGES,MATCH($D176&$F176,$AQ$2:$AQ$44&$AR$2:$AR$44,0),MATCH(K$1,$AS$1:$AX$1,0)) -> 48 | L176: =INDEX(CHARGES,MATCH($D176&$F176,$AQ$2:$AQ$44&$AR$2:$AR$44,0),MATCH(L$1,$AS$1:$AX$1,0)) -> 0
A177: Mt Isa - Fully Serviced | B177: Veterinary services | C177: Veterinary services | D177: Essential services | E177: NR_1 | F177: Impervious Area | G177: 5 | H177: =INDEX(CHARGES,MATCH($D177&$F177,$AQ$2:$AQ$44&$AR$2:$AR$44,0),MATCH(H$1,$AS$1:$AX$1,0)) -> 0 | I177: =INDEX(CHARGES,MATCH($D177&$F177,$AQ$2:$AQ$44&$AR$2:$AR$44,0),MATCH(I$1,$AS$1:$AX$1,0)) -> 0 | J177: =INDEX(CHARGES,MATCH($D177&$F177,$AQ$2:$AQ$44&$AR$2:$AR$44,0),MATCH(J$1,$AS$1:$AX$1,0)) -> 5 | K177: =INDEX(CHARGES,MATCH($D177&$F177,$AQ$2:$AQ$44&$AR$2:$AR$44,0),MATCH(K$1,$AS$1:$AX$1,0)) -> 0 | L177: =INDEX(CHARGES,MATCH($D177&$F177,$AQ$2:$AQ$44&$AR$2:$AR$44,0),MATCH(L$1,$AS$1:$AX$1,0)) -> 0
A178: Mt Isa - Fully Serviced | B178: Warehouse | C178: Warehouse | D178: Other industry | E178: NR_1 | F178: Gross Floor Area | G178: 26 | H178: =INDEX(CHARGES,MATCH($D178&$F178,$AQ$2:$AQ$44&$AR$2:$AR$44,0),MATCH(H$1,$AS$1:$AX$1,0)) -> 5 | I178: =INDEX(CHARGES,MATCH($D178&$F178,$AQ$2:$AQ$44&$AR$2:$AR$44,0),MATCH(I$1,$AS$1:$AX$1,0)) -> 4 | J178: =INDEX(CHARGES,MATCH($D178&$F178,$AQ$2:$AQ$44&$AR$2:$AR$44,0),MATCH(J$1,$AS$1:$AX$1,0)) -> 0 | K178: =INDEX(CHARGES,MATCH($D178&$F178,$AQ$2:$AQ$44&$AR$2:$AR$44,0),MATCH(K$1,$AS$1:$AX$1,0)) -> 17 | L178: =INDEX(CHARGES,MATCH($D178&$F178,$AQ$2:$AQ$44&$AR$2:$AR$44,0),MATCH(L$1,$AS$1:$AX$1,0)) -> 0
A179: Mt Isa - Fully Serviced | B179: Warehouse | C179: Warehouse | D179: Other industry | E179: NR_1 | F179: Impervious Area | G179: 5 | H179: =INDEX(CHARGES,MATCH($D179&$F179,$AQ$2:$AQ$44&$AR$2:$AR$44,0),MATCH(H$1,$AS$1:$AX$1,0)) -> 0 | I179: =INDEX(CHARGES,MATCH($D179&$F179,$AQ$2:$AQ$44&$AR$2:$AR$44,0),MATCH(I$1,$AS$1:$AX$1,0)) -> 0 | J179: =INDEX(CHARGES,MATCH($D179&$F179,$AQ$2:$AQ$44&$AR$2:$AR$44,0),MATCH(J$1,$AS$1:$AX$1,0)) -> 5 | K179: =INDEX(CHARGES,MATCH($D179&$F179,$AQ$2:$AQ$44&$AR$2:$AR$44,0),MATCH(K$1,$AS$1:$AX$1,0)) -> 0 | L179: =INDEX(CHARGES,MATCH($D179&$F179,$AQ$2:$AQ$44&$AR$2:$AR$44,0),MATCH(L$1,$AS$1:$AX$1,0)) -> 0
A180: Mt Isa - Fully Serviced | B180: Wholesale nursery | C180: Wholesale nursery | D180: High impact rural | E180: NR_3 | F180: Gross Floor Area | G180: 10 | H180: =INDEX(CHARGES,MATCH($D180&$F180,$AQ$2:$AQ$44&$AR$2:$AR$44,0),MATCH(H$1,$AS$1:$AX$1,0)) -> 2 | I180: =INDEX(CHARGES,MATCH($D180&$F180,$AQ$2:$AQ$44&$AR$2:$AR$44,0),MATCH(I$1,$AS$1:$AX$1,0)) -> 1 | J180: =INDEX(CHARGES,MATCH($D180&$F180,$AQ$2:$AQ$44&$AR$2:$AR$44,0),MATCH(J$1,$AS$1:$AX$1,0)) -> 0 | K180: =INDEX(CHARGES,MATCH($D180&$F180,$AQ$2:$AQ$44&$AR$2:$AR$44,0),MATCH(K$1,$AS$1:$AX$1,0)) -> 7 | L180: =INDEX(CHARGES,MATCH($D180&$F180,$AQ$2:$AQ$44&$AR$2:$AR$44,0),MATCH(L$1,$AS$1:$AX$1,0)) -> 0
A181: Mt Isa - Fully Serviced | B181: Winery | C181: Winery | D181: High impact rural | E181: NR_3 | F181: Gross Floor Area | G181: 10 | H181: =INDEX(CHARGES,MATCH($D181&$F181,$AQ$2:$AQ$44&$AR$2:$AR$44,0),MATCH(H$1,$AS$1:$AX$1,0)) -> 2 | I181: =INDEX(CHARGES,MATCH($D181&$F181,$AQ$2:$AQ$44&$AR$2:$AR$44,0),MATCH(I$1,$AS$1:$AX$1,0)) -> 1 | J181: =INDEX(CHARGES,MATCH($D181&$F181,$AQ$2:$AQ$44&$AR$2:$AR$44,0),MATCH(J$1,$AS$1:$AX$1,0)) -> 0 | K181: =INDEX(CHARGES,MATCH($D181&$F181,$AQ$2:$AQ$44&$AR$2:$AR$44,0),MATCH(K$1,$AS$1:$AX$1,0)) -> 7 | L181: =INDEX(CHARGES,MATCH($D181&$F181,$AQ$2:$AQ$44&$AR$2:$AR$44,0),MATCH(L$1,$AS$1:$AX$1,0)) -> 0
A182: Mt Isa - Fully Serviced | B182: Reconfiguring a lot - Residential | C182: Reconfiguring a lot - Residential | D182: Residential uses | E182: ROL | F182: Lots | G182: 14670 | H182: =INDEX(CHARGES,MATCH($D182&$F182,$AQ$2:$AQ$44&$AR$2:$AR$44,0),MATCH(H$1,$AS$1:$AX$1,0)) -> 4108 | I182: =INDEX(CHARGES,MATCH($D182&$F182,$AQ$2:$AQ$44&$AR$2:$AR$44,0),MATCH(I$1,$AS$1:$AX$1,0)) -> 2641 | J182: =INDEX(CHARGES,MATCH($D182&$F182,$AQ$2:$AQ$44&$AR$2:$AR$44,0),MATCH(J$1,$AS$1:$AX$1,0)) -> 293 | K182: =INDEX(CHARGES,MATCH($D182&$F182,$AQ$2:$AQ$44&$AR$2:$AR$44,0),MATCH(K$1,$AS$1:$AX$1,0)) -> 7335 | L182: =INDEX(CHARGES,MATCH($D182&$F182,$AQ$2:$AQ$44&$AR$2:$AR$44,0),MATCH(L$1,$AS$1:$AX$1,0)) -> 293
A183: Mt Isa - Fully Serviced | B183: Reconfiguring a lot - Non residential | C183: Reconfiguring a lot - Non residential | D183: Non-residential uses | E183: ROL | F183: Lots | G183: =SUM(H183:L183) -> 14670 | H183: =INDEX(CHARGES,MATCH($D183&$F183,$AQ$2:$AQ$44&$AR$2:$AR$44,0),MATCH(H$1,$AS$1:$AX$1,0)) -> 3081 | I183: =INDEX(CHARGES,MATCH($D183&$F183,$AQ$2:$AQ$44&$AR$2:$AR$44,0),MATCH(I$1,$AS$1:$AX$1,0)) -> 2054 | J183: =INDEX(CHARGES,MATCH($D183&$F183,$AQ$2:$AQ$44&$AR$2:$AR$44,0),MATCH(J$1,$AS$1:$AX$1,0)) -> 293 | K183: =INDEX(CHARGES,MATCH($D183&$F183,$AQ$2:$AQ$44&$AR$2:$AR$44,0),MATCH(K$1,$AS$1:$AX$1,0)) -> 9242 | L183: =INDEX(CHARGES,MATCH($D183&$F183,$AQ$2:$AQ$44&$AR$2:$AR$44,0),MATCH(L$1,$AS$1:$AX$1,0)) -> 0
A184: Mt Isa - Water Supply Only | B184: Adult store | C184: Adult store | D184: Commercial (retail) | E184: NR_1 | F184: Gross Floor Area | G184: 81 | H184: =INDEX(CHARGES,MATCH($D184&$F184,$AQ$2:$AQ$44&$AR$2:$AR$44,0),MATCH(H$1,$AS$1:$AX$1,0)) -> 20 | I184: 0 | J184: =INDEX(CHARGES,MATCH($D184&$F184,$AQ$2:$AQ$44&$AR$2:$AR$44,0),MATCH(J$1,$AS$1:$AX$1,0)) -> 0 | K184: =INDEX(CHARGES,MATCH($D184&$F184,$AQ$2:$AQ$44&$AR$2:$AR$44,0),MATCH(K$1,$AS$1:$AX$1,0)) -> 61 | L184: =INDEX(CHARGES,MATCH($D184&$F184,$AQ$2:$AQ$44&$AR$2:$AR$44,0),MATCH(L$1,$AS$1:$AX$1,0)) -> 0
A185: Mt Isa - Water Supply Only | B185: Adult store | C185: Adult store | D185: Commercial (retail) | E185: NR_1 | F185: Impervious Area | G185: 5 | H185: =INDEX(CHARGES,MATCH($D185&$F185,$AQ$2:$AQ$44&$AR$2:$AR$44,0),MATCH(H$1,$AS$1:$AX$1,0)) -> 0 | I185: 0 | J185: =INDEX(CHARGES,MATCH($D185&$F185,$AQ$2:$AQ$44&$AR$2:$AR$44,0),MATCH(J$1,$AS$1:$AX$1,0)) -> 5 | K185: =INDEX(CHARGES,MATCH($D185&$F185,$AQ$2:$AQ$44&$AR$2:$AR$44,0),MATCH(K$1,$AS$1:$AX$1,0)) -> 0 | L185: =INDEX(CHARGES,MATCH($D185&$F185,$AQ$2:$AQ$44&$AR$2:$AR$44,0),MATCH(L$1,$AS$1:$AX$1,0)) -> 0
A186: Mt Isa - Water Supply Only | B186: Agrigultural supplies store | C186: Agrigultural supplies store | D186: Commercial (bulk goods) | E186: NR_1 | F186: Gross Floor Area | G186: 63 | H186: =INDEX(CHARGES,MATCH($D186&$F186,$AQ$2:$AQ$44&$AR$2:$AR$44,0),MATCH(H$1,$AS$1:$AX$1,0)) -> 15 | I186: 0 | J186: =INDEX(CHARGES,MATCH($D186&$F186,$AQ$2:$AQ$44&$AR$2:$AR$44,0),MATCH(J$1,$AS$1:$AX$1,0)) -> 0 | K186: =INDEX(CHARGES,MATCH($D186&$F186,$AQ$2:$AQ$44&$AR$2:$AR$44,0),MATCH(K$1,$AS$1:$AX$1,0)) -> 48 | L186: =INDEX(CHARGES,MATCH($D186&$F186,$AQ$2:$AQ$44&$AR$2:$AR$44,0),MATCH(L$1,$AS$1:$AX$1,0)) -> 0
A187: Mt Isa - Water Supply Only | B187: Agrigultural supplies store | C187: Agrigultural supplies store | D187: Commercial (bulk goods) | E187: NR_1 | F187: Impervious Area | G187: 5 | H187: =INDEX(CHARGES,MATCH($D187&$F187,$AQ$2:$AQ$44&$AR$2:$AR$44,0),MATCH(H$1,$AS$1:$AX$1,0)) -> 0 | I187: 0 | J187: =INDEX(CHARGES,MATCH($D187&$F187,$AQ$2:$AQ$44&$AR$2:$AR$44,0),MATCH(J$1,$AS$1:$AX$1,0)) -> 5 | K187: =INDEX(CHARGES,MATCH($D187&$F187,$AQ$2:$AQ$44&$AR$2:$AR$44,0),MATCH(K$1,$AS$1:$AX$1,0)) -> 0 | L187: =INDEX(CHARGES,MATCH($D187&$F187,$AQ$2:$AQ$44&$AR$2:$AR$44,0),MATCH(L$1,$AS$1:$AX$1,0)) -> 0
A188: Mt Isa - Water Supply Only | B188: Air services | C188: Air services | D188: Other uses | E188: NR_1 | F188: Gross Floor Area | G188: 0 | H188: =INDEX(CHARGES,MATCH($D188&$F188,$AQ$2:$AQ$44&$AR$2:$AR$44,0),MATCH(H$1,$AS$1:$AX$1,0)) -> 0 | I188: 0 | J188: =INDEX(CHARGES,MATCH($D188&$F188,$AQ$2:$AQ$44&$AR$2:$AR$44,0),MATCH(J$1,$AS$1:$AX$1,0)) -> 0 | K188: =INDEX(CHARGES,MATCH($D188&$F188,$AQ$2:$AQ$44&$AR$2:$AR$44,0),MATCH(K$1,$AS$1:$AX$1,0)) -> 0 | L188: =INDEX(CHARGES,MATCH($D188&$F188,$AQ$2:$AQ$44&$AR$2:$AR$44,0),MATCH(L$1,$AS$1:$AX$1,0)) -> 0
A189: Mt Isa - Water Supply Only | B189: Air services | C189: Air services | D189: Other uses | E189: NR_1 | F189: Impervious Area | G189: 0 | H189: =INDEX(CHARGES,MATCH($D189&$F189,$AQ$2:$AQ$44&$AR$2:$AR$44,0),MATCH(H$1,$AS$1:$AX$1,0)) -> 0 | I189: 0 | J189: =INDEX(CHARGES,MATCH($D189&$F189,$AQ$2:$AQ$44&$AR$2:$AR$44,0),MATCH(J$1,$AS$1:$AX$1,0)) -> 0 | K189: =INDEX(CHARGES,MATCH($D189&$F189,$AQ$2:$AQ$44&$AR$2:$AR$44,0),MATCH(K$1,$AS$1:$AX$1,0)) -> 0 | L189: =INDEX(CHARGES,MATCH($D189&$F189,$AQ$2:$AQ$44&$AR$2:$AR$44,0),MATCH(L$1,$AS$1:$AX$1,0)) -> 0
A190: Mt Isa - Water Supply Only | B190: Animal husbandry | C190: Animal husbandry | D190: Low impact rural | E190: NR_3 | F190: Gross Floor Area | G190: 0 | H190: =INDEX(CHARGES,MATCH($D190&$F190,$AQ$2:$AQ$44&$AR$2:$AR$44,0),MATCH(H$1,$AS$1:$AX$1,0)) -> 0 | I190: 0 | J190: =INDEX(CHARGES,MATCH($D190&$F190,$AQ$2:$AQ$44&$AR$2:$AR$44,0),MATCH(J$1,$AS$1:$AX$1,0)) -> 0 | K190: =INDEX(CHARGES,MATCH($D190&$F190,$AQ$2:$AQ$44&$AR$2:$AR$44,0),MATCH(K$1,$AS$1:$AX$1,0)) -> 0 | L190: =INDEX(CHARGES,MATCH($D190&$F190,$AQ$2:$AQ$44&$AR$2:$AR$44,0),MATCH(L$1,$AS$1:$AX$1,0)) -> 0
A191: Mt Isa - Water Supply Only | B191: Animal keeping | C191: Animal keeping | D191: Other uses | E191: NR_1 | F191: Gross Floor Area | G191: 0 | H191: =INDEX(CHARGES,MATCH($D191&$F191,$AQ$2:$AQ$44&$AR$2:$AR$44,0),MATCH(H$1,$AS$1:$AX$1,0)) -> 0 | I191: 0 | J191: =INDEX(CHARGES,MATCH($D191&$F191,$AQ$2:$AQ$44&$AR$2:$AR$44,0),MATCH(J$1,$AS$1:$AX$1,0)) -> 0 | K191: =INDEX(CHARGES,MATCH($D191&$F191,$AQ$2:$AQ$44&$AR$2:$AR$44,0),MATCH(K$1,$AS$1:$AX$1,0)) -> 0 | L191: =INDEX(CHARGES,MATCH($D191&$F191,$AQ$2:$AQ$44&$AR$2:$AR$44,0),MATCH(L$1,$AS$1:$AX$1,0)) -> 0
A192: Mt Isa - Water Supply Only | B192: Animal keeping | C192: Animal keeping | D192: Other uses | E192: NR_1 | F192: Impervious Area | G192: 0 | H192: =INDEX(CHARGES,MATCH($D192&$F192,$AQ$2:$AQ$44&$AR$2:$AR$44,0),MATCH(H$1,$AS$1:$AX$1,0)) -> 0 | I192: 0 | J192: =INDEX(CHARGES,MATCH($D192&$F192,$AQ$2:$AQ$44&$AR$2:$AR$44,0),MATCH(J$1,$AS$1:$AX$1,0)) -> 0 | K192: =INDEX(CHARGES,MATCH($D192&$F192,$AQ$2:$AQ$44&$AR$2:$AR$44,0),MATCH(K$1,$AS$1:$AX$1,0)) -> 0 | L192: =INDEX(CHARGES,MATCH($D192&$F192,$AQ$2:$AQ$44&$AR$2:$AR$44,0),MATCH(L$1,$AS$1:$AX$1,0)) -> 0
A193: Mt Isa - Water Supply Only | B193: Aquaculture | D193: Other uses | E193: NR_1 | F193: Gross Floor Area | G193: 0 | H193: =INDEX(CHARGES,MATCH($D193&$F193,$AQ$2:$AQ$44&$AR$2:$AR$44,0),MATCH(H$1,$AS$1:$AX$1,0)) -> 0 | I193: 0 | J193: =INDEX(CHARGES,MATCH($D193&$F193,$AQ$2:$AQ$44&$AR$2:$AR$44,0),MATCH(J$1,$AS$1:$AX$1,0)) -> 0 | K193: =INDEX(CHARGES,MATCH($D193&$F193,$AQ$2:$AQ$44&$AR$2:$AR$44,0),MATCH(K$1,$AS$1:$AX$1,0)) -> 0 | L193: =INDEX(CHARGES,MATCH($D193&$F193,$AQ$2:$AQ$44&$AR$2:$AR$44,0),MATCH(L$1,$AS$1:$AX$1,0)) -> 0
A194: Mt Isa - Water Supply Only | B194: Aquaculture | D194: Other uses | E194: NR_1 | F194: Impervious Area | G194: 0 | H194: =INDEX(CHARGES,MATCH($D194&$F194,$AQ$2:$AQ$44&$AR$2:$AR$44,0),MATCH(H$1,$AS$1:$AX$1,0)) -> 0 | I194: 0 | J194: =INDEX(CHARGES,MATCH($D194&$F194,$AQ$2:$AQ$44&$AR$2:$AR$44,0),MATCH(J$1,$AS$1:$AX$1,0)) -> 0 | K194: =INDEX(CHARGES,MATCH($D194&$F194,$AQ$2:$AQ$44&$AR$2:$AR$44,0),MATCH(K$1,$AS$1:$AX$1,0)) -> 0 | L194: =INDEX(CHARGES,MATCH($D194&$F194,$AQ$2:$AQ$44&$AR$2:$AR$44,0),MATCH(L$1,$AS$1:$AX$1,0)) -> 0
A195: Mt Isa - Water Supply Only | B195: Bar | C195: Hotel | D195: Entertainment | E195: NR_1 | F195: Gross Floor Area | G195: 90 | H195: =INDEX(CHARGES,MATCH($D195&$F195,$AQ$2:$AQ$44&$AR$2:$AR$44,0),MATCH(H$1,$AS$1:$AX$1,0)) -> 22 | I195: 0 | J195: =INDEX(CHARGES,MATCH($D195&$F195,$AQ$2:$AQ$44&$AR$2:$AR$44,0),MATCH(J$1,$AS$1:$AX$1,0)) -> 0 | K195: =INDEX(CHARGES,MATCH($D195&$F195,$AQ$2:$AQ$44&$AR$2:$AR$44,0),MATCH(K$1,$AS$1:$AX$1,0)) -> 68 | L195: =INDEX(CHARGES,MATCH($D195&$F195,$AQ$2:$AQ$44&$AR$2:$AR$44,0),MATCH(L$1,$AS$1:$AX$1,0)) -> 0
A196: Mt Isa - Water Supply Only | B196: Bar | C196: Hotel | D196: Entertainment | E196: NR_1 | F196: Impervious Area | G196: 5 | H196: =INDEX(CHARGES,MATCH($D196&$F196,$AQ$2:$AQ$44&$AR$2:$AR$44,0),MATCH(H$1,$AS$1:$AX$1,0)) -> 0 | I196: 0 | J196: =INDEX(CHARGES,MATCH($D196&$F196,$AQ$2:$AQ$44&$AR$2:$AR$44,0),MATCH(J$1,$AS$1:$AX$1,0)) -> 5 | K196: =INDEX(CHARGES,MATCH($D196&$F196,$AQ$2:$AQ$44&$AR$2:$AR$44,0),MATCH(K$1,$AS$1:$AX$1,0)) -> 0 | L196: =INDEX(CHARGES,MATCH($D196&$F196,$AQ$2:$AQ$44&$AR$2:$AR$44,0),MATCH(L$1,$AS$1:$AX$1,0)) -> 0
A197: Mt Isa - Water Supply Only | B197: Brothel | D197: Entertainment | E197: NR_1 | F197: Gross Floor Area | G197: 90 | H197: =INDEX(CHARGES,MATCH($D197&$F197,$AQ$2:$AQ$44&$AR$2:$AR$44,0),MATCH(H$1,$AS$1:$AX$1,0)) -> 22 | I197: 0 | J197: =INDEX(CHARGES,MATCH($D197&$F197,$AQ$2:$AQ$44&$AR$2:$AR$44,0),MATCH(J$1,$AS$1:$AX$1,0)) -> 0 | K197: =INDEX(CHARGES,MATCH($D197&$F197,$AQ$2:$AQ$44&$AR$2:$AR$44,0),MATCH(K$1,$AS$1:$AX$1,0)) -> 68 | L197: =INDEX(CHARGES,MATCH($D197&$F197,$AQ$2:$AQ$44&$AR$2:$AR$44,0),MATCH(L$1,$AS$1:$AX$1,0)) -> 0
A198: Mt Isa - Water Supply Only | B198: Brothel | D198: Entertainment | E198: NR_1 | F198: Impervious Area | G198: 5 | H198: =INDEX(CHARGES,MATCH($D198&$F198,$AQ$2:$AQ$44&$AR$2:$AR$44,0),MATCH(H$1,$AS$1:$AX$1,0)) -> 0 | I198: 0 | J198: =INDEX(CHARGES,MATCH($D198&$F198,$AQ$2:$AQ$44&$AR$2:$AR$44,0),MATCH(J$1,$AS$1:$AX$1,0)) -> 5 | K198: =INDEX(CHARGES,MATCH($D198&$F198,$AQ$2:$AQ$44&$AR$2:$AR$44,0),MATCH(K$1,$AS$1:$AX$1,0)) -> 0 | L198: =INDEX(CHARGES,MATCH($D198&$F198,$AQ$2:$AQ$44&$AR$2:$AR$44,0),MATCH(L$1,$AS$1:$AX$1,0)) -> 0
A199: Mt Isa - Water Supply Only | B199: Bulk landscape supplies | C199: Bulk landscape supplies | D199: Commercial (bulk goods) | E199: NR_1 | F199: Gross Floor Area | G199: 63 | H199: =INDEX(CHARGES,MATCH($D199&$F199,$AQ$2:$AQ$44&$AR$2:$AR$44,0),MATCH(H$1,$AS$1:$AX$1,0)) -> 15 | I199: 0 | J199: =INDEX(CHARGES,MATCH($D199&$F199,$AQ$2:$AQ$44&$AR$2:$AR$44,0),MATCH(J$1,$AS$1:$AX$1,0)) -> 0 | K199: =INDEX(CHARGES,MATCH($D199&$F199,$AQ$2:$AQ$44&$AR$2:$AR$44,0),MATCH(K$1,$AS$1:$AX$1,0)) -> 48 | L199: =INDEX(CHARGES,MATCH($D199&$F199,$AQ$2:$AQ$44&$AR$2:$AR$44,0),MATCH(L$1,$AS$1:$AX$1,0)) -> 0
A200: Mt Isa - Water Supply Only | B200: Bulk landscape supplies | C200: Bulk landscape supplies | D200: Commercial (bulk goods) | E200: NR_1 | F200: Impervious Area | G200: =SUM(H200:L200) -> 5 | H200: =INDEX(CHARGES,MATCH($D200&$F200,$AQ$2:$AQ$44&$AR$2:$AR$44,0),MATCH(H$1,$AS$1:$AX$1,0)) -> 0 | I200: 0 | J200: =INDEX(CHARGES,MATCH($D200&$F200,$AQ$2:$AQ$44&$AR$2:$AR$44,0),MATCH(J$1,$AS$1:$AX$1,0)) -> 5 | K200: =INDEX(CHARGES,MATCH($D200&$F200,$AQ$2:$AQ$44&$AR$2:$AR$44,0),MATCH(K$1,$AS$1:$AX$1,0)) -> 0 | L200: =INDEX(CHARGES,MATCH($D200&$F200,$AQ$2:$AQ$44&$AR$2:$AR$44,0),MATCH(L$1,$AS$1:$AX$1,0)) -> 0
... 1075 more rows
